Workbook

Sheet FUNCIONAMIENTO
B1: FUNCIONAMIENTO TIPO DE CONTRATO AÑO 2021 SE SUMO EL NUMERO DE CONTRATOS | O1: FUNCIONAMIENTO POR MODALIDAD DE CONTRATO 2021
A3: Año | B3: 2021 | O3: Año | P3: 2021
A4: Afectación | B4: Funcionamiento | O4: Afectación | P4: Funcionamiento
C6: Valores | P6: Valores
A7: Tipo de contrato | B7: Propósito | C7: Suma de Valor Final | D7: Suma de Valor Final 2 | E7: Suma de Giros (Valor en pesos) | F7: Suma de Giros (Valor en pesos)2 | G7: Suma de Cuenta contratos | H7: Suma de Cuenta contratos2 | O7: Modalidad de Selección | P7: Suma de Valor Final | Q7: Suma de Valor Final 2 | R7: Suma de Giros (Valor en pesos) | S7: Suma de Giros (Valor en pesos)2 | T7: Suma de Cuenta contratos | U7: Suma de Cuenta contratos2
A8: Compraventa de bienes muebles | C8: 46178107 | D8: 0.04040120924 | E8: 25050045 | F8: 0.04691447894 | G8: 8 | H8: 0.3076923077 | O8: Concurso de méritos | P8: 0 | Q8: 0 | R8: 0 | S8: 0 | T8: 1 | U8: 0.03846153846
A9: Contratos de prestación de servicios | C9: 835090465 | D9: 0.7306203481 | E9: 413268769 | F9: 0.7739822008 | G9: 6 | H9: 0.2307692308 | O9: Contratación directa | P9: 39538873 | Q9: 0.03459254579 | R9: 19508504 | S9: 0.03653611401 | T9: 6 | U9: 0.2307692308
A10: Contratos interadministrativos | C10: 30538873 | D10: 0.02671844903 | E10: 16522502 | F10: 0.0309438395 | G10: 5 | H10: 0.1923076923 | O10: Contratación mínima cuantia | P10: 161359611 | Q10: 0.1411734657 | R10: 60670012 | S10: 0.1136246262 | T10: 6 | U10: 0.2307692308
A11: Seguros | C11: 130281318 | D11: 0.1139830784 | E11: 60670012 | F11: 0.1136246262 | G11: 3 | H11: 0.1153846154 | O11: Régimen especial | P11: 648482057 | Q11: 0.5673567189 | R11: 343556142 | S11: 0.6434222928 | T11: 2 | U11: 0.07692307692
A12: Suministro | C12: 100899476 | D12: 0.08827691533 | E12: 18439929 | F12: 0.03453485456 | G12: 4 | H12: 0.1538461538 | O12: Selección abreviada | P12: 293607698 | Q12: 0.2568772696 | R12: 110216599 | S12: 0.206416967 | T12: 11 | U12: 0.4230769231
A13: Total general | C13: 1142988239 | D13: 1 | E13: 533951257 | F13: 1 | G13: 26 | H13: 1 | O13: Total general | P13: 1142988239 | Q13: 1 | R13: 533951257 | S13: 1 | T13: 26 | U13: 1
B28: FUNCIONAMIENTO TIPO DE CONTRATO AÑO ANTERIORES SE SUMO EL NUMERO DE ADICIONES
O29: FUNCIONAMIENTO POR MODALIDAD DE CONTRATO AÑOS ANTERIORES SE SUMO EL NUMERO DE ADICIONES
A30: Año | B30: (Varios elementos)
A31: Afectación | B31: Funcionamiento | O31: Año | P31: (Varios elementos)
O32: Afectación | P32: Funcionamiento
C33: Valores
A34: Tipo de contrato | B34: Propósito | C34: Suma de Valor Final | D34: Suma de Valor Final 2 | E34: Suma de Giros (Valor en pesos) | F34: Suma de Giros (Valor en pesos)2 | G34: Suma de Número de adiciones | H34: Suma de Número de adiciones2 | P34: Valores
A35: Contratos de prestación de servicios | C35: 139452974 | D35: 0.6908754124 | E35: 109802298 | F35: 0.6894357497 | G35: 2 | H35: 0.25 | O35: Modalidad de Selección | P35: Suma de Valor Final | Q35: Suma de Valor Final 2 | R35: Suma de Giros (Valor en pesos) | S35: Suma de Giros (Valor en pesos)2 | T35: Suma de Número de adiciones | U35: Suma de Número de adiciones2
A36: Seguros | C36: 49231521 | D36: 0.2439019147 | E36: 49231520 | F36: 0.3091189394 | G36: 4 | H36: 0.5 | O36: Régimen especial | P36: 119452974 | Q36: 0.5917917726 | R36: 109802298 | S36: 0.6894357497 | T36: 1 | U36: 0.125
A37: Suministro | C37: 13165175 | D37: 0.06522267289 | E37: 230186 | F37: 0.001445310894 | G37: 2 | H37: 0.25 | O37: Selección abreviada | P37: 82396696 | Q37: 0.4082082274 | R37: 49461706 | S37: 0.3105642503 | T37: 7 | U37: 0.875
A38: Total general | C38: 201849670 | D38: 1 | E38: 159264004 | F38: 1 | G38: 8 | H38: 1 | O38: Total general | P38: 201849670 | Q38: 1 | R38: 159264004 | S38: 1 | T38: 8 | U38: 1

Sheet Ctos suscrito x Trimestre
B2: Contratos Suscritos en la vigencia 2021 (Inversion) | E2: Se toman solo los contratos de la vigencia por cuanto en las adiciones años anteriores algunas Entidades registraron la fecha en que se suscribio el contrato y no la adición.
B3: Afectación | C3: Inversión
B4: Tipo de contrato | C4: (Varios elementos) | D4: No incluir "otros gastos"
B5: Año | C5: (Todas)
B7: Suma de Cuenta contratos
B8: Fecha de suscripción (DD/MM/AAAA) | C8: Total
B9: 44242 | C9: 4
B10: 44459 | C10: 1
B11: 44245 | C11: 12
B12: 44225 | C12: 4
B13: 44271 | C13: 5
B14: 44236 | C14: 13
B15: 44252 | C15: 4
B16: 44230 | C16: 8
B17: 44239 | C17: 15
B18: 44420 | C18: 2
B19: 44462 | C19: 1
B20: 44292 | C20: 2
B21: 44253 | C21: 23
B22: 44238 | C22: 12
B23: 44547 | C23: 1
B24: 44228 | C24: 7
B25: 44293 | C25: 2
B26: 44390 | C26: 4
B27: 44412 | C27: 1
B28: 44504 | C28: 1
B29: 44408 | C29: 1
B30: 44438 | C30: 2
B31: 44512 | C31: 2
B32: 44449 | C32: 1
B33: 44285 | C33: 1
B34: 44418 | C34: 4
B35: 44393 | C35: 2
B36: 44455 | C36: 2
B37: 44435 | C37: 1
B38: 44468 | C38: 3
B39: 44340 | C39: 1
B40: 44204 | C40: 1
B41: 44539 | C41: 3
B42: 44375 | C42: 1
B43: 44377 | C43: 1
B44: 44498 | C44: 1
B45: 44421 | C45: 2
B46: 44229 | C46: 5
B47: 44237 | C47: 5
B48: 44249 | C48: 4
B49: 44531 | C49: 1
B50: 44256 | C50: 3
B51: 44560 | C51: 5
B52: 44392 | C52: 1
B53: 44559 | C53: 5
B54: 44404 | C54: 2
B55: 44221 | C55: 8
B56: 44329 | C56: 2
B57: 44403 | C57: 1
B58: 44363 | C58: 2
B59: 44427 | C59: 2
B60: 44419 | C60: 9
B61: 44231 | C61: 3
B62: 44279 | C62: 4
B63: 44218 | C63: 1
B64: 44260 | C64: 1
B65: 44286 | C65: 2
B66: 44251 | C66: 8
B67: 44232 | C67: 8
B68: 44265 | C68: 5
B69: 44263 | C69: 3
B70: 44246 | C70: 5
B71: 44406 | C71: 2
B72: 44474 | C72: 2
B73: 44431 | C73: 3
B74: 44264 | C74: 3
B75: 44291 | C75: 1
B76: 44483 | C76: 1
B77: 44517 | C77: 1
B78: 44524 | C78: 1
B79: 44447 | C79: 2
B80: 44425 | C80: 1
B81: 44235 | C81: 2
B82: 44400 | C82: 1
B83: 44243 | C83: 3
B84: 44557 | C84: 1
B85: 44456 | C85: 1
B86: 44223 | C86: 3
B87: 44272 | C87: 5
B88: 44244 | C88: 5
B89: 44328 | C89: 2
B90: 44439 | C90: 1
B91: 44434 | C91: 1
B92: 44224 | C92: 1
B93: 44442 | C93: 1
B94: 44337 | C94: 2
B95: 44355 | C95: 1
B96: 44481 | C96: 2
B97: 44543 | C97: 1
B98: 44452 | C98: 1
B99: 44274 | C99: 1
B100: 44266 | C100: 3
B101: 44448 | C101: 1
B102: 44336 | C102: 1
B103: 44551 | C103: 1
B104: 44485 | C104: 1
B105: 44358 | C105: 1
B106: 44257 | C106: 1
B107: 44250 | C107: 3
B108: 44440 | C108: 1
B109: 44532 | C109: 1
B110: 44558 | C110: 1
B111: 44405 | C111: 1
B112: 44441 | C112: 1
B113: 44306 | C113: 1
B114: 44259 | C114: 1
B115: 44426 | C115: 1
B116: 44282 | C116: 1
B117: 44460 | C117: 1
B118: 44335 | C118: 1
B119: Total general | C119: 321

Sheet INVERSION
B1: INVERSION TIPO DE CONTRATO AÑO 2021 SE SUMO EL NUMERO DE CONTRATOS | BV1: INVERSION POR MODALIDAD DE CONTRATO 2021
A3: Año | B3: 2021 | BV3: Año | BW3: 2021
A4: Afectación | B4: Inversión | BV4: Afectación | BW4: Inversión
D6: Valores | BY6: Valores
A7: Tipo de contrato | B7: Propósito | C7: Equivalencia número de programa | D7: Suma de Valor Final | E7: Suma de Valor Final 2 | F7: Suma de Giros (Valor en pesos) | G7: Suma de Giros (Valor en pesos)2 | H7: Suma de Cuenta contratos | I7: Suma de Cuenta contratos2 | BV7: Modalidad de Selección | BW7: Propósito | BX7: Equivalencia número de programa | BY7: Suma de Valor Final | BZ7: Suma de Valor Final 2 | CA7: Suma de Giros (Valor en pesos) | CB7: Suma de Giros (Valor en pesos)2 | CC7: Suma de Cuenta contratos | CD7: Suma de Cuenta contratos2
A8: Compraventa de bienes muebles | B8: Propósito 1: Hacer un nuevo contrato social para incrementar la inclusión social, productiva y política | C8: Sistema Distrital de Cuidado | D8: 345218700 | E8: 0.0100523402 | F8: 0 | G8: 0 | H8: 1 | I8: 0.003174603175 | BV8: Concurso de méritos | BW8: Propósito 2 : Cambiar Nuestros Hábitos de Vida para Reverdecer a Bogotá y Adaptarnos y Mitigar la Crisis Climática | BX8: Eficiencia en la atención de emergencias | BY8: 212977824 | BZ8: 0.006201649975 | CA8: 0 | CB8: 0 | CC8: 1 | CD8: 0.003174603175
C9: Formación integral: más y mejor tiempo en los colegios | D9: 666799000 | E9: 0.01941635953 | F9: 0 | G9: 0 | H9: 1 | I9: 0.003174603175 | BX9: Más árboles y más y mejor espacio público | BY9: 118565081 | BZ9: 0.003452468045 | CA9: 0 | CB9: 0 | CC9: 1 | CD9: 0.003174603175
B10: Propósito 5: Construir Bogotá - Región con gobierno abierto, transparente y ciudadanía consciente | C10: Gestión pública local | D10: 105194893 | E10: 0.00306314476 | F10: 105194892 | G10: 0.00599936572 | H10: 2 | I10: 0.006349206349 | BW10: Propósito 5: Construir Bogotá - Región con gobierno abierto, transparente y ciudadanía consciente | BX10: Fortalecimiento de cultura ciudadana y su institucionalidad | BY10: 81969580 | BZ10: 0.002386852463 | CA10: 0 | CB10: 0 | CC10: 1 | CD10: 0.003174603175
C11: Fortalecimiento de cultura ciudadana y su institucionalidad | D11: 164854935 | E11: 0.004800371158 | F11: 119437360 | G11: 0.006811627348 | H11: 3 | I11: 0.009523809524 | BV11: Contratación directa | BW11: Propósito 1: Hacer un nuevo contrato social para incrementar la inclusión social, productiva y política | BX11: Bogotá región emprendedora e innovadora | BY11: 1245360000 | BZ11: 0.03626333797 | CA11: 474280000 | CB11: 0.0270486439 | CC11: 2 | CD11: 0.006349206349
B12: Propósito 2 : Cambiar Nuestros Hábitos de Vida para Reverdecer a Bogotá y Adaptarnos y Mitigar la Crisis Climática | C12: Eficiencia en la atención de emergencias | D12: 70454639 | E12: 0.002051551669 | F12: 0 | G12: 0 | H12: 1 | I12: 0.003174603175 | BX12: Bogotá, referente en cultura, deporte, recreación y actividad física, con parques para el desarrollo y la salud | BY12: 227201686 | BZ12: 0.006615831188 | CA12: 181761349 | CB12: 0.0103660243 | CC12: 1 | CD12: 0.003174603175
A13: Contratos de prestación de servicios | B13: Propósito 1: Hacer un nuevo contrato social para incrementar la inclusión social, productiva y política | C13: Creación y vida cotidiana: Apropiación ciudadana del arte, la cultura y el patrimonio, para la democracia cultural | D13: 397207207 | E13: 0.01156618102 | F13: 0 | G13: 0 | H13: 1 | I13: 0.003174603175 | BX13: Creación y vida cotidiana: Apropiación ciudadana del arte, la cultura y el patrimonio, para la democracia cultural | BY13: 1053466000 | BZ13: 0.03067562279 | CA13: 1053466000 | CB13: 0.06008017773 | CC13: 0 | CD13: 0
C14: Sistema Distrital de Cuidado | D14: 1356565863 | E14: 0.03950151472 | F14: 38931053 | G14: 0.002220275342 | H14: 4 | I14: 0.0126984127 | BX14: Jóvenes con capacidades: Proyecto de vida para la ciudadanía, la innovación y el trabajo del siglo XXI | BY14: 2531277000 | BZ14: 0.07370764547 | CA14: 2531277000 | CB14: 0.1443611583 | CC14: 1 | CD14: 0.003174603175
C15: Prevención y atención de maternidad temprana | D15: 221560645 | E15: 0.006451571073 | F15: 44312129 | G15: 0.002527163274 | H15: 1 | I15: 0.003174603175 | BX15: Sistema Distrital de Cuidado | BY15: 1029536265 | BZ15: 0.0299788186 | CA15: 0 | CB15: 0 | CC15: 2 | CD15: 0.006349206349
C16: Bogotá, referente en cultura, deporte, recreación y actividad física, con parques para el desarrollo y la salud | D16: 87262085 | E16: 0.002540963642 | F16: 0 | G16: 0 | H16: 1 | I16: 0.003174603175 | BX16: Subsidios y transferencias para la equidad | BY16: 1151496221 | BZ16: 0.0335301412 | CA16: 928851557 | CB16: 0.05297329636 | CC16: 24 | CD16: 0.07619047619
B17: Propósito 5: Construir Bogotá - Región con gobierno abierto, transparente y ciudadanía consciente | C17: Gestión pública local | D17: 41653404 | E17: 0.001212895442 | F17: 0 | G17: 0 | H17: 2 | I17: 0.006349206349 | BW17: Propósito 2 : Cambiar Nuestros Hábitos de Vida para Reverdecer a Bogotá y Adaptarnos y Mitigar la Crisis Climática | BX17: Bogotá protectora de los animales | BY17: 837259000 | BZ17: 0.02437994322 | CA17: 0 | CB17: 0 | CC17: 1 | CD17: 0.003174603175
C18: Fortalecimiento de cultura ciudadana y su institucionalidad | D18: 102530448 | E18: 0.002985559427 | F18: 0 | G18: 0 | H18: 1 | I18: 0.003174603175 | BX18: Bogotá protectora de sus recursos naturales | BY18: 495336000 | BZ18: 0.01442356971 | CA18: 0 | CB18: 0 | CC18: 1 | CD18: 0.003174603175
B19: Propósito 2 : Cambiar Nuestros Hábitos de Vida para Reverdecer a Bogotá y Adaptarnos y Mitigar la Crisis Climática | C19: Eficiencia en la atención de emergencias | D19: 102490499 | E19: 0.002984396162 | F19: 0 | G19: 0 | H19: 1 | I19: 0.003174603175 | BX19: Cambio cultural para la gestión de la crisis climática | BY19: 1092949000 | BZ19: 0.03182531876 | CA19: 0 | CB19: 0 | CC19: 1 | CD19: 0.003174603175
B20: Propósito 4: Hacer de Bogotá Región un modelo de movilidad multimodal, incluyente y sostenible | C20: Movilidad segura, sostenible y accesible | D20: 3555612 | E20: 0.0001035350097 | F20: 0 | G20: 0 | H20: 1 | I20: 0.003174603175 | BX20: Ecoeficiencia, reciclaje, manejo de residuos e inclusión de la población recicladora | BY20: 1162897960 | BZ20: 0.03386214569 | CA20: 0 | CB20: 0 | CC20: 1 | CD20: 0.003174603175
B21: Propósito 3: Inspirar confianza y legitimidad para vivir sin miedo y ser epicentro de cultura ciudadana, paz y reconciliación | C21: Espacio público más seguro y construido colectivamente | D21: 302460000 | E21: 0.008807259912 | F21: 0 | G21: 0 | H21: 1 | I21: 0.003174603175 | BX21: Eficiencia en la atención de emergencias | BY21: 199350000 | BZ21: 0.005804824649 | CA21: 133633333 | CB21: 0.007621237322 | CC21: 22 | CD21: 0.06984126984
A22: Contratos de prestación de servicios profesionales y de apoyo a la gestión | B22: Propósito 1: Hacer un nuevo contrato social para incrementar la inclusión social, productiva y política | C22: Subsidios y transferencias para la equidad | D22: 1151496221 | E22: 0.0335301412 | F22: 928851557 | G22: 0.05297329636 | H22: 24 | I22: 0.07619047619 | BX22: Más árboles y más y mejor espacio público | BY22: 165447000 | BZ22: 0.004817611356 | CA22: 0 | CB22: 0 | CC22: 0 | CD22: 0
B23: Propósito 5: Construir Bogotá - Región con gobierno abierto, transparente y ciudadanía consciente | C23: Gestión pública local | D23: 8111506664 | E23: 0.2361970094 | F23: 6973104999 | G23: 0.397682875 | H23: 186 | I23: 0.5904761905 | BW23: Propósito 3: Inspirar confianza y legitimidad para vivir sin miedo y ser epicentro de cultura ciudadana, paz y reconciliación | BX23: Cultura ciudadana para la confianza, la convivencia y la participación desde la vida cotidiana | BY23: 628530992 | BZ23: 0.01830204261 | CA23: 539049456 | CB23: 0.03074250818 | CC23: 26 | CD23: 0.08253968254
B24: Propósito 2 : Cambiar Nuestros Hábitos de Vida para Reverdecer a Bogotá y Adaptarnos y Mitigar la Crisis Climática | C24: Eficiencia en la atención de emergencias | D24: 199350000 | E24: 0.005804824649 | F24: 133633333 | G24: 0.007621237322 | H24: 22 | I24: 0.06984126984 | BX24: Espacio público más seguro y construido colectivamente | BY24: 260800000 | BZ24: 0.007594172403 | CA24: 173606666 | CB24: 0.009900954893 | CC24: 13 | CD24: 0.04126984127
B25: Propósito 3: Inspirar confianza y legitimidad para vivir sin miedo y ser epicentro de cultura ciudadana, paz y reconciliación | C25: Cultura ciudadana para la confianza, la convivencia y la participación desde la vida cotidiana | D25: 628530992 | E25: 0.01830204261 | F25: 539049456 | G25: 0.03074250818 | H25: 26 | I25: 0.08253968254 | BW25: Propósito 5: Construir Bogotá - Región con gobierno abierto, transparente y ciudadanía consciente | BX25: Fortalecimiento de cultura ciudadana y su institucionalidad | BY25: 102530448 | BZ25: 0.002985559427 | CA25: 0 | CB25: 0 | CC25: 1 | CD25: 0.003174603175
C26: Espacio público más seguro y construido colectivamente | D26: 260800000 | E26: 0.007594172403 | F26: 173606666 | G26: 0.009900954893 | H26: 13 | I26: 0.04126984127 | BX26: Gestión pública local | BY26: 8111506664 | BZ26: 0.2361970094 | CA26: 6973104999 | CB26: 0.397682875 | CC26: 186 | CD26: 0.5904761905
A27: Contratos interadministrativos | B27: Propósito 1: Hacer un nuevo contrato social para incrementar la inclusión social, productiva y política | C27: Jóvenes con capacidades: Proyecto de vida para la ciudadanía, la innovación y el trabajo del siglo XXI | D27: 2531277000 | E27: 0.07370764547 | F27: 2531277000 | G27: 0.1443611583 | H27: 1 | I27: 0.003174603175 | BV27: Contratación mínima cuantia | BW27: Propósito 3: Inspirar confianza y legitimidad para vivir sin miedo y ser epicentro de cultura ciudadana, paz y reconciliación | BX27: Plataforma institucional para la seguridad y justicia | BY27: 12417650 | BZ27: 0.0003615865604 | CA27: 0 | CB27: 0 | CC27: 1 | CD27: 0.003174603175
C28: Creación y vida cotidiana: Apropiación ciudadana del arte, la cultura y el patrimonio, para la democracia cultural | D28: 1053466000 | E28: 0.03067562279 | F28: 1053466000 | G28: 0.06008017773 | H28: 0 | I28: 0 | BW28: Propósito 4: Hacer de Bogotá Región un modelo de movilidad multimodal, incluyente y sostenible | BX28: Movilidad segura, sostenible y accesible | BY28: 3555612 | BZ28: 0.0001035350097 | CA28: 0 | CB28: 0 | CC28: 1 | CD28: 0.003174603175
C29: Sistema Distrital de Cuidado | D29: 1029536265 | E29: 0.0299788186 | F29: 0 | G29: 0 | H29: 2 | I29: 0.006349206349 | BW29: Propósito 5: Construir Bogotá - Región con gobierno abierto, transparente y ciudadanía consciente | BX29: Gestión pública local | BY29: 41653404 | BZ29: 0.001212895442 | CA29: 0 | CB29: 0 | CC29: 2 | CD29: 0.006349206349
C30: Bogotá región emprendedora e innovadora | D30: 1245360000 | E30: 0.03626333797 | F30: 474280000 | G30: 0.0270486439 | H30: 2 | I30: 0.006349206349 | BV30: Licitación pública | BW30: Propósito 1: Hacer un nuevo contrato social para incrementar la inclusión social, productiva y política | BX30: Sistema Distrital de Cuidado | BY30: 528478000 | BZ30: 0.01538862363 | CA30: 0 | CB30: 0 | CC30: 1 | CD30: 0.003174603175
C31: Bogotá, referente en cultura, deporte, recreación y actividad física, con parques para el desarrollo y la salud | D31: 227201686 | E31: 0.006615831188 | F31: 181761349 | G31: 0.0103660243 | H31: 1 | I31: 0.003174603175 | BW31: Propósito 2 : Cambiar Nuestros Hábitos de Vida para Reverdecer a Bogotá y Adaptarnos y Mitigar la Crisis Climática | BX31: Eficiencia en la atención de emergencias | BY31: 2092337151 | BZ31: 0.06092626169 | CA31: 0 | CB31: 0 | CC31: 1 | CD31: 0.003174603175
B32: Propósito 2 : Cambiar Nuestros Hábitos de Vida para Reverdecer a Bogotá y Adaptarnos y Mitigar la Crisis Climática | C32: Bogotá protectora de los animales | D32: 837259000 | E32: 0.02437994322 | F32: 0 | G32: 0 | H32: 1 | I32: 0.003174603175 | BX32: Más árboles y más y mejor espacio público | BY32: 907000000 | BZ32: 0.02641071461 | CA32: 0 | CB32: 0 | CC32: 1 | CD32: 0.003174603175
C33: Cambio cultural para la gestión de la crisis climática | D33: 1092949000 | E33: 0.03182531876 | F33: 0 | G33: 0 | H33: 1 | I33: 0.003174603175 | BV33: Régimen especial | BW33: Propósito 1: Hacer un nuevo contrato social para incrementar la inclusión social, productiva y política | BX33: Sistema Distrital de Cuidado | BY33: 4130597735 | BZ33: 0.1202778809 | CA33: 3057411788 | CB33: 0.1743671306 | CC33: 2 | CD33: 0.006349206349
C34: Ecoeficiencia, reciclaje, manejo de residuos e inclusión de la población recicladora | D34: 1162897960 | E34: 0.03386214569 | F34: 0 | G34: 0 | H34: 1 | I34: 0.003174603175 | BW34: Propósito 3: Inspirar confianza y legitimidad para vivir sin miedo y ser epicentro de cultura ciudadana, paz y reconciliación | BX34: Bogotá territorio de paz y atención integral a las víctimas del conflicto armado | BY34: 358968000 | BZ34: 0.01045270276 | CA34: 251277600 | CB34: 0.01433060285 | CC34: 1 | CD34: 0.003174603175
C35: Más árboles y más y mejor espacio público | D35: 165447000 | E35: 0.004817611356 | F35: 0 | G35: 0 | H35: 0 | I35: 0 | BX35: Cultura ciudadana para la confianza, la convivencia y la participación desde la vida cotidiana | BY35: 60271000 | BZ35: 0.001755016737 | CA35: 36162600 | CB35: 0.002062387808 | CC35: 1 | CD35: 0.003174603175
C36: Bogotá protectora de sus recursos naturales | D36: 495336000 | E36: 0.01442356971 | F36: 0 | G36: 0 | H36: 1 | I36: 0.003174603175 | BX36: Más mujeres viven una vida libre de violencias, se sienten seguras y acceden con confianza al sistema de justicia | BY36: 1010227000 | BZ36: 0.02941655676 | CA36: 404090800 | CB36: 0.02304568641 | CC36: 0 | CD36: 0
A37: Interventoría | B37: Propósito 5: Construir Bogotá - Región con gobierno abierto, transparente y ciudadanía consciente | C37: Fortalecimiento de cultura ciudadana y su institucionalidad | D37: 81969580 | E37: 0.002386852463 | F37: 0 | G37: 0 | H37: 1 | I37: 0.003174603175 | BX37: Plataforma institucional para la seguridad y justicia | BY37: 728966000 | BZ37: 0.02122658543 | CA37: 437379600 | CB37: 0.02494417865 | CC37: 0 | CD37: 0
B38: Propósito 2 : Cambiar Nuestros Hábitos de Vida para Reverdecer a Bogotá y Adaptarnos y Mitigar la Crisis Climática | C38: Más árboles y más y mejor espacio público | D38: 118565081 | E38: 0.003452468045 | F38: 0 | G38: 0 | H38: 1 | I38: 0.003174603175 | BV38: Selección abreviada | BW38: Propósito 1: Hacer un nuevo contrato social para incrementar la inclusión social, productiva y política | BX38: Bogotá, referente en cultura, deporte, recreación y actividad física, con parques para el desarrollo y la salud | BY38: 87262085 | BZ38: 0.002540963642 | CA38: 0 | CB38: 0 | CC38: 1 | CD38: 0.003174603175
C39: Eficiencia en la atención de emergencias | D39: 212977824 | E39: 0.006201649975 | F39: 0 | G39: 0 | H39: 1 | I39: 0.003174603175 | BX39: Creación y vida cotidiana: Apropiación ciudadana del arte, la cultura y el patrimonio, para la democracia cultural | BY39: 397207207 | BZ39: 0.01156618102 | CA39: 0 | CB39: 0 | CC39: 1 | CD39: 0.003174603175
A40: Obra pública | B40: Propósito 5: Construir Bogotá - Región con gobierno abierto, transparente y ciudadanía consciente | C40: Fortalecimiento de cultura ciudadana y su institucionalidad | D40: 241594593 | E40: 0.007034934781 | F40: 0 | G40: 0 | H40: 1 | I40: 0.003174603175 | BX40: Formación integral: más y mejor tiempo en los colegios | BY40: 666799000 | BZ40: 0.01941635953 | CA40: 0 | CB40: 0 | CC40: 1 | CD40: 0.003174603175
B41: Propósito 2 : Cambiar Nuestros Hábitos de Vida para Reverdecer a Bogotá y Adaptarnos y Mitigar la Crisis Climática | C41: Más árboles y más y mejor espacio público | D41: 907000000 | E41: 0.02641071461 | F41: 0 | G41: 0 | H41: 1 | I41: 0.003174603175 | BX41: Prevención y atención de maternidad temprana | BY41: 221560645 | BZ41: 0.006451571073 | CA41: 44312129 | CB41: 0.002527163274 | CC41: 1 | CD41: 0.003174603175
C42: Eficiencia en la atención de emergencias | D42: 2092337151 | E42: 0.06092626169 | F42: 0 | G42: 0 | H42: 1 | I42: 0.003174603175 | BX42: Sistema Distrital de Cuidado | BY42: 1173306563 | BZ42: 0.03416523129 | CA42: 38931053 | CB42: 0.002220275342 | CC42: 4 | CD42: 0.0126984127
A43: Suministro | B43: Propósito 1: Hacer un nuevo contrato social para incrementar la inclusión social, productiva y política | C43: Subsidios y transferencias para la equidad | D43: 214509306 | E43: 0.006246244831 | F43: 51107432 | G43: 0.00291470593 | H43: 1 | I43: 0.003174603175 | BX43: Subsidios y transferencias para la equidad | BY43: 214509306 | BZ43: 0.006246244831 | CA43: 51107432 | CB43: 0.00291470593 | CC43: 1 | CD43: 0.003174603175
B44: Propósito 4: Hacer de Bogotá Región un modelo de movilidad multimodal, incluyente y sostenible | C44: Movilidad segura, sostenible y accesible | D44: 11500000 | E44: 0.000334865731 | F44: 0 | G44: 0 | H44: 1 | I44: 0.003174603175 | BW44: Propósito 2 : Cambiar Nuestros Hábitos de Vida para Reverdecer a Bogotá y Adaptarnos y Mitigar la Crisis Climática | BX44: Eficiencia en la atención de emergencias | BY44: 172945138 | BZ44: 0.005035947831 | CA44: 0 | CB44: 0 | CC44: 2 | CD44: 0.006349206349
B45: Propósito 3: Inspirar confianza y legitimidad para vivir sin miedo y ser epicentro de cultura ciudadana, paz y reconciliación | C45: Plataforma institucional para la seguridad y justicia | D45: 12417650 | E45: 0.0003615865604 | F45: 0 | G45: 0 | H45: 1 | I45: 0.003174603175 | BW45: Propósito 3: Inspirar confianza y legitimidad para vivir sin miedo y ser epicentro de cultura ciudadana, paz y reconciliación | BX45: Espacio público más seguro y construido colectivamente | BY45: 302460000 | BZ45: 0.008807259912 | CA45: 0 | CB45: 0 | CC45: 1 | CD45: 0.003174603175
A46: Convenios de cooperacion | B46: Propósito 1: Hacer un nuevo contrato social para incrementar la inclusión social, productiva y política | C46: Sistema Distrital de Cuidado | D46: 4130597735 | E46: 0.1202778809 | F46: 3057411788 | G46: 0.1743671306 | H46: 2 | I46: 0.006349206349 | BW46: Propósito 4: Hacer de Bogotá Región un modelo de movilidad multimodal, incluyente y sostenible | BX46: Movilidad segura, sostenible y accesible | BY46: 11500000 | BZ46: 0.000334865731 | CA46: 0 | CB46: 0 | CC46: 1 | CD46: 0.003174603175
B47: Propósito 3: Inspirar confianza y legitimidad para vivir sin miedo y ser epicentro de cultura ciudadana, paz y reconciliación | C47: Bogotá territorio de paz y atención integral a las víctimas del conflicto armado | D47: 358968000 | E47: 0.01045270276 | F47: 251277600 | G47: 0.01433060285 | H47: 1 | I47: 0.003174603175 | BW47: Propósito 5: Construir Bogotá - Región con gobierno abierto, transparente y ciudadanía consciente | BX47: Fortalecimiento de cultura ciudadana y su institucionalidad | BY47: 406449528 | BZ47: 0.01183530594 | CA47: 119437360 | CB47: 0.006811627348 | CC47: 4 | CD47: 0.0126984127
C48: Más mujeres viven una vida libre de violencias, se sienten seguras y acceden con confianza al sistema de justicia | D48: 1010227000 | E48: 0.02941655676 | F48: 404090800 | G48: 0.02304568641 | H48: 0 | I48: 0 | BX48: Gestión pública local | BY48: 105194893 | BZ48: 0.00306314476 | CA48: 105194892 | CB48: 0.00599936572 | CC48: 2 | CD48: 0.006349206349
C49: Cultura ciudadana para la confianza, la convivencia y la participación desde la vida cotidiana | D49: 60271000 | E49: 0.001755016737 | F49: 36162600 | G49: 0.002062387808 | H49: 1 | I49: 0.003174603175 | BV49: Total general | BY49: 34342122638 | BZ49: 1 | CA49: 17534335614 | CB49: 1 | CC49: 315 | CD49: 1
C50: Plataforma institucional para la seguridad y justicia | D50: 728966000 | E50: 0.02122658543 | F50: 437379600 | G50: 0.02494417865 | H50: 0 | I50: 0
A51: Total general | D51: 34342122638 | E51: 1 | F51: 17534335614 | G51: 1 | H51: 315 | I51: 1
B111: INVERSION TIPO DE CONTRATO AÑO ANTERIORES SE SUMO EL NUMERO DE ADICIONES
BV112: FUNCIONAMIENTO POR MODALIDAD DE CONTRATO AÑOS ANTERIORES SE SUMO EL NUMERO DE ADICIONES
A113: Año | B113: (Varios elementos)
A114: Afectación | B114: Inversión | BV114: Año | BW114: (Varios elementos)
BV115: Afectación | BW115: Inversión
D116: Valores
A117: Tipo de contrato | B117: Propósito | C117: Equivalencia número de programa | D117: Suma de Valor Final | E117: Suma de Valor Final 2 | F117: Suma de Giros (Valor en pesos) | G117: Suma de Giros (Valor en pesos)2 | H117: Suma de Número de adiciones | I117: Suma de Número de adiciones2 | BX117: Valores
A118: Arrendamiento de bienes inmuebles | B118: Propósito 4: Hacer de Bogotá Región un modelo de movilidad multimodal, incluyente y sostenible | C118: Movilidad segura, sostenible y accesible | D118: 4167224 | E118: 0.00114403717 | F118: 0 | G118: 0 | H118: 1 | I118: 0.125 | BV118: Modalidad de Selección | BW118: Equivalencia número de programa | BX118: Suma de Valor Final | BY118: Suma de Valor Final 2 | BZ118: Suma de Giros (Valor en pesos) | CA118: Suma de Giros (Valor en pesos)2 | CB118: Suma de Número de adiciones | CC118: Suma de Número de adiciones2
A119: Contratos interadministrativos | B119: Propósito 5: Construir Bogotá - Región con gobierno abierto, transparente y ciudadanía consciente | C119: Fortalecimiento de cultura ciudadana y su institucionalidad | D119: 549045475 | E119: 0.1507306618 | F119: 0 | G119: 0 | H119: 1 | I119: 0.125 | BV119: Concurso de méritos | BW119: Movilidad segura, sostenible y accesible | BX119: 290234272 | BY119: 0.07967865301 | BZ119: 13782288 | CA119: 0.08352222707 | CB119: 3 | CC119: 0.375
A120: Interventoría | B120: Propósito 4: Hacer de Bogotá Región un modelo de movilidad multimodal, incluyente y sostenible | C120: Movilidad segura, sostenible y accesible | D120: 290234272 | E120: 0.07967865301 | F120: 13782288 | G120: 0.08352222707 | H120: 3 | I120: 0.375 | BV120: Contratación directa | BW120: Fortalecimiento de cultura ciudadana y su institucionalidad | BX120: 549045475 | BY120: 0.1507306618 | BZ120: 0 | CA120: 0 | CB120: 1 | CC120: 0.125
A121: Obra pública | B121: Propósito 4: Hacer de Bogotá Región un modelo de movilidad multimodal, incluyente y sostenible | C121: Movilidad segura, sostenible y accesible | D121: 2759113000 | E121: 0.7574653601 | F121: 151231128 | G121: 0.9164777729 | H121: 2 | I121: 0.25 | BW121: Movilidad segura, sostenible y accesible | BX121: 4167224 | BY121: 0.00114403717 | BZ121: 0 | CA121: 0 | CB121: 1 | CC121: 0.125
A122: Suministro | B122: Propósito 4: Hacer de Bogotá Región un modelo de movilidad multimodal, incluyente y sostenible | C122: Movilidad segura, sostenible y accesible | D122: 40000000 | E122: 0.01098128797 | F122: 0 | G122: 0 | H122: 1 | I122: 0.125 | BV122: Licitación pública | BW122: Movilidad segura, sostenible y accesible | BX122: 2759113000 | BY122: 0.7574653601 | BZ122: 151231128 | CA122: 0.9164777729 | CB122: 2 | CC122: 0.25
A123: Total general | D123: 3642559971 | E123: 1 | F123: 165013416 | G123: 1 | H123: 8 | I123: 1 | BV123: Selección abreviada | BW123: Movilidad segura, sostenible y accesible | BX123: 40000000 | BY123: 0.01098128797 | BZ123: 0 | CA123: 0 | CB123: 1 | CC123: 0.125
BV124: Total general | BX124: 3642559971 | BY124: 1 | BZ124: 165013416 | CA124: 1 | CB124: 8 | CC124: 1

Sheet 1. INFORMACION ACUMULADA
B2: VEEDURIA DISTRITAL - INFORMACIÓN GESTION CONTRACTUAL
B3: DEL 1 DE ENERO AL 31 DE DICIEMBRE DE 2021
B5: 1. Entidad | I5: 2. Sector
B6: 3. Presupuesto Disponible Inversión Directa PREDIS (BOGDATA) | F6: 64038050807 | I6: 5. Presupuesto Disponible Funcionamiento PREDIS (BOGDATA) | J6: 2748000000 | AI6: 9. Nombre de quien diligencia el formato | AK6: Mónica Yamile Quevedo Correa
B7: 4. Presupuesto Comprometido de Inversión Directa según PREDIS (BOGDATA) | F7: 57727387246 | I7: 6. Presupuesto Comprometido Funcionamiento según PREDIS (BOGDATA) | J7: 2673752818 | AI7: Cargo | AK7: Profesional de Contratación
AI8: Dependencia | AK8: Contratación
B9: 7. Presupuesto Disponible Operación (Régimen Privado) | AI9: Teléfono | AK9: 3212327585
B10: 8. Presupuesto Comprometido Operación mediante contratos | AI10: Correo Electrónico | AK10: monica.quevedo@gobiernobogota.gov.co
B11: 1- INFORMACION GENERAL | W11: 2- INFORMACION FINANCIERA | AC11: 3 - PLAZOS | AI11: 4. CESION | AM11: 5. ESTADO | AQ11: 6. % Avance y/o cumplimiento
C12: 2 | D12: 3 | F12: 4 | G12: 5 | H12: 6 | I12: 7 | J12: 8 | O12: 9 | P12: 10 | Q12: 11 | W12: 12 | X12: 13 | Y12: 14 | Z12: 15 | AC12: 18 | AD12: 19 | AE12: 20 | AF12: 21 | AG12: 22 | AH12: 23 | AI12: 24 | AJ12: 25 | AK12: 26 | AL12: 27 | AM12: 28 | AQ12: 29
A13: Cuenta contratos | B13: Número Contrato | C13: Año | D13: Número de proceso contractual SECOP | E13: Link proceso SECOP | F13: Tipo de contrato | G13: Modalidad de Selección | H13: Procedimiento o causal | I13: Objeto | J13: Afectación | K13: Plan de Desarrollo Distrital | L13: Número Programa | M13: Equivalencia número de programa | N13: Propósito | O13: Número Proyecto | P13: Número de proponentes | Q13: Número de Identificación del contratista (Cédula o NIT sin puntos, comas ni caracteres especiales y sin digito de verificación) | R13: Nombre del contratista (según el caso: nombres y apellidos o Razón social y Tipo societario) | S13: Naturaleza Jurídica | T13: Número de Identificación del integrante del Consorcio o U.T. (Cédula o NIT sin puntos, comas ni caracteres especiales y sin digito de verificación) | U13: Nombre del Integrante del Consorcio o U.T. y Tipo societario (Según el caso: nombres y apellidos o razón social y tipo societario) | V13: % Participación (indicar solo el numero del porcentaje, sin caracteres especiales) | W13: Valor Inicial del contrato | X13: Valor total reducciones (En valor negativo) | Y13: Número de adiciones | Z13: Valor total de adiciones | AA13: Valor Final | AB13: Giros (Valor en pesos) | AC13: Fecha de suscripción (DD/MM/AAAA) | AD13: Fecha de inicio (DD/MM/AAAA) | AE13: Fecha de terminación (DD/MM/AAAA) | AF13: Plazo en días | AG13: Número de prórrogas | AH13: Prorroga en días | AI13: Número de Identificación del cesionario (NIT sin digito de verificación) | AJ13: Nombre cesionario | AK13: Fecha cesión (DD/MM/AAAA) | AL13: Valor cesión | AM13: Celebrado o por iniciar | AN13: En Ejecución | AO13: Terminado | AP13: Liquidado | AQ13: % Avance y/o Cumplimiento
A14: 1 | B14: 76 | C14: 2021 | D14: FDLRUU-CD-076-2021 | E14: https://community.secop.gov.co/Public/Tendering/OpportunityDetail/Index?noticeUID=CO1.NTC.1766282&isFromPublicArea=True&isModal=False | F14: Contratos de prestación de servicios profesionales y de apoyo a la gestión | G14: Contratación directa | H14: Prestación de servicios profesionales y de apoyo a la gestión, o para la ejecución de trabajos artísticos que sólo puedan encomendarse a determinadas personas naturales; | I14: EL CONTRATISTA SE OBLIGA A PRESTAR SUS SERVICIOS PROFESIONALES EN EL ÁREA DE GESTIÓN DEL DESARROLLO LOCAL - PLANEACIÓN, REALIZANDO LAS ACTIVIDADES PROPIAS PARA LA FORMULACION, EJECUCIÓN Y SEGUIMIENTO DE LOS PROYECTOS DE INVERSIÓN DEL PLAN DE DESARROLLO LOCAL 2021 - 2024 | J14: Inversión | K14: Un Nuevo Contrato Social y Ambiental para la Bogotá del Siglo XXI | L14: 57 | M14: =IF(ISERROR(VLOOKUP(L14,Proposito_programa!$C$2:$E$59,2,FALSE))," ",VLOOKUP(L14,Proposito_programa!$C$2:$E$59,2,FALSE)) -> Gestión pública local | N14: =IF(ISERROR(VLOOKUP(L14,Proposito_programa!$C$2:$E$59,3,FALSE))," ",VLOOKUP(L14,Proposito_programa!$C$2:$E$59,3,FALSE)) -> Propósito 5: Construir Bogotá - Región con gobierno abierto, transparente y ciudadanía consciente | O14: 133011605570000001697 | P14: 1 | Q14: 52198468 | R14: ZANDY DANIXA BARRERA RODRIGUEZ | S14: Persona Natural | W14: 52000000 | Y14: 1 | Z14: 4853333 | AA14: =+W14+X14+Z14 -> 56853333 | AB14: 39000000 | AC14: 44242 | AD14: 44243 | AE14: 44574 | AF14: 300 | AG14: 1 | AH14: 28 | AO14: X | AQ14: =IF(ISERROR(AB14/AA14),"-",(AB14/AA14)) -> 0.6859756138
A15: 1 | B15: 292 | C15: 2021 | D15: FDLRUU-CD-292-2021 | E15: https://community.secop.gov.co/Public/Tendering/OpportunityDetail/Index?noticeUID=CO1.NTC.2254709&isFromPublicArea=True&isModal=False | F15: Contratos de prestación de servicios profesionales y de apoyo a la gestión | G15: Contratación directa | H15: Prestación de servicios profesionales y de apoyo a la gestión, o para la ejecución de trabajos artísticos que sólo puedan encomendarse a determinadas personas naturales; | I15: APOYAR JURÍDICAMENTE LA EJECUCIÓN DE LAS ACCIONES REQUERIDAS PARA LA DEPURACIÓN DE LAS ACTUACIONES ADMINISTRATIVAS QUE CURSAN EN LA ALCALDÍA LOCAL | J15: Inversión | K15: Un Nuevo Contrato Social y Ambiental para la Bogotá del Siglo XXI | L15: 57 | M15: =IF(ISERROR(VLOOKUP(L15,Proposito_programa!$C$2:$E$59,2,FALSE))," ",VLOOKUP(L15,Proposito_programa!$C$2:$E$59,2,FALSE)) -> Gestión pública local | N15: =IF(ISERROR(VLOOKUP(L15,Proposito_programa!$C$2:$E$59,3,FALSE))," ",VLOOKUP(L15,Proposito_programa!$C$2:$E$59,3,FALSE)) -> Propósito 5: Construir Bogotá - Región con gobierno abierto, transparente y ciudadanía consciente | O15: 133011605570000001698 | P15: 1 | Q15: 79627943 | R15: YUSED MAURICIO ROJAS | S15: Persona Natural | W15: 15600000 | AA15: 15600000 | AB15: 0 | AC15: 44459 | AD15: 44462 | AE15: 44552 | AF15: 90 | AO15: X | AQ15: 0
A16: 1 | B16: 113 | C16: 2021 | D16: FDLRUU-CD-113-2021 | E16: https://community.secop.gov.co/Public/Tendering/OpportunityDetail/Index?noticeUID=CO1.NTC.1775767&isFromPublicArea=True&isModal=False | F16: Contratos de prestación de servicios profesionales y de apoyo a la gestión | G16: Contratación directa | H16: Prestación de servicios profesionales y de apoyo a la gestión, o para la ejecución de trabajos artísticos que sólo puedan encomendarse a determinadas personas naturales; | I16: PRESTAR LOS SERVICIOS PROFESIONALES COMO ABOGADO PARA APOYAR AL FONDO DE DESARROLLO LOCAL EN EL ANÁLISIS, REVISIÓN, TRÁMITE PARA COBRO PERSUASIVO Y COACTIVO, SOLICITUDES DE ENTES DE CONTROL, CORPORACIONES PÚBLICAS Y LOS CONCEPTOS JURÍDICOS QUE SE LE SOLICITEN | J16: Inversión | K16: Un Nuevo Contrato Social y Ambiental para la Bogotá del Siglo XXI | L16: 57 | M16: =IF(ISERROR(VLOOKUP(L16,Proposito_programa!$C$2:$E$59,2,FALSE))," ",VLOOKUP(L16,Proposito_programa!$C$2:$E$59,2,FALSE)) -> Gestión pública local | N16: =IF(ISERROR(VLOOKUP(L16,Proposito_programa!$C$2:$E$59,3,FALSE))," ",VLOOKUP(L16,Proposito_programa!$C$2:$E$59,3,FALSE)) -> Propósito 5: Construir Bogotá - Región con gobierno abierto, transparente y ciudadanía consciente | O16: 133011605570000001698 | P16: 1 | Q16: 1033773166 | R16: YURY TATIANA ANGULO PATIÑO | S16: Persona Natural | W16: 57000000 | AA16: 57000000 | AB16: 53580000 | AC16: 44245 | AD16: 44246 | AE16: 44548 | AF16: 300 | AO16: X | AQ16: 0.94
A17: 1 | B17: 16 | C17: 2021 | D17: FDLRUU-CD-016-2021 | E17: https://community.secop.gov.co/Public/Tendering/OpportunityDetail/Index?noticeUID=CO1.NTC.1713505&isFromPublicArea=True&isModal=False | F17: Contratos de prestación de servicios profesionales y de apoyo a la gestión | G17: Contratación directa | H17: Prestación de servicios profesionales y de apoyo a la gestión, o para la ejecución de trabajos artísticos que sólo puedan encomendarse a determinadas personas naturales; | I17: PRESTAR LOS SERVICIOS PROFESIONALES PARA DEPURAR LAS OBLIGACIONES POR PAGAR A CARGO DEL FONDO DE DESARROLLO DE RAFAEL URIBE URIBE | J17: Inversión | K17: Un Nuevo Contrato Social y Ambiental para la Bogotá del Siglo XXI | L17: 57 | M17: =IF(ISERROR(VLOOKUP(L17,Proposito_programa!$C$2:$E$59,2,FALSE))," ",VLOOKUP(L17,Proposito_programa!$C$2:$E$59,2,FALSE)) -> Gestión pública local | N17: =IF(ISERROR(VLOOKUP(L17,Proposito_programa!$C$2:$E$59,3,FALSE))," ",VLOOKUP(L17,Proposito_programa!$C$2:$E$59,3,FALSE)) -> Propósito 5: Construir Bogotá - Región con gobierno abierto, transparente y ciudadanía consciente | O17: 133011605570000001697 | P17: 1 | Q17: 1101177020 | R17: YIRLY NHAYIA PEÑA QUINTERO | S17: Persona Natural | W17: 52000000 | Y17: 1 | Z17: 7280000 | AA17: 59280000 | AB17: 51826667 | AC17: 44225 | AD17: 44229 | AE17: 44574 | AF17: 300 | AG17: 1 | AH17: 42 | AO17: X | AQ17: 0.8742690115
A18: 1 | B18: 154 | C18: 2021 | D18: FDLRUU-CD-150-2021 | E18: https://community.secop.gov.co/Public/Tendering/OpportunityDetail/Index?noticeUID=CO1.NTC.1800149&isFromPublicArea=True&isModal=False | F18: Contratos de prestación de servicios profesionales y de apoyo a la gestión | G18: Contratación directa | H18: Prestación de servicios profesionales y de apoyo a la gestión, o para la ejecución de trabajos artísticos que sólo puedan encomendarse a determinadas personas naturales; | I18: EL CONTRATISTA SE OBLIGA CON EL FONDO DE DESARROLLO LOCAL DE RAFAEL URIBE URIBE A PRESTAR SUS SERVICIOS DE APOYO A LA GESTION LOCAL Y TERRITORIAL DE LOS TEMAS DE SEGURIDAD Y CONVIVENCIA CIUDADANA PARA LA ALCALDIA LOCAL DE RAFAEL URIBE URIBE | J18: Inversión | K18: Un Nuevo Contrato Social y Ambiental para la Bogotá del Siglo XXI | L18: 43 | M18: =IF(ISERROR(VLOOKUP(L18,Proposito_programa!$C$2:$E$59,2,FALSE))," ",VLOOKUP(L18,Proposito_programa!$C$2:$E$59,2,FALSE)) -> Cultura ciudadana para la confianza, la convivencia y la participación desde la vida cotidiana | N18: =IF(ISERROR(VLOOKUP(L18,Proposito_programa!$C$2:$E$59,3,FALSE))," ",VLOOKUP(L18,Proposito_programa!$C$2:$E$59,3,FALSE)) -> Propósito 3: Inspirar confianza y legitimidad para vivir sin miedo y ser epicentro de cultura ciudadana, paz y reconciliación | O18: 133011603430000001680 | P18: 1 | Q18: 1032410626 | R18: YESID ALEJANDRO MORENO MARTINEZ | S18: Persona Natural | W18: 19800000 | Y18: 1 | Z18: 1906667 | AA18: 21706667 | AB18: 18553333 | AC18: 44271 | AD18: 44273 | AE18: 44574 | AF18: 270 | AG18: 1 | AH18: 26 | AO18: X | AQ18: 0.8547297012
A19: 1 | B19: 61 | C19: 2021 | D19: FDLRUU-CD-061-2021 | E19: https://community.secop.gov.co/Public/Tendering/OpportunityDetail/Index?noticeUID=CO1.NTC.1743765&isFromPublicArea=True&isModal=False | F19: Contratos de prestación de servicios profesionales y de apoyo a la gestión | G19: Contratación directa | H19: Prestación de servicios profesionales y de apoyo a la gestión, o para la ejecución de trabajos artísticos que sólo puedan encomendarse a determinadas personas naturales; | I19: PRESTAR LOS SERVICIOS PROFESIONALES PARA LA OPERACIÓN, PRESTACIÓN, SEGUIMIENTO Y CUMPLIMIENTO PROCEDIMIENTOS ADMINISTRATIVOS OPERATIVOS Y PROGRAMÁTICOS DEL SERVICIO APOYO ECONÓMICO TIPO C, QUE CONTRIBUYAN A LA GARANTÍA DE LOS DERECHOS DE LA POBLACIÓN MAYOR EN EL MARCO DE LA POLÍTICA PÚBLICA SOCIAL PARA EL ENVEJECIMIENTO Y LA VEJEZ EN EL DISTRITO CAPITAL A CARGO DE LA ALCALDÍA LOCAL RAFAEL URIBE URIBE.” | J19: Inversión | K19: Un Nuevo Contrato Social y Ambiental para la Bogotá del Siglo XXI | L19: 1 | M19: =IF(ISERROR(VLOOKUP(L19,Proposito_programa!$C$2:$E$59,2,FALSE))," ",VLOOKUP(L19,Proposito_programa!$C$2:$E$59,2,FALSE)) -> Subsidios y transferencias para la equidad | N19: =IF(ISERROR(VLOOKUP(L19,Proposito_programa!$C$2:$E$59,3,FALSE))," ",VLOOKUP(L19,Proposito_programa!$C$2:$E$59,3,FALSE)) -> Propósito 1: Hacer un nuevo contrato social para incrementar la inclusión social, productiva y política | O19: 133011601010000001636 | P19: 1 | Q19: 52834869 | R19: YANILY ANDREA MONTENEGRO TRIVIÑO | S19: Persona Natural | W19: 41600000 | AA19: 41600000 | AB19: 34840000 | AC19: 44236 | AD19: 44237 | AE19: 44570 | AF19: 240 | AO19: X | AQ19: 0.8375
A20: 1 | B20: 148 | C20: 2021 | D20: FDLRUU-CD-148 | E20: https://community.secop.gov.co/Public/Tendering/OpportunityDetail/Index?noticeUID=CO1.NTC.1796303&isFromPublicArea=True&isModal=False | F20: Contratos de prestación de servicios profesionales y de apoyo a la gestión | G20: Contratación directa | H20: Prestación de servicios profesionales y de apoyo a la gestión, o para la ejecución de trabajos artísticos que sólo puedan encomendarse a determinadas personas naturales; | I20: EL CONTRATISTA SE OBLIGA A PRESTAR SUS SERVICIOS PROFESIONALES EN EL ÁREA DE GESTIÓN DEL DESARROLLO LOCAL - PLANEACIÓN, REALIZANDO LAS ACTIVIDADES PROPIAS PARA LA FORMULACION, EJECUCIÓN Y SEGUIMIENTO DE LOS PROYECTOS DE INVERSIÓN DEL PLAN DE DESARROLLO LOCAL 2021 - 2024 | J20: Inversión | K20: Un Nuevo Contrato Social y Ambiental para la Bogotá del Siglo XXI | L20: 57 | M20: =IF(ISERROR(VLOOKUP(L20,Proposito_programa!$C$2:$E$59,2,FALSE))," ",VLOOKUP(L20,Proposito_programa!$C$2:$E$59,2,FALSE)) -> Gestión pública local | N20: =IF(ISERROR(VLOOKUP(L20,Proposito_programa!$C$2:$E$59,3,FALSE))," ",VLOOKUP(L20,Proposito_programa!$C$2:$E$59,3,FALSE)) -> Propósito 5: Construir Bogotá - Región con gobierno abierto, transparente y ciudadanía consciente | O20: 133011605570000001697 | P20: 1 | Q20: 1077859493 | R20: YANDRY PATRICIA AMAYA CULMA | S20: Persona Natural | W20: 52000000 | AA20: 52000000 | AB20: 46453333 | AC20: 44252 | AD20: 44258 | AE20: 44563 | AF20: 300 | AO20: X | AQ20: 0.8933333269
A21: 1 | B21: 37 | C21: 2021 | D21: FDLRUU-CD-037-2021 | E21: https://community.secop.gov.co/Public/Tendering/OpportunityDetail/Index?noticeUID=CO1.NTC.1729760&isFromPublicArea=True&isModal=False | F21: Contratos de prestación de servicios profesionales y de apoyo a la gestión | G21: Contratación directa | H21: Prestación de servicios profesionales y de apoyo a la gestión, o para la ejecución de trabajos artísticos que sólo puedan encomendarse a determinadas personas naturales; | I21: APOYAR LA GESTIÓN DOCUMENTAL DE LA ALCALDÍA LOCAL AL EQUIPO JURÍDICO DE DEPURACIÓN EN LAS LABORES OPERATIVAS QUE GENERA EL PROCESO DE IMPULSO DE LAS ACTUACIONES ADMINISTRATIVAS EXISTENTES EN LA ALCALDÍA LOCAL DE RAFAEL URIBE URIBE | J21: Inversión | K21: Un Nuevo Contrato Social y Ambiental para la Bogotá del Siglo XXI | L21: 57 | M21: =IF(ISERROR(VLOOKUP(L21,Proposito_programa!$C$2:$E$59,2,FALSE))," ",VLOOKUP(L21,Proposito_programa!$C$2:$E$59,2,FALSE)) -> Gestión pública local | N21: =IF(ISERROR(VLOOKUP(L21,Proposito_programa!$C$2:$E$59,3,FALSE))," ",VLOOKUP(L21,Proposito_programa!$C$2:$E$59,3,FALSE)) -> Propósito 5: Construir Bogotá - Región con gobierno abierto, transparente y ciudadanía consciente | O21: 133011605570000001698 | P21: 1 | Q21: 1030548964 | R21: XIMENA ALEJANDRA ALARCON LOPEZ | S21: Persona Natural | W21: 17500000 | AA21: 17500000 | AB21: 17266667 | AC21: 44230 | AD21: 44232 | AE21: 44534 | AF21: 300 | AO21: X | AQ21: 0.9866666857
A22: 1 | B22: 90 | C22: 2021 | D22: FDLRUU-CD-090-2021 | E22: https://community.secop.gov.co/Public/Tendering/OpportunityDetail/Index?noticeUID=CO1.NTC.1756663&isFromPublicArea=True&isModal=False | F22: Contratos de prestación de servicios profesionales y de apoyo a la gestión | G22: Contratación directa | H22: Prestación de servicios profesionales y de apoyo a la gestión, o para la ejecución de trabajos artísticos que sólo puedan encomendarse a determinadas personas naturales; | I22: APOYAR LAS LABORES COMO NOTIFICADOR PARA LA DISTRIBUCIÓN DE LAS COMUNICACIONES EMITIDAS O RECIBIDAS POR LA ALCALDÍA LOCAL DE RAFAEL URIBE URIBE | J22: Inversión | K22: Un Nuevo Contrato Social y Ambiental para la Bogotá del Siglo XXI | L22: 57 | M22: =IF(ISERROR(VLOOKUP(L22,Proposito_programa!$C$2:$E$59,2,FALSE))," ",VLOOKUP(L22,Proposito_programa!$C$2:$E$59,2,FALSE)) -> Gestión pública local | N22: =IF(ISERROR(VLOOKUP(L22,Proposito_programa!$C$2:$E$59,3,FALSE))," ",VLOOKUP(L22,Proposito_programa!$C$2:$E$59,3,FALSE)) -> Propósito 5: Construir Bogotá - Región con gobierno abierto, transparente y ciudadanía consciente | O22: 133011605570000001697 | P22: 1 | Q22: 79536458 | R22: WILSON MIGUEL CARRANZA SIERRA | S22: Persona Natural | W22: 17500000 | Y22: 1 | Z22: 933333 | AA22: 18433333 | AB22: 15108333 | AC22: 44239 | AD22: 44242 | AE22: 44560 | AF22: 300 | AG22: 1 | AH22: 16 | AI22: 79355789 | AJ22: WILLIAM ARISTIZABAL | AK22: 44467 | AL22: 6066667 | AO22: X | AQ22: 0.8196202499
A23: 1 | B23: 266 | C23: 2021 | D23: FDLRUU-CD-266-2021 | E23: https://community.secop.gov.co/Public/Tendering/OpportunityDetail/Index?noticeUID=CO1.NTC.2164245&isFromPublicArea=True&isModal=False | F23: Contratos de prestación de servicios profesionales y de apoyo a la gestión | G23: Contratación directa | H23: Prestación de servicios profesionales y de apoyo a la gestión, o para la ejecución de trabajos artísticos que sólo puedan encomendarse a determinadas personas naturales; | I23: “PRESTAR SUS SERVICIOS ASISTENCIALES PARA LA GESTIÓN DEL RIESGO, EN EL MARCO DE LOS VIGÍAS DEL RIESGO DE LA LOCALIDAD DE RAFAEL URIBE URIBE” | J23: Inversión | K23: Un Nuevo Contrato Social y Ambiental para la Bogotá del Siglo XXI | L23: 30 | M23: =IF(ISERROR(VLOOKUP(L23,Proposito_programa!$C$2:$E$59,2,FALSE))," ",VLOOKUP(L23,Proposito_programa!$C$2:$E$59,2,FALSE)) -> Eficiencia en la atención de emergencias | N23: =IF(ISERROR(VLOOKUP(L23,Proposito_programa!$C$2:$E$59,3,FALSE))," ",VLOOKUP(L23,Proposito_programa!$C$2:$E$59,3,FALSE)) -> Propósito 2 : Cambiar Nuestros Hábitos de Vida para Reverdecer a Bogotá y Adaptarnos y Mitigar la Crisis Climática | O23: 133011602300000001665 | P23: 1 | Q23: 79742551 | R23: WILSON HERNANDO ALFONSO MORENO | S23: Persona Natural | W23: 8100000 | AA23: 8100000 | AB23: 5400000 | AC23: 44420 | AD23: 44440 | AE23: 44576 | AF23: 135 | AI23: 80120580 | AJ23: YESID FERNANDO PEDRAZA GONZALEZ | AK23: 44440 | AL23: 8100000 | AO23: X | AQ23: 0.6666666667
A24: 1 | B24: 294 | C24: 2021 | D24: FDLRUU-CD-294-2021 | E24: https://community.secop.gov.co/Public/Tendering/OpportunityDetail/Index?noticeUID=CO1.NTC.2268074&isFromPublicArea=True&isModal=False | F24: Contratos de prestación de servicios profesionales y de apoyo a la gestión | G24: Contratación directa | H24: Prestación de servicios profesionales y de apoyo a la gestión, o para la ejecución de trabajos artísticos que sólo puedan encomendarse a determinadas personas naturales; | I24: APOYAR JURÍDICAMENTE LA EJECUCIÓN DE LAS ACCIONES REQUERIDAS PARA LA DEPURACIÓN DE LAS ACTUACIONES ADMINISTRATIVAS QUE CURSAN EN LA ALCALDÍA LOCAL | J24: Inversión | K24: Un Nuevo Contrato Social y Ambiental para la Bogotá del Siglo XXI | L24: 57 | M24: =IF(ISERROR(VLOOKUP(L24,Proposito_programa!$C$2:$E$59,2,FALSE))," ",VLOOKUP(L24,Proposito_programa!$C$2:$E$59,2,FALSE)) -> Gestión pública local | N24: =IF(ISERROR(VLOOKUP(L24,Proposito_programa!$C$2:$E$59,3,FALSE))," ",VLOOKUP(L24,Proposito_programa!$C$2:$E$59,3,FALSE)) -> Propósito 5: Construir Bogotá - Región con gobierno abierto, transparente y ciudadanía consciente | O24: 133011605570000001698 | P24: 1 | Q24: 1022402850 | R24: WILMER JAVIER HERNANDEZ LASSO | S24: Persona Natural | W24: 15600000 | AA24: 15600000 | AB24: 5200000 | AC24: 44462 | AD24: 44470 | AE24: 44561 | AF24: 90 | AO24: X | AQ24: 0.3333333333
A25: 1 | B25: 213 | C25: 2021 | D25: FDLRUU-CD-213-2021 | E25: https://community.secop.gov.co/Public/Tendering/OpportunityDetail/Index?noticeUID=CO1.NTC.1890582&isFromPublicArea=True&isModal=False | F25: Contratos de prestación de servicios profesionales y de apoyo a la gestión | G25: Contratación directa | H25: Prestación de servicios profesionales y de apoyo a la gestión, o para la ejecución de trabajos artísticos que sólo puedan encomendarse a determinadas personas naturales; | I25: APOYAR JURÍDICAMENTE LA EJECUCIÓN DE LAS ACCIONES REQUERIDAS PARA LA DEPURACIÓN DE LAS ACTUACIONES ADMINISTRATIVAS QUE CURSAN EN LA ALCALDÍA LOCAL” | J25: Inversión | K25: Un Nuevo Contrato Social y Ambiental para la Bogotá del Siglo XXI | L25: 57 | M25: =IF(ISERROR(VLOOKUP(L25,Proposito_programa!$C$2:$E$59,2,FALSE))," ",VLOOKUP(L25,Proposito_programa!$C$2:$E$59,2,FALSE)) -> Gestión pública local | N25: =IF(ISERROR(VLOOKUP(L25,Proposito_programa!$C$2:$E$59,3,FALSE))," ",VLOOKUP(L25,Proposito_programa!$C$2:$E$59,3,FALSE)) -> Propósito 5: Construir Bogotá - Región con gobierno abierto, transparente y ciudadanía consciente | O25: 133011605570000001698 | P25: 1 | Q25: 80030678 | R25: WILLIAM HOANNY AMADOR RAMOS | S25: Persona Natural | W25: 31200000 | AA25: 31200000 | AB25: 24613333 | AC25: 44292 | AD25: 44295 | AE25: 44477 | AF25: 180 | AO25: X | AQ25: 0.7888888782
A26: 1 | B26: 156 | C26: 2021 | D26: FDLRUU-CD-150-2021 | E26: https://community.secop.gov.co/Public/Tendering/OpportunityDetail/Index?noticeUID=CO1.NTC.1800149&isFromPublicArea=True&isModal=False | F26: Contratos de prestación de servicios profesionales y de apoyo a la gestión | G26: Contratación directa | H26: Prestación de servicios profesionales y de apoyo a la gestión, o para la ejecución de trabajos artísticos que sólo puedan encomendarse a determinadas personas naturales; | I26: EL CONTRATISTA SE OBLIGA CON EL FONDO DE DESARROLLO LOCAL DE RAFAEL URIBE URIBE A PRESTAR SUS SERVICIOS DE APOYO A LA GESTION LOCAL Y TERRITORIAL DE LOS TEMAS DE SEGURIDAD Y CONVIVENCIA CIUDADANA PARA LA ALCALDIA LOCAL DE RAFAEL URIBE URIBE | J26: Inversión | K26: Un Nuevo Contrato Social y Ambiental para la Bogotá del Siglo XXI | L26: 43 | M26: =IF(ISERROR(VLOOKUP(L26,Proposito_programa!$C$2:$E$59,2,FALSE))," ",VLOOKUP(L26,Proposito_programa!$C$2:$E$59,2,FALSE)) -> Cultura ciudadana para la confianza, la convivencia y la participación desde la vida cotidiana | N26: =IF(ISERROR(VLOOKUP(L26,Proposito_programa!$C$2:$E$59,3,FALSE))," ",VLOOKUP(L26,Proposito_programa!$C$2:$E$59,3,FALSE)) -> Propósito 3: Inspirar confianza y legitimidad para vivir sin miedo y ser epicentro de cultura ciudadana, paz y reconciliación | O26: 133011603430000001680 | P26: 1 | Q26: 79640008 | R26: WILLIAM BOLIVAR MACA | S26: Persona Natural | W26: 19800000 | Y26: 1 | Z26: 3153333 | AA26: 22953333 | AB26: 19800000 | AC26: 44253 | AD26: 44256 | AE26: 44574 | AF26: 270 | AG26: 1 | AH26: 43 | AO26: X | AQ26: 0.8626198208
A27: 1 | B27: 78 | C27: 2021 | D27: FDLRUU-CD-078-2021 | E27: https://community.secop.gov.co/Public/Tendering/OpportunityDetail/Index?noticeUID=CO1.NTC.1756298&isFromPublicArea=True&isModal=False | F27: Contratos de prestación de servicios profesionales y de apoyo a la gestión | G27: Contratación directa | H27: Prestación de servicios profesionales y de apoyo a la gestión, o para la ejecución de trabajos artísticos que sólo puedan encomendarse a determinadas personas naturales; | I27: APOYAR Y DAR SOPORTE TÉCNICO AL ADMINISTRADOR Y USUARIO FINAL DE LA RED DE SISTEMAS Y TECNOLOGÍA E INFORMACIÓN DE LA ALCALDÍA LOCAL DE RAFAEL URIBE URIBE | J27: Inversión | K27: Un Nuevo Contrato Social y Ambiental para la Bogotá del Siglo XXI | L27: 57 | M27: =IF(ISERROR(VLOOKUP(L27,Proposito_programa!$C$2:$E$59,2,FALSE))," ",VLOOKUP(L27,Proposito_programa!$C$2:$E$59,2,FALSE)) -> Gestión pública local | N27: =IF(ISERROR(VLOOKUP(L27,Proposito_programa!$C$2:$E$59,3,FALSE))," ",VLOOKUP(L27,Proposito_programa!$C$2:$E$59,3,FALSE)) -> Propósito 5: Construir Bogotá - Región con gobierno abierto, transparente y ciudadanía consciente | O27: 133011605570000001697 | P27: 1 | Q27: 52316051 | R27: WALDINA CONTRERAS ALFONSO | S27: Persona Natural | W27: 39000000 | Y27: 1 | Z27: 4160000 | AA27: 43160000 | AB27: 37570000 | AC27: 44238 | AD27: 44239 | AE27: 44574 | AF27: 300 | AG27: 1 | AH27: 32 | AO27: X | AQ27: 0.8704819277
A28: 1 | B28: 110 | C28: 2021 | D28: FDLRUU-CD-110-2021 | E28: https://community.secop.gov.co/Public/Tendering/OpportunityDetail/Index?noticeUID=CO1.NTC.1776731&isFromPublicArea=True&isModal=False | F28: Contratos de prestación de servicios profesionales y de apoyo a la gestión | G28: Contratación directa | H28: Prestación de servicios profesionales y de apoyo a la gestión, o para la ejecución de trabajos artísticos que sólo puedan encomendarse a determinadas personas naturales; | I28: PRESTAR LOS SERVICIOS PROFESIONALES PARA LA OPERACIÓN, PRESTACIÓN, SEGUIMIENTO Y CUMPLIMIENTO PROCEDIMIENTOS ADMINISTRATIVOS OPERATIVOS Y PROGRAMÁTICOS DEL SERVICIO APOYO ECONÓMICO TIPO C, QUE CONTRIBUYAN A LA GARANTÍA DE LOS DERECHOS DE LA POBLACIÓN MAYOR EN EL MARCO DE LA POLÍTICA PÚBLICA SOCIAL PARA EL ENVEJECIMIENTO Y LA VEJEZ EN EL DISTRITO CAPITAL A CARGO DE LA ALCALDÍA LOCAL RAFAEL URIBE URIBE” | J28: Inversión | K28: Un Nuevo Contrato Social y Ambiental para la Bogotá del Siglo XXI | L28: 1 | M28: =IF(ISERROR(VLOOKUP(L28,Proposito_programa!$C$2:$E$59,2,FALSE))," ",VLOOKUP(L28,Proposito_programa!$C$2:$E$59,2,FALSE)) -> Subsidios y transferencias para la equidad | N28: =IF(ISERROR(VLOOKUP(L28,Proposito_programa!$C$2:$E$59,3,FALSE))," ",VLOOKUP(L28,Proposito_programa!$C$2:$E$59,3,FALSE)) -> Propósito 1: Hacer un nuevo contrato social para incrementar la inclusión social, productiva y política | O28: 133011601010000001636 | P28: 1 | Q28: 1026272955 | R28: VIVIANA CAROLINA MALDONADO VIRGUEZ | S28: Persona Natural | W28: 41600000 | Y28: 1 | Z28: 10053333 | AA28: 51653333 | AB28: 45066666 | AC28: 44245 | AD28: 44258 | AE28: 44568 | AF28: 240 | AG28: 1 | AH28: 58 | AO28: X | AQ28: 0.8724832142
A29: 1 | B29: 318 | C29: 2021 | D29: FDLRUU-MC-319-2021 | E29: https://community.secop.gov.co/Public/Tendering/OpportunityDetail/Index?noticeUID=CO1.NTC.2443542&isFromPublicArea=True&isModal=False | F29: Contratos de prestación de servicios | G29: Contratación mínima cuantia | H29: No aplica | I29: PRESTACIÓN DEL SERVICIO DE MONITOREO DE GPS Y MEDICIÓN DE VARIABLES DE OPERACIÓN DE LOS VEHÍCULOS LIVIANOS Y MAQUINARIA PESADA DEL FONDO DE DESARROLLO LOCAL RAFAEL URIBE URIBE | J29: Inversión | K29: Un Nuevo Contrato Social y Ambiental para la Bogotá del Siglo XXI | L29: 49 | M29: =IF(ISERROR(VLOOKUP(L29,Proposito_programa!$C$2:$E$59,2,FALSE))," ",VLOOKUP(L29,Proposito_programa!$C$2:$E$59,2,FALSE)) -> Movilidad segura, sostenible y accesible | N29: =IF(ISERROR(VLOOKUP(L29,Proposito_programa!$C$2:$E$59,3,FALSE))," ",VLOOKUP(L29,Proposito_programa!$C$2:$E$59,3,FALSE)) -> Propósito 4: Hacer de Bogotá Región un modelo de movilidad multimodal, incluyente y sostenible | O29: 133011604490000001685 | P29: 1 | Q29: 900465924 | R29: VISATEL DE COLOMBIA S A S | S29: Persona Jurídica | W29: 3555612 | AA29: 3555612 | AB29: 0 | AC29: 44547 | AD29: CELEBRADO SIN INICIAR | AE29: CELEBRADO SIN INICIAR | AF29: 210 | AM29: X | AQ29: 0
A30: 0 | B30: 318 | C30: 2021 | D30: FDLRUU-MC-319-2021 | E30: https://community.secop.gov.co/Public/Tendering/OpportunityDetail/Index?noticeUID=CO1.NTC.2443542&isFromPublicArea=True&isModal=False | F30: Contratos de prestación de servicios | G30: Contratación mínima cuantia | H30: No aplica | I30: PRESTACIÓN DEL SERVICIO DE MONITOREO DE GPS Y MEDICIÓN DE VARIABLES DE OPERACIÓN DE LOS VEHÍCULOS LIVIANOS Y MAQUINARIA PESADA DEL FONDO DE DESARROLLO LOCAL RAFAEL URIBE URIBE | J30: Funcionamiento | K30: Un Nuevo Contrato Social y Ambiental para la Bogotá del Siglo XXI | L30: No aplica | M30: =IF(ISERROR(VLOOKUP(L30,Proposito_programa!$C$2:$E$59,2,FALSE))," ",VLOOKUP(L30,Proposito_programa!$C$2:$E$59,2,FALSE)) ->  | N30: =IF(ISERROR(VLOOKUP(L30,Proposito_programa!$C$2:$E$59,3,FALSE))," ",VLOOKUP(L30,Proposito_programa!$C$2:$E$59,3,FALSE)) ->  | P30: 1 | Q30: 900465924 | R30: VISATEL DE COLOMBIA S A S | S30: Persona Jurídica | W30: 3591528 | AA30: 3591528 | AB30: - | AC30: 44547 | AD30: CELEBRADO SIN INICIAR | AE30: CELEBRADO SIN INICIAR | AF30: 210 | AM30: X | AQ30: -
A31: 1 | B31: 65 | C31: 2021 | D31: FDLRUU-CD-065-2021 | E31: https://community.secop.gov.co/Public/Tendering/OpportunityDetail/Index?noticeUID=CO1.NTC.1745736&isFromPublicArea=True&isModal=False | F31: Contratos de prestación de servicios profesionales y de apoyo a la gestión | G31: Contratación directa | H31: Prestación de servicios profesionales y de apoyo a la gestión, o para la ejecución de trabajos artísticos que sólo puedan encomendarse a determinadas personas naturales; | I31: PRESTAR LOS SERVICIOS PERSONALES DE APOYO A LA GESTIÓN PARA LA CONDUCCIÓN DE LOS VEHÍCULOS LIVIANOS QUE LE SEAN ASIGNADOS Y QUE SE ENCUENTREN AL SERVICIO DE LA ALCALDÍA LOCAL DE RAFAEL URIBE URIBE | J31: Inversión | K31: Un Nuevo Contrato Social y Ambiental para la Bogotá del Siglo XXI | L31: 57 | M31: =IF(ISERROR(VLOOKUP(L31,Proposito_programa!$C$2:$E$59,2,FALSE))," ",VLOOKUP(L31,Proposito_programa!$C$2:$E$59,2,FALSE)) -> Gestión pública local | N31: =IF(ISERROR(VLOOKUP(L31,Proposito_programa!$C$2:$E$59,3,FALSE))," ",VLOOKUP(L31,Proposito_programa!$C$2:$E$59,3,FALSE)) -> Propósito 5: Construir Bogotá - Región con gobierno abierto, transparente y ciudadanía consciente | O31: 133011605570000001697 | P31: 1 | Q31: 79258775 | R31: VICTOR JAIME SANCHEZ CARDOZO | S31: Persona Natural | W31: 26000000 | Y31: 1 | Z31: 2860000 | AA31: 28860000 | AB31: 25133333 | AC31: 44236 | AD31: 44238 | AE31: 44574 | AF31: 300 | AG31: 1 | AH31: 33 | AO31: X | AQ31: 0.8708708593
A32: 1 | B32: 27 | C32: 2021 | D32: CPS-027-2021 | E32: https://community.secop.gov.co/Public/Tendering/OpportunityDetail/Index?noticeUID=CO1.NTC.1721687&isFromPublicArea=True&isModal=False | F32: Contratos de prestación de servicios profesionales y de apoyo a la gestión | G32: Contratación directa | H32: Prestación de servicios profesionales y de apoyo a la gestión, o para la ejecución de trabajos artísticos que sólo puedan encomendarse a determinadas personas naturales; | I32: PRESTAR LOS SERVICIOS TECNICOS DE APOYO A LOS PROFESIONALES ENCARGADOS DE LA DEPURACION DE LAS OBLIGACIONES POR PAGAR A CARGO DEL FONDO DE DESARROLLO LOCAL DE RAFAEL URIBE URIBE” | J32: Inversión | K32: Un Nuevo Contrato Social y Ambiental para la Bogotá del Siglo XXI | L32: 57 | M32: =IF(ISERROR(VLOOKUP(L32,Proposito_programa!$C$2:$E$59,2,FALSE))," ",VLOOKUP(L32,Proposito_programa!$C$2:$E$59,2,FALSE)) -> Gestión pública local | N32: =IF(ISERROR(VLOOKUP(L32,Proposito_programa!$C$2:$E$59,3,FALSE))," ",VLOOKUP(L32,Proposito_programa!$C$2:$E$59,3,FALSE)) -> Propósito 5: Construir Bogotá - Región con gobierno abierto, transparente y ciudadanía consciente | O32: 133011605570000001697 | P32: 1 | Q32: 1097332656 | R32: VIANEY LUCIA ARDILA AVILA | S32: Persona Natural | W32: 39000000 | Y32: 1 | Z32: 5460000 | AA32: 44460000 | AB32: 38870000 | AC32: 44228 | AD32: 44228 | AE32: 44574 | AF32: 300 | AG32: 1 | AH32: 42 | AO32: X | AQ32: 0.8742690058
A33: 1 | B33: 216 | C33: 2021 | D33: FDLRUU-CD-216-2021 | E33: https://community.secop.gov.co/Public/Tendering/OpportunityDetail/Index?noticeUID=CO1.NTC.1897422&isFromPublicArea=True&isModal=False | F33: Contratos de prestación de servicios profesionales y de apoyo a la gestión | G33: Contratación directa | H33: Prestación de servicios profesionales y de apoyo a la gestión, o para la ejecución de trabajos artísticos que sólo puedan encomendarse a determinadas personas naturales; | I33: APOYAR AL ALCALDE LOCAL EN LA FORMULACIÓN, SEGUIMIENTO E IMPLEMENTACIÓN DE LA ESTRATEGIA LOCAL PARA LA TERMINACIÓN JURÍDICA DE LAS ACTUACIONES ADMINISTRATIVAS QUE CURSAN EN LA ALCALDÍA LOCAL | J33: Inversión | K33: Un Nuevo Contrato Social y Ambiental para la Bogotá del Siglo XXI | L33: 57 | M33: =IF(ISERROR(VLOOKUP(L33,Proposito_programa!$C$2:$E$59,2,FALSE))," ",VLOOKUP(L33,Proposito_programa!$C$2:$E$59,2,FALSE)) -> Gestión pública local | N33: =IF(ISERROR(VLOOKUP(L33,Proposito_programa!$C$2:$E$59,3,FALSE))," ",VLOOKUP(L33,Proposito_programa!$C$2:$E$59,3,FALSE)) -> Propósito 5: Construir Bogotá - Región con gobierno abierto, transparente y ciudadanía consciente | O33: 133011605570000001698 | P33: 1 | Q33: 1010169789 | R33: VANESSA DOMINGUEZ PALOMINO | S33: Persona Natural | W33: 68000000 | AA33: 68000000 | AB33: 44880000 | AC33: 44293 | AD33: 44299 | AE33: 44604 | AF33: 300 | AN33: X | AQ33: 0.66
A34: 1 | B34: 238 | C34: 2021 | D34: FDLRUU-CD-238-2021 | E34: https://community.secop.gov.co/Public/Tendering/OpportunityDetail/Index?noticeUID=CO1.NTC.2094199&isFromPublicArea=True&isModal=False | F34: Contratos de prestación de servicios profesionales y de apoyo a la gestión | G34: Contratación directa | H34: Prestación de servicios profesionales y de apoyo a la gestión, o para la ejecución de trabajos artísticos que sólo puedan encomendarse a determinadas personas naturales; | I34: PRESTAR LOS SERVICIOS PROFESIONALES AL DESPACHO DE LA ALCALDÍA LOCAL DE RAFAEL URIBE URIBE EN LA EJECUCION DE ACTIVIDADES DE ORDEN ADMINISTRATIVO Y DE GESTION QUE SE LE SOLICITEN | J34: Inversión | K34: Un Nuevo Contrato Social y Ambiental para la Bogotá del Siglo XXI | L34: 57 | M34: =IF(ISERROR(VLOOKUP(L34,Proposito_programa!$C$2:$E$59,2,FALSE))," ",VLOOKUP(L34,Proposito_programa!$C$2:$E$59,2,FALSE)) -> Gestión pública local | N34: =IF(ISERROR(VLOOKUP(L34,Proposito_programa!$C$2:$E$59,3,FALSE))," ",VLOOKUP(L34,Proposito_programa!$C$2:$E$59,3,FALSE)) -> Propósito 5: Construir Bogotá - Región con gobierno abierto, transparente y ciudadanía consciente | O34: 133011605570000001697 | P34: 1 | Q34: 1020799677 | R34: VALENTINA RICO CALDERON | S34: Persona Natural | W34: 17600000 | Y34: 1 | Z34: 4546667 | AA34: 22146667 | AB34: 17160000 | AC34: 44390 | AD34: 44393 | AE34: 44561 | AF34: 120 | AG34: 1 | AH34: 28 | AO34: X | AQ34: 0.7748344254
A35: 1 | B35: 245 | C35: 2021 | D35: FDLRUU-CD-245-2021 | E35: https://community.secop.gov.co/Public/Tendering/OpportunityDetail/Index?noticeUID=CO1.NTC.2110522&isFromPublicArea=True&isModal=False | F35: Contratos interadministrativos | G35: Contratación directa | H35: Contratos interadministrativos | I35: DESARROLLAR ASPECTOS TÉCNICOS, FINANCIEROS Y ADMINISTRATIVOS PARA REALIZAR LA IMPLEMENTACIÓN DE PROCESOS COMUNITARIOS DE EDUCACIÓN AMBIENTAL PROCEDA EN EL MARCO DEL PROYECTO DE INVERSIÓN 1660” | J35: Inversión | K35: Un Nuevo Contrato Social y Ambiental para la Bogotá del Siglo XXI | L35: 27 | M35: =IF(ISERROR(VLOOKUP(L35,Proposito_programa!$C$2:$E$59,2,FALSE))," ",VLOOKUP(L35,Proposito_programa!$C$2:$E$59,2,FALSE)) -> Cambio cultural para la gestión de la crisis climática | N35: =IF(ISERROR(VLOOKUP(L35,Proposito_programa!$C$2:$E$59,3,FALSE))," ",VLOOKUP(L35,Proposito_programa!$C$2:$E$59,3,FALSE)) -> Propósito 2 : Cambiar Nuestros Hábitos de Vida para Reverdecer a Bogotá y Adaptarnos y Mitigar la Crisis Climática | O35: 133011602270000001660 | P35: 1 | Q35: 899999063 | R35: UNIVERSIDAD NACIONAL DE COLOMBIA | S35: Persona Jurídica | W35: 819210000 | AA35: 819210000 | AB35: 0 | AC35: 44412 | AD35: 44440 | AE35: 44651 | AF35: 180 | AN35: X | AQ35: 0
A36: 1 | B36: 299 | C36: 2021 | D36: FDLRUU-CD-299-2021 | E36: https://community.secop.gov.co/Public/Tendering/OpportunityDetail/Index?noticeUID=CO1.NTC.2348836&isFromPublicArea=True&isModal=False | F36: Contratos interadministrativos | G36: Contratación directa | H36: Contratos interadministrativos | I36: AUNAR ESFUERZOS TÉCNICOS ADMINISTATIVOS, Y FINANCIEROS PARA REALIZAR ACCIONES EN EL BIENESTAR ANIMAL DE LA LOCALIDAD DE RAFAEL URIBE URIBE QUE FORTALEZCAN LAS REDES LOCALES DE PROTECCIONISTAS DE ANIMALES Y ATENCIÓN EN URGENCIAS, BRIGADAS MÉDICO-VETERINARIAS Y ACCIONES DE ESTERILIZACIÓN, EDUCACIÓN Y ADOPCIÓN EN EL MARCO DEL PROYECTO DE INVERSIÓN 1673 | J36: Inversión | K36: Un Nuevo Contrato Social y Ambiental para la Bogotá del Siglo XXI | L36: 34 | M36: =IF(ISERROR(VLOOKUP(L36,Proposito_programa!$C$2:$E$59,2,FALSE))," ",VLOOKUP(L36,Proposito_programa!$C$2:$E$59,2,FALSE)) -> Bogotá protectora de los animales | N36: =IF(ISERROR(VLOOKUP(L36,Proposito_programa!$C$2:$E$59,3,FALSE))," ",VLOOKUP(L36,Proposito_programa!$C$2:$E$59,3,FALSE)) -> Propósito 2 : Cambiar Nuestros Hábitos de Vida para Reverdecer a Bogotá y Adaptarnos y Mitigar la Crisis Climática | O36: 133011602340000001673 | P36: 1 | Q36: 899999063 | R36: UNIVERSIDAD NACIONAL DE COLOMBIA | S36: Persona Jurídica | W36: 837259000 | AA36: 837259000 | AB36: 0 | AC36: 44504 | AD36: 44511 | AE36: 44691 | AF36: 180 | AN36: X | AQ36: 0
A37: 1 | B37: 318 | C37: 2019 | D37: 19-12-10231507 | E37: https://www.contratos.gov.co/consultas/detalleProceso.do?numConstancia=19-12-10231507 | F37: Contratos interadministrativos | G37: Contratación directa | H37: Contratos interadministrativos | I37: FORTALECER ORGANIZACIONES INSTANCIAS Y EXPRESIONES SOCIALES CIUDADANAS E EL MARCO DEL MODELO DE PARTICIPACION UNO MAS UNO = TODOS, UNA MAS UNA =TODAS Y BRINDAR FORMACION EN MECANISMOS DE CONTROL SOCIAL Y POLITICAS PUBLICAS EN LA LOCALIDAD DE RAFAEL URIBE | J37: Inversión | K37: Un Nuevo Contrato Social y Ambiental para la Bogotá del Siglo XXI | L37: 55 | M37: =IF(ISERROR(VLOOKUP(L37,Proposito_programa!$C$2:$E$59,2,FALSE))," ",VLOOKUP(L37,Proposito_programa!$C$2:$E$59,2,FALSE)) -> Fortalecimiento de cultura ciudadana y su institucionalidad | N37: =IF(ISERROR(VLOOKUP(L37,Proposito_programa!$C$2:$E$59,3,FALSE))," ",VLOOKUP(L37,Proposito_programa!$C$2:$E$59,3,FALSE)) -> Propósito 5: Construir Bogotá - Región con gobierno abierto, transparente y ciudadanía consciente | O37: 133011605550000001689 | P37: 1 | Q37: 899999036 | R37: UNIVERSIDAD NACIONAL DE COLOMBIA | S37: Persona Jurídica | Y37: 1 | Z37: 549045475 | AA37: 549045475 | AB37: 0 | AC37: 44408 | AD37: 44408 | AE37: 44740 | AF37: 885 | AG37: 5 | AH37: 525 | AN37: X | AQ37: 0
A38: 1 | B38: 252 | C38: 2021 | D38: FDLRUU-CD-252-2021 | E38: https://community.secop.gov.co/Public/Tendering/OpportunityDetail/Index?noticeUID=CO1.NTC.2209095&isFromPublicArea=True&isModal=False | F38: Contratos interadministrativos | G38: Contratación directa | H38: Contratos interadministrativos | I38: AUNAR ESFUERZOS TECNICOS, ECONÓMICOS Y FINANCIEROS PARA REALIZAR UNA ACCIÓN QUE FORTALEZCA EL PROGRAMA DE AGRICULTURA URBANA Y A SU VEZ EJECUTAR PROCESOS DE JARDINERIA Y COBERTURAS VERDES EN EL MARCO DE LOS PROYECTOS DE INVERSION 1649 Y 1660 | J38: Inversión | K38: Un Nuevo Contrato Social y Ambiental para la Bogotá del Siglo XXI | L38: 24 | M38: =IF(ISERROR(VLOOKUP(L38,Proposito_programa!$C$2:$E$59,2,FALSE))," ",VLOOKUP(L38,Proposito_programa!$C$2:$E$59,2,FALSE)) -> Bogotá región emprendedora e innovadora | N38: =IF(ISERROR(VLOOKUP(L38,Proposito_programa!$C$2:$E$59,3,FALSE))," ",VLOOKUP(L38,Proposito_programa!$C$2:$E$59,3,FALSE)) -> Propósito 1: Hacer un nuevo contrato social para incrementar la inclusión social, productiva y política | O38: 133011601240000001649 | P38: 1 | Q38: 860512780 | R38: UNIVERSIDAD NACIONAL ABIERTA Y A DISTANCIA-UNAD | S38: Persona Jurídica | W38: 771080000 | AA38: =+W38+X38+Z38 -> 771080000 | AB38: 0 | AC38: 44438 | AD38: 44445 | AE38: 44656 | AF38: 210 | AN38: X | AQ38: 0
A39: 0 | B39: 252 | C39: 2021 | D39: FDLRUU-CD-252-2021 | E39: https://community.secop.gov.co/Public/Tendering/OpportunityDetail/Index?noticeUID=CO1.NTC.2209095&isFromPublicArea=True&isModal=False | F39: Contratos interadministrativos | G39: Contratación directa | H39: Contratos interadministrativos | I39: AUNAR ESFUERZOS TECNICOS, ECONÓMICOS Y FINANCIEROS PARA REALIZAR UNA ACCIÓN QUE FORTALEZCA EL PROGRAMA DE AGRICULTURA URBANA Y A SU VEZ EJECUTAR PROCESOS DE JARDINERIA Y COBERTURAS VERDES EN EL MARCO DE LOS PROYECTOS DE INVERSION 1649 Y 1660 | J39: Inversión | K39: Un Nuevo Contrato Social y Ambiental para la Bogotá del Siglo XXI | L39: 27 | M39: =IF(ISERROR(VLOOKUP(L39,Proposito_programa!$C$2:$E$59,2,FALSE))," ",VLOOKUP(L39,Proposito_programa!$C$2:$E$59,2,FALSE)) -> Cambio cultural para la gestión de la crisis climática | N39: =IF(ISERROR(VLOOKUP(L39,Proposito_programa!$C$2:$E$59,3,FALSE))," ",VLOOKUP(L39,Proposito_programa!$C$2:$E$59,3,FALSE)) -> Propósito 2 : Cambiar Nuestros Hábitos de Vida para Reverdecer a Bogotá y Adaptarnos y Mitigar la Crisis Climática | O39: 133011602270000001660 | P39: 1 | Q39: 860512780 | R39: UNIVERSIDAD NACIONAL ABIERTA Y A DISTANCIA-UNAD | S39: Persona Jurídica | W39: 273739000 | AA39: 273739000 | AB39: 0 | AC39: 44438 | AD39: 44445 | AE39: 44656 | AF39: 210 | AN39: X | AQ39: 0
A40: 1 | B40: 307 | C40: 2021 | D40: FDLRUU-CD-307-2021 | E40: https://community.secop.gov.co/Public/Tendering/OpportunityDetail/Index?noticeUID=CO1.NTC.2390010&isFromPublicArea=True&isModal=False | F40: Contratos interadministrativos | G40: Contratación directa | H40: Contratos interadministrativos | I40: UNAR ESFUERZOS TECNICOS, ADMINISTRATIVOS, FINANCIEROS Y JURIDICOS, PARA DESARROLLAR ESTRATEGIAS DE FORMACION, ASISTENCIA TÉCNICA, FORTALECIMIENTO Y COMERCIALIZACIÓN, ENFOCADAS A MATERIALIZAR LAS INICIATIVAS CIUDADANAS PRIORIZADAS, DERIVADAS DEL EJERCICIO DE PRESUPUESTOS PARTICIPATIVOS FASE UNO AÑO 2020 EN LA LOCALIDAD DE RAFAEL URIBE URIBE EN EL MARCO DEL PROYECTO 1653 OPORTUNIDADES PARA EL DESARROLLO ECONOMICO CULTURAL Y CREATIVO | J40: Inversión | K40: Un Nuevo Contrato Social y Ambiental para la Bogotá del Siglo XXI | L40: 6 | M40: =IF(ISERROR(VLOOKUP(L40,Proposito_programa!$C$2:$E$59,2,FALSE))," ",VLOOKUP(L40,Proposito_programa!$C$2:$E$59,2,FALSE)) -> Sistema Distrital de Cuidado | N40: =IF(ISERROR(VLOOKUP(L40,Proposito_programa!$C$2:$E$59,3,FALSE))," ",VLOOKUP(L40,Proposito_programa!$C$2:$E$59,3,FALSE)) -> Propósito 1: Hacer un nuevo contrato social para incrementar la inclusión social, productiva y política | O40: 133011601060000001653 | P40: 1 | Q40: 860512780 | R40: UNIVERSIDAD NACIONAL ABIERTA Y A DISTANCIA-UNAD | S40: Persona Jurídica | W40: 223147265 | AA40: 223147265 | AB40: 0 | AC40: 44512 | AD40: CELEBRADO SIN INICIAR | AE40: CELEBRADO SIN INICIAR | AF40: 150 | AM40: X | AQ40: 0
A41: 1 | B41: 253 | C41: 2021 | D41: FDLRUU-CD-253-2021 | E41: https://community.secop.gov.co/Public/Tendering/OpportunityDetail/Index?noticeUID=CO1.NTC.2229818&isFromPublicArea=True&isModal=False | F41: Contratos interadministrativos | G41: Contratación directa | H41: Contratos interadministrativos | I41: REALIZAR ACCIONES DE RESTAURACIÓN, REHABILITACIÓN O RECUPERACIÓN EN ÁREAS PRIORITARIAS Y DE VALOR AMBIENTAL, A SU VEZ REALIZAR ACCIONES DE MANTENIMIENTO Y PLANTACIÓN DE ÁRBOLES EN LA LOCALIDAD DE RAFAEL URIBE URIBE EN EL MARCO DE LOS PROYECTOS DE INVERSIÓN 1661 Y 1667 | J41: Inversión | K41: Un Nuevo Contrato Social y Ambiental para la Bogotá del Siglo XXI | L41: 28 | M41: =IF(ISERROR(VLOOKUP(L41,Proposito_programa!$C$2:$E$59,2,FALSE))," ",VLOOKUP(L41,Proposito_programa!$C$2:$E$59,2,FALSE)) -> Bogotá protectora de sus recursos naturales | N41: =IF(ISERROR(VLOOKUP(L41,Proposito_programa!$C$2:$E$59,3,FALSE))," ",VLOOKUP(L41,Proposito_programa!$C$2:$E$59,3,FALSE)) -> Propósito 2 : Cambiar Nuestros Hábitos de Vida para Reverdecer a Bogotá y Adaptarnos y Mitigar la Crisis Climática | O41: 133011602280000001661 | P41: 1 | Q41: 899999230 | R41: UNIVERSIDAD DISTRITAL-FRANCISCO JOSE DE CALDAS | S41: Persona Jurídica | W41: 495336000 | AA41: =+W41+X41+Z41 -> 495336000 | AB41: 0 | AC41: 44449 | AD41: 44460 | AE41: 44671 | AF41: 210 | AN41: X | AQ41: 0
A42: 0 | B42: 253 | C42: 2021 | D42: FDLRUU-CD-253-2021 | E42: https://community.secop.gov.co/Public/Tendering/OpportunityDetail/Index?noticeUID=CO1.NTC.2229818&isFromPublicArea=True&isModal=False | F42: Contratos interadministrativos | G42: Contratación directa | H42: Contratos interadministrativos | I42: REALIZAR ACCIONES DE RESTAURACIÓN, REHABILITACIÓN O RECUPERACIÓN EN ÁREAS PRIORITARIAS Y DE VALOR AMBIENTAL, A SU VEZ REALIZAR ACCIONES DE MANTENIMIENTO Y PLANTACIÓN DE ÁRBOLES EN LA LOCALIDAD DE RAFAEL URIBE URIBE EN EL MARCO DE LOS PROYECTOS DE INVERSIÓN 1661 Y 1667 | J42: Inversión | K42: Un Nuevo Contrato Social y Ambiental para la Bogotá del Siglo XXI | L42: 33 | M42: =IF(ISERROR(VLOOKUP(L42,Proposito_programa!$C$2:$E$59,2,FALSE))," ",VLOOKUP(L42,Proposito_programa!$C$2:$E$59,2,FALSE)) -> Más árboles y más y mejor espacio público | N42: =IF(ISERROR(VLOOKUP(L42,Proposito_programa!$C$2:$E$59,3,FALSE))," ",VLOOKUP(L42,Proposito_programa!$C$2:$E$59,3,FALSE)) -> Propósito 2 : Cambiar Nuestros Hábitos de Vida para Reverdecer a Bogotá y Adaptarnos y Mitigar la Crisis Climática | O42: 133011602330000001667 | P42: 1 | Q42: 899999230 | R42: UNIVERSIDAD DISTRITAL-FRANCISCO JOSE DE CALDAS | S42: Persona Jurídica | W42: 165447000 | AA42: 165447000 | AB42: 0 | AC42: 44449 | AD42: 44460 | AE42: 44671 | AF42: 210 | AN42: X | AQ42: 0
A43: 1 | B43: 305 | C43: 2021 | D43: FDLRUU-CIA-305-2021 | E43: https://community.secop.gov.co/Public/Tendering/OpportunityDetail/Index?noticeUID=CO1.NTC.2383074&isFromPublicArea=True&isModal=False | F43: Contratos interadministrativos | G43: Contratación directa | H43: Contratos interadministrativos | I43: REALIZAR ACCIONES QUE INCENTIVEN EL CAMBIO DE HÁBITOS DE CONSUMO DE LA LOCALIDAD DE RAFAEL URIBE URIBE A TRAVÉS DEL AHORRO Y USO SOSTENIBLE DE LOS RECURSOS NATURALES DE LA LOCALIDAD EN EL MARCO DEL PROYECTO DE INVERSIÓN 1675 | J43: Inversión | K43: Un Nuevo Contrato Social y Ambiental para la Bogotá del Siglo XXI | L43: 38 | M43: =IF(ISERROR(VLOOKUP(L43,Proposito_programa!$C$2:$E$59,2,FALSE))," ",VLOOKUP(L43,Proposito_programa!$C$2:$E$59,2,FALSE)) -> Ecoeficiencia, reciclaje, manejo de residuos e inclusión de la población recicladora | N43: =IF(ISERROR(VLOOKUP(L43,Proposito_programa!$C$2:$E$59,3,FALSE))," ",VLOOKUP(L43,Proposito_programa!$C$2:$E$59,3,FALSE)) -> Propósito 2 : Cambiar Nuestros Hábitos de Vida para Reverdecer a Bogotá y Adaptarnos y Mitigar la Crisis Climática | O43: 133011602380000001675 | P43: 1 | Q43: 899999230 | R43: UNIVERSIDAD DISTRITAL FRANCISCO JOSE DE CALDAS | S43: Persona Jurídica | W43: 1162897960 | AA43: 1162897960 | AB43: 0 | AC43: 44512 | AD43: 44526 | AE43: 44706 | AF43: 180 | AN43: X | AQ43: 0
A44: 1 | B44: 66472 | C44: 2021 | D44: OC-66472 | E44: https://www.colombiacompra.gov.co/tienda-virtual-del-estado-colombiano/ordenes-compra/66472 | F44: Compraventa de bienes muebles | G44: Selección abreviada | H44: Acuerdo marco de precios | I44: CONTRATAR LA ADQUISICION DE LICENCIAS OFFICE 365 – HERRAMIENTA COLABORATIVA Y DE CORREO ELECTRÓNICO PARA LA ALCALDÍA LOCAL DE RAFAEL URIBE URIBE | J44: Inversión | K44: Un Nuevo Contrato Social y Ambiental para la Bogotá del Siglo XXI | L44: 57 | M44: =IF(ISERROR(VLOOKUP(L44,Proposito_programa!$C$2:$E$59,2,FALSE))," ",VLOOKUP(L44,Proposito_programa!$C$2:$E$59,2,FALSE)) -> Gestión pública local | N44: =IF(ISERROR(VLOOKUP(L44,Proposito_programa!$C$2:$E$59,3,FALSE))," ",VLOOKUP(L44,Proposito_programa!$C$2:$E$59,3,FALSE)) -> Propósito 5: Construir Bogotá - Región con gobierno abierto, transparente y ciudadanía consciente | O44: 133011605570000001697 | P44: 1 | Q44: 901399373 | R44: UNION TEMPORAL DELL EMC | S44: Unión Temporal | T44: 830035246 | U44: DELL COLOMBIA INC | V44: 0.5 | W44: 95857837 | AA44: 95857837 | AB44: 95857836 | AC44: 44285 | AD44: 44291 | AE44: 44320 | AF44: 30 | AO44: X | AQ44: 0.9999999896
A45: 0 | B45: 66472 | C45: 2021 | D45: OC-66472 | E45: https://www.colombiacompra.gov.co/tienda-virtual-del-estado-colombiano/ordenes-compra/66472 | F45: Compraventa de bienes muebles | G45: Selección abreviada | H45: Acuerdo marco de precios | I45: CONTRATAR LA ADQUISICION DE LICENCIAS OFFICE 365 – HERRAMIENTA COLABORATIVA Y DE CORREO ELECTRÓNICO PARA LA ALCALDÍA LOCAL DE RAFAEL URIBE URIBE | J45: Inversión | K45: Un Nuevo Contrato Social y Ambiental para la Bogotá del Siglo XXI | L45: 57 | M45: =IF(ISERROR(VLOOKUP(L45,Proposito_programa!$C$2:$E$59,2,FALSE))," ",VLOOKUP(L45,Proposito_programa!$C$2:$E$59,2,FALSE)) -> Gestión pública local | N45: =IF(ISERROR(VLOOKUP(L45,Proposito_programa!$C$2:$E$59,3,FALSE))," ",VLOOKUP(L45,Proposito_programa!$C$2:$E$59,3,FALSE)) -> Propósito 5: Construir Bogotá - Región con gobierno abierto, transparente y ciudadanía consciente | O45: 133011605570000001697 | P45: 1 | Q45: 901399373 | R45: UNION TEMPORAL DELL EMC | S45: Unión Temporal | T45: 900129331 | U45: EMC INFORMATION SYSTEMS COLOMBIANA LTDA | V45: 0.5 | W45: 0 | AA45: 0 | AB45: 0 | AC45: 44285 | AD45: 44291 | AE45: 44320 | AF45: 30 | AO45: X | AQ45: -
A46: 1 | B46: 269 | C46: 2021 | D46: FDLRUU-CD-269-2021 | E46: https://community.secop.gov.co/Public/Tendering/OpportunityDetail/Index?noticeUID=CO1.NTC.2164939&isFromPublicArea=True&isModal=False | F46: Contratos de prestación de servicios profesionales y de apoyo a la gestión | G46: Contratación directa | H46: Prestación de servicios profesionales y de apoyo a la gestión, o para la ejecución de trabajos artísticos que sólo puedan encomendarse a determinadas personas naturales; | I46: PRESTAR SUS SERVICIOS ASISTENCIALES PARA LA GESTIÓN DEL RIESGO, EN EL MARCO DE LOS VIGÍAS DEL RIESGO DE LA LOCALIDAD DE RAFAEL URIBE URIBE | J46: Inversión | K46: Un Nuevo Contrato Social y Ambiental para la Bogotá del Siglo XXI | L46: 30 | M46: =IF(ISERROR(VLOOKUP(L46,Proposito_programa!$C$2:$E$59,2,FALSE))," ",VLOOKUP(L46,Proposito_programa!$C$2:$E$59,2,FALSE)) -> Eficiencia en la atención de emergencias | N46: =IF(ISERROR(VLOOKUP(L46,Proposito_programa!$C$2:$E$59,3,FALSE))," ",VLOOKUP(L46,Proposito_programa!$C$2:$E$59,3,FALSE)) -> Propósito 2 : Cambiar Nuestros Hábitos de Vida para Reverdecer a Bogotá y Adaptarnos y Mitigar la Crisis Climática | O46: 133011602300000001665 | P46: 1 | Q46: 1031160707 | R46: ULISES RUIZ CONTRERAS | S46: Persona Natural | W46: 8100000 | AA46: 8100000 | AB46: 6240000 | AC46: 44418 | AD46: 44425 | AE46: 44562 | AF46: 135 | AI46: 1020834737 | AJ46: LAURA ALEJANDRA BARRAGAN MONTENEGRO | AK46: 44434 | AL46: 7500000 | AO46: X | AQ46: 0.7703703704
A47: 1 | B47: 81 | C47: 2021 | D47: FDLRUU-CD-081-2021 | E47: https://community.secop.gov.co/Public/Tendering/OpportunityDetail/Index?noticeUID=CO1.NTC.1760964&isFromPublicArea=True&isModal=False | F47: Contratos de prestación de servicios profesionales y de apoyo a la gestión | G47: Contratación directa | H47: Prestación de servicios profesionales y de apoyo a la gestión, o para la ejecución de trabajos artísticos que sólo puedan encomendarse a determinadas personas naturales; | I47: PRESTAR LOS SERVICIOS PROFESIONALES PARA LA REVISIÓN Y/O ELABORACIÓN DE LOS DOCUMENTOS Y GESTIONES RELACIONADAS CON TEMAS ADMINISTRATIVOS CONTABLES Y FINANCIEROS DEL FONDO DE DESARROLLO LOCAL DE RAFAEL URIBE URIBE | J47: Inversión | K47: Un Nuevo Contrato Social y Ambiental para la Bogotá del Siglo XXI | L47: 57 | M47: =IF(ISERROR(VLOOKUP(L47,Proposito_programa!$C$2:$E$59,2,FALSE))," ",VLOOKUP(L47,Proposito_programa!$C$2:$E$59,2,FALSE)) -> Gestión pública local | N47: =IF(ISERROR(VLOOKUP(L47,Proposito_programa!$C$2:$E$59,3,FALSE))," ",VLOOKUP(L47,Proposito_programa!$C$2:$E$59,3,FALSE)) -> Propósito 5: Construir Bogotá - Región con gobierno abierto, transparente y ciudadanía consciente | O47: 133011605570000001697 | P47: 1 | Q47: 1033762488 | R47: TANIA XIMENA MORALES CASTIBLANCO | S47: Persona Natural | W47: 43000000 | Y47: 1 | Z47: 4586667 | AA47: 47586667 | AB47: 41423333 | AC47: 44239 | AD47: 44239 | AE47: 44574 | AF47: 300 | AG47: 1 | AH47: 32 | AO47: X | AQ47: 0.8704819146
A48: 1 | B48: 235 | C48: 2021 | D48: FDLRUU-CD-235-2021 | E48: https://community.secop.gov.co/Public/Tendering/OpportunityDetail/Index?noticeUID=CO1.NTC.2093989&isFromPublicArea=True&isModal=False | F48: Contratos interadministrativos | G48: Contratación directa | H48: Contratos interadministrativos | I48: AUNAR ESFUERZOS TÉCNICOS, ADMINISTRATIVOS Y FINANCIEROS ENTRE LA SUBRED INTEGRADA DE SERVICIOS DE SALUD CENTRO ORIENTE Y EL FDLRUU PARA EL OTORGAMIENTO DE DISPOSITIVOS DE ASISTENCIA PERSONAL DAP, QUE NO SE ENCUENTREN INCLUIDOS EN LOS PLANES DE BENEFICIOS DE SALUD A PERSONAS CON DISCAPACIDAD PERMANENTE RESIDENTES EN LA LOCALIDAD RAFAEL URIBE URIBE DANDO RESPUESTA A SUS NECESIDADES TERRITORIALES EN PRO DE MEJORAR SU CALIDAD DE VIDA Y LA DE SUS CUIDADORES, EN EN EL MARCO DEL PROYECTO DE INVERSIÓN | J48: Inversión | K48: Un Nuevo Contrato Social y Ambiental para la Bogotá del Siglo XXI | L48: 6 | M48: =IF(ISERROR(VLOOKUP(L48,Proposito_programa!$C$2:$E$59,2,FALSE))," ",VLOOKUP(L48,Proposito_programa!$C$2:$E$59,2,FALSE)) -> Sistema Distrital de Cuidado | N48: =IF(ISERROR(VLOOKUP(L48,Proposito_programa!$C$2:$E$59,3,FALSE))," ",VLOOKUP(L48,Proposito_programa!$C$2:$E$59,3,FALSE)) -> Propósito 1: Hacer un nuevo contrato social para incrementar la inclusión social, productiva y política | O48: 133011601060000001658 | P48: 1 | Q48: 900959051 | R48: SUBRED INTEGRADA DE SERVICIOS DE SALUD CENTRO ORIENTE E.S.E | S48: Persona Jurídica | W48: 806389000 | AA48: 806389000 | AB48: 0 | AC48: 44393 | AD48: 44405 | AE48: 44647 | AF48: 240 | AN48: X | AQ48: 0
A49: 1 | B49: 287 | C49: 2021 | D49: FDLRUU-MC-279-2021 | E49: https://community.secop.gov.co/Public/Tendering/OpportunityDetail/Index?noticeUID=CO1.NTC.2211076&isFromPublicArea=True&isModal=False | F49: Suministro | G49: Contratación mínima cuantia | H49: Prestación de servicios profesionales y de apoyo a la gestión, o para la ejecución de trabajos artísticos que sólo puedan encomendarse a determinadas personas naturales; | I49: SUMINISTRAR 1 DOTACION LOGISTICA A LA ESTACION 18 DE POLICIA DE RAFEL URIBE URIBE EN EL MARCO DEL PROYECTO DE INVERSION 1684 | J49: Inversión | K49: Un Nuevo Contrato Social y Ambiental para la Bogotá del Siglo XXI | L49: 48 | M49: =IF(ISERROR(VLOOKUP(L49,Proposito_programa!$C$2:$E$59,2,FALSE))," ",VLOOKUP(L49,Proposito_programa!$C$2:$E$59,2,FALSE)) -> Plataforma institucional para la seguridad y justicia | N49: =IF(ISERROR(VLOOKUP(L49,Proposito_programa!$C$2:$E$59,3,FALSE))," ",VLOOKUP(L49,Proposito_programa!$C$2:$E$59,3,FALSE)) -> Propósito 3: Inspirar confianza y legitimidad para vivir sin miedo y ser epicentro de cultura ciudadana, paz y reconciliación | O49: 133011603480000001684 | P49: 1 | Q49: 830053792 | R49: STRATEGY S.A.S | S49: Persona Jurídica | W49: 12417650 | AA49: 12417650 | AB49: 0 | AC49: 44455 | AD49: 44477 | AE49: 44599 | AF49: 120 | AN49: X | AQ49: 0
A50: 1 | B50: 115 | C50: 2021 | D50: FDLRUU-CD-115-2021 | E50: https://community.secop.gov.co/Public/Tendering/OpportunityDetail/Index?noticeUID=CO1.NTC.1775087&isFromPublicArea=True&isModal=False | F50: Contratos de prestación de servicios profesionales y de apoyo a la gestión | G50: Contratación directa | H50: Prestación de servicios profesionales y de apoyo a la gestión, o para la ejecución de trabajos artísticos que sólo puedan encomendarse a determinadas personas naturales; | I50: PRESTAR LOS SERVICIOS DE APOYO A LA GESTIÓN PARA EL MANEJO DE LOS DOCUMENTOS OFICIALES, MEDIANTE LA APLICACIÓN E IMPLEMENTACIÓN DEL SISTEMA ORFEO, EN LAS DIFERENTES DEPENDENCIAS DE LA ALCALDIA LOCAL DE RAFAEL URIBE URIBE. | J50: Inversión | K50: Un Nuevo Contrato Social y Ambiental para la Bogotá del Siglo XXI | L50: 57 | M50: =IF(ISERROR(VLOOKUP(L50,Proposito_programa!$C$2:$E$59,2,FALSE))," ",VLOOKUP(L50,Proposito_programa!$C$2:$E$59,2,FALSE)) -> Gestión pública local | N50: =IF(ISERROR(VLOOKUP(L50,Proposito_programa!$C$2:$E$59,3,FALSE))," ",VLOOKUP(L50,Proposito_programa!$C$2:$E$59,3,FALSE)) -> Propósito 5: Construir Bogotá - Región con gobierno abierto, transparente y ciudadanía consciente | O50: 133011605570000001697 | P50: 1 | Q50: 1030587570 | R50: STEPHANIE ANDREA ARIAS RIVERA | S50: Persona Natural | W50: 33000000 | Y50: 1 | Z50: 2750000 | AA50: 35750000 | AB50: 31020000 | AC50: 44245 | AD50: 44246 | AE50: 44574 | AF50: 300 | AG50: 1 | AH50: 25 | AO50: X | AQ50: 0.8676923077
A51: 1 | B51: 63094 | C51: 2020 | D51: OC-63094 | E51: https://www.colombiacompra.gov.co/tienda-virtual-del-estado-colombiano/ordenes-compra/63094 | F51: Suministro | G51: Selección abreviada | H51: Acuerdo marco de precios | I51: CONTRATAR EL SERVICIO DE IMPRESORAS PARA EL FUNCIONAMIENTO DE LA ALCALDIA LOCAL RAFAEL URIBE URIBE | J51: Funcionamiento | K51: Un Nuevo Contrato Social y Ambiental para la Bogotá del Siglo XXI | L51: No aplica | M51: =IF(ISERROR(VLOOKUP(L51,Proposito_programa!$C$2:$E$59,2,FALSE))," ",VLOOKUP(L51,Proposito_programa!$C$2:$E$59,2,FALSE)) ->  | N51: =IF(ISERROR(VLOOKUP(L51,Proposito_programa!$C$2:$E$59,3,FALSE))," ",VLOOKUP(L51,Proposito_programa!$C$2:$E$59,3,FALSE)) ->  | O51: 1310202010203 | P51: 1 | Q51: 830053669 | R51: SOLUCION COPY LTDA. | S51: Persona Jurídica | Y51: 1 | Z51: 11165175 | AA51: 11165175 | AB51: 0 | AC51: 44408 | AD51: 44408 | AE51: 44869 | AF51: 390 | AG51: 1 | AH51: 68 | AN51: X | AQ51: 0
A52: 1 | B52: 75043 | C52: 2021 | D52: OC-75043 | E52: https://colombiacompra.gov.co/tienda-virtual-del-estado-colombiano/ordenes-compra/75043 | F52: Compraventa de bienes muebles | G52: Selección abreviada | H52: Acuerdo marco de precios | I52: CONTRATAR LA ADQUISICIÓN DE ESCANER PARA LA ALCALDIA LOCAL DE RAFAEL URIBE URIBE” | J52: Funcionamiento | K52: Un Nuevo Contrato Social y Ambiental para la Bogotá del Siglo XXI | L52: No aplica | M52: =IF(ISERROR(VLOOKUP(L52,Proposito_programa!$C$2:$E$59,2,FALSE))," ",VLOOKUP(L52,Proposito_programa!$C$2:$E$59,2,FALSE)) ->  | N52: =IF(ISERROR(VLOOKUP(L52,Proposito_programa!$C$2:$E$59,3,FALSE))," ",VLOOKUP(L52,Proposito_programa!$C$2:$E$59,3,FALSE)) ->  | O52: 1310201010102 | P52: 1 | Q52: 800230829 | R52: SISTETRONICS LTDA | S52: Persona Jurídica | W52: 17285940 | AA52: 17285940 | AB52: 17285940 | AC52: 44435 | AD52: 44435 | AE52: 44498 | AF52: 30 | AO52: X | AQ52: 1
A53: 1 | B53: 293 | C53: 2021 | D53: FDLRUU-SASI-254-2021 | E53: https://community.secop.gov.co/Public/Tendering/OpportunityDetail/Index?noticeUID=CO1.NTC.2206412&isFromPublicArea=True&isModal=False | F53: Compraventa de bienes muebles | G53: Selección abreviada | H53: Subasta inversa | I53: ADQUIRIR ELEMENTOS DE DOTACIÓN PARA FORTALECIMIENTO DE LAS CAPACIDADES LOCALES PARA DAR RESPUESTA A EMERGENCIAS Y DESASTRES EN LA LOCALIDAD RAFAEL URIBE URIBE EN EL MARCO DEL PROYECTO DE INVERSIÓN 1665 | J53: Inversión | K53: Un Nuevo Contrato Social y Ambiental para la Bogotá del Siglo XXI | L53: 30 | M53: =IF(ISERROR(VLOOKUP(L53,Proposito_programa!$C$2:$E$59,2,FALSE))," ",VLOOKUP(L53,Proposito_programa!$C$2:$E$59,2,FALSE)) -> Eficiencia en la atención de emergencias | N53: =IF(ISERROR(VLOOKUP(L53,Proposito_programa!$C$2:$E$59,3,FALSE))," ",VLOOKUP(L53,Proposito_programa!$C$2:$E$59,3,FALSE)) -> Propósito 2 : Cambiar Nuestros Hábitos de Vida para Reverdecer a Bogotá y Adaptarnos y Mitigar la Crisis Climática | O53: 133011602300000001665 | P53: 5 | Q53: 900954187 | R53: SISCOM SERVICIOS INTEGRALES SAS | S53: Persona Jurídica | W53: 70454639 | AA53: 70454639 | AB53: 0 | AC53: 44468 | AD53: 44480 | AE53: 44540 | AF53: 60 | AO53: X | AQ53: 0
A54: 1 | B54: 222 | C54: 2021 | D54: FDLRUU-CD-222-2021 | E54: https://community.secop.gov.co/Public/Tendering/OpportunityDetail/Index?noticeUID=CO1.NTC.1985795&isFromPublicArea=True&isModal=False | F54: Contratos de prestación de servicios profesionales y de apoyo a la gestión | G54: Contratación directa | H54: Prestación de servicios profesionales y de apoyo a la gestión, o para la ejecución de trabajos artísticos que sólo puedan encomendarse a determinadas personas naturales; | I54: APOYAR JURÍDICAMENTE LA EJECUCIÓN DE LAS ACCIONES REQUERIDAS PARA EL TRÁMITE E IMPULSO PROCESAL DE LAS ACTUACIONES CONTRAVENCIONALES Y/O QUERELLAS QUE CURSEN EN LAS INSPECCIONES DE POLICÍA DE LA LOCALIDAD DE RAFAEL URIBE URIBE | J54: Inversión | K54: Un Nuevo Contrato Social y Ambiental para la Bogotá del Siglo XXI | L54: 57 | M54: =IF(ISERROR(VLOOKUP(L54,Proposito_programa!$C$2:$E$59,2,FALSE))," ",VLOOKUP(L54,Proposito_programa!$C$2:$E$59,2,FALSE)) -> Gestión pública local | N54: =IF(ISERROR(VLOOKUP(L54,Proposito_programa!$C$2:$E$59,3,FALSE))," ",VLOOKUP(L54,Proposito_programa!$C$2:$E$59,3,FALSE)) -> Propósito 5: Construir Bogotá - Región con gobierno abierto, transparente y ciudadanía consciente | O54: 133011605570000001698 | P54: 1 | Q54: 1098675891 | R54: SILVIA PATRICIA GOMEZ JAIMES | S54: Persona Natural | W54: 31200000 | Y54: 1 | Z54: 5720000 | AA54: 36920000 | AB54: 31720000 | AC54: 44340 | AD54: 44344 | AE54: 44561 | AF54: 180 | AG54: 1 | AH54: 33 | AO54: X | AQ54: 0.8591549296
A55: 1 | B55: 55 | C55: 2021 | D55: FDLRUU-CD-055-2021 | E55: https://community.secop.gov.co/Public/Tendering/OpportunityDetail/Index?noticeUID=CO1.NTC.1738980&isFromPublicArea=True&isModal=False | F55: Contratos de prestación de servicios profesionales y de apoyo a la gestión | G55: Contratación directa | H55: Prestación de servicios profesionales y de apoyo a la gestión, o para la ejecución de trabajos artísticos que sólo puedan encomendarse a determinadas personas naturales; | I55: EL CONTRATISTA SE OBLIGA A PRESTAR SUS SERVICIOS DE APOYO TÉCNICO ADMINISTRATIVO PARA EL GRUPO DE PLANEACIÓN DE LA ALCALDÍA LOCAL DE RAFAEL URIBE URIBE | J55: Inversión | K55: Un Nuevo Contrato Social y Ambiental para la Bogotá del Siglo XXI | L55: 57 | M55: =IF(ISERROR(VLOOKUP(L55,Proposito_programa!$C$2:$E$59,2,FALSE))," ",VLOOKUP(L55,Proposito_programa!$C$2:$E$59,2,FALSE)) -> Gestión pública local | N55: =IF(ISERROR(VLOOKUP(L55,Proposito_programa!$C$2:$E$59,3,FALSE))," ",VLOOKUP(L55,Proposito_programa!$C$2:$E$59,3,FALSE)) -> Propósito 5: Construir Bogotá - Región con gobierno abierto, transparente y ciudadanía consciente | O55: 133011605570000001697 | P55: 1 | Q55: 1031163818 | R55: SHAMIR ALEJANDRA HERNANDEZ MARTINEZ | S55: Persona Natural | W55: 39000000 | Y55: 1 | Z55: 2600000 | AA55: 41600000 | AB55: 37700000 | AC55: 44204 | AD55: 44238 | AE55: 44560 | AF55: 300 | AG55: 1 | AH55: 20 | AO55: X | AQ55: 0.90625
A56: 1 | B56: 306 | C56: 2021 | D56: FDLRUU-CI-306-2021 | E56: https://community.secop.gov.co/Public/Tendering/OpportunityDetail/Index?noticeUID=CO1.NTC.2390503&isFromPublicArea=True&isModal=False | F56: Contratos interadministrativos | G56: Contratación directa | H56: Contratos interadministrativos | I56: PRESTAR EL SERVICIO DE CURSO Y ENTREGA DE CORRESPONDENCIA Y DEMAS ENVIOS POSTALES QUE REQUIERA LA ALCALDIA LOCAL DE RAFAEL URIBE URIBE EN LAS MODALIDADES DE CORREO CERTIFICADO, NOTIEXPRESS Y SERVICIOS POST EXPRESS, RESPUESTA FACIL, SMS CERTIFICADO, CORREO ELECTRONICO CERTIFICADO A NIVEL URBANO Y NACIONAL | J56: Funcionamiento | K56: Un Nuevo Contrato Social y Ambiental para la Bogotá del Siglo XXI | L56: No aplica | M56: =IF(ISERROR(VLOOKUP(L56,Proposito_programa!$C$2:$E$59,2,FALSE))," ",VLOOKUP(L56,Proposito_programa!$C$2:$E$59,2,FALSE)) ->  | N56: =IF(ISERROR(VLOOKUP(L56,Proposito_programa!$C$2:$E$59,3,FALSE))," ",VLOOKUP(L56,Proposito_programa!$C$2:$E$59,3,FALSE)) ->  | O56: 131020202010601 | P56: 1 | Q56: 900062917 | R56: SERVICIOS POSTALES NACIONALES S.A -472 | S56: Persona Jurídica | W56: 3000000 | AA56: 3000000 | AB56: 0 | AC56: 44512 | AD56: 44524 | AE56: 44827 | AF56: 300 | AN56: X | AQ56: 0
A57: 1 | B57: 311 | C57: 2021 | D57: FDLRUU-CD-311-2021 | E57: https://community.secop.gov.co/Public/Tendering/OpportunityDetail/Index?noticeUID=CO1.NTC.2439280&isFromPublicArea=True&isModal=False | F57: Contratos de prestación de servicios profesionales y de apoyo a la gestión | G57: Contratación directa | H57: Prestación de servicios profesionales y de apoyo a la gestión, o para la ejecución de trabajos artísticos que sólo puedan encomendarse a determinadas personas naturales; | I57: APOYAR JURIDICAMENTE LA EJECUCIÓN DE LAS ACCIONES REQUERIDAS PARA LA DEPURACIÓN DE LAS ACTUACIONES ADMINISTRATIVAS QUE CURSAN EN LA ALCALDIA LOCAL | J57: Inversión | K57: Un Nuevo Contrato Social y Ambiental para la Bogotá del Siglo XXI | L57: 57 | M57: =IF(ISERROR(VLOOKUP(L57,Proposito_programa!$C$2:$E$59,2,FALSE))," ",VLOOKUP(L57,Proposito_programa!$C$2:$E$59,2,FALSE)) -> Gestión pública local | N57: =IF(ISERROR(VLOOKUP(L57,Proposito_programa!$C$2:$E$59,3,FALSE))," ",VLOOKUP(L57,Proposito_programa!$C$2:$E$59,3,FALSE)) -> Propósito 5: Construir Bogotá - Región con gobierno abierto, transparente y ciudadanía consciente | O57: 133011605570000001698 | P57: 1 | Q57: 80001279 | R57: SERGIO FERNEY ROMERO CARRILLO | S57: Persona Natural | W57: 7800000 | AA57: 7800000 | AB57: 0 | AC57: 44539 | AD57: 44551 | AE57: 44596 | AF57: 45 | AN57: X | AQ57: 0
A58: 1 | B58: 112 | C58: 2021 | D58: FDLRUU-CD-112-2021 | E58: https://community.secop.gov.co/Public/Tendering/OpportunityDetail/Index?noticeUID=CO1.NTC.1774557&isFromPublicArea=True&isModal=False | F58: Contratos de prestación de servicios profesionales y de apoyo a la gestión | G58: Contratación directa | H58: Prestación de servicios profesionales y de apoyo a la gestión, o para la ejecución de trabajos artísticos que sólo puedan encomendarse a determinadas personas naturales; | I58: PRESTAR LOS SERVICIOS PROFESIONALES PARA LA OPERACIÓN, PRESTACIÓN, SEGUIMIENTO Y CUMPLIMIENTO PROCEDIMIENTOS ADMINISTRATIVOS OPERATIVOS Y PROGRAMÁTICOS DEL SERVICIO APOYO ECONÓMICO TIPO C, QUE CONTRIBUYAN A LA GARANTÍA DE LOS DERECHOS DE LA POBLACIÓN MAYOR EN EL MARCO DE LA POLÍTICA PÚBLICA SOCIAL PARA EL ENVEJECIMIENTO Y LA VEJEZ EN EL DISTRITO CAPITAL A CARGO DE LA ALCALDÍA LOCAL RAFAEL URIBE URIBE | J58: Inversión | K58: Un Nuevo Contrato Social y Ambiental para la Bogotá del Siglo XXI | L58: 1 | M58: =IF(ISERROR(VLOOKUP(L58,Proposito_programa!$C$2:$E$59,2,FALSE))," ",VLOOKUP(L58,Proposito_programa!$C$2:$E$59,2,FALSE)) -> Subsidios y transferencias para la equidad | N58: =IF(ISERROR(VLOOKUP(L58,Proposito_programa!$C$2:$E$59,3,FALSE))," ",VLOOKUP(L58,Proposito_programa!$C$2:$E$59,3,FALSE)) -> Propósito 1: Hacer un nuevo contrato social para incrementar la inclusión social, productiva y política | O58: 133011601010000001636 | P58: 1 | Q58: 80114984 | R58: SERGIO ENRIQUE MORALES GIL | S58: Persona Natural | W58: 41600000 | Y58: 1 | Z58: 12306667 | AA58: 53906667 | AB58: 43160000 | AC58: 44245 | AD58: 44249 | AE58: 44561 | AF58: 240 | AH58: 71 | AO58: X | AQ58: 0.8006430819
A59: 1 | B59: 225 | C59: 2021 | D59: FDLRUU-CD-225-2021 | E59: https://www.contratos.gov.co/consultas/detalleProceso.do?numConstancia=21-22-26755 | F59: Contratos interadministrativos | G59: Contratación directa | H59: Contratos interadministrativos | I59: AUNAR ESFUERZOS TÉCNICOS, ADMINISTRATIVOS, LOGÍSTICOS Y FINANCIEROS ENTRE LA SECRETARÍA DISTRITAL INTEGRACIÓN SOCIAL-SDIS Y EL FONDO DE DESARROLLO LOCAL DE USAQUÉN; EL FONDO DE DESARROLLO LOCAL DE SAN CRISTÓBAL; EL FONDO DE DESARROLLO LOCAL DE USME; EL FONDO DE DESARROLLO LOCAL DE BOSA; EL FONDO DE DESARROLLO LOCAL DE KENNEDY; EL FONDO DE DESARROLLO LOCAL DE SUBA; EL FONDO DE DESARROLLO LOCAL DE RAFAEL URIBE URIBE Y EL FONDO DE DESARROLLO LOCAL DE CIUDAD BOLÍVAR, PARA LA OPERACIÓN Y PUESTA EN MARCHA DEL PROGRAMA “RETO LOCAL JÓVENES Y ENTORNOS SEGUROS”. | J59: Funcionamiento | K59: Un Nuevo Contrato Social y Ambiental para la Bogotá del Siglo XXI | L59: No aplica | M59: =IF(ISERROR(VLOOKUP(L59,Proposito_programa!$C$2:$E$59,2,FALSE))," ",VLOOKUP(L59,Proposito_programa!$C$2:$E$59,2,FALSE)) ->  | N59: =IF(ISERROR(VLOOKUP(L59,Proposito_programa!$C$2:$E$59,3,FALSE))," ",VLOOKUP(L59,Proposito_programa!$C$2:$E$59,3,FALSE)) ->  | O59: N/A | P59: 1 | Q59: 899099061 | R59: SECRETARIA DISTRITAL DE INTEGRACION SOCIAL | S59: Persona Jurídica | W59: 0 | AA59: 0 | AB59: - | AC59: 44365 | AD59: 44378 | AE59: 44742 | AF59: 360 | AN59: X | AQ59: -
A60: 1 | B60: 233 | C60: 2021 | D60: FDLRUU-CD-233-2021 | E60: https://www.contratos.gov.co/consultas/detalleProceso.do?numConstancia=21-22-27304&g-recaptcha-response=03AGdBq254V5ltFbf3kHDzZRljRDxhQwD_XZa1RNQVlhHb5HFztHMfyogZfvHHZnMF6wOGezN36FWHRtXXOx1E-xC7uMVTgIYbwtGcCszIol85TSnuOez8V5X10mGQWuOXsAmcCGx3XoqcIaf3Zyamnh2vLXMSFc4egOGrzJT6G7kwILz6V4zhBwMTy_l5pxNe91konY5yEB_HT2vjWcvh53Y0oM48MNHR_WXBaPfl0jw6cRLlFrDXyyPFHkr2_Cem1eqAcSjiIToqoQ88675jqdVu1uoLJu0la-g7g6BQXqiNCe-Tjapwv6S2NovFnTO5mYXp3pYMhUzprbkW-Kav3bQsp6XN2e05J3NMybC8a51dhGCTRZDaEMOMfa1tTeAzJUdFMpkG73ERg8XPMfr1rFDviVrnfNOr_Vlz4Br6vh5T1uNE38qdVxBnPSvV_jFTGQTrdJj9cLkFgtM_gfB4Pr2z66-Nvb4wrUhqW6lwORngBQ5Yw1HDB0AGgyBLVrsFUCC81UjrbeyNUw1Y0bFbGX50cvHUa9LmsA | F60: Contratos interadministrativos | G60: Contratación directa | H60: Contratos interadministrativos | I60: AUNAR ESFUERZOS TÉCNICOS, ADMINISTRATIVOS, JURÍDICOS Y FINANCIEROS ENTRE LA SECRETARÍA DE EDUCACIÓN DEL DISTRITO Y LOS FONDOS DE DESARROLLO LOCAL QUE HACEN PARTE DEL DISTRITO CAPITAL, PARA LA IMPLEMENTACIÓN DE UN NUEVO MODELO INCLUSIVO, EFICIENTE Y FLEXIBLE PARA EL ACCESO Y LA PERMANENCIA DE LAS Y LOS JÓVENES EGRESADOS DE INSTITUCIONES DE EDUCACIÓN MEDIA A PROGRAMAS DE EDUCACIÓN SUPERIOR | J60: Inversión | K60: Un Nuevo Contrato Social y Ambiental para la Bogotá del Siglo XXI | L60: 17 | M60: =IF(ISERROR(VLOOKUP(L60,Proposito_programa!$C$2:$E$59,2,FALSE))," ",VLOOKUP(L60,Proposito_programa!$C$2:$E$59,2,FALSE)) -> Jóvenes con capacidades: Proyecto de vida para la ciudadanía, la innovación y el trabajo del siglo XXI | N60: =IF(ISERROR(VLOOKUP(L60,Proposito_programa!$C$2:$E$59,3,FALSE))," ",VLOOKUP(L60,Proposito_programa!$C$2:$E$59,3,FALSE)) -> Propósito 1: Hacer un nuevo contrato social para incrementar la inclusión social, productiva y política | O60: 133011601170000001642 | P60: 1 | Q60: 899999061 | R60: SECRETARIA DISTRITAL DE EDUCACIÓN | S60: Persona Jurídica | W60: 2531277000 | AA60: 2531277000 | AB60: 2531277000 | AC60: 44375 | AD60: 44386 | AE60: 46568 | AF60: 2160 | AN60: X | AQ60: 1
A61: 1 | B61: 248 | C61: 2021 | D61: FDLRUU-CD-232-2021 | E61: https://www.contratos.gov.co/consultas/detalleProceso.do?numConstancia=21-22-26737&g-recaptcha-response=03AGdBq243Icv-4pQG_qfcX8vlNGeUuG93FIHU1x3TMTqu8CWiGPQa42tG0FNpw1Uz6d9uunRTpWoTakuC69UGzPP0f7uyJg2Bo1dchdZz1KnIZkRuh9fL_pH9emfMlCpoVteKrr7TNT5JgGe_716JD0VvSBDurNejK6TpskthUU-l22Wlj5GHmLqtvnbCpxBUH03eTvuJqSpzGdlb6FtGoHkY40PM-6vc2yCou4cwJQYzSSBTPz08Fgfis6DERz6zcf-8xuGpGs7ZkriuaSVmIpQ0W4h1X5Sw9P9g9zjfkpiBb_7DIKH9GoGiMhthfw_UwTLDaJY9LZQ6GcAJkK93gVh8Pr_QDt5Hp4ZXsqFHoGlYOtr4bKaPUDLspxmPqMj4sg_lmiBK6KVcC828oIX_ufckgSCZ1BZWBG0EbTuVnywq0RD81qiMvO31M59k8rAmwQ7VxYYwYWSrvB20vyEbvJgO8faPK2t8M7uzqQpvZ-DOUoT_Q_kGM7gfYNWuKjUvXSlroGsDC3JwRzQiYTkqdbkyXp1h2ByO0A | F61: Contratos interadministrativos | G61: Contratación directa | H61: Contratos interadministrativos | I61: AUNAR ESFUERZOS TECNICOS ADMINISTRATIVOS Y FINANCIEROS CON EL FIN DE DESARROLLAR ACCIONES ARTICULADAS ENTRE LAS PARTES ORIENTADAS A FOMENTAR LA GENERACION Y CIRCULACION DE BIENES Y SERVICIOS CULTURALES, ARTISTICOS PATRIMONIALES, ASI COMO AL FORTALECIMIENTO DE LOSAGENTES DE ESTOS SECTORES EN LAS LOCALIDADES DEL DISTRITO CAPITAL DE ACUERDO CON LOS PROYECTOS PRESENTADOS A LOS FONDOS DE DESARROLLO LOCAL QUE FORMAN PARTE DEL CONVENIO EN EL MARCO DEL PROGRAMA ES CULTURA LOCAL 2021 | J61: Inversión | K61: Un Nuevo Contrato Social y Ambiental para la Bogotá del Siglo XXI | L61: 24 | M61: =IF(ISERROR(VLOOKUP(L61,Proposito_programa!$C$2:$E$59,2,FALSE))," ",VLOOKUP(L61,Proposito_programa!$C$2:$E$59,2,FALSE)) -> Bogotá región emprendedora e innovadora | N61: =IF(ISERROR(VLOOKUP(L61,Proposito_programa!$C$2:$E$59,3,FALSE))," ",VLOOKUP(L61,Proposito_programa!$C$2:$E$59,3,FALSE)) -> Propósito 1: Hacer un nuevo contrato social para incrementar la inclusión social, productiva y política | O61: 133011601240000001650 | P61: 1 | Q61: 899999061 | R61: SECRETARIA DISTRITAL DE CULTURA RECREACION Y DEPORTE-SCRD- | S61: Persona Jurídica | W61: 474280000 | AA61: =+W61+X61+Z61 -> 474280000 | AB61: 474280000 | AC61: 44377 | AD61: 44384 | AE61: 44742 | AF61: 354 | AN61: X | AQ61: 1
A62: 0 | B62: 248 | C62: 2021 | D62: FDLRUU-CD-232-2021 | E62: https://www.contratos.gov.co/consultas/detalleProceso.do?numConstancia=21-22-26737&g-recaptcha-response=03AGdBq243Icv-4pQG_qfcX8vlNGeUuG93FIHU1x3TMTqu8CWiGPQa42tG0FNpw1Uz6d9uunRTpWoTakuC69UGzPP0f7uyJg2Bo1dchdZz1KnIZkRuh9fL_pH9emfMlCpoVteKrr7TNT5JgGe_716JD0VvSBDurNejK6TpskthUU-l22Wlj5GHmLqtvnbCpxBUH03eTvuJqSpzGdlb6FtGoHkY40PM-6vc2yCou4cwJQYzSSBTPz08Fgfis6DERz6zcf-8xuGpGs7ZkriuaSVmIpQ0W4h1X5Sw9P9g9zjfkpiBb_7DIKH9GoGiMhthfw_UwTLDaJY9LZQ6GcAJkK93gVh8Pr_QDt5Hp4ZXsqFHoGlYOtr4bKaPUDLspxmPqMj4sg_lmiBK6KVcC828oIX_ufckgSCZ1BZWBG0EbTuVnywq0RD81qiMvO31M59k8rAmwQ7VxYYwYWSrvB20vyEbvJgO8faPK2t8M7uzqQpvZ-DOUoT_Q_kGM7gfYNWuKjUvXSlroGsDC3JwRzQiYTkqdbkyXp1h2ByO0A | F62: Contratos interadministrativos | G62: Contratación directa | H62: Contratos interadministrativos | I62: AUNAR ESFUERZOS TECNICOS ADMINISTRATIVOS Y FINANCIEROS CON EL FIN DE DESARROLLAR ACCIONES ARTICULADAS ENTRE LAS PARTES ORIENTADAS A FOMENTAR LA GENERACION Y CIRCULACION DE BIENES Y SERVICIOS CULTURALES, ARTISTICOS PATRIMONIALES, ASI COMO AL FORTALECIMIENTO DE LOSAGENTES DE ESTOS SECTORES EN LAS LOCALIDADES DEL DISTRITO CAPITAL DE ACUERDO CON LOS PROYECTOS PRESENTADOS A LOS FONDOS DE DESARROLLO LOCAL QUE FORMAN PARTE DEL CONVENIO EN EL MARCO DEL PROGRAMA ES CULTURA LOCAL 2021 | J62: Inversión | K62: Un Nuevo Contrato Social y Ambiental para la Bogotá del Siglo XXI | L62: 21 | M62: =IF(ISERROR(VLOOKUP(L62,Proposito_programa!$C$2:$E$59,2,FALSE))," ",VLOOKUP(L62,Proposito_programa!$C$2:$E$59,2,FALSE)) -> Creación y vida cotidiana: Apropiación ciudadana del arte, la cultura y el patrimonio, para la democracia cultural | N62: =IF(ISERROR(VLOOKUP(L62,Proposito_programa!$C$2:$E$59,3,FALSE))," ",VLOOKUP(L62,Proposito_programa!$C$2:$E$59,3,FALSE)) -> Propósito 1: Hacer un nuevo contrato social para incrementar la inclusión social, productiva y política | O62: 133011601210000001647 | P62: 1 | Q62: 899999061 | R62: SECRETARIA DISTRITAL DE CULTURA RECREACION Y DEPORTE-SCRD- | S62: Persona Jurídica | W62: 1053466000 | AA62: 1053466000 | AB62: 1053466000 | AC62: 44377 | AD62: 44384 | AE62: 44742 | AF62: 354 | AN62: X | AQ62: 1
A63: 1 | B63: 78708 | C63: 2021 | D63: OC-78708 | E63: https://colombiacompra.gov.co/tienda-virtual-del-estado-colombiano/ordenes-compra/78708 | F63: Compraventa de bienes muebles | G63: Selección abreviada | H63: Acuerdo marco de precios | I63: CONTRATAR LA ADQUISICIÓN DE ELEMENTOS DE BIOSEGURIDAD PARA EL MANEJO DE LA EMERGENCIA SANITARIA, SOCIAL y ECOLOGICA PRODUCTO DEL COVID-19 EN LA ALCALDÍA LOCAL DE RAFAEL URIBE URIBE | J63: Funcionamiento | K63: Un Nuevo Contrato Social y Ambiental para la Bogotá del Siglo XXI | L63: No aplica | M63: =IF(ISERROR(VLOOKUP(L63,Proposito_programa!$C$2:$E$59,2,FALSE))," ",VLOOKUP(L63,Proposito_programa!$C$2:$E$59,2,FALSE)) ->  | N63: =IF(ISERROR(VLOOKUP(L63,Proposito_programa!$C$2:$E$59,3,FALSE))," ",VLOOKUP(L63,Proposito_programa!$C$2:$E$59,3,FALSE)) ->  | O63: 13102020208 | P63: 1 | Q63: 900992742 | R63: SARAO EVENTOS SAS | S63: Persona Jurídica | W63: 489000 | AA63: 489000 | AB63: 0 | AC63: 44498 | AD63: 44498 | AE63: 44530 | AF63: 30 | AO63: X | AQ63: 0
A64: 1 | B64: 146 | C64: 2021 | D64: FDLRUU-CD-146-2021 | E64: https://community.secop.gov.co/Public/Tendering/OpportunityDetail/Index?noticeUID=CO1.NTC.1795742&isFromPublicArea=True&isModal=False | F64: Contratos de prestación de servicios profesionales y de apoyo a la gestión | G64: Contratación directa | H64: Prestación de servicios profesionales y de apoyo a la gestión, o para la ejecución de trabajos artísticos que sólo puedan encomendarse a determinadas personas naturales; | I64: PRESTAR LOS SERVICIOS PROFESIONALES PARA LA OPERACIÓN, PRESTACIÓN, SEGUIMIENTO Y CUMPLIMIENTO PROCEDIMIENTOS ADMINISTRATIVOS OPERATIVOS Y PROGRAMÁTICOS DEL SERVICIO APOYO ECONÓMICO TIPO C, QUE CONTRIBUYAN A LA GARANTÍA DE LOS DERECHOS DE LA POBLACIÓN MAYOR EN EL MARCO DE LA POLÍTICA PÚBLICA SOCIAL PARA EL ENVEJECIMIENTO Y LA VEJEZ EN EL DISTRITO CAPITAL A CARGO DE LA ALCALDÍA LOCAL RAFAEL URIBE URIBE | J64: Inversión | K64: Un Nuevo Contrato Social y Ambiental para la Bogotá del Siglo XXI | L64: 1 | M64: =IF(ISERROR(VLOOKUP(L64,Proposito_programa!$C$2:$E$59,2,FALSE))," ",VLOOKUP(L64,Proposito_programa!$C$2:$E$59,2,FALSE)) -> Subsidios y transferencias para la equidad | N64: =IF(ISERROR(VLOOKUP(L64,Proposito_programa!$C$2:$E$59,3,FALSE))," ",VLOOKUP(L64,Proposito_programa!$C$2:$E$59,3,FALSE)) -> Propósito 1: Hacer un nuevo contrato social para incrementar la inclusión social, productiva y política | O64: 133011601010000001636 | P64: 1 | Q64: 39766949 | R64: SANDRA YAZMIN ATARA ORJUELA | S64: Persona Natural | W64: 41600000 | Y64: 1 | Z64: 11786667 | AA64: 53386667 | AB64: 47840000 | AC64: 44252 | AD64: 44252 | AE64: 44561 | AF64: 240 | AG64: 1 | AH64: 68 | AO64: X | AQ64: 0.8961038905
A65: 1 | B65: 271 | C65: 2021 | D65: FDLRUU-CD-271-2021 | E65: https://community.secop.gov.co/Public/Tendering/OpportunityDetail/Index?noticeUID=CO1.NTC.2171525&isFromPublicArea=True&isModal=False | F65: Contratos de prestación de servicios profesionales y de apoyo a la gestión | G65: Contratación directa | H65: Prestación de servicios profesionales y de apoyo a la gestión, o para la ejecución de trabajos artísticos que sólo puedan encomendarse a determinadas personas naturales; | I65: PRESTAR SUS SERVICIOS ASISTENCIALES PARA LA GESTIÓN DEL RIESGO, EN EL MARCO DE LOS VIGÍAS DEL RIESGO DE LA LOCALIDAD DE RAFAEL URIBE URIBE | J65: Inversión | K65: Un Nuevo Contrato Social y Ambiental para la Bogotá del Siglo XXI | L65: 30 | M65: =IF(ISERROR(VLOOKUP(L65,Proposito_programa!$C$2:$E$59,2,FALSE))," ",VLOOKUP(L65,Proposito_programa!$C$2:$E$59,2,FALSE)) -> Eficiencia en la atención de emergencias | N65: =IF(ISERROR(VLOOKUP(L65,Proposito_programa!$C$2:$E$59,3,FALSE))," ",VLOOKUP(L65,Proposito_programa!$C$2:$E$59,3,FALSE)) -> Propósito 2 : Cambiar Nuestros Hábitos de Vida para Reverdecer a Bogotá y Adaptarnos y Mitigar la Crisis Climática | O65: 133011602300000001665 | P65: 1 | Q65: 52025495 | R65: SANDRA ROMERO CALDERON | S65: Persona Natural | W65: 8100000 | AA65: 8100000 | AB65: 5760000 | AC65: 44421 | AD65: 44433 | AE65: 44567 | AF65: 135 | AO65: X | AQ65: 0.7111111111
A66: 1 | B66: 30 | C66: 2021 | D66: FDLRUU-CD-030-2021 | E66: https://community.secop.gov.co/Public/Tendering/OpportunityDetail/Index?noticeUID=CO1.NTC.1725837&isFromPublicArea=True&isModal=False | F66: Contratos de prestación de servicios profesionales y de apoyo a la gestión | G66: Contratación directa | H66: Prestación de servicios profesionales y de apoyo a la gestión, o para la ejecución de trabajos artísticos que sólo puedan encomendarse a determinadas personas naturales; | I66: “APOYAR AL ALCALDE (SA) LOCAL EN LA PROMOCIÓN, ACOMPAÑAMIENTO, COORDINACIÓN Y ATENCIÓN DE LAS INSTANCIAS DE COORDINACIÓN INTERINSTITUCIONALES Y LAS INSTANCIAS DE PARTICIPACIÓN LOCALES, ASÍ COMO LOS PROCESOS COMUNITARIOS EN LA LOCALIDAD”. | J66: Inversión | K66: Un Nuevo Contrato Social y Ambiental para la Bogotá del Siglo XXI | L66: 57 | M66: =IF(ISERROR(VLOOKUP(L66,Proposito_programa!$C$2:$E$59,2,FALSE))," ",VLOOKUP(L66,Proposito_programa!$C$2:$E$59,2,FALSE)) -> Gestión pública local | N66: =IF(ISERROR(VLOOKUP(L66,Proposito_programa!$C$2:$E$59,3,FALSE))," ",VLOOKUP(L66,Proposito_programa!$C$2:$E$59,3,FALSE)) -> Propósito 5: Construir Bogotá - Región con gobierno abierto, transparente y ciudadanía consciente | O66: 133011605570000001697 | P66: 1 | Q66: 52219936 | R66: SANDRA PATRICIA SANABRIA HERNANDEZ | S66: Persona Natural | W66: 67000000 | Y66: 1 | Z66: 6253333 | AA66: 73253333 | AB66: 59853333 | AC66: 44229 | AD66: 44230 | AE66: 44560 | AF66: 300 | AG66: 1 | AH66: 28 | AI66: 1022360143 | AJ66: MARIA NATHALYA DELGADO MUÑOZ | AK66: 44294 | AL66: 52260000 | AO66: X | AQ66: 0.8170731699
A67: 1 | B67: 94 | C67: 2021 | D67: FDLRUU-CD-094-2021 | E67: https://community.secop.gov.co/Public/Tendering/OpportunityDetail/Index?noticeUID=CO1.NTC.1757057&isFromPublicArea=True&isModal=False | F67: Contratos de prestación de servicios profesionales y de apoyo a la gestión | G67: Contratación directa | H67: Prestación de servicios profesionales y de apoyo a la gestión, o para la ejecución de trabajos artísticos que sólo puedan encomendarse a determinadas personas naturales; | I67: PRESTAR LOS SERVICIOS PROFESIONALES DE APOYO JURIDICO AL AREA DE GESTION POLICIVA NORMATIVA Y JURIDICA DE LA ALCALDIA LOCAL DE RAFAEL URIBE URIBE EN EL DESEMPEÑO DE LAS FUNCIONES ASIGNADAS A LA ALCALDÍA LOCAL DE RAFAEL URIBE URIBE” | J67: Inversión | K67: Un Nuevo Contrato Social y Ambiental para la Bogotá del Siglo XXI | L67: 57 | M67: =IF(ISERROR(VLOOKUP(L67,Proposito_programa!$C$2:$E$59,2,FALSE))," ",VLOOKUP(L67,Proposito_programa!$C$2:$E$59,2,FALSE)) -> Gestión pública local | N67: =IF(ISERROR(VLOOKUP(L67,Proposito_programa!$C$2:$E$59,3,FALSE))," ",VLOOKUP(L67,Proposito_programa!$C$2:$E$59,3,FALSE)) -> Propósito 5: Construir Bogotá - Región con gobierno abierto, transparente y ciudadanía consciente | O67: 133011605570000001698 | P67: 1 | Q67: 1105781137 | R67: SANDRA PATRICIA PINTO GARAY | S67: Persona Natural | W67: 62000000 | Y67: 1 | Z67: 6613333 | AA67: 68613333 | AB67: 59726667 | AC67: 44239 | AD67: 44239 | AE67: 44574 | AF67: 300 | AG67: 1 | AH67: 32 | AO67: X | AQ67: 0.8704819368
A68: 1 | B68: 168 | C68: 2021 | D68: FDLRUU-CD-150-2021 | E68: https://community.secop.gov.co/Public/Tendering/OpportunityDetail/Index?noticeUID=CO1.NTC.1800149&isFromPublicArea=True&isModal=False | F68: Contratos de prestación de servicios profesionales y de apoyo a la gestión | G68: Contratación directa | H68: Prestación de servicios profesionales y de apoyo a la gestión, o para la ejecución de trabajos artísticos que sólo puedan encomendarse a determinadas personas naturales; | I68: EL CONTRATISTA SE OBLIGA CON EL FONDO DE DESARROLLO LOCAL DE RAFAEL URIBE URIBE A PRESTAR SUS SERVICIOS DE APOYO A LA GESTION LOCAL Y TERRITORIAL DE LOS TEMAS DE SEGURIDAD Y CONVIVENCIA CIUDADANA PARA LA ALCALDIA LOCAL DE RAFAEL URIBE URIBE | J68: Inversión | K68: Un Nuevo Contrato Social y Ambiental para la Bogotá del Siglo XXI | L68: 43 | M68: =IF(ISERROR(VLOOKUP(L68,Proposito_programa!$C$2:$E$59,2,FALSE))," ",VLOOKUP(L68,Proposito_programa!$C$2:$E$59,2,FALSE)) -> Cultura ciudadana para la confianza, la convivencia y la participación desde la vida cotidiana | N68: =IF(ISERROR(VLOOKUP(L68,Proposito_programa!$C$2:$E$59,3,FALSE))," ",VLOOKUP(L68,Proposito_programa!$C$2:$E$59,3,FALSE)) -> Propósito 3: Inspirar confianza y legitimidad para vivir sin miedo y ser epicentro de cultura ciudadana, paz y reconciliación | O68: 133011603430000001680 | P68: 1 | Q68: 1031148872 | R68: SANDRA MILENA MUÑOZ NAVARRO | S68: Persona Natural | W68: 19800000 | Y68: 1 | Z68: 3153333 | AA68: 22953333 | AB68: 19800000 | AC68: 44253 | AD68: 44256 | AE68: 44574 | AF68: 270 | AG68: 1 | AH68: 43 | AO68: X | AQ68: 0.8626198208
A69: 1 | B69: 26 | C69: 2021 | D69: FDLRUU-CD-026-2021 | E69: https://community.secop.gov.co/Public/Tendering/OpportunityDetail/Index?noticeUID=CO1.NTC.1721556&isFromPublicArea=True&isModal=False | F69: Contratos de prestación de servicios profesionales y de apoyo a la gestión | G69: Contratación directa | H69: Prestación de servicios profesionales y de apoyo a la gestión, o para la ejecución de trabajos artísticos que sólo puedan encomendarse a determinadas personas naturales; | I69: PRESTAR LOS SERVICIOS PROFESIONALES ESPECIALIZADOS PARA APOYAR EL AREA DE GESTION DE DESARROLLO LOCAL DEL FONDO DE DESARROLLO LOCAL DE RAFAEL URIBE URIBE A FIN DE ORIENTAR LA EJECUCIÓN Y SEGUIMIENTO DE LAS ACTIVIDADES DE LOS PROCESOS ASOCIADOS CON EL ÁREA, ASÍ COMO DE LOS PROYECTOS DE INVERSIÓN DEL PLAN DE DESARROLLO LOCAL VIGENCIA 2021 - 2024 | J69: Inversión | K69: Un Nuevo Contrato Social y Ambiental para la Bogotá del Siglo XXI | L69: 57 | M69: =IF(ISERROR(VLOOKUP(L69,Proposito_programa!$C$2:$E$59,2,FALSE))," ",VLOOKUP(L69,Proposito_programa!$C$2:$E$59,2,FALSE)) -> Gestión pública local | N69: =IF(ISERROR(VLOOKUP(L69,Proposito_programa!$C$2:$E$59,3,FALSE))," ",VLOOKUP(L69,Proposito_programa!$C$2:$E$59,3,FALSE)) -> Propósito 5: Construir Bogotá - Región con gobierno abierto, transparente y ciudadanía consciente | O69: 133011605570000001697 | P69: 1 | Q69: 51647190 | R69: SANDRA MARCELA ROJAS MACIAS | S69: Persona Natural | W69: 78000000 | Y69: 1 | Z69: 7540000 | AA69: 85540000 | AB69: 77740000 | AC69: 44228 | AD69: 44229 | AE69: 44560 | AF69: 300 | AG69: 1 | AH69: 29 | AO69: X | AQ69: 0.9088145897
A70: 1 | B70: 153 | C70: 2021 | D70: FDLRUU-CD-150-2021 | E70: https://community.secop.gov.co/Public/Tendering/OpportunityDetail/Index?noticeUID=CO1.NTC.1800149&isFromPublicArea=True&isModal=False | F70: Contratos de prestación de servicios profesionales y de apoyo a la gestión | G70: Contratación directa | H70: Prestación de servicios profesionales y de apoyo a la gestión, o para la ejecución de trabajos artísticos que sólo puedan encomendarse a determinadas personas naturales; | I70: EL CONTRATISTA SE OBLIGA CON EL FONDO DE DESARROLLO LOCAL DE RAFAEL URIBE URIBE A PRESTAR SUS SERVICIOS DE APOYO A LA GESTION LOCAL Y TERRITORIAL DE LOS TEMAS DE SEGURIDAD Y CONVIVENCIA CIUDADANA PARA LA ALCALDIA LOCAL DE RAFAEL URIBE URIBE | J70: Inversión | K70: Un Nuevo Contrato Social y Ambiental para la Bogotá del Siglo XXI | L70: 43 | M70: =IF(ISERROR(VLOOKUP(L70,Proposito_programa!$C$2:$E$59,2,FALSE))," ",VLOOKUP(L70,Proposito_programa!$C$2:$E$59,2,FALSE)) -> Cultura ciudadana para la confianza, la convivencia y la participación desde la vida cotidiana | N70: =IF(ISERROR(VLOOKUP(L70,Proposito_programa!$C$2:$E$59,3,FALSE))," ",VLOOKUP(L70,Proposito_programa!$C$2:$E$59,3,FALSE)) -> Propósito 3: Inspirar confianza y legitimidad para vivir sin miedo y ser epicentro de cultura ciudadana, paz y reconciliación | O70: 133011603430000001680 | P70: 1 | Q70: 53002331 | R70: SANDRA LILIANA HERNANDEZ ARAGON | S70: Persona Natural | W70: 19800000 | Y70: 1 | Z70: 3080000 | AA70: 22880000 | AB70: 19726667 | AC70: 44253 | AD70: 44257 | AE70: 44574 | AF70: 270 | AG70: 1 | AH70: 42 | AO70: X | AQ70: 0.8621795017
C71: 2021 | F71: Otros gastos | G71: Otros gastos | H71: Otros gastos | I71: SALUD EDILES | J71: Funcionamiento | K71: Un Nuevo Contrato Social y Ambiental para la Bogotá del Siglo XXI | L71: No aplica | M71: =IF(ISERROR(VLOOKUP(L71,Proposito_programa!$C$2:$E$59,2,FALSE))," ",VLOOKUP(L71,Proposito_programa!$C$2:$E$59,2,FALSE)) ->  | N71: =IF(ISERROR(VLOOKUP(L71,Proposito_programa!$C$2:$E$59,3,FALSE))," ",VLOOKUP(L71,Proposito_programa!$C$2:$E$59,3,FALSE)) ->  | O71: 131020202020106 | R71: SALUD EDILES | W71: 141370000 | AA71: 141370000 | AB71: 115511200 | AC71: 44197 | AD71: 44197 | AE71: 44561 | AF71: 360 | AO71: X | AQ71: 0.817084247
A72: 1 | B72: 62 | C72: 2021 | D72: FDLRUU-CD-062-2021 | E72: https://community.secop.gov.co/Public/Tendering/OpportunityDetail/Index?noticeUID=CO1.NTC.1745520&isFromPublicArea=True&isModal=False | F72: Contratos de prestación de servicios profesionales y de apoyo a la gestión | G72: Contratación directa | H72: Prestación de servicios profesionales y de apoyo a la gestión, o para la ejecución de trabajos artísticos que sólo puedan encomendarse a determinadas personas naturales; | I72: PRESTAR LOS SERVICIOS PROFESIONALES COMO ABOGADO PARA APOYAR LOS PROCESOS DE CONTRATACIÓN EN SUS DIFERENTES ETAPAS AL ÁREA DE GESTIÓN DEL DESARROLLO DE LA ALCALDÍA LOCAL DE RAFAEL URIBE URIBE”. | J72: Inversión | K72: Un Nuevo Contrato Social y Ambiental para la Bogotá del Siglo XXI | L72: 57 | M72: =IF(ISERROR(VLOOKUP(L72,Proposito_programa!$C$2:$E$59,2,FALSE))," ",VLOOKUP(L72,Proposito_programa!$C$2:$E$59,2,FALSE)) -> Gestión pública local | N72: =IF(ISERROR(VLOOKUP(L72,Proposito_programa!$C$2:$E$59,3,FALSE))," ",VLOOKUP(L72,Proposito_programa!$C$2:$E$59,3,FALSE)) -> Propósito 5: Construir Bogotá - Región con gobierno abierto, transparente y ciudadanía consciente | O72: 133011605570000001697 | P72: 1 | Q72: 52726734 | R72: ROSALBA VILLALOBOS VILLALOBOS | S72: Persona Natural | W72: 52000000 | Y72: 1 | Z72: 5546667 | AA72: 57546667 | AB72: 50093333 | AC72: 44237 | AD72: 44239 | AE72: 44574 | AF72: 300 | AG72: 1 | AH72: 32 | AO72: X | AQ72: 0.8704819169
A73: 1 | B73: 137 | C73: 2021 | D73: FDLRUU-CD-137-2021 | E73: https://community.secop.gov.co/Public/Tendering/OpportunityDetail/Index?noticeUID=CO1.NTC.1788948&isFromPublicArea=True&isModal=False | F73: Contratos de prestación de servicios profesionales y de apoyo a la gestión | G73: Contratación directa | H73: Prestación de servicios profesionales y de apoyo a la gestión, o para la ejecución de trabajos artísticos que sólo puedan encomendarse a determinadas personas naturales; | I73: PRESTAR LOS SERVICIOS PROFESIONALES A LA ALCALDÍA LOCAL DE RAFAEL URIBE URIBE, PARA LA EJECUCIÓN Y DIVULGACION DE LAS ACTIVIDADES COMUNITARIAS Y DE APOYO A LOS PROCESOS DE PARTICIPACIÓN EN EL MARCO DEL SISTEMA LOCAL Y DISTRITAL DE PARTICIPACIÓN, LAS RELACIONES INTERINSTITUCIONALES Y LA EJECUCIÓN DE LOS PROYECTOS QUE HACEN PARTE DEL PLAN DE DESARROLLO.” | J73: Inversión | K73: Un Nuevo Contrato Social y Ambiental para la Bogotá del Siglo XXI | L73: 57 | M73: =IF(ISERROR(VLOOKUP(L73,Proposito_programa!$C$2:$E$59,2,FALSE))," ",VLOOKUP(L73,Proposito_programa!$C$2:$E$59,2,FALSE)) -> Gestión pública local | N73: =IF(ISERROR(VLOOKUP(L73,Proposito_programa!$C$2:$E$59,3,FALSE))," ",VLOOKUP(L73,Proposito_programa!$C$2:$E$59,3,FALSE)) -> Propósito 5: Construir Bogotá - Región con gobierno abierto, transparente y ciudadanía consciente | O73: 133011605570000001697 | P73: 1 | Q73: 1090386786 | R73: RENZO ROLANDO RODRIGUEZ PINZON | S73: Persona Natural | W73: 31200000 | Y73: 1 | Z73: 15600000 | AA73: 46800000 | AB73: 42813333 | AC73: 44249 | AD73: 44251 | AE73: 44523 | AF73: 180 | AH73: 90 | AO73: X | AQ73: 0.9148148077
A74: 1 | B74: 109 | C74: 2021 | D74: FDLRUU-CD-109-2021 | E74: https://community.secop.gov.co/Public/Tendering/OpportunityDetail/Index?noticeUID=CO1.NTC.1774074&isFromPublicArea=True&isModal=False | F74: Contratos de prestación de servicios profesionales y de apoyo a la gestión | G74: Contratación directa | H74: Prestación de servicios profesionales y de apoyo a la gestión, o para la ejecución de trabajos artísticos que sólo puedan encomendarse a determinadas personas naturales; | I74: PRESTAR LOS SERVICIOS PROFESIONALES PARA LA OPERACIÓN, PRESTACIÓN, SEGUIMIENTO Y CUMPLIMIENTO PROCEDIMIENTOS ADMINISTRATIVOS OPERATIVOS Y PROGRAMÁTICOS DEL SERVICIO APOYO ECONÓMICO TIPO C, QUE CONTRIBUYAN A LA GARANTÍA DE LOS DERECHOS DE LA POBLACIÓN MAYOR EN EL MARCO DE LA POLÍTICA PÚBLICA SOCIAL PARA EL ENVEJECIMIENTO Y LA VEJEZ EN EL DISTRITO CAPITAL A CARGO DE LA ALCALDÍA LOCAL RAFAEL URIBE URIBE | J74: Inversión | K74: Un Nuevo Contrato Social y Ambiental para la Bogotá del Siglo XXI | L74: 1 | M74: =IF(ISERROR(VLOOKUP(L74,Proposito_programa!$C$2:$E$59,2,FALSE))," ",VLOOKUP(L74,Proposito_programa!$C$2:$E$59,2,FALSE)) -> Subsidios y transferencias para la equidad | N74: =IF(ISERROR(VLOOKUP(L74,Proposito_programa!$C$2:$E$59,3,FALSE))," ",VLOOKUP(L74,Proposito_programa!$C$2:$E$59,3,FALSE)) -> Propósito 1: Hacer un nuevo contrato social para incrementar la inclusión social, productiva y política | O74: 133011601010000001636 | P74: 1 | Q74: 60340764 | R74: REINA ESPERANZA CORDERO VARGAS | S74: Persona Natural | W74: 41600000 | Y74: 1 | Z74: 14560000 | AA74: 56160000 | AB74: 48360000 | AC74: 44245 | AD74: 44249 | AE74: 44574 | AF74: 240 | AG74: 1 | AH74: 84 | AO74: X | AQ74: 0.8611111111
A75: 1 | B75: 312 | C75: 2021 | D75: FDLRUU-SASI-295-2021 | E75: https://community.secop.gov.co/Public/Tendering/OpportunityDetail/Index?noticeUID=CO1.NTC.2373812&isFromPublicArea=True&isModal=False | F75: Compraventa de bienes muebles | G75: Selección abreviada | H75: Subasta inversa | I75: ADQUIRIR BIENES PARA LA DOTACIÓN DE ESPACIOS FÍSICOS Y VIRTUALES DE LAS SEDES DE LAS IED QUE MANTENGAN COMO CENTRO EL JUEGO, EL ARTE, LA LITERATURA Y LA EXPLORACIÓN DEL MEDIO COMO ACTIVIDADES RECTORAS DE LA PRIMERA INFANCIA EN EL MARCO DEL PROYECTO DE INVERSIÓN 1640 | J75: Inversión | K75: Un Nuevo Contrato Social y Ambiental para la Bogotá del Siglo XXI | L75: 14 | M75: =IF(ISERROR(VLOOKUP(L75,Proposito_programa!$C$2:$E$59,2,FALSE))," ",VLOOKUP(L75,Proposito_programa!$C$2:$E$59,2,FALSE)) -> Formación integral: más y mejor tiempo en los colegios | N75: =IF(ISERROR(VLOOKUP(L75,Proposito_programa!$C$2:$E$59,3,FALSE))," ",VLOOKUP(L75,Proposito_programa!$C$2:$E$59,3,FALSE)) -> Propósito 1: Hacer un nuevo contrato social para incrementar la inclusión social, productiva y política | O75: 133011601140000001640 | P75: 3 | Q75: 830016004 | R75: REDCOMPUTO LTDA | S75: Persona Jurídica | W75: 666799000 | AA75: 666799000 | AB75: 0 | AC75: 44531 | AD75: 44550 | AE75: 44670 | AF75: 120 | AN75: X | AQ75: 0
A76: 1 | B76: 160 | C76: 2021 | D76: FDLRUU-CD-150-2021 | E76: https://community.secop.gov.co/Public/Tendering/OpportunityDetail/Index?noticeUID=CO1.NTC.1800149&isFromPublicArea=True&isModal=False | F76: Contratos de prestación de servicios profesionales y de apoyo a la gestión | G76: Contratación directa | H76: Prestación de servicios profesionales y de apoyo a la gestión, o para la ejecución de trabajos artísticos que sólo puedan encomendarse a determinadas personas naturales; | I76: EL CONTRATISTA SE OBLIGA CON EL FONDO DE DESARROLLO LOCAL DE RAFAEL URIBE URIBE A PRESTAR SUS SERVICIOS DE APOYO A LA GESTION LOCAL Y TERRITORIAL DE LOS TEMAS DE SEGURIDAD Y CONVIVENCIA CIUDADANA PARA LA ALCALDIA LOCAL DE RAFAEL URIBE URIBE | J76: Inversión | K76: Un Nuevo Contrato Social y Ambiental para la Bogotá del Siglo XXI | L76: 43 | M76: =IF(ISERROR(VLOOKUP(L76,Proposito_programa!$C$2:$E$59,2,FALSE))," ",VLOOKUP(L76,Proposito_programa!$C$2:$E$59,2,FALSE)) -> Cultura ciudadana para la confianza, la convivencia y la participación desde la vida cotidiana | N76: =IF(ISERROR(VLOOKUP(L76,Proposito_programa!$C$2:$E$59,3,FALSE))," ",VLOOKUP(L76,Proposito_programa!$C$2:$E$59,3,FALSE)) -> Propósito 3: Inspirar confianza y legitimidad para vivir sin miedo y ser epicentro de cultura ciudadana, paz y reconciliación | O76: 133011603430000001680 | P76: 1 | Q76: 79496051 | R76: RAFAEL GALVIS MONCADA | S76: Persona Natural | W76: 19800000 | Y76: 1 | Z76: 3080000 | AA76: 22880000 | AB76: 19726667 | AC76: 44256 | AD76: 44257 | AE76: 44574 | AF76: 270 | AG76: 1 | AH76: 42 | AO76: X | AQ76: 0.8621795017
A77: 1 | B77: 330 | C77: 2021 | D77: FDLRUU-CMA-311-2021 | E77: https://community.secop.gov.co/Public/Tendering/OpportunityDetail/Index?noticeUID=CO1.NTC.2436890&isFromPublicArea=True&isModal=False | F77: Interventoría | G77: Concurso de méritos | H77: No aplica | I77: REALIZAR LA INTERVENTORIA TECNICA, ADMINISTRATIVA, FINANCIERA, AMBIENTAL Y SST AL CONTRATO DE OBRA PUBLICA RESULTANTE DEL PROCESO DE LICITACION PUBLICA No. FDLRUU-LP-288-2021, CUYO OBJETO ES EJECUTAR A PRECIOS UNITARIOS FIJOS SIN FORMULA DE REAJUSTE LA CONSTRUCCIÓN DE PARQUES VECINALES Y DE BOLSILLO, EN LA LOCALIDAD DE RAFAEL URIBE URIBE, DE CONFORMIDAD CON LOS ESTUDIOS Y DISEÑOS, ANEXOS TECNICOS Y DEMÁS DOCUMENTOS QUE HACEN PARTE INTEGRAL DEL PROCESO... | J77: Inversión | K77: Un Nuevo Contrato Social y Ambiental para la Bogotá del Siglo XXI | L77: 33 | M77: =IF(ISERROR(VLOOKUP(L77,Proposito_programa!$C$2:$E$59,2,FALSE))," ",VLOOKUP(L77,Proposito_programa!$C$2:$E$59,2,FALSE)) -> Más árboles y más y mejor espacio público | N77: =IF(ISERROR(VLOOKUP(L77,Proposito_programa!$C$2:$E$59,3,FALSE))," ",VLOOKUP(L77,Proposito_programa!$C$2:$E$59,3,FALSE)) -> Propósito 2 : Cambiar Nuestros Hábitos de Vida para Reverdecer a Bogotá y Adaptarnos y Mitigar la Crisis Climática | O77: 133011602330000001670 | P77: 2 | Q77: 830028126 | R77: R&M CONSTRUCCIONES E INTERVENTORIAS S.A.S | S77: Persona Jurídica | W77: 118565081 | AA77: 118565081 | AB77: 0 | AC77: 44560 | AD77: CELEBRADO SIN INICIAR | AE77: CELEBRADO SIN INICIAR | AF77: 150 | AM77: X | AQ77: 0
A78: 1 | B78: 241 | C78: 2021 | D78: FDLRUU-CD-241-2021 | E78: https://community.secop.gov.co/Public/Tendering/OpportunityDetail/Index?noticeUID=CO1.NTC.2104616&isFromPublicArea=True&isModal=False | F78: Convenios de cooperacion | G78: Régimen especial | H78: Decreto 92 de 2017 | I78: Aunar esfuerzos para la cooperación administrativa, técnica y económica, entre el Programa para las Naciones Unidas para el Desarrollo (PNUD) y la Alcaldía Local de Rafael Uribe Uribe, con el fin de implementar estrategias que promuevan el fortalecimiento a los emprendimientos de la economía popular de la localidad de Rafael Uribe Uribe y las unidades productivas familiares y/o poblaciones dedicadas a actividades tradicionales que permiten generar ingresos (autoempleo), y el Fortalecimiento de MiPymes locales, a través de un proceso de acompañamiento especializado que permita el mejoramiento de las competencias de los empresarios y las condiciones de sus negocios y de esta forma aportar de forma significativa al cumplimiento de la agenda de reactivación económica en la Localidad, para el desarrollo de la 1. Ruta emprendimiento 2. Fortalecimiento empresarial por el FDL Rafael Uribe Uribe | J78: Inversión | K78: Un Nuevo Contrato Social y Ambiental para la Bogotá del Siglo XXI | L78: 6 | M78: =IF(ISERROR(VLOOKUP(L78,Proposito_programa!$C$2:$E$59,2,FALSE))," ",VLOOKUP(L78,Proposito_programa!$C$2:$E$59,2,FALSE)) -> Sistema Distrital de Cuidado | N78: =IF(ISERROR(VLOOKUP(L78,Proposito_programa!$C$2:$E$59,3,FALSE))," ",VLOOKUP(L78,Proposito_programa!$C$2:$E$59,3,FALSE)) -> Propósito 1: Hacer un nuevo contrato social para incrementar la inclusión social, productiva y política | O78: 133011601060000001653 | P78: 1 | Q78: 800091076 | R78: PROGRAMA DE LAS NACIONES UNIDAS PARA EL DESARROLLO- PNUD | S78: Persona Jurídica | W78: 3512931735 | AA78: 3512931735 | AB78: 2810345388 | AC78: 44392 | AD78: 44400 | AE78: 44926 | AF78: 523 | AN78: X | AQ78: =IF(ISERROR(AB78/AA78),"-",(AB78/AA78)) -> 0.8
A79: 1 | B79: 323 | C79: 2021 | D79: FDLRUU-SASI-307-2021 | E79: https://community.secop.gov.co/Public/Tendering/OpportunityDetail/Index?noticeUID=CO1.NTC.2443540&isFromPublicArea=True&isModal=False | F79: Compraventa de bienes muebles | G79: Selección abreviada | H79: Subasta inversa | I79: ADQUIRIR ELEMENTOS DE DOTACIÓN PARA JARDINES INFANTILES DE LA SECRETARÍA DISTRITAL DE INTEGRACIÓN SOCIAL QUE OPERAN EN LA LOCALIDAD DE RAFAEL URIBE URIBE DEL PROYECTO DE INVERSIÓN 1656 | J79: Inversión | K79: Un Nuevo Contrato Social y Ambiental para la Bogotá del Siglo XXI | L79: 6 | M79: =IF(ISERROR(VLOOKUP(L79,Proposito_programa!$C$2:$E$59,2,FALSE))," ",VLOOKUP(L79,Proposito_programa!$C$2:$E$59,2,FALSE)) -> Sistema Distrital de Cuidado | N79: =IF(ISERROR(VLOOKUP(L79,Proposito_programa!$C$2:$E$59,3,FALSE))," ",VLOOKUP(L79,Proposito_programa!$C$2:$E$59,3,FALSE)) -> Propósito 1: Hacer un nuevo contrato social para incrementar la inclusión social, productiva y política | O79: 133011601060000001656 | P79: 3 | Q79: 800045606 | R79: PRODUCTORA Y COMERCIALIZADORA CELMAX LTDA | S79: Persona Jurídica | W79: 345218700 | AA79: 345218700 | AB79: 0 | AC79: 44559 | AD79: CELEBRADO SIN INICIAR | AE79: CELEBRADO SIN INICIAR | AF79: 90 | AM79: X | AQ79: 0
C80: 2021 | F80: Otros gastos | G80: Otros gastos | H80: Otros gastos | I80: PAGO DE LA PLANILLA INTEGRADA DE AUTOLIQUIDACIÓN DE APORTES DEL MES DE JUNIO DE 2021, DE LOS CONTRATISTAS DE PRESTACIÓN DE SERVICIOS CLASIFICADOS EN RIESGO V DE ARL VINCULADOS A LA ALCALDÍA LOCAL DE RAFAEL URIBE URIBE, CON CONTRATOS SUPERIORES A UN MES | J80: Inversión | K80: Un Nuevo Contrato Social y Ambiental para la Bogotá del Siglo XXI | L80: 43 | M80: =IF(ISERROR(VLOOKUP(L80,Proposito_programa!$C$2:$E$59,2,FALSE))," ",VLOOKUP(L80,Proposito_programa!$C$2:$E$59,2,FALSE)) -> Cultura ciudadana para la confianza, la convivencia y la participación desde la vida cotidiana | N80: =IF(ISERROR(VLOOKUP(L80,Proposito_programa!$C$2:$E$59,3,FALSE))," ",VLOOKUP(L80,Proposito_programa!$C$2:$E$59,3,FALSE)) -> Propósito 3: Inspirar confianza y legitimidad para vivir sin miedo y ser epicentro de cultura ciudadana, paz y reconciliación | O80: 133011603430000001680 | Q80: 860011153 | R80: POSITIVA COMPAÑIA DE SEGUROS SA | S80: Persona Jurídica | W80: 14242500 | AA80: 14242500 | AB80: 14242500 | AC80: 44197 | AD80: 44197 | AE80: 44561 | AF80: 360 | AO80: X | AQ80: 1
C81: 2021 | F81: Otros gastos | G81: Otros gastos | H81: Otros gastos | I81: PAGO DE LA PLANILLA INTEGRADA DE AUTOLIQUIDACIÓN DE APORTES DEL MES DE JUNIO DE 2021, DE LOS CONTRATISTAS DE PRESTACIÓN DE SERVICIOS CLASIFICADOS EN RIESGO V DE ARL VINCULADOS A LA ALCALDÍA LOCAL DE RAFAEL URIBE URIBE, CON CONTRATOS SUPERIORES A UN MES | J81: Inversión | K81: Un Nuevo Contrato Social y Ambiental para la Bogotá del Siglo XXI | L81: 57 | M81: Cultura ciudadana para la confianza, la convivencia y la participación desde la vida cotidiana | N81: =IF(ISERROR(VLOOKUP(L81,Proposito_programa!$C$2:$E$59,3,FALSE))," ",VLOOKUP(L81,Proposito_programa!$C$2:$E$59,3,FALSE)) -> Propósito 5: Construir Bogotá - Región con gobierno abierto, transparente y ciudadanía consciente | O81: 133011605570000001697 | Q81: 860011153 | R81: POSITIVA COMPAÑIA DE SEGUROS SA | S81: Persona Jurídica | W81: 5144100 | AA81: =+W81+X81+Z81 -> 5144100 | AB81: 5144100 | AC81: 44197 | AD81: 44197 | AE81: 44561 | AF81: 360 | AO81: X | AQ81: 1
A82: 1 | B82: 284 | C82: 2019 | D82: CS-284-2019 | E82: https://community.secop.gov.co/Public/Tendering/OpportunityDetail/Index?noticeUID=CO1.NTC.932059&isFromPublicArea=True&isModal=False | F82: Seguros | G82: Selección abreviada | H82: Selección abreviada por menor cuantía | I82: CONTRATAR LOS SEGUROS QUE AMPAREN LOS INTERESES PATRIMONIALES ACTUALES Y FUTUROS, ASÍ COMO LOS BIENES DE PROPIEDAD DE LA FONDO DE DESARROLLO LOCAL DE RAFAEL URIBE URIBE, QUE ESTÉN BAJO SU RESPONSABILIDAD Y CUSTODIA Y AQUELLOS QUE SEAN ADQUIRIDOS PARA DESARROLLAR LAS FUNCIONES INHERENTES A SU ACTIVIDAD Y CUALQUIER OTRA PÓLIZA DE SEGUROS QUE REQUIERA LA ENTIDAD EN EL DESARROLLO DE SU ACTIVIDAD”GRUPO 3. | J82: Funcionamiento | K82: Un Nuevo Contrato Social y Ambiental para la Bogotá del Siglo XXI | L82: No aplica | M82: =IF(ISERROR(VLOOKUP(L82,Proposito_programa!$C$2:$E$59,2,FALSE))," ",VLOOKUP(L82,Proposito_programa!$C$2:$E$59,2,FALSE)) ->  | N82: =IF(ISERROR(VLOOKUP(L82,Proposito_programa!$C$2:$E$59,3,FALSE))," ",VLOOKUP(L82,Proposito_programa!$C$2:$E$59,3,FALSE)) ->  | O82: 131020202020105 | P82: 1 | Q82: 860011153 | R82: POSITIVA COMPAÑIA DE SEGUROS S.A. | S82: Persona Jurídica | Y82: 2 | Z82: 6968406 | AA82: 6968406 | AB82: 6968406 | AC82: 44404 | AD82: 44404 | AE82: 44612 | AF82: 858 | AG82: 2 | AH82: 244 | AN82: X | AQ82: 1
A83: 1 | B83: 67 | C83: 2021 | D83: FDLRUU-CD-067-2021 | E83: https://community.secop.gov.co/Public/Tendering/OpportunityDetail/Index?noticeUID=CO1.NTC.1743792&isFromPublicArea=True&isModal=False | F83: Contratos de prestación de servicios profesionales y de apoyo a la gestión | G83: Contratación directa | H83: Prestación de servicios profesionales y de apoyo a la gestión, o para la ejecución de trabajos artísticos que sólo puedan encomendarse a determinadas personas naturales; | I83: PRESTAR LOS SERVICIOS PROFESIONALES EN EL APOYO A LOS TRÁMITES Y PROCEDIMIENTOS ADELANTADOS EN EL ÁREA DE GESTIÓN DE DESARROLLO LOCAL - CONTABILIDAD- DEL FONDO DE DESARROLLO LOCAL DE RAFAEL URIBE URIBE | J83: Inversión | K83: Un Nuevo Contrato Social y Ambiental para la Bogotá del Siglo XXI | L83: 57 | M83: =IF(ISERROR(VLOOKUP(L83,Proposito_programa!$C$2:$E$59,2,FALSE))," ",VLOOKUP(L83,Proposito_programa!$C$2:$E$59,2,FALSE)) -> Gestión pública local | N83: =IF(ISERROR(VLOOKUP(L83,Proposito_programa!$C$2:$E$59,3,FALSE))," ",VLOOKUP(L83,Proposito_programa!$C$2:$E$59,3,FALSE)) -> Propósito 5: Construir Bogotá - Región con gobierno abierto, transparente y ciudadanía consciente | O83: 133011605570000001697 | P83: 1 | Q83: 52207882 | R83: PILAR JASBLEIDY CASTELLANOS ROJAS | S83: Persona Natural | W83: 52000000 | AA83: 52000000 | AB83: 50266667 | AC83: 44236 | AD83: 44238 | AE83: 44540 | AF83: 300 | AO83: X | AQ83: 0.9666666731
A84: 1 | B84: 68 | C84: 2021 | D84: FDLRUU-CD-068-2021 | E84: https://community.secop.gov.co/Public/Tendering/OpportunityDetail/Index?noticeUID=CO1.NTC.1751240&isFromPublicArea=True&isModal=False | F84: Contratos de prestación de servicios profesionales y de apoyo a la gestión | G84: Contratación directa | H84: Prestación de servicios profesionales y de apoyo a la gestión, o para la ejecución de trabajos artísticos que sólo puedan encomendarse a determinadas personas naturales; | I84: APOYAR JURÍDICAMENTE LA EJECUCIÓN DE LAS ACCIONES REQUERIDAS PARA LA DEPURACIÓN DE LAS ACTUACIONES ADMINISTRATIVAS QUE CURSAN EN LA ALCALDÍA LOCAL | J84: Inversión | K84: Un Nuevo Contrato Social y Ambiental para la Bogotá del Siglo XXI | L84: 57 | M84: =IF(ISERROR(VLOOKUP(L84,Proposito_programa!$C$2:$E$59,2,FALSE))," ",VLOOKUP(L84,Proposito_programa!$C$2:$E$59,2,FALSE)) -> Gestión pública local | N84: =IF(ISERROR(VLOOKUP(L84,Proposito_programa!$C$2:$E$59,3,FALSE))," ",VLOOKUP(L84,Proposito_programa!$C$2:$E$59,3,FALSE)) -> Propósito 5: Construir Bogotá - Región con gobierno abierto, transparente y ciudadanía consciente | O84: 133011605570000001698 | P84: 1 | Q84: 19339805 | R84: PEDRO LUIS MORENO CABALLERO | S84: Persona Natural | W84: 31200000 | AA84: 31200000 | AB84: 31200000 | AC84: 44237 | AD84: 44242 | AE84: 44422 | AF84: 180 | AO84: X | AQ84: 1
A85: 1 | B85: 73845 | C85: 2021 | D85: OC-73845 | E85: https://colombiacompra.gov.co/tienda-virtual-del-estado-colombiano/ordenes-compra/73845 | F85: Compraventa de bienes muebles | G85: Selección abreviada | H85: Acuerdo marco de precios | I85: ELEMENTOS DE BIOSEGURIDAD PARA EL MANEJO DE LA EMERGENCIA SANITARIA, SOCIAL y ECOLOGICA PRODUCTO DEL COVID19 ALCALDIA LOCAL RAFAEL URIBE URIBE | J85: Funcionamiento | K85: Un Nuevo Contrato Social y Ambiental para la Bogotá del Siglo XXI | L85: No aplica | M85: =IF(ISERROR(VLOOKUP(L85,Proposito_programa!$C$2:$E$59,2,FALSE))," ",VLOOKUP(L85,Proposito_programa!$C$2:$E$59,2,FALSE)) ->  | N85: =IF(ISERROR(VLOOKUP(L85,Proposito_programa!$C$2:$E$59,3,FALSE))," ",VLOOKUP(L85,Proposito_programa!$C$2:$E$59,3,FALSE)) ->  | O85: 13102020208 | P85: 1 | Q85: 900671732 | R85: PANORAMMA DISEÑO DE SOLUCIONES SAS | S85: Persona Jurídica | W85: 383825 | AA85: 383825 | AB85: 383825 | AC85: 44413 | AD85: 44414 | AE85: 44444 | AF85: 30 | AO85: X | AQ85: 1
A86: 1 | B86: 82982 | C86: 2021 | D86: OC-82982 | E86: https://colombiacompra.gov.co/tienda-virtual-del-estado-colombiano/ordenes-compra/82982 | F86: Compraventa de bienes muebles | G86: Selección abreviada | H86: Acuerdo marco de precios | I86: ADQUISICION DE BANDERAS PARA LA ALCALDÍA LOCAL DE RAFAEL URIBE URIBE | J86: Funcionamiento | K86: Un Nuevo Contrato Social y Ambiental para la Bogotá del Siglo XXI | L86: No aplica | M86: =IF(ISERROR(VLOOKUP(L86,Proposito_programa!$C$2:$E$59,2,FALSE))," ",VLOOKUP(L86,Proposito_programa!$C$2:$E$59,2,FALSE)) ->  | N86: =IF(ISERROR(VLOOKUP(L86,Proposito_programa!$C$2:$E$59,3,FALSE))," ",VLOOKUP(L86,Proposito_programa!$C$2:$E$59,3,FALSE)) ->  | O86: 1310202010105 | P86: 1 | Q86: 830037946 | R86: PANAMERICANA LIBRERÍA Y PAPELERÍA S.A. | S86: Persona Jurídica | W86: 1914115 | AA86: 1914115 | AB86: 0 | AC86: 44547 | AD86: 44547 | AE86: 44612 | AF86: 64 | AN86: X | AQ86: 0
A87: 1 | B87: 74071 | C87: 2021 | D87: OC-74071 | E87: https://colombiacompra.gov.co/tienda-virtual-del-estado-colombiano/ordenes-compra/74071 | F87: Compraventa de bienes muebles | G87: Selección abreviada | H87: Acuerdo marco de precios | I87: CONTRATAR LA ADQUISICION DE LICENCIAS ADOBE CREATIVE CLOUD PARA LA ALCALDÍA LOCAL DE RAFAEL URIBE URIBE | J87: Inversión | K87: Un Nuevo Contrato Social y Ambiental para la Bogotá del Siglo XXI | L87: 57 | M87: =IF(ISERROR(VLOOKUP(L87,Proposito_programa!$C$2:$E$59,2,FALSE))," ",VLOOKUP(L87,Proposito_programa!$C$2:$E$59,2,FALSE)) -> Gestión pública local | N87: =IF(ISERROR(VLOOKUP(L87,Proposito_programa!$C$2:$E$59,3,FALSE))," ",VLOOKUP(L87,Proposito_programa!$C$2:$E$59,3,FALSE)) -> Propósito 5: Construir Bogotá - Región con gobierno abierto, transparente y ciudadanía consciente | O87: 133011605570000001697 | P87: 1 | Q87: 830037946 | R87: PANAMERICANA LIBRERÍA Y PAPELERÍA S.A | S87: Persona Jurídica | W87: 9337056 | AA87: 9337056 | AB87: 9337056 | AC87: 44418 | AD87: 44418 | AE87: 44438 | AF87: 20 | AO87: X | AQ87: 1
A88: 1 | B88: 74072 | C88: 2021 | D88: OC-74072 | E88: https://colombiacompra.gov.co/tienda-virtual-del-estado-colombiano/ordenes-compra/74072 | F88: Compraventa de bienes muebles | G88: Selección abreviada | H88: Acuerdo marco de precios | I88: ADQUISICIÓN DE ELEMENTOS Y/O ARTÍCULOS DE PAPELERÍA Y OFICINA PARA EL FONDO DE DESARROLLO LOCAL DE RAFAEL URIBE URIBE” | J88: Funcionamiento | K88: Un Nuevo Contrato Social y Ambiental para la Bogotá del Siglo XXI | L88: No aplica | M88: =IF(ISERROR(VLOOKUP(L88,Proposito_programa!$C$2:$E$59,2,FALSE))," ",VLOOKUP(L88,Proposito_programa!$C$2:$E$59,2,FALSE)) ->  | N88: =IF(ISERROR(VLOOKUP(L88,Proposito_programa!$C$2:$E$59,3,FALSE))," ",VLOOKUP(L88,Proposito_programa!$C$2:$E$59,3,FALSE)) ->  | O88: 1310201010105 - 1310202010206 | P88: 1 | Q88: 830037946 | R88: PANAMERICANA LIBRERÍA Y PAPELERÍA S.A | S88: Persona Jurídica | W88: 7380280 | AA88: 7380280 | AB88: 7380280 | AC88: 44418 | AD88: 44418 | AE88: 44438 | AF88: 20 | AO88: X | AQ88: 1
C89: 2021 | F89: Otros gastos | G89: Otros gastos | H89: Otros gastos | I89: PAGO DE HONORARIOS DE LOS EDILES DE LA LOCALIDAD DE RAFAEL URIBE URIBE | J89: Funcionamiento | K89: Un Nuevo Contrato Social y Ambiental para la Bogotá del Siglo XXI | L89: No aplica | M89: =IF(ISERROR(VLOOKUP(L89,Proposito_programa!$C$2:$E$59,2,FALSE))," ",VLOOKUP(L89,Proposito_programa!$C$2:$E$59,2,FALSE)) ->  | N89: =IF(ISERROR(VLOOKUP(L89,Proposito_programa!$C$2:$E$59,3,FALSE))," ",VLOOKUP(L89,Proposito_programa!$C$2:$E$59,3,FALSE)) ->  | O89: 13101040102 | R89: PAGO DE HONORARIOS DE LOS EDILES DE LA LOCALIDAD DE RAFAEL URIBE URIBE | W89: 1044450000 | AA89: 1044450000 | AB89: 971603154 | AC89: 44197 | AD89: 44197 | AE89: 44561 | AF89: 360 | AO89: X | AQ89: 0.9302533908
A90: 1 | B90: 9 | C90: 2021 | D90: FDLRUU-CD-009-2021 | E90: https://community.secop.gov.co/Public/Tendering/OpportunityDetail/Index?noticeUID=CO1.NTC.1689387&isFromPublicArea=True&isModal=False | F90: Contratos de prestación de servicios profesionales y de apoyo a la gestión | G90: Contratación directa | H90: Prestación de servicios profesionales y de apoyo a la gestión, o para la ejecución de trabajos artísticos que sólo puedan encomendarse a determinadas personas naturales; | I90: APOYAR TÉCNICAMENTE LAS DISTINTAS ETAPAS DE LOS PROCESOS DE COMPETENCIA DE LAS INSPECCIONES DE POLICÍA DE LA LOCALIDAD, SEGÚN REPARTO. | J90: Inversión | K90: Un Nuevo Contrato Social y Ambiental para la Bogotá del Siglo XXI | L90: 57 | M90: =IF(ISERROR(VLOOKUP(L90,Proposito_programa!$C$2:$E$59,2,FALSE))," ",VLOOKUP(L90,Proposito_programa!$C$2:$E$59,2,FALSE)) -> Gestión pública local | N90: =IF(ISERROR(VLOOKUP(L90,Proposito_programa!$C$2:$E$59,3,FALSE))," ",VLOOKUP(L90,Proposito_programa!$C$2:$E$59,3,FALSE)) -> Propósito 5: Construir Bogotá - Región con gobierno abierto, transparente y ciudadanía consciente | O90: 133011605570000001698 | P90: 1 | Q90: 1032456151 | R90: OSCAR JAVIER OVALLE RIVERA | S90: Persona Natural | W90: 31200000 | Y90: 1 | Z90: 15600000 | AA90: 46800000 | AB90: 46800000 | AC90: 44221 | AD90: 44225 | AE90: 44497 | AF90: 180 | AG90: 1 | AH90: 90 | AO90: X | AQ90: 1
A91: 1 | B91: 126 | C91: 2021 | D91: FDLRUU-CD-126-2021 | E91: https://community.secop.gov.co/Public/Tendering/OpportunityDetail/Index?noticeUID=CO1.NTC.1783718&isFromPublicArea=True&isModal=False | F91: Contratos de prestación de servicios profesionales y de apoyo a la gestión | G91: Contratación directa | H91: Prestación de servicios profesionales y de apoyo a la gestión, o para la ejecución de trabajos artísticos que sólo puedan encomendarse a determinadas personas naturales; | I91: PRESTAR SUS SERVICIOS PROFESIONALES PARA LA IMPLEMENTACIÓN DE LAS ACCIONES Y LINEAMIENTOS TÉCNICOS SURTIDOS DEL PROGRAMA DE GESTIÓN DOCUMENTAL Y DEMÁS INSTRUMENTOS TÉCNICOS ARCHIVÍSTICOS | J91: Inversión | K91: Un Nuevo Contrato Social y Ambiental para la Bogotá del Siglo XXI | L91: 57 | M91: =IF(ISERROR(VLOOKUP(L91,Proposito_programa!$C$2:$E$59,2,FALSE))," ",VLOOKUP(L91,Proposito_programa!$C$2:$E$59,2,FALSE)) -> Gestión pública local | N91: =IF(ISERROR(VLOOKUP(L91,Proposito_programa!$C$2:$E$59,3,FALSE))," ",VLOOKUP(L91,Proposito_programa!$C$2:$E$59,3,FALSE)) -> Propósito 5: Construir Bogotá - Región con gobierno abierto, transparente y ciudadanía consciente | O91: 133011605570000001697 | P91: 1 | Q91: 1033742425 | R91: OSCAR FABIÁN LÓPEZ CAMACHO | S91: Persona Natural | W91: 43000000 | AA91: 43000000 | AB91: 39560000 | AC91: 44249 | AD91: 44252 | AE91: 44554 | AF91: 300 | AO91: X | AQ91: 0.92
A92: 1 | B92: 219 | C92: 2021 | D92: FDLRUU-CD-219-2021 | E92: https://community.secop.gov.co/Public/Tendering/OpportunityDetail/Index?noticeUID=CO1.NTC.1972508&isFromPublicArea=True&isModal=False | F92: Contratos de prestación de servicios profesionales y de apoyo a la gestión | G92: Contratación directa | H92: Prestación de servicios profesionales y de apoyo a la gestión, o para la ejecución de trabajos artísticos que sólo puedan encomendarse a determinadas personas naturales; | I92: APOYAR TÉCNICAMENTE LAS DISTINTAS ETAPAS DE LOS PROCESOS DE COMPETENCIA DE LA ALCALDÍA LOCAL PARA LA DEPURACIÓN DE LAS ACTUACIONES ADMINISTRATIVAS | J92: Inversión | K92: Un Nuevo Contrato Social y Ambiental para la Bogotá del Siglo XXI | L92: 57 | M92: =IF(ISERROR(VLOOKUP(L92,Proposito_programa!$C$2:$E$59,2,FALSE))," ",VLOOKUP(L92,Proposito_programa!$C$2:$E$59,2,FALSE)) -> Gestión pública local | N92: =IF(ISERROR(VLOOKUP(L92,Proposito_programa!$C$2:$E$59,3,FALSE))," ",VLOOKUP(L92,Proposito_programa!$C$2:$E$59,3,FALSE)) -> Propósito 5: Construir Bogotá - Región con gobierno abierto, transparente y ciudadanía consciente | O92: 133011605570000001698 | P92: 1 | Q92: 80202017 | R92: OSCAR ARBEY ORTIZ DIAZ | S92: Persona Natural | W92: 31200000 | Y92: 1 | Z92: 5720000 | AA92: 36920000 | AB92: 28080000 | AC92: 44329 | AD92: 44335 | AE92: 44561 | AF92: 180 | AG92: 1 | AH92: 33 | AO92: X | AQ92: 0.7605633803
A93: 1 | B93: 244 | C93: 2021 | D93: FDLRUU-CD-244-2021. | E93: https://community.secop.gov.co/Public/Tendering/OpportunityDetail/Index?noticeUID=CO1.NTC.2143725&isFromPublicArea=True&isModal=False | F93: Contratos interadministrativos | G93: Contratación directa | H93: Contratos interadministrativos | I93: AUNAR ESFUERZOS TÉCNICOS, ADMINISTRATIVOS Y LOGÍSTICOS ENTRE LA ALCALDÍA LOCAL DE RAFAEL URIBE URIBE Y LA ORQUESTA FILARMÓNICA DE BOGOTÁ PARA LA CONTINUIDAD Y DESARROLLO DEL CENTRO FILARMÓNICO LOCAL, COMO UN ESPACIO PARA EL PROCESO DE FORMACIÓN MUSICAL IMPLEMENTADO POR LA ORQUESTA Y DIRIGIDO A LA LOCALIDAD | J93: Funcionamiento | K93: Un Nuevo Contrato Social y Ambiental para la Bogotá del Siglo XXI | L93: No aplica | M93: =IF(ISERROR(VLOOKUP(L93,Proposito_programa!$C$2:$E$59,2,FALSE))," ",VLOOKUP(L93,Proposito_programa!$C$2:$E$59,2,FALSE)) ->  | N93: =IF(ISERROR(VLOOKUP(L93,Proposito_programa!$C$2:$E$59,3,FALSE))," ",VLOOKUP(L93,Proposito_programa!$C$2:$E$59,3,FALSE)) ->  | O93: N/A | P93: 1 | Q93: 899999282 | R93: ORQUESTA FILARMONICA DE BOGOTA | S93: Persona Jurídica | W93: 0 | AA93: 0 | AB93: - | AC93: 44410 | AD93: 44411 | AE93: 44865 | AF93: 177 | AG93: 1 | AH93: 301 | AN93: X | AQ93: -
A94: 1 | B94: 87 | C94: 2021 | D94: FDLRUU-CD-087-2021 | E94: https://community.secop.gov.co/Public/Tendering/OpportunityDetail/Index?noticeUID=CO1.NTC.1757556&isFromPublicArea=True&isModal=False | F94: Contratos de prestación de servicios profesionales y de apoyo a la gestión | G94: Contratación directa | H94: Prestación de servicios profesionales y de apoyo a la gestión, o para la ejecución de trabajos artísticos que sólo puedan encomendarse a determinadas personas naturales; | I94: APOYAR TÉCNICAMENTE LAS DISTINTAS ETAPAS DE LOS PROCESOS DE COMPETENCIA DE LA ALCALDÍA LOCAL PARA LA DEPURACIÓN DE LAS ACTUACIONES ADMINISTRATIVAS | J94: Inversión | K94: Un Nuevo Contrato Social y Ambiental para la Bogotá del Siglo XXI | L94: 57 | M94: =IF(ISERROR(VLOOKUP(L94,Proposito_programa!$C$2:$E$59,2,FALSE))," ",VLOOKUP(L94,Proposito_programa!$C$2:$E$59,2,FALSE)) -> Gestión pública local | N94: =IF(ISERROR(VLOOKUP(L94,Proposito_programa!$C$2:$E$59,3,FALSE))," ",VLOOKUP(L94,Proposito_programa!$C$2:$E$59,3,FALSE)) -> Propósito 5: Construir Bogotá - Región con gobierno abierto, transparente y ciudadanía consciente | O94: 133011605570000001698 | P94: 1 | Q94: 19410967 | R94: ORLANDO MERCHAN BARRETO | S94: Persona Natural | W94: 31200000 | Y94: 1 | Z94: 15600000 | AA94: 46800000 | AB94: 46800000 | AC94: 44238 | AD94: 44242 | AE94: 44514 | AF94: 180 | AG94: 1 | AH94: 90 | AO94: X | AQ94: 1
A95: 1 | B95: 242 | C95: 2021 | D95: FDLRUU-CD-242-2021 | E95: https://community.secop.gov.co/Public/Tendering/OpportunityDetail/Index?noticeUID=CO1.NTC.2104961&isFromPublicArea=True&isModal=False | F95: Convenios de cooperacion | G95: Régimen especial | H95: Decreto 92 de 2017 | I95: AUNAR ESFUERZOS, TÉCNICOS, ADMINISTRATIVOS, JURÍDICOS Y FINANCIEROS PARA FOMENTAR UNA VIDA LIBRE DE VIOLENCIA PARA LAS MUJERES Y PARA IMPLEMENTAR UNA ESTRATEGIA DE CUIDADO A CUIDADORAS Y CUIDADORES RESIDENTES EN LA LOCALIDAD DE RAFAEL URIBE URIBE” EN EL MARCO DEL PROYECTO 1657 Y 1679. | J95: Inversión | K95: Un Nuevo Contrato Social y Ambiental para la Bogotá del Siglo XXI | L95: 6 | M95: =IF(ISERROR(VLOOKUP(L95,Proposito_programa!$C$2:$E$59,2,FALSE))," ",VLOOKUP(L95,Proposito_programa!$C$2:$E$59,2,FALSE)) -> Sistema Distrital de Cuidado | N95: =IF(ISERROR(VLOOKUP(L95,Proposito_programa!$C$2:$E$59,3,FALSE))," ",VLOOKUP(L95,Proposito_programa!$C$2:$E$59,3,FALSE)) -> Propósito 1: Hacer un nuevo contrato social para incrementar la inclusión social, productiva y política | O95: 133011601060000001657 | P95: 1 | Q95: 860403137 | R95: ORGANIZACION DE ESTADOS IBEROAMERICANOS-OEI (MUJERES) | S95: Persona Jurídica | W95: 617666000 | AA95: =+W95+X95+Z95 -> 617666000 | AB95: 247066400 | AC95: 44393 | AD95: 44406 | AE95: 44621 | AF95: 210 | AN95: X | AQ95: 0.4
A96: 0 | B96: 242 | C96: 2021 | D96: FDLRUU-CD-242-2021 | E96: https://community.secop.gov.co/Public/Tendering/OpportunityDetail/Index?noticeUID=CO1.NTC.2104961&isFromPublicArea=True&isModal=False | F96: Convenios de cooperacion | G96: Régimen especial | H96: Decreto 92 de 2017 | I96: AUNAR ESFUERZOS, TÉCNICOS, ADMINISTRATIVOS, JURÍDICOS Y FINANCIEROS PARA FOMENTAR UNA VIDA LIBRE DE VIOLENCIA PARA LAS MUJERES Y PARA IMPLEMENTAR UNA ESTRATEGIA DE CUIDADO A CUIDADORAS Y CUIDADORES RESIDENTES EN LA LOCALIDAD DE RAFAEL URIBE URIBE” EN EL MARCO DEL PROYECTO 1657 Y 1679. | J96: Inversión | K96: Un Nuevo Contrato Social y Ambiental para la Bogotá del Siglo XXI | L96: 40 | M96: =IF(ISERROR(VLOOKUP(L96,Proposito_programa!$C$2:$E$59,2,FALSE))," ",VLOOKUP(L96,Proposito_programa!$C$2:$E$59,2,FALSE)) -> Más mujeres viven una vida libre de violencias, se sienten seguras y acceden con confianza al sistema de justicia | N96: =IF(ISERROR(VLOOKUP(L96,Proposito_programa!$C$2:$E$59,3,FALSE))," ",VLOOKUP(L96,Proposito_programa!$C$2:$E$59,3,FALSE)) -> Propósito 3: Inspirar confianza y legitimidad para vivir sin miedo y ser epicentro de cultura ciudadana, paz y reconciliación | O96: 133011603400000001679 | P96: 1 | Q96: 860403137 | R96: ORGANIZACION DE ESTADOS IBEROAMERICANOS-OEI (MUJERES) | S96: Persona Jurídica | W96: 1010227000 | AA96: 1010227000 | AB96: 404090800 | AC96: 44393 | AD96: 44406 | AE96: 44621 | AF96: 210 | AN96: X | AQ96: 0.4
A97: 1 | B97: 243 | C97: 2021 | D97: FDLRUU-CD-243-2021 | E97: https://community.secop.gov.co/Public/Tendering/OpportunityDetail/Index?noticeUID=CO1.NTC.2126144&isFromPublicArea=True&isModal=False | F97: Convenios de cooperacion | G97: Régimen especial | H97: Decreto 92 de 2017 | I97: AUNAR ESFUERZOS TECNICOS ADMINISTRATIVOS, JURIDICOS Y FINANCIEROS PARA CREAR ENTORNOS DE RECONCILIACIÓN, Y DE MEJORAMIENTO DE LA CALIDAD DE VIDA DE LAS VICTIMAS DEL CONFLICTO Y EXCOMBATIENTES RESIDENTES EN LA LOCALIDAD DE RAFAEL URIBE URIBE | J97: Inversión | K97: Un Nuevo Contrato Social y Ambiental para la Bogotá del Siglo XXI | L97: 39 | M97: =IF(ISERROR(VLOOKUP(L97,Proposito_programa!$C$2:$E$59,2,FALSE))," ",VLOOKUP(L97,Proposito_programa!$C$2:$E$59,2,FALSE)) -> Bogotá territorio de paz y atención integral a las víctimas del conflicto armado | N97: =IF(ISERROR(VLOOKUP(L97,Proposito_programa!$C$2:$E$59,3,FALSE))," ",VLOOKUP(L97,Proposito_programa!$C$2:$E$59,3,FALSE)) -> Propósito 3: Inspirar confianza y legitimidad para vivir sin miedo y ser epicentro de cultura ciudadana, paz y reconciliación | O97: 133011603390000001678 | P97: 1 | Q97: 860403137 | R97: ORGANIZACION DE ESTADOS IBEROAMERICANOS -OEI (VICTIMAS) | S97: Persona Jurídica | W97: 358968000 | AA97: 358968000 | AB97: 251277600 | AC97: 44403 | AD97: 44406 | AE97: 44620 | AF97: 210 | AN97: X | AQ97: 0.7
A98: 1 | B98: 227 | C98: 2021 | D98: FDLRUU-CD-227-2021 | E98: https://community.secop.gov.co/Public/Tendering/OpportunityDetail/Index?noticeUID=CO1.NTC.2016792&isFromPublicArea=True&isModal=False | F98: Convenios de cooperacion | G98: Régimen especial | H98: Decreto 92 de 2017 | I98: AUNAR ESFUERZOS PARA DISEÑAR E IMPLEMENTAR ESTRATEGIAS INNOVADORAS Y TRANSFERENCIA DE CONOCIMIENTO PARA PROMOVER EL FORTALECIMIENTO DE LA CONFIANZA CIUDADANA, LA CONVIVENCIA SOCIAL Y LA JUSTICIA LOCAL EN LA LOCALIDAD RAFAEL URIBE URIBE EN EL MARCO DEL PLAN DE DESARROLLO LOCAL 2021- 2024 “UN NUEVO CONTRATO SOCIAL Y AMBIENTAL PARA LA LOCALIDAD DE RAFAEL URIBE URIBE”. EN EL MARCO DEL PROYECTO DE INVERSION 1680 Y 1682. | J98: Inversión | K98: Un Nuevo Contrato Social y Ambiental para la Bogotá del Siglo XXI | L98: 43 | M98: =IF(ISERROR(VLOOKUP(L98,Proposito_programa!$C$2:$E$59,2,FALSE))," ",VLOOKUP(L98,Proposito_programa!$C$2:$E$59,2,FALSE)) -> Cultura ciudadana para la confianza, la convivencia y la participación desde la vida cotidiana | N98: =IF(ISERROR(VLOOKUP(L98,Proposito_programa!$C$2:$E$59,3,FALSE))," ",VLOOKUP(L98,Proposito_programa!$C$2:$E$59,3,FALSE)) -> Propósito 3: Inspirar confianza y legitimidad para vivir sin miedo y ser epicentro de cultura ciudadana, paz y reconciliación | O98: 133011603430000001680 | P98: 1 | Q98: 860403137 | R98: ORGANIZACION DE ESTADOS IBEROAMERICANOS OEI | S98: Persona Jurídica | W98: 60271000 | AA98: =+W98+X98+Z98 -> 60271000 | AB98: 36162600 | AC98: 44363 | AD98: 44369 | AE98: 44613 | AF98: 240 | AN98: X | AQ98: 0.6
A99: 0 | B99: 227 | C99: 2021 | D99: FDLRUU-CD-227-2021 | E99: https://community.secop.gov.co/Public/Tendering/OpportunityDetail/Index?noticeUID=CO1.NTC.2016792&isFromPublicArea=True&isModal=False | F99: Convenios de cooperacion | G99: Régimen especial | H99: Decreto 92 de 2017 | I99: AUNAR ESFUERZOS PARA DISEÑAR E IMPLEMENTAR ESTRATEGIAS INNOVADORAS Y TRANSFERENCIA DE CONOCIMIENTO PARA PROMOVER EL FORTALECIMIENTO DE LA CONFIANZA CIUDADANA, LA CONVIVENCIA SOCIAL Y LA JUSTICIA LOCAL EN LA LOCALIDAD RAFAEL URIBE URIBE EN EL MARCO DEL PLAN DE DESARROLLO LOCAL 2021- 2024 “UN NUEVO CONTRATO SOCIAL Y AMBIENTAL PARA LA LOCALIDAD DE RAFAEL URIBE URIBE”. EN EL MARCO DEL PROYECTO DE INVERSION 1680 Y 1682. | J99: Inversión | K99: Un Nuevo Contrato Social y Ambiental para la Bogotá del Siglo XXI | L99: 48 | M99: =IF(ISERROR(VLOOKUP(L99,Proposito_programa!$C$2:$E$59,2,FALSE))," ",VLOOKUP(L99,Proposito_programa!$C$2:$E$59,2,FALSE)) -> Plataforma institucional para la seguridad y justicia | N99: =IF(ISERROR(VLOOKUP(L99,Proposito_programa!$C$2:$E$59,3,FALSE))," ",VLOOKUP(L99,Proposito_programa!$C$2:$E$59,3,FALSE)) -> Propósito 3: Inspirar confianza y legitimidad para vivir sin miedo y ser epicentro de cultura ciudadana, paz y reconciliación | O99: 133011603480000001682 | P99: 1 | Q99: 860403137 | R99: ORGANIZACION DE ESTADOS IBEROAMERICANOS OEI | S99: Persona Jurídica | W99: 728966000 | AA99: 728966000 | AB99: 437379600 | AC99: 44363 | AD99: 44369 | AE99: 44613 | AF99: 240 | AN99: X | AQ99: 0.6
A100: 1 | B100: 86 | C100: 2021 | D100: FDLRUU-CD-086-2021 | E100: https://community.secop.gov.co/Public/Tendering/OpportunityDetail/Index?noticeUID=CO1.NTC.1756653&isFromPublicArea=True&isModal=False | F100: Contratos de prestación de servicios profesionales y de apoyo a la gestión | G100: Contratación directa | H100: Prestación de servicios profesionales y de apoyo a la gestión, o para la ejecución de trabajos artísticos que sólo puedan encomendarse a determinadas personas naturales; | I100: APOYAR LA GESTIÓN DOCUMENTAL DE LA ALCALDÍA LOCAL DE RAFAEL URIBE URIBE EN LA IMPLEMENTACIÓN DE LOS PROCESOS DE CLASIFICACIÓN, ORDENACIÓN, SELECCIÓN NATURAL, FOLIACIÓN, IDENTIFICACIÓN, LEVANTAMIENTO DE INVENTARIOS, ALMACENAMIENTO Y APLICACIÓN DE PROTOCOLOS DE ELIMINACIÓN Y TRANSFERENCIAS DOCUMENTALES.” | J100: Inversión | K100: Un Nuevo Contrato Social y Ambiental para la Bogotá del Siglo XXI | L100: 57 | M100: =IF(ISERROR(VLOOKUP(L100,Proposito_programa!$C$2:$E$59,2,FALSE))," ",VLOOKUP(L100,Proposito_programa!$C$2:$E$59,2,FALSE)) -> Gestión pública local | N100: =IF(ISERROR(VLOOKUP(L100,Proposito_programa!$C$2:$E$59,3,FALSE))," ",VLOOKUP(L100,Proposito_programa!$C$2:$E$59,3,FALSE)) -> Propósito 5: Construir Bogotá - Región con gobierno abierto, transparente y ciudadanía consciente | O100: 133011605570000001697 | P100: 1 | Q100: 79806948 | R100: OMAR ALEXANDER SALVADOR ROMERO | S100: Persona Natural | W100: 26000000 | Y100: 1 | Z100: 2513333 | AA100: 28513333 | AB100: 24786667 | AC100: 44238 | AD100: 44242 | AE100: 44574 | AF100: 300 | AG100: 1 | AH100: 29 | AO100: X | AQ100: 0.8693009337
A101: 1 | B101: 270 | C101: 2021 | D101: FDLRUU-CD-270-2021 | E101: https://community.secop.gov.co/Public/Tendering/OpportunityDetail/Index?noticeUID=CO1.NTC.2178989&isFromPublicArea=True&isModal=False | F101: Contratos de prestación de servicios profesionales y de apoyo a la gestión | G101: Contratación directa | H101: Prestación de servicios profesionales y de apoyo a la gestión, o para la ejecución de trabajos artísticos que sólo puedan encomendarse a determinadas personas naturales; | I101: PRESTAR SUS SERVICIOS ASISTENCIALES PARA LA GESTIÓN DEL RIESGO, EN EL MARCO DE LOS VIGÍAS DEL RIESGO DE LA LOCALIDAD DE RAFAEL URIBE URIBE | J101: Inversión | K101: Un Nuevo Contrato Social y Ambiental para la Bogotá del Siglo XXI | L101: 30 | M101: =IF(ISERROR(VLOOKUP(L101,Proposito_programa!$C$2:$E$59,2,FALSE))," ",VLOOKUP(L101,Proposito_programa!$C$2:$E$59,2,FALSE)) -> Eficiencia en la atención de emergencias | N101: =IF(ISERROR(VLOOKUP(L101,Proposito_programa!$C$2:$E$59,3,FALSE))," ",VLOOKUP(L101,Proposito_programa!$C$2:$E$59,3,FALSE)) -> Propósito 2 : Cambiar Nuestros Hábitos de Vida para Reverdecer a Bogotá y Adaptarnos y Mitigar la Crisis Climática | O101: 133011602300000001665 | P101: 1 | Q101: 79792466 | R101: OMAR ALEJANDRO BAQUERO DIAZ | S101: Persona Natural | W101: 8100000 | AA101: 8100000 | AB101: 5760000 | AC101: 44427 | AD101: 44433 | AE101: 44568 | AF101: 135 | AO101: X | AQ101: 0.7111111111
A102: 1 | B102: 239 | C102: 2021 | D102: FDLRUU-CD-239-2021 | E102: https://community.secop.gov.co/Public/Tendering/OpportunityDetail/Index?noticeUID=CO1.NTC.2094437&isFromPublicArea=True&isModal=False | F102: Contratos de prestación de servicios profesionales y de apoyo a la gestión | G102: Contratación directa | H102: Prestación de servicios profesionales y de apoyo a la gestión, o para la ejecución de trabajos artísticos que sólo puedan encomendarse a determinadas personas naturales; | I102: PRESTAR SERVICIOS PROFESIONALES AL DESPACHO EN LA FORMULACIÓN, IMPLEMENTACIÓN Y SEGUIMIENTO DE PLANES, PROYECTOS Y ESTRATEGIAS ECONOMICAS, SOCIALES, AMBIENTALES Y CULTURALES, EN LA LOCALIDAD RAFAEL URIBE URIBE | J102: Inversión | K102: Un Nuevo Contrato Social y Ambiental para la Bogotá del Siglo XXI | L102: 57 | M102: =IF(ISERROR(VLOOKUP(L102,Proposito_programa!$C$2:$E$59,2,FALSE))," ",VLOOKUP(L102,Proposito_programa!$C$2:$E$59,2,FALSE)) -> Gestión pública local | N102: =IF(ISERROR(VLOOKUP(L102,Proposito_programa!$C$2:$E$59,3,FALSE))," ",VLOOKUP(L102,Proposito_programa!$C$2:$E$59,3,FALSE)) -> Propósito 5: Construir Bogotá - Región con gobierno abierto, transparente y ciudadanía consciente | O102: 133011605570000001697 | P102: 1 | Q102: 1020741588 | R102: OLGA LUCIA BOHORQUEZ DUQUE | S102: Persona Natural | W102: 24000000 | AA102: 24000000 | AB102: 21000000 | AC102: 44390 | AD102: 44393 | AE102: 44500 | AF102: 120 | AP102: X | AQ102: 0.875
A103: 1 | B103: 304 | C103: 2021 | D103: FDLRUU-CD-304-2021 | E103: https://community.secop.gov.co/Public/Tendering/OpportunityDetail/Index?noticeUID=CO1.NTC.2348631&isFromPublicArea=True&isModal=False | F103: Contratos de prestación de servicios profesionales y de apoyo a la gestión | G103: Contratación directa | H103: Prestación de servicios profesionales y de apoyo a la gestión, o para la ejecución de trabajos artísticos que sólo puedan encomendarse a determinadas personas naturales; | I103: APOYAR JURÍDICAMENTE LA EJECUCIÓN DE LAS ACCIONES REQUERIDAS PARA LA DEPURACIÓN DE LAS ACTUACIONES ADMINISTRATIVAS QUE CURSAN EN LA ALCALDÍA LOCAL | J103: Inversión | K103: Un Nuevo Contrato Social y Ambiental para la Bogotá del Siglo XXI | L103: 57 | M103: =IF(ISERROR(VLOOKUP(L103,Proposito_programa!$C$2:$E$59,2,FALSE))," ",VLOOKUP(L103,Proposito_programa!$C$2:$E$59,2,FALSE)) -> Gestión pública local | N103: =IF(ISERROR(VLOOKUP(L103,Proposito_programa!$C$2:$E$59,3,FALSE))," ",VLOOKUP(L103,Proposito_programa!$C$2:$E$59,3,FALSE)) -> Propósito 5: Construir Bogotá - Región con gobierno abierto, transparente y ciudadanía consciente | O103: 133011605570000001698 | P103: 1 | Q103: 52484426 | R103: NUBIA ESPERANZA SANTAFE CASTELLANOS | S103: Persona Natural | W103: 12653333 | AA103: 12653333 | AB103: 4506667 | AC103: 44498 | AD103: 44505 | AE103: 44578 | AF103: 73 | AO103: X | AQ103: 0.3561644193
A104: 1 | B104: 6 | C104: 2021 | D104: FDLRUU-CD-006-2021 | E104: https://community.secop.gov.co/Public/Tendering/OpportunityDetail/Index?noticeUID=CO1.NTC.1685643&isFromPublicArea=True&isModal=False | F104: Contratos de prestación de servicios profesionales y de apoyo a la gestión | G104: Contratación directa | H104: Prestación de servicios profesionales y de apoyo a la gestión, o para la ejecución de trabajos artísticos que sólo puedan encomendarse a determinadas personas naturales; | I104: APOYAR JURÍDICAMENTE LA EJECUCIÓN DE LAS ACCIONES REQUERIDAS PARA LA DEPURACIÓN DE LAS ACTUACIONES ADMISNITRATIVAS QUE CURSAN EN LA ALCALDÍA LOCAL. | J104: Inversión | K104: Un Nuevo Contrato Social y Ambiental para la Bogotá del Siglo XXI | L104: 57 | M104: =IF(ISERROR(VLOOKUP(L104,Proposito_programa!$C$2:$E$59,2,FALSE))," ",VLOOKUP(L104,Proposito_programa!$C$2:$E$59,2,FALSE)) -> Gestión pública local | N104: =IF(ISERROR(VLOOKUP(L104,Proposito_programa!$C$2:$E$59,3,FALSE))," ",VLOOKUP(L104,Proposito_programa!$C$2:$E$59,3,FALSE)) -> Propósito 5: Construir Bogotá - Región con gobierno abierto, transparente y ciudadanía consciente | O104: 133011605570000001698 | P104: 1 | Q104: 52484426 | R104: NUBIA ESPERANZA SANTAFE CASTELLANOS | S104: Persona Natural | W104: 31200000 | Y104: 1 | Z104: 15600000 | AA104: 46800000 | AB104: 46800000 | AC104: 44221 | AD104: 44225 | AE104: 44497 | AF104: 180 | AG104: 1 | AH104: 90 | AO104: X | AQ104: 1
A105: 1 | B105: 255 | C105: 2021 | D105: FLDRUU-CD-255-2021 | E105: https://community.secop.gov.co/Public/Tendering/OpportunityDetail/Index?noticeUID=CO1.NTC.2165138&isFromPublicArea=True&isModal=False | F105: Contratos de prestación de servicios profesionales y de apoyo a la gestión | G105: Contratación directa | H105: Prestación de servicios profesionales y de apoyo a la gestión, o para la ejecución de trabajos artísticos que sólo puedan encomendarse a determinadas personas naturales; | I105: PRESTAR SERVICIOS DE APOYO A LA GESTIÓN LOCAL EN LOS TEMAS DE MITIGACIÓN DEL RIESGO EN CAMPO, EN EL MARCO DEL PLAN DE DESARROLLO LOCAL DE LA LOCALIDAD DE RAFAEL URIBE URIBE | J105: Inversión | K105: Un Nuevo Contrato Social y Ambiental para la Bogotá del Siglo XXI | L105: 30 | M105: =IF(ISERROR(VLOOKUP(L105,Proposito_programa!$C$2:$E$59,2,FALSE))," ",VLOOKUP(L105,Proposito_programa!$C$2:$E$59,2,FALSE)) -> Eficiencia en la atención de emergencias | N105: =IF(ISERROR(VLOOKUP(L105,Proposito_programa!$C$2:$E$59,3,FALSE))," ",VLOOKUP(L105,Proposito_programa!$C$2:$E$59,3,FALSE)) -> Propósito 2 : Cambiar Nuestros Hábitos de Vida para Reverdecer a Bogotá y Adaptarnos y Mitigar la Crisis Climática | O105: 133011602300000001665 | P105: 1 | Q105: 52544480 | R105: NINI JOHANNA VARGAS | S105: Persona Natural | W105: 8100000 | AA105: 8100000 | AB105: 6240000 | AC105: 44419 | AD105: 44425 | AE105: 44562 | AF105: 135 | AO105: X | AQ105: 0.7703703704
A106: 1 | B106: 44 | C106: 2021 | D106: FDLRUU-CD-044-2021 | E106: https://community.secop.gov.co/Public/Tendering/OpportunityDetail/Index?noticeUID=CO1.NTC.1732456&isFromPublicArea=True&isModal=False | F106: Contratos de prestación de servicios profesionales y de apoyo a la gestión | G106: Contratación directa | H106: Prestación de servicios profesionales y de apoyo a la gestión, o para la ejecución de trabajos artísticos que sólo puedan encomendarse a determinadas personas naturales; | I106: APOYAR LA GESTIÓN DOCUMENTAL DE LA ALCALDÍA LOCAL PARA LA IMPLEMENTACIÓN DEL PROCESO DE VERIFICACIÓN, SOPORTE Y ACOMPAÑAMIENTO, EN EL DESARROLLO DE LAS ACTIVIDADES PROPIAS DE LOS PROCESOS Y ACTUACIONES ADMINISTRATIVAS EXISTENTES | J106: Inversión | K106: Un Nuevo Contrato Social y Ambiental para la Bogotá del Siglo XXI | L106: 57 | M106: =IF(ISERROR(VLOOKUP(L106,Proposito_programa!$C$2:$E$59,2,FALSE))," ",VLOOKUP(L106,Proposito_programa!$C$2:$E$59,2,FALSE)) -> Gestión pública local | N106: =IF(ISERROR(VLOOKUP(L106,Proposito_programa!$C$2:$E$59,3,FALSE))," ",VLOOKUP(L106,Proposito_programa!$C$2:$E$59,3,FALSE)) -> Propósito 5: Construir Bogotá - Región con gobierno abierto, transparente y ciudadanía consciente | O106: 133011605570000001698 | P106: 1 | Q106: 52828741 | R106: NINI JOHANA VALENZUELA | S106: Persona Natural | W106: 33000000 | Y106: 1 | Z106: 4290000 | AA106: 37290000 | AB106: 32560000 | AC106: 44231 | AD106: 44232 | AE106: 44574 | AF106: 300 | AG106: 1 | AH106: 39 | AO106: X | AQ106: 0.8731563422
A107: 1 | B107: 45 | C107: 2021 | D107: FDLRUU-CD-045-2021 | E107: https://community.secop.gov.co/Public/Tendering/OpportunityDetail/Index?noticeUID=CO1.NTC.1733137&isFromPublicArea=True&isModal=False | F107: Contratos de prestación de servicios profesionales y de apoyo a la gestión | G107: Contratación directa | H107: Prestación de servicios profesionales y de apoyo a la gestión, o para la ejecución de trabajos artísticos que sólo puedan encomendarse a determinadas personas naturales; | I107: PRESTAR LOS SERVICIOS TECNICOS DE APOYO A LOS PROFESIONALES ENCARGADOS DE LA DEPURACION DE LAS OBLIGACIONES POR PAGAR A CARGO DEL FONDO DE DESARROLLO LOCAL DE RAFAEL URIBE URIBE | J107: Inversión | K107: Un Nuevo Contrato Social y Ambiental para la Bogotá del Siglo XXI | L107: 57 | M107: =IF(ISERROR(VLOOKUP(L107,Proposito_programa!$C$2:$E$59,2,FALSE))," ",VLOOKUP(L107,Proposito_programa!$C$2:$E$59,2,FALSE)) -> Gestión pública local | N107: =IF(ISERROR(VLOOKUP(L107,Proposito_programa!$C$2:$E$59,3,FALSE))," ",VLOOKUP(L107,Proposito_programa!$C$2:$E$59,3,FALSE)) -> Propósito 5: Construir Bogotá - Región con gobierno abierto, transparente y ciudadanía consciente | O107: 133011605570000001697 | P107: 1 | Q107: 52343298 | R107: NIDIA YANETH CHITIVA RODRIGUEZ | S107: Persona Natural | W107: 39000000 | Y107: 1 | Z107: 3770000 | AA107: 42770000 | AB107: 37180000 | AC107: 44238 | AD107: 44242 | AE107: 44574 | AF107: 300 | AG107: 1 | AH107: 29 | AO107: X | AQ107: 0.8693009119
A108: 1 | B108: 24 | C108: 2021 | D108: FDLRUU-CD-024-2021 | E108: https://community.secop.gov.co/Public/Tendering/OpportunityDetail/Index?noticeUID=CO1.NTC.1724247&isFromPublicArea=True&isModal=False | F108: Contratos de prestación de servicios profesionales y de apoyo a la gestión | G108: Contratación directa | H108: Prestación de servicios profesionales y de apoyo a la gestión, o para la ejecución de trabajos artísticos que sólo puedan encomendarse a determinadas personas naturales; | I108: PRESTAR SUS SERVICIOS DE APOYO ADMINISTRATIVO ASISTENCIAL AL DESPACHO DE LA ALCALDÍA LOCAL DE RAFAEL URIBE URIBE | J108: Inversión | K108: Un Nuevo Contrato Social y Ambiental para la Bogotá del Siglo XXI | L108: 57 | M108: =IF(ISERROR(VLOOKUP(L108,Proposito_programa!$C$2:$E$59,2,FALSE))," ",VLOOKUP(L108,Proposito_programa!$C$2:$E$59,2,FALSE)) -> Gestión pública local | N108: =IF(ISERROR(VLOOKUP(L108,Proposito_programa!$C$2:$E$59,3,FALSE))," ",VLOOKUP(L108,Proposito_programa!$C$2:$E$59,3,FALSE)) -> Propósito 5: Construir Bogotá - Región con gobierno abierto, transparente y ciudadanía consciente | O108: 133011605570000001697 | P108: 1 | Q108: 1015465408 | R108: NICOLE DAYAN SILVA VELASCO | S108: Persona Natural | W108: 26000000 | AA108: 26000000 | AB108: 22966667 | AC108: 44229 | AD108: 44230 | AE108: 44495 | AF108: 300 | AP108: X | AQ108: 0.8833333462
A109: 1 | B109: 265 | C109: 2021 | D109: FDLRUU-CD-265-2021 | E109: https://community.secop.gov.co/Public/Tendering/OpportunityDetail/Index?noticeUID=CO1.NTC.2165207&isFromPublicArea=True&isModal=False | F109: Contratos de prestación de servicios profesionales y de apoyo a la gestión | G109: Contratación directa | H109: Prestación de servicios profesionales y de apoyo a la gestión, o para la ejecución de trabajos artísticos que sólo puedan encomendarse a determinadas personas naturales; | I109: PRESTAR SUS SERVICIOS ASISTENCIALES PARA LA GESTIÓN DEL RIESGO, EN EL MARCO DE LOS VIGÍAS DEL RIESGO DE LA LOCALIDAD DE RAFAEL URIBE URIBE | J109: Inversión | K109: Un Nuevo Contrato Social y Ambiental para la Bogotá del Siglo XXI | L109: 30 | M109: =IF(ISERROR(VLOOKUP(L109,Proposito_programa!$C$2:$E$59,2,FALSE))," ",VLOOKUP(L109,Proposito_programa!$C$2:$E$59,2,FALSE)) -> Eficiencia en la atención de emergencias | N109: =IF(ISERROR(VLOOKUP(L109,Proposito_programa!$C$2:$E$59,3,FALSE))," ",VLOOKUP(L109,Proposito_programa!$C$2:$E$59,3,FALSE)) -> Propósito 2 : Cambiar Nuestros Hábitos de Vida para Reverdecer a Bogotá y Adaptarnos y Mitigar la Crisis Climática | O109: 133011602300000001665 | P109: 1 | Q109: 1032390216 | R109: NELCY MALODY LAMPERA CARRILLO | S109: Persona Natural | W109: 8100000 | AA109: 8100000 | AB109: 6240000 | AC109: 44418 | AD109: 44425 | AE109: 44562 | AF109: 135 | AO109: X | AQ109: 0.7703703704
A110: 1 | B110: 260 | C110: 2021 | D110: FDLRUU-CD-260-2021 | E110: https://community.secop.gov.co/Public/Tendering/OpportunityDetail/Index?noticeUID=CO1.NTC.2167124&isFromPublicArea=True&isModal=False | F110: Contratos de prestación de servicios profesionales y de apoyo a la gestión | G110: Contratación directa | H110: Prestación de servicios profesionales y de apoyo a la gestión, o para la ejecución de trabajos artísticos que sólo puedan encomendarse a determinadas personas naturales; | I110: PRESTAR SUS SERVICIOS ASISTENCIALES PARA LA GESTIÓN DEL RIESGO, EN EL MARCO DE LOS VIGÍAS DEL RIESGO DE LA LOCALIDAD DE RAFAEL URIBE URIBE | J110: Inversión | K110: Un Nuevo Contrato Social y Ambiental para la Bogotá del Siglo XXI | L110: 30 | M110: =IF(ISERROR(VLOOKUP(L110,Proposito_programa!$C$2:$E$59,2,FALSE))," ",VLOOKUP(L110,Proposito_programa!$C$2:$E$59,2,FALSE)) -> Eficiencia en la atención de emergencias | N110: =IF(ISERROR(VLOOKUP(L110,Proposito_programa!$C$2:$E$59,3,FALSE))," ",VLOOKUP(L110,Proposito_programa!$C$2:$E$59,3,FALSE)) -> Propósito 2 : Cambiar Nuestros Hábitos de Vida para Reverdecer a Bogotá y Adaptarnos y Mitigar la Crisis Climática | O110: 133011602300000001665 | P110: 1 | Q110: 1013593717 | R110: NANCY PAOLA BOLIVAR MACA | S110: Persona Natural | W110: 8100000 | AA110: 8100000 | AB110: 5880000 | AC110: 44419 | AD110: 44427 | AE110: 44564 | AF110: 135 | AI110: 53045067 | AJ110: JULIETH MARCELA GORDILLO ARIAS | AK110: 44504 | AL110: 4560000 | AO110: X | AQ110: 0.7259259259
A111: 1 | B111: 204 | C111: 2021 | D111: FDLRUU-CD-204-2021 | E111: https://community.secop.gov.co/Public/Tendering/OpportunityDetail/Index?noticeUID=CO1.NTC.1865279&isFromPublicArea=True&isModal=False | F111: Contratos de prestación de servicios profesionales y de apoyo a la gestión | G111: Contratación directa | H111: Prestación de servicios profesionales y de apoyo a la gestión, o para la ejecución de trabajos artísticos que sólo puedan encomendarse a determinadas personas naturales; | I111: APOYAR LA GESTIÓN DOCUMENTAL DE LA ALCALDÍA LOCAL, ACOMPAÑANDO AL EQUIPO JURÍDICO DE DEPURACIÓN EN LAS LABORES OPERATIVAS QUE GENERA EL PROCESO DE IMPULSO DE LAS ACTUACIONES ADMINISTRATIVAS EXISTENTES EN LA ALCALDÍA LOCAL DE RAFAEL URIBE URIBE | J111: Inversión | K111: Un Nuevo Contrato Social y Ambiental para la Bogotá del Siglo XXI | L111: 57 | M111: =IF(ISERROR(VLOOKUP(L111,Proposito_programa!$C$2:$E$59,2,FALSE))," ",VLOOKUP(L111,Proposito_programa!$C$2:$E$59,2,FALSE)) -> Gestión pública local | N111: =IF(ISERROR(VLOOKUP(L111,Proposito_programa!$C$2:$E$59,3,FALSE))," ",VLOOKUP(L111,Proposito_programa!$C$2:$E$59,3,FALSE)) -> Propósito 5: Construir Bogotá - Región con gobierno abierto, transparente y ciudadanía consciente | O111: 133011605570000001698 | P111: 1 | Q111: 52832043 | R111: NANCY BRIGITTE RUIZ BUITRAGO | S111: Persona Natural | W111: 26000000 | AA111: 26000000 | AB111: 20973333 | AC111: 44279 | AD111: 44284 | AE111: 44589 | AF111: 300 | AO111: X | AQ111: 0.8066666538
A112: 1 | B112: 3 | C112: 2021 | D112: FDLRUU-CD-003-2021 | E112: https://community.secop.gov.co/Public/Tendering/OpportunityDetail/Index?noticeUID=CO1.NTC.1684211&isFromPublicArea=True&isModal=False | F112: Contratos de prestación de servicios profesionales y de apoyo a la gestión | G112: Contratación directa | H112: Prestación de servicios profesionales y de apoyo a la gestión, o para la ejecución de trabajos artísticos que sólo puedan encomendarse a determinadas personas naturales; | I112: PRESTAR LOS SERVICIOS PROFESIONALES PARA APOYAR LA REVISIÓN Y/O ELABORACIÓN DE LOS DOCUMENTOS Y GESTIONES PROVENIENTES DE LAS DIFERENTES ÁREAS RELACIONADAS CON TEMAS ADMINISTRATIVOS CONTABLES Y FINANCIEROS DE LOS PROCESOS Y CONTRATOS DEL FONDO DE DESARROLLO LOCAL DE RAFAEL URIBE URIBE.” | J112: Inversión | K112: Un Nuevo Contrato Social y Ambiental para la Bogotá del Siglo XXI | L112: 57 | M112: =IF(ISERROR(VLOOKUP(L112,Proposito_programa!$C$2:$E$59,2,FALSE))," ",VLOOKUP(L112,Proposito_programa!$C$2:$E$59,2,FALSE)) -> Gestión pública local | N112: =IF(ISERROR(VLOOKUP(L112,Proposito_programa!$C$2:$E$59,3,FALSE))," ",VLOOKUP(L112,Proposito_programa!$C$2:$E$59,3,FALSE)) -> Propósito 5: Construir Bogotá - Región con gobierno abierto, transparente y ciudadanía consciente | O112: 133011605570000001697 | P112: 1 | Q112: 53077157 | R112: MONICA YAMILE QUEVEDO CORREA | S112: Persona Natural | W112: 67000000 | Y112: 1 | Z112: 10720000 | AA112: 77720000 | AB112: 68116667 | AC112: 44218 | AD112: 44222 | AE112: 44574 | AF112: 300 | AG112: 1 | AH112: 48 | AO112: X | AQ112: 0.8764367859
A113: 1 | B113: 58 | C113: 2021 | D113: FDLRUU-CD-058-2021 | E113: https://community.secop.gov.co/Public/Tendering/OpportunityDetail/Index?noticeUID=CO1.NTC.1748327&isFromPublicArea=True&isModal=False | F113: Contratos de prestación de servicios profesionales y de apoyo a la gestión | G113: Contratación directa | H113: Prestación de servicios profesionales y de apoyo a la gestión, o para la ejecución de trabajos artísticos que sólo puedan encomendarse a determinadas personas naturales; | I113: PRESTAR SUS SERVICIOS DE APOYO TECNICO ADMINISTRATIVO EN EL PROCESO DE TOMA FISICA, VERIFICACIÓN, CLASIFICACIÓN Y ACTUALIZACIÓN DE LA INFORMACIÓN DE BIENES MUEBLES E INMUEBLES DE PROPIEDAD Y/O A CARGO DEL FONDO DE DESARROLLO LOCAL DE RAFAEL URIBE URIBE ASÍ COMO LA DEPURACIÓN DE LOS CONTRATOS DE COMODATO Y LAS DEMAS ACTUACIONES ADMINISTRATIVAS QUE GENERE EL AREA DE GESTIÓN PARA EL DESARROLLO LOCAL – ALMACEN DE CONFORMIDAD CON LAS DISPOSICIONES LEGALES VIGENTES”. | J113: Inversión | K113: Un Nuevo Contrato Social y Ambiental para la Bogotá del Siglo XXI | L113: 57 | M113: =IF(ISERROR(VLOOKUP(L113,Proposito_programa!$C$2:$E$59,2,FALSE))," ",VLOOKUP(L113,Proposito_programa!$C$2:$E$59,2,FALSE)) -> Gestión pública local | N113: =IF(ISERROR(VLOOKUP(L113,Proposito_programa!$C$2:$E$59,3,FALSE))," ",VLOOKUP(L113,Proposito_programa!$C$2:$E$59,3,FALSE)) -> Propósito 5: Construir Bogotá - Región con gobierno abierto, transparente y ciudadanía consciente | O113: 133011605570000001697 | P113: 1 | Q113: 1026568078 | R113: MONICA TATIANA ARIZA | S113: Persona Natural | W113: 39000000 | Y113: 1 | Z113: 4290000 | AA113: 43290000 | AB113: 37700000 | AC113: 44237 | AD113: 44238 | AE113: 44574 | AF113: 300 | AG113: 1 | AH113: 33 | AO113: X | AQ113: 0.8708708709
A114: 1 | B114: 11 | C114: 2021 | D114: FDLRUU-CD-011-2021 | E114: https://community.secop.gov.co/Public/Tendering/OpportunityDetail/Index?noticeUID=CO1.NTC.1689714&isFromPublicArea=True&isModal=False | F114: Contratos de prestación de servicios profesionales y de apoyo a la gestión | G114: Contratación directa | H114: Prestación de servicios profesionales y de apoyo a la gestión, o para la ejecución de trabajos artísticos que sólo puedan encomendarse a determinadas personas naturales; | I114: APOYAR JURÍDICAMENTE LA EJECUCIÓN DE LAS ACCIONES REQUERIDAS PARA LA DEPURACIÓN DE LAS ACTUACIONES ADMINISTRATIVAS QUE CURSAN EN LA ALCALDÍA LOCAL | J114: Inversión | K114: Un Nuevo Contrato Social y Ambiental para la Bogotá del Siglo XXI | L114: 57 | M114: =IF(ISERROR(VLOOKUP(L114,Proposito_programa!$C$2:$E$59,2,FALSE))," ",VLOOKUP(L114,Proposito_programa!$C$2:$E$59,2,FALSE)) -> Gestión pública local | N114: =IF(ISERROR(VLOOKUP(L114,Proposito_programa!$C$2:$E$59,3,FALSE))," ",VLOOKUP(L114,Proposito_programa!$C$2:$E$59,3,FALSE)) -> Propósito 5: Construir Bogotá - Región con gobierno abierto, transparente y ciudadanía consciente | O114: 133011605570000001698 | P114: 1 | Q114: 52857075 | R114: MONICA GOMEZ GUZMAN | S114: Persona Natural | W114: 31200000 | Y114: 1 | Z114: 15600000 | AA114: 46800000 | AB114: 46800000 | AC114: 44221 | AD114: 44223 | AE114: 44495 | AF114: 180 | AG114: 1 | AH114: 90 | AO114: X | AQ114: 1
A115: 1 | B115: 48 | C115: 2021 | D115: FDLRUU-CD-048-2021 | E115: https://community.secop.gov.co/Public/Tendering/OpportunityDetail/Index?noticeUID=CO1.NTC.1746007&isFromPublicArea=True&isModal=False | F115: Contratos de prestación de servicios profesionales y de apoyo a la gestión | G115: Contratación directa | H115: Prestación de servicios profesionales y de apoyo a la gestión, o para la ejecución de trabajos artísticos que sólo puedan encomendarse a determinadas personas naturales; | I115: PRESTAR LOS SERVICIOS PROFESIONALES COMO ABOGADO PARA APOYAR EN EL ANALISIS REVISION, TRAMITE Y SUSCRIPCION DE LOS ACTOS ADMINISTRATIVOS, DESPACHOS COMISORIOS, TUTELAS Y LOS CONCEPTOS JURIDICOS QUE SE LE SOLICITEN | J115: Inversión | K115: Un Nuevo Contrato Social y Ambiental para la Bogotá del Siglo XXI | L115: 57 | M115: =IF(ISERROR(VLOOKUP(L115,Proposito_programa!$C$2:$E$59,2,FALSE))," ",VLOOKUP(L115,Proposito_programa!$C$2:$E$59,2,FALSE)) -> Gestión pública local | N115: =IF(ISERROR(VLOOKUP(L115,Proposito_programa!$C$2:$E$59,3,FALSE))," ",VLOOKUP(L115,Proposito_programa!$C$2:$E$59,3,FALSE)) -> Propósito 5: Construir Bogotá - Región con gobierno abierto, transparente y ciudadanía consciente | O115: 133011605570000001698 | P115: 1 | Q115: 52177304 | R115: MONICA ELVIRA CRUZ CORREAL | S115: Persona Natural | W115: 57000000 | AA115: 57000000 | AB115: 55100000 | AC115: 44236 | AD115: 44238 | AE115: 44540 | AF115: 300 | AO115: X | AQ115: 0.9666666667
A116: 1 | B116: 185 | C116: 2021 | D116: FDLRUU-CD-185-2021 | E116: https://community.secop.gov.co/Public/Tendering/OpportunityDetail/Index?noticeUID=CO1.NTC.1822125&isFromPublicArea=True&isModal=False | F116: Contratos de prestación de servicios profesionales y de apoyo a la gestión | G116: Contratación directa | H116: Prestación de servicios profesionales y de apoyo a la gestión, o para la ejecución de trabajos artísticos que sólo puedan encomendarse a determinadas personas naturales; | I116: PRESTAR LOS SERVICIOS PROFESIONALES PARA APOYAR JURIDICAMENTE LA EJECUCIÓN Y SEGUIMIENTO DE LAS ACTIVIDADES DE LOS PROCESOS ASOCIADOS CON LA PLANEACIÓN LOCAL, ASÍ COMO DE LOS PROYECTOS DE INVERSIÓN DEL PLAN DE DESARROLLO LOCAL VIGENCIA 2021 - 2024 | J116: Inversión | K116: Un Nuevo Contrato Social y Ambiental para la Bogotá del Siglo XXI | L116: 57 | M116: =IF(ISERROR(VLOOKUP(L116,Proposito_programa!$C$2:$E$59,2,FALSE))," ",VLOOKUP(L116,Proposito_programa!$C$2:$E$59,2,FALSE)) -> Gestión pública local | N116: =IF(ISERROR(VLOOKUP(L116,Proposito_programa!$C$2:$E$59,3,FALSE))," ",VLOOKUP(L116,Proposito_programa!$C$2:$E$59,3,FALSE)) -> Propósito 5: Construir Bogotá - Región con gobierno abierto, transparente y ciudadanía consciente | O116: 133011605570000001697 | P116: 1 | Q116: 63501879 | R116: MONICA DUARTE ORTIZ | S116: Persona Natural | W116: 65000000 | X116: -30983333 | AA116: 34016667 | AB116: 34016667 | AC116: 44260 | AD116: 44264 | AE116: 44424 | AF116: 300 | AP116: X | AQ116: 1
A117: 1 | B117: 71 | C117: 2021 | D117: FDLRUU-CD-071-2021 | E117: https://community.secop.gov.co/Public/Tendering/OpportunityDetail/Index?noticeUID=CO1.NTC.1752265&isFromPublicArea=True&isModal=False | F117: Contratos de prestación de servicios profesionales y de apoyo a la gestión | G117: Contratación directa | H117: Prestación de servicios profesionales y de apoyo a la gestión, o para la ejecución de trabajos artísticos que sólo puedan encomendarse a determinadas personas naturales; | I117: PRESTAR LOS SERVICIOS ESPECIALIZADOS PARA APOYAR AL DESPACHO DE LA ALCALDÍA LOCAL DE RAFAEL URIBE URIBE EN EL DISEÑO Y ESTRATEGIAS, COORDINACIÓN Y EMISIÓN DE LINEAMIENTOS QUE COADYUVEN AL FORTALECIMIENTO INSTITUCIONAL ENTORNO A LAS ACTIVIDADES QUE REALIZA LA ALCALDÍA LOCAL EN SUS DIFERENTES DEPENDENCIAS | J117: Inversión | K117: Un Nuevo Contrato Social y Ambiental para la Bogotá del Siglo XXI | L117: 57 | M117: =IF(ISERROR(VLOOKUP(L117,Proposito_programa!$C$2:$E$59,2,FALSE))," ",VLOOKUP(L117,Proposito_programa!$C$2:$E$59,2,FALSE)) -> Gestión pública local | N117: =IF(ISERROR(VLOOKUP(L117,Proposito_programa!$C$2:$E$59,3,FALSE))," ",VLOOKUP(L117,Proposito_programa!$C$2:$E$59,3,FALSE)) -> Propósito 5: Construir Bogotá - Región con gobierno abierto, transparente y ciudadanía consciente | O117: 133011605570000001697 | P117: 1 | Q117: 1023888264 | R117: MONICA DEL PILAR PARRA RANGEL | S117: Persona Natural | W117: 75000000 | Y117: 1 | Z117: 8250000 | AA117: 83250000 | AB117: 72750000 | AC117: 44237 | AD117: 44237 | AE117: 44573 | AF117: 300 | AG117: 1 | AH117: 33 | AO117: X | AQ117: 0.8738738739
A118: 1 | B118: 8 | C118: 2021 | D118: FDLRUU-CD-008-2021 | E118: https://community.secop.gov.co/Public/Tendering/ContractNoticePhases/View?PPI=CO1.PPI.11735260&isFromPublicArea=True&isModal=False | F118: Contratos de prestación de servicios profesionales y de apoyo a la gestión | G118: Contratación directa | H118: Prestación de servicios profesionales y de apoyo a la gestión, o para la ejecución de trabajos artísticos que sólo puedan encomendarse a determinadas personas naturales; | I118: PRESTAR LOS SERVICIOS PROFESIONALES PARA DEPURAR LAS OBLIGACIONES POR PAGAR A CARGO DEL FONDO DE DESARROLLO DE RAFAEL URIBE URIBE. | J118: Inversión | K118: Un Nuevo Contrato Social y Ambiental para la Bogotá del Siglo XXI | L118: 57 | M118: =IF(ISERROR(VLOOKUP(L118,Proposito_programa!$C$2:$E$59,2,FALSE))," ",VLOOKUP(L118,Proposito_programa!$C$2:$E$59,2,FALSE)) -> Gestión pública local | N118: =IF(ISERROR(VLOOKUP(L118,Proposito_programa!$C$2:$E$59,3,FALSE))," ",VLOOKUP(L118,Proposito_programa!$C$2:$E$59,3,FALSE)) -> Propósito 5: Construir Bogotá - Región con gobierno abierto, transparente y ciudadanía consciente | O118: 133011605570000001697 | P118: 1 | Q118: 52856574 | R118: MILENA VANEGAS LOPEZ | S118: Persona Natural | W118: 52000000 | Y118: 1 | Z118: 7800000 | AA118: 59800000 | AB118: 52346667 | AC118: 44221 | AD118: 44225 | AE118: 44574 | AF118: 300 | AG118: 1 | AH118: 45 | AO118: X | AQ118: 0.8753623244
A119: 1 | B119: 226 | C119: 2021 | D119: FDLRUU-SABM-226-2021 | E119: https://community.secop.gov.co/Public/Tendering/OpportunityDetail/Index?noticeUID=CO1.NTC.2016319&isFromPublicArea=True&isModal=False | F119: Contratos de prestación de servicios | G119: Régimen especial | H119: Decreto 92 de 2017 | I119: CONTRATAR LA PRESTACIÓN DEL SERVICIO DE VIGILANCIA Y SEGURIDAD PRIVADA A TRAVÉS DE LA BOLSA MERCANTIL DE COLOMBIA S.A. PARA LOS PREDIOS Y/O BIENES DE PROPIEDAD Y/O TENENCIA DEL FONDO DE DESARROLLO LOCAL RAFAEL URIBE URIBE DE CONFORMIDAD CON LAS CONDICIONES TÉCNICAS QUE DESIGNE | J119: Funcionamiento | K119: Un Nuevo Contrato Social y Ambiental para la Bogotá del Siglo XXI | L119: No aplica | M119: =IF(ISERROR(VLOOKUP(L119,Proposito_programa!$C$2:$E$59,2,FALSE))," ",VLOOKUP(L119,Proposito_programa!$C$2:$E$59,2,FALSE)) ->  | N119: =IF(ISERROR(VLOOKUP(L119,Proposito_programa!$C$2:$E$59,3,FALSE))," ",VLOOKUP(L119,Proposito_programa!$C$2:$E$59,3,FALSE)) ->  | O119: 131020202030501 | P119: 1 | Q119: 800095131 | R119: MIGUEL QUIJANO Y COMPAÑIA S.A. | S119: Persona Jurídica | W119: 524592088 | Y119: 1 | Z119: 123889969 | AA119: 648482057 | AB119: 343556142 | AC119: 44351 | AD119: 44371 | AE119: 44651 | AF119: 240 | AG119: 1 | AH119: 39 | AN119: X | AQ119: 0.5297851163
A120: 1 | B120: 209 | C120: 2021 | D120: FDLRUU-CD-209-2021 | E120: https://community.secop.gov.co/Public/Tendering/OpportunityDetail/Index?noticeUID=CO1.NTC.1882421&isFromPublicArea=True&isModal=False | F120: Contratos de prestación de servicios profesionales y de apoyo a la gestión | G120: Contratación directa | H120: Prestación de servicios profesionales y de apoyo a la gestión, o para la ejecución de trabajos artísticos que sólo puedan encomendarse a determinadas personas naturales; | I120: PRESTAR LOS SERVICIOS PROFESIONALES COMO ABOGADO PARA APOYAR LOS PROCESOS DE CONTRATACIÓN EN SUS DIFERENTES ETAPAS AL ÁREA DE GESTIÓN DEL DESARROLLO DE LA ALCALDÍA LOCAL DE RAFAEL URIBE URIBE | J120: Inversión | K120: Un Nuevo Contrato Social y Ambiental para la Bogotá del Siglo XXI | L120: 57 | M120: =IF(ISERROR(VLOOKUP(L120,Proposito_programa!$C$2:$E$59,2,FALSE))," ",VLOOKUP(L120,Proposito_programa!$C$2:$E$59,2,FALSE)) -> Gestión pública local | N120: =IF(ISERROR(VLOOKUP(L120,Proposito_programa!$C$2:$E$59,3,FALSE))," ",VLOOKUP(L120,Proposito_programa!$C$2:$E$59,3,FALSE)) -> Propósito 5: Construir Bogotá - Región con gobierno abierto, transparente y ciudadanía consciente | O120: 133011605570000001697 | P120: 1 | Q120: 80020069 | R120: MICHEL ANDRÉS SALAMANCA RAMÍREZ. | S120: Persona Natural | W120: 52000000 | AA120: 52000000 | AB120: 40906667 | AC120: 44286 | AD120: 44291 | AE120: 44596 | AF120: 300 | AI120: 52883374 | AJ120: DIANA CAROLINA SANCHEZ CASTILLO | AK120: 44566 | AL120: 19066667 | AN120: X | AQ120: 0.7866666731
A121: 1 | B121: 28 | C121: 2021 | D121: FDLRUU-CD-028-2021 | E121: https://community.secop.gov.co/Public/Tendering/OpportunityDetail/Index?noticeUID=CO1.NTC.1723860&isFromPublicArea=True&isModal=False | F121: Contratos de prestación de servicios profesionales y de apoyo a la gestión | G121: Contratación directa | H121: Prestación de servicios profesionales y de apoyo a la gestión, o para la ejecución de trabajos artísticos que sólo puedan encomendarse a determinadas personas naturales; | I121: PRESTAR LOS SERVICIOS PROFESIONALES PARA APOYAR LA EJECUCIÓN Y SEGUIMIENTO DE LAS ACTIVIDADES DE LOS PROCESOS DE PLANEACION ASOCIADOS CON EL ÁREA DE GESTION DE DESARROLLO LOCAL, ASÍ COMO DE LOS PROYECTOS DE INVERSIÓN DEL PLAN DE DESARROLLO | J121: Inversión | K121: Un Nuevo Contrato Social y Ambiental para la Bogotá del Siglo XXI | L121: 57 | M121: =IF(ISERROR(VLOOKUP(L121,Proposito_programa!$C$2:$E$59,2,FALSE))," ",VLOOKUP(L121,Proposito_programa!$C$2:$E$59,2,FALSE)) -> Gestión pública local | N121: =IF(ISERROR(VLOOKUP(L121,Proposito_programa!$C$2:$E$59,3,FALSE))," ",VLOOKUP(L121,Proposito_programa!$C$2:$E$59,3,FALSE)) -> Propósito 5: Construir Bogotá - Región con gobierno abierto, transparente y ciudadanía consciente | O121: 133011605570000001697 | P121: 1 | Q121: 52856929 | R121: MERY JOHANNA ARIAS ROMERO | S121: Persona Natural | W121: 67000000 | AA121: 67000000 | AB121: 59406667 | AC121: 44230 | AD121: 44232 | AE121: 44534 | AF121: 300 | AO121: X | AQ121: 0.8866666716
A122: 1 | B122: 220 | C122: 2021 | D122: FDLRUU-CD-220-2021 | E122: https://community.secop.gov.co/Public/Tendering/OpportunityDetail/Index?noticeUID=CO1.NTC.1972739&isFromPublicArea=True&isModal=False | F122: Contratos de prestación de servicios profesionales y de apoyo a la gestión | G122: Contratación directa | H122: Prestación de servicios profesionales y de apoyo a la gestión, o para la ejecución de trabajos artísticos que sólo puedan encomendarse a determinadas personas naturales; | I122: APOYAR JURÍDICAMENTE LA EJECUCIÓN DE LAS ACCIONES REQUERIDAS PARA EL TRÁMITE E IMPULSO PROCESAL DE LAS ACTUACIONES CONTRAVENCIONALES Y/O QUERELLAS QUE CURSEN EN LAS INSPECCIONES DE POLICÍA DE LA LOCALIDAD DE RAFAEL URIBE URIBE | J122: Inversión | K122: Un Nuevo Contrato Social y Ambiental para la Bogotá del Siglo XXI | L122: 57 | M122: =IF(ISERROR(VLOOKUP(L122,Proposito_programa!$C$2:$E$59,2,FALSE))," ",VLOOKUP(L122,Proposito_programa!$C$2:$E$59,2,FALSE)) -> Gestión pública local | N122: =IF(ISERROR(VLOOKUP(L122,Proposito_programa!$C$2:$E$59,3,FALSE))," ",VLOOKUP(L122,Proposito_programa!$C$2:$E$59,3,FALSE)) -> Propósito 5: Construir Bogotá - Región con gobierno abierto, transparente y ciudadanía consciente | O122: 133011605570000001698 | P122: 1 | Q122: 52731958 | R122: MERLY JOHANNA GARCIA LOPÉZ | S122: Persona Natural | W122: 31200000 | Y122: 1 | Z122: 9186667 | AA122: 40386667 | AB122: 30853333 | AC122: 44329 | AD122: 44337 | AE122: 44574 | AF122: 180 | AG122: 1 | AH122: 53 | AO122: X | AQ122: 0.7639484833
A123: 1 | B123: 144 | C123: 2021 | D123: FDLRUU-CD-144-2021 | E123: https://community.secop.gov.co/Public/Tendering/OpportunityDetail/Index?noticeUID=CO1.NTC.1795223&isFromPublicArea=True&isModal=False | F123: Contratos de prestación de servicios profesionales y de apoyo a la gestión | G123: Contratación directa | H123: Prestación de servicios profesionales y de apoyo a la gestión, o para la ejecución de trabajos artísticos que sólo puedan encomendarse a determinadas personas naturales; | I123: APOYAR LA GESTIÓN DOCUMENTAL DE LA ALCALDÍA LOCAL, ACOMPAÑANDO AL EQUIPO JURÍDICO DE DEPURACIÓN EN LAS LABORES OPERATIVAS QUE GENERA EL PROCESO DE IMPULSO DE LAS ACTUACIONES ADMINISTRATIVAS EXISTENTES EN LA ALCALDÍA LOCAL DE RAFAEL URIBE URIBE”. | J123: Inversión | K123: Un Nuevo Contrato Social y Ambiental para la Bogotá del Siglo XXI | L123: 57 | M123: =IF(ISERROR(VLOOKUP(L123,Proposito_programa!$C$2:$E$59,2,FALSE))," ",VLOOKUP(L123,Proposito_programa!$C$2:$E$59,2,FALSE)) -> Gestión pública local | N123: =IF(ISERROR(VLOOKUP(L123,Proposito_programa!$C$2:$E$59,3,FALSE))," ",VLOOKUP(L123,Proposito_programa!$C$2:$E$59,3,FALSE)) -> Propósito 5: Construir Bogotá - Región con gobierno abierto, transparente y ciudadanía consciente | O123: 133011605570000001698 | P123: 1 | Q123: 79975659 | R123: MAURICIO EDUARDO ORTEGON RODRIGUEZ | S123: Persona Natural | W123: 26000000 | AA123: 26000000 | AB123: 16206667 | AC123: 44251 | AD123: 44256 | AE123: 44560 | AF123: 300 | AI123: 86040254 | AJ123: ALEXANDER MORA MURILLLO | AK123: 44463 | AL123: 8406667 | AO123: X | AQ123: 0.6233333462
A124: 1 | B124: 169 | C124: 2021 | D124: FDLRUU-CD-150-2021 | E124: https://community.secop.gov.co/Public/Tendering/OpportunityDetail/Index?noticeUID=CO1.NTC.1800149&isFromPublicArea=True&isModal=False | F124: Contratos de prestación de servicios profesionales y de apoyo a la gestión | G124: Contratación directa | H124: Prestación de servicios profesionales y de apoyo a la gestión, o para la ejecución de trabajos artísticos que sólo puedan encomendarse a determinadas personas naturales; | I124: EL CONTRATISTA SE OBLIGA CON EL FONDO DE DESARROLLO LOCAL DE RAFAEL URIBE URIBE A PRESTAR SUS SERVICIOS DE APOYO A LA GESTION LOCAL Y TERRITORIAL DE LOS TEMAS DE SEGURIDAD Y CONVIVENCIA CIUDADANA PARA LA ALCALDIA LOCAL DE RAFAEL URIBE URIBE | J124: Inversión | K124: Un Nuevo Contrato Social y Ambiental para la Bogotá del Siglo XXI | L124: 43 | M124: =IF(ISERROR(VLOOKUP(L124,Proposito_programa!$C$2:$E$59,2,FALSE))," ",VLOOKUP(L124,Proposito_programa!$C$2:$E$59,2,FALSE)) -> Cultura ciudadana para la confianza, la convivencia y la participación desde la vida cotidiana | N124: =IF(ISERROR(VLOOKUP(L124,Proposito_programa!$C$2:$E$59,3,FALSE))," ",VLOOKUP(L124,Proposito_programa!$C$2:$E$59,3,FALSE)) -> Propósito 3: Inspirar confianza y legitimidad para vivir sin miedo y ser epicentro de cultura ciudadana, paz y reconciliación | O124: 133011603430000001680 | P124: 1 | Q124: 28224210 | R124: MATILDE RAMIREZ GUEVARA | S124: Persona Natural | W124: 19800000 | Y124: 1 | Z124: 3080000 | AA124: 22880000 | AB124: 19726667 | AC124: 44253 | AD124: 44257 | AE124: 44574 | AF124: 270 | AG124: 1 | AH124: 42 | AO124: X | AQ124: 0.8621795017
A125: 1 | B125: 35 | C125: 2021 | D125: FDLRUU-CD-035-2021 | E125: https://community.secop.gov.co/Public/Tendering/OpportunityDetail/Index?noticeUID=CO1.NTC.1730118&isFromPublicArea=True&isModal=False | F125: Contratos de prestación de servicios profesionales y de apoyo a la gestión | G125: Contratación directa | H125: Prestación de servicios profesionales y de apoyo a la gestión, o para la ejecución de trabajos artísticos que sólo puedan encomendarse a determinadas personas naturales; | I125: APOYAR LA GESTIÓN DOCUMENTAL DE LA ALCALDÍA LOCAL PARA LA IMPLEMENTACIÓN DEL PROCESO DE VERIFICACIÓN, SOPORTE Y ACOMPAÑAMIENTO, EN EL DESARROLLO DE LAS ACTIVIDADES PROPIAS DE LOS PROCESOS Y ACTUACIONES ADMINISTRATIVAS EXISTENTES | J125: Inversión | K125: Un Nuevo Contrato Social y Ambiental para la Bogotá del Siglo XXI | L125: 57 | M125: =IF(ISERROR(VLOOKUP(L125,Proposito_programa!$C$2:$E$59,2,FALSE))," ",VLOOKUP(L125,Proposito_programa!$C$2:$E$59,2,FALSE)) -> Gestión pública local | N125: =IF(ISERROR(VLOOKUP(L125,Proposito_programa!$C$2:$E$59,3,FALSE))," ",VLOOKUP(L125,Proposito_programa!$C$2:$E$59,3,FALSE)) -> Propósito 5: Construir Bogotá - Región con gobierno abierto, transparente y ciudadanía consciente | O125: 133011605570000001698 | P125: 1 | Q125: 52442869 | R125: MATILDE DEL PILAR CAMARGO PINTO | S125: Persona Natural | W125: 33000000 | Y125: 1 | Z125: 3740000 | AA125: 36740000 | AB125: 32120000 | AC125: 44232 | AD125: 44236 | AE125: 44574 | AF125: 300 | AG125: 1 | AH125: 35 | AO125: X | AQ125: 0.874251497
A126: 1 | B126: 59 | C126: 2021 | D126: FDLRUU-CD-059-2021 | E126: https://community.secop.gov.co/Public/Tendering/OpportunityDetail/Index?noticeUID=CO1.NTC.1744348&isFromPublicArea=True&isModal=False | F126: Contratos de prestación de servicios profesionales y de apoyo a la gestión | G126: Contratación directa | H126: Prestación de servicios profesionales y de apoyo a la gestión, o para la ejecución de trabajos artísticos que sólo puedan encomendarse a determinadas personas naturales; | I126: APOYAR LAS LABORES DE ENTREGA Y RECIBO DE LAS COMUNICACIONES EMITIDAS O RECIBIDAS POR LA ALCALDÍA LOCAL DE RAFAEL URIBE URIBE | J126: Inversión | K126: Un Nuevo Contrato Social y Ambiental para la Bogotá del Siglo XXI | L126: 57 | M126: =IF(ISERROR(VLOOKUP(L126,Proposito_programa!$C$2:$E$59,2,FALSE))," ",VLOOKUP(L126,Proposito_programa!$C$2:$E$59,2,FALSE)) -> Gestión pública local | N126: =IF(ISERROR(VLOOKUP(L126,Proposito_programa!$C$2:$E$59,3,FALSE))," ",VLOOKUP(L126,Proposito_programa!$C$2:$E$59,3,FALSE)) -> Propósito 5: Construir Bogotá - Región con gobierno abierto, transparente y ciudadanía consciente | O126: 133011605570000001697 | P126: 1 | Q126: 52199191 | R126: MARTHA YANETH PRADO SANCHEZ | S126: Persona Natural | W126: 26000000 | Y126: 1 | Z126: 2860000 | AA126: 28860000 | AB126: 25220000 | AC126: 44236 | AD126: 44237 | AE126: 44573 | AF126: 300 | AG126: 1 | AH126: 33 | AO126: X | AQ126: 0.8738738739
A127: 1 | B127: 143 | C127: 2021 | D127: FDLRUU-CD-143-2021 | E127: https://community.secop.gov.co/Public/Tendering/OpportunityDetail/Index?noticeUID=CO1.NTC.1799782&isFromPublicArea=True&isModal=False | F127: Contratos de prestación de servicios profesionales y de apoyo a la gestión | G127: Contratación directa | H127: Prestación de servicios profesionales y de apoyo a la gestión, o para la ejecución de trabajos artísticos que sólo puedan encomendarse a determinadas personas naturales; | I127: COORDINAR, LIDERAR Y ASESORAR LOS PLANES Y ESTRATEGIAS DE COMUNICACIÓN INTERNA Y EXTERNA PARA LA DIVULGACIÓN DE LOS PROGRAMAS, PROYECTOS Y ACTIVIDADES DE LA ALCALDÍA LOCAL DE RAFAEL URIBE URIBE | J127: Inversión | K127: Un Nuevo Contrato Social y Ambiental para la Bogotá del Siglo XXI | L127: 57 | M127: =IF(ISERROR(VLOOKUP(L127,Proposito_programa!$C$2:$E$59,2,FALSE))," ",VLOOKUP(L127,Proposito_programa!$C$2:$E$59,2,FALSE)) -> Gestión pública local | N127: =IF(ISERROR(VLOOKUP(L127,Proposito_programa!$C$2:$E$59,3,FALSE))," ",VLOOKUP(L127,Proposito_programa!$C$2:$E$59,3,FALSE)) -> Propósito 5: Construir Bogotá - Región con gobierno abierto, transparente y ciudadanía consciente | O127: 133011605570000001697 | P127: 1 | Q127: 50868594 | R127: MARTHA LUCÍA AGAMEZ VILLEGAS | S127: Persona Natural | W127: 67000000 | AA127: 67000000 | AB127: 56503333 | AC127: 44265 | AD127: 44273 | AE127: 44578 | AF127: 300 | AO127: X | AQ127: 0.8433333284
A128: 1 | B128: 84 | C128: 2021 | D128: FDLRUU-CD-084-2021 | E128: https://community.secop.gov.co/Public/Tendering/ContractNoticePhases/View?PPI=CO1.PPI.12004471&isFromPublicArea=True&isModal=False | F128: Contratos de prestación de servicios profesionales y de apoyo a la gestión | G128: Contratación directa | H128: Prestación de servicios profesionales y de apoyo a la gestión, o para la ejecución de trabajos artísticos que sólo puedan encomendarse a determinadas personas naturales; | I128: EL CONTRATISTA SE OBLIGAA PRESTAR SUS SERVICIOS PROFESIONALES EN EL ÁREA DE GESTIÓN DEL DESARROLLO LOCAL -PLANEACIÓN, REALIZANDO LAS ACTIVIDADES PROPIAS PARA LA FORMULACION, EJECUCIÓN Y SEGUIMIENTO DE LOS PROYECTOS DE INVERSIÓN DEL PLAN DE DESARROLLO LOCAL 2021 - 2024 | J128: Inversión | K128: Un Nuevo Contrato Social y Ambiental para la Bogotá del Siglo XXI | L128: 57 | M128: =IF(ISERROR(VLOOKUP(L128,Proposito_programa!$C$2:$E$59,2,FALSE))," ",VLOOKUP(L128,Proposito_programa!$C$2:$E$59,2,FALSE)) -> Gestión pública local | N128: =IF(ISERROR(VLOOKUP(L128,Proposito_programa!$C$2:$E$59,3,FALSE))," ",VLOOKUP(L128,Proposito_programa!$C$2:$E$59,3,FALSE)) -> Propósito 5: Construir Bogotá - Región con gobierno abierto, transparente y ciudadanía consciente | O128: 133011605570000001697 | P128: 1 | Q128: 1075267896 | R128: MARTHA LILIANA SILVA ESQUIVEL | S128: Persona Natural | W128: 52000000 | Y128: 1 | Z128: 5546667 | AA128: 57546667 | AB128: 50093333 | AC128: 44238 | AD128: 44239 | AE128: 44574 | AF128: 300 | AG128: 1 | AH128: 32 | AO128: X | AQ128: 0.8704819169
A129: 1 | B129: 184 | C129: 2021 | D129: FDLRUU-CD-184-2021 | E129: https://community.secop.gov.co/Public/Tendering/OpportunityDetail/Index?noticeUID=CO1.NTC.1827668&isFromPublicArea=True&isModal=False | F129: Contratos de prestación de servicios profesionales y de apoyo a la gestión | G129: Contratación directa | H129: Prestación de servicios profesionales y de apoyo a la gestión, o para la ejecución de trabajos artísticos que sólo puedan encomendarse a determinadas personas naturales; | I129: PRESTAR LOS SERVICIOS PROFESIONALES AL DESPACHO DE LA ALCALDÍA LOCAL DE RAFAEL URIBE URIBE EN EL ANÁLISIS, TRÁMITE, CONCEPTUALIZACIÓN DE ACCIONES Y LINEAMIENTOS EN LOS PROCESOS DE LA GESTIÓN PÚBLICA QUE SE REQUIERA | J129: Inversión | K129: Un Nuevo Contrato Social y Ambiental para la Bogotá del Siglo XXI | L129: 57 | M129: =IF(ISERROR(VLOOKUP(L129,Proposito_programa!$C$2:$E$59,2,FALSE))," ",VLOOKUP(L129,Proposito_programa!$C$2:$E$59,2,FALSE)) -> Gestión pública local | N129: =IF(ISERROR(VLOOKUP(L129,Proposito_programa!$C$2:$E$59,3,FALSE))," ",VLOOKUP(L129,Proposito_programa!$C$2:$E$59,3,FALSE)) -> Propósito 5: Construir Bogotá - Región con gobierno abierto, transparente y ciudadanía consciente | O129: 133011605570000001697 | P129: 1 | Q129: 51949741 | R129: MARTHA CECILIA PRIETO LOZANO | S129: Persona Natural | W129: 31200000 | Y129: 1 | Z129: 15600000 | AA129: 46800000 | AB129: 45240000 | AC129: 44263 | AD129: 44265 | AE129: 44539 | AF129: 180 | AG129: 1 | AH129: 90 | AO129: X | AQ129: 0.9666666667
A130: 1 | B130: 75 | C130: 2021 | D130: FDLRUU-CD-075-2021 | E130: https://community.secop.gov.co/Public/Tendering/OpportunityDetail/Index?noticeUID=CO1.NTC.1757055&isFromPublicArea=True&isModal=False | F130: Contratos de prestación de servicios profesionales y de apoyo a la gestión | G130: Contratación directa | H130: Prestación de servicios profesionales y de apoyo a la gestión, o para la ejecución de trabajos artísticos que sólo puedan encomendarse a determinadas personas naturales; | I130: APOYAR LAS LABORES DE ENTREGA Y RECIBO DE LAS COMUNICACIONES EMITIDAS O RECIBIDAS POR LA ALCALDÍA LOCAL DE RAFAEL URIBE URIBE | J130: Inversión | K130: Un Nuevo Contrato Social y Ambiental para la Bogotá del Siglo XXI | L130: 57 | M130: =IF(ISERROR(VLOOKUP(L130,Proposito_programa!$C$2:$E$59,2,FALSE))," ",VLOOKUP(L130,Proposito_programa!$C$2:$E$59,2,FALSE)) -> Gestión pública local | N130: =IF(ISERROR(VLOOKUP(L130,Proposito_programa!$C$2:$E$59,3,FALSE))," ",VLOOKUP(L130,Proposito_programa!$C$2:$E$59,3,FALSE)) -> Propósito 5: Construir Bogotá - Región con gobierno abierto, transparente y ciudadanía consciente | O130: 133011605570000001697 | P130: 1 | Q130: 1052388338 | R130: MARLON ALEJANDRO LEAL PENAGOS | S130: Persona Natural | W130: 26000000 | Y130: 1 | Z130: 2513333 | AA130: 28513333 | AB130: 24786667 | AC130: 44238 | AD130: 44242 | AE130: 44574 | AF130: 300 | AG130: 1 | AH130: 29 | AO130: X | AQ130: 0.8693009337
A131: 1 | B131: 130 | C131: 2021 | D131: FDLRUU-CD-130-2021 | E131: https://community.secop.gov.co/Public/Tendering/OpportunityDetail/Index?noticeUID=CO1.NTC.1783203&isFromPublicArea=True&isModal=False | F131: Contratos de prestación de servicios profesionales y de apoyo a la gestión | G131: Contratación directa | H131: Prestación de servicios profesionales y de apoyo a la gestión, o para la ejecución de trabajos artísticos que sólo puedan encomendarse a determinadas personas naturales; | I131: APOYAR LA FORMULACIÓN, GESTIÓN Y SEGUIMIENTO DE ACTIVIDADES ENFOCADAS A LA GESTIÓN AMBIENTAL EXTERNA, ENCAMINADAS A LA MITIGACIÓN DE LOS DIFERENTES IMPACTOS AMBIENTALES Y LA CONSERVACIÓN DE LOS RECURSOS NATURALES DE LA LOCALIDAD | J131: Inversión | K131: Un Nuevo Contrato Social y Ambiental para la Bogotá del Siglo XXI | L131: 57 | M131: =IF(ISERROR(VLOOKUP(L131,Proposito_programa!$C$2:$E$59,2,FALSE))," ",VLOOKUP(L131,Proposito_programa!$C$2:$E$59,2,FALSE)) -> Gestión pública local | N131: =IF(ISERROR(VLOOKUP(L131,Proposito_programa!$C$2:$E$59,3,FALSE))," ",VLOOKUP(L131,Proposito_programa!$C$2:$E$59,3,FALSE)) -> Propósito 5: Construir Bogotá - Región con gobierno abierto, transparente y ciudadanía consciente | O131: 133011605570000001697 | P131: 1 | Q131: 52538287 | R131: MARIBEL PEÑA PRIETO | S131: Persona Natural | W131: 52000000 | AA131: 52000000 | AB131: 48880000 | AC131: 44246 | AD131: 44246 | AE131: 44548 | AF131: 300 | AO131: X | AQ131: 0.94
A132: 1 | B132: 89 | C132: 2021 | D132: FDLRUU-CD-089-2021 | E132: https://community.secop.gov.co/Public/Tendering/OpportunityDetail/Index?noticeUID=CO1.NTC.1756731&isFromPublicArea=True&isModal=False | F132: Contratos de prestación de servicios profesionales y de apoyo a la gestión | G132: Contratación directa | H132: Prestación de servicios profesionales y de apoyo a la gestión, o para la ejecución de trabajos artísticos que sólo puedan encomendarse a determinadas personas naturales; | I132: EL CONTRATISTA SE OBLIGA A PRESTAR SUS SERVICIOS PROFESIONALES EN EL ÁREA DE GESTIÓN DEL DESARROLLO LOCAL - PLANEACIÓN, REALIZANDO LAS ACTIVIDADES PROPIAS PARA LA FORMULACION, EJECUCIÓN Y SEGUIMIENTO DE LOS PROYECTOS DE INVERSIÓN DEL PLAN DE DESARROLLO LOCAL 2021 - 2024 | J132: Inversión | K132: Un Nuevo Contrato Social y Ambiental para la Bogotá del Siglo XXI | L132: 57 | M132: =IF(ISERROR(VLOOKUP(L132,Proposito_programa!$C$2:$E$59,2,FALSE))," ",VLOOKUP(L132,Proposito_programa!$C$2:$E$59,2,FALSE)) -> Gestión pública local | N132: =IF(ISERROR(VLOOKUP(L132,Proposito_programa!$C$2:$E$59,3,FALSE))," ",VLOOKUP(L132,Proposito_programa!$C$2:$E$59,3,FALSE)) -> Propósito 5: Construir Bogotá - Región con gobierno abierto, transparente y ciudadanía consciente | O132: 133011605570000001697 | P132: 1 | Q132: 1014213321 | R132: MARIBEL NEUSA SOTELO | S132: Persona Natural | W132: 52000000 | Y132: 1 | Z132: 4853333 | AA132: 56853333 | AB132: 49400000 | AC132: 44239 | AD132: 44243 | AE132: 44574 | AF132: 300 | AG132: 1 | AH132: 28 | AO132: X | AQ132: 0.8689024441
A133: 1 | B133: 5 | C133: 2021 | D133: FDLRUU-CD-005-2021 | E133: https://community.secop.gov.co/Public/Tendering/OpportunityDetail/Index?noticeUID=CO1.NTC.1685058&isFromPublicArea=True&isModal=False | F133: Contratos de prestación de servicios profesionales y de apoyo a la gestión | G133: Contratación directa | H133: Prestación de servicios profesionales y de apoyo a la gestión, o para la ejecución de trabajos artísticos que sólo puedan encomendarse a determinadas personas naturales; | I133: APOYAR JURÍDICAMENTE LA EJECUCIÓN DE LAS ACCIONES REQUERIDAS PARA LA DEPURACIÓN DE LAS ACTUACIONES ADMINISTRATIVAS QUE CURSAN EN LA ALCALDÍA LOCAL | J133: Inversión | K133: Un Nuevo Contrato Social y Ambiental para la Bogotá del Siglo XXI | L133: 57 | M133: =IF(ISERROR(VLOOKUP(L133,Proposito_programa!$C$2:$E$59,2,FALSE))," ",VLOOKUP(L133,Proposito_programa!$C$2:$E$59,2,FALSE)) -> Gestión pública local | N133: =IF(ISERROR(VLOOKUP(L133,Proposito_programa!$C$2:$E$59,3,FALSE))," ",VLOOKUP(L133,Proposito_programa!$C$2:$E$59,3,FALSE)) -> Propósito 5: Construir Bogotá - Región con gobierno abierto, transparente y ciudadanía consciente | O133: 133011605570000001698 | P133: 1 | Q133: 51654246 | R133: MARIA LUISA PARRA SANCHEZ | S133: Persona Natural | W133: 31200000 | Y133: 1 | Z133: 15600000 | AA133: 46800000 | AB133: 46800000 | AC133: 44221 | AD133: 44225 | AE133: 44497 | AF133: 180 | AG133: 1 | AH133: 90 | AO133: X | AQ133: 1
A134: 1 | B134: 412 | C134: 2020 | D134: FDLRUU-CD-412-2020 | E134: https://community.secop.gov.co/Public/Tendering/ContractNoticePhases/View?PPI=CO1.PPI.10945304&isFromPublicArea=True&isModal=False | F134: Arrendamiento de bienes inmuebles | G134: Contratación directa | H134: El arrendamiento o adquisición de inmuebles | I134: CONTRATAR EL ARRENDAMIENTO DE UN ÁREA QUE SIRVA COMO ESTACIONAMIENTO DE LOS VEHÍCULOS Y LA MAQUINARIA PESADA A CARGO DEL FONDO DE DESARROLLO LOCAL RAFAEL URIBE URIBE” | J134: Inversión | K134: Un Nuevo Contrato Social y Ambiental para la Bogotá del Siglo XXI | L134: 49 | M134: =IF(ISERROR(VLOOKUP(L134,Proposito_programa!$C$2:$E$59,2,FALSE))," ",VLOOKUP(L134,Proposito_programa!$C$2:$E$59,2,FALSE)) -> Movilidad segura, sostenible y accesible | N134: =IF(ISERROR(VLOOKUP(L134,Proposito_programa!$C$2:$E$59,3,FALSE))," ",VLOOKUP(L134,Proposito_programa!$C$2:$E$59,3,FALSE)) -> Propósito 4: Hacer de Bogotá Región un modelo de movilidad multimodal, incluyente y sostenible | O134: 133011604490000001685 | P134: 1 | Q134: 35489792 | R134: MARIA HELENA ROSAS MELO | S134: Persona Natural | Y134: 1 | Z134: 4167224 | AA134: 4167224 | AB134: 0 | AC134: 44406 | AD134: 44406 | AE134: 44581 | AF134: 400 | AG134: 1 | AH134: 40 | AN134: X | AQ134: 0
A135: 1 | B135: 31 | C135: 2021 | D135: FDLRUU-CD-031-2021 | E135: https://community.secop.gov.co/Public/Tendering/OpportunityDetail/Index?noticeUID=CO1.NTC.1725615&isFromPublicArea=True&isModal=False | F135: Contratos de prestación de servicios profesionales y de apoyo a la gestión | G135: Contratación directa | H135: Prestación de servicios profesionales y de apoyo a la gestión, o para la ejecución de trabajos artísticos que sólo puedan encomendarse a determinadas personas naturales; | I135: PRESTAR LOS SERVICIOS PROFESIONALES PARA LA OPERACIÓN, PRESTACIÓN, SEGUIMIENTO Y CUMPLIMIENTO PROCEDIMIENTOS ADMINISTRATIVOS OPERATIVOS Y PROGRAMÁTICOS DEL SERVICIO APOYO ECONÓMICO TIPO C, QUE CONTRIBUYAN A LA GARANTÍA DE LOS DERECHOS DE LA POBLACIÓN MAYOR EN EL MARCO DE LA POLÍTICA PÚBLICA SOCIAL PARA EL ENVEJECIMIENTO Y LA VEJEZ EN EL DISTRITO CAPITAL A CARGO DE LA ALCALDÍA LOCAL RAFAEL URIBE URIBE | J135: Inversión | K135: Un Nuevo Contrato Social y Ambiental para la Bogotá del Siglo XXI | L135: 1 | M135: =IF(ISERROR(VLOOKUP(L135,Proposito_programa!$C$2:$E$59,2,FALSE))," ",VLOOKUP(L135,Proposito_programa!$C$2:$E$59,2,FALSE)) -> Subsidios y transferencias para la equidad | N135: =IF(ISERROR(VLOOKUP(L135,Proposito_programa!$C$2:$E$59,3,FALSE))," ",VLOOKUP(L135,Proposito_programa!$C$2:$E$59,3,FALSE)) -> Propósito 1: Hacer un nuevo contrato social para incrementar la inclusión social, productiva y política | O135: 133011601010000001636 | P135: 1 | Q135: 1014187761 | R135: MARIA DEL PILAR VARGAS TALERO | S135: Persona Natural | W135: 41600000 | AA135: 41600000 | AB135: 24960000 | AC135: 44230 | AD135: 44232 | AE135: 44630 | AF135: 240 | AN135: X | AQ135: 0.6
A136: 1 | B136: 297 | C136: 2021 | D136: FDLRUU-CD-297-2021 | E136: https://community.secop.gov.co/Public/Tendering/OpportunityDetail/Index?noticeUID=CO1.NTC.2292807&isFromPublicArea=True&isModal=False | F136: Contratos de prestación de servicios profesionales y de apoyo a la gestión | G136: Contratación directa | H136: Prestación de servicios profesionales y de apoyo a la gestión, o para la ejecución de trabajos artísticos que sólo puedan encomendarse a determinadas personas naturales; | I136: PRESTAR SERVICIOS PROFESIONALES PARA REALIZAR ACUERDOS QUE PROMUEVAN LA PARTICIPACION DE LA POBLACION VULNERABLE, QUE GENEREN EMPRENDIMIENTOS FORMALIZADOS QUE COADYUVEN AL DESARROLLO ECONOMICO Y PRODUCTIVO DE ESTA POBLACION EN EL MARCO DEL PROYECTO DE INVERSION 1681 | J136: Inversión | K136: Un Nuevo Contrato Social y Ambiental para la Bogotá del Siglo XXI | L136: 45 | M136: =IF(ISERROR(VLOOKUP(L136,Proposito_programa!$C$2:$E$59,2,FALSE))," ",VLOOKUP(L136,Proposito_programa!$C$2:$E$59,2,FALSE)) -> Espacio público más seguro y construido colectivamente | N136: =IF(ISERROR(VLOOKUP(L136,Proposito_programa!$C$2:$E$59,3,FALSE))," ",VLOOKUP(L136,Proposito_programa!$C$2:$E$59,3,FALSE)) -> Propósito 3: Inspirar confianza y legitimidad para vivir sin miedo y ser epicentro de cultura ciudadana, paz y reconciliación | O136: 133011603450000001681 | P136: 1 | Q136: 51964213 | R136: MARIA DE LOS ANGELES ORJUELA | S136: Persona Natural | W136: 20000000 | AA136: 20000000 | AB136: 8333333 | AC136: 44474 | AD136: 44480 | AE136: 44602 | AF136: 120 | AN136: X | AQ136: 0.41666665
A137: 1 | B137: 187 | C137: 2021 | D137: FDLRUU-CD-187-2021 | E137: https://community.secop.gov.co/Public/Tendering/OpportunityDetail/Index?noticeUID=CO1.NTC.1827700&isFromPublicArea=True&isModal=False | F137: Contratos de prestación de servicios profesionales y de apoyo a la gestión | G137: Contratación directa | H137: Prestación de servicios profesionales y de apoyo a la gestión, o para la ejecución de trabajos artísticos que sólo puedan encomendarse a determinadas personas naturales; | I137: PRESTAR LOS SERVICIOS PROFESIONALES DE APOYO JURIDICO AL AREA DE GESTION POLICIVA NORMATIVA Y JURIDICA DE LA ALCALDIA LOCAL DE RAFAEL URIBE URIBE EN EL DESEMPEÑO DE LAS FUNCIONES ASIGNADAS A LA ALCALDÍA LOCAL DE RAFAEL URIBE URIBE. | J137: Inversión | K137: Un Nuevo Contrato Social y Ambiental para la Bogotá del Siglo XXI | L137: 57 | M137: =IF(ISERROR(VLOOKUP(L137,Proposito_programa!$C$2:$E$59,2,FALSE))," ",VLOOKUP(L137,Proposito_programa!$C$2:$E$59,2,FALSE)) -> Gestión pública local | N137: =IF(ISERROR(VLOOKUP(L137,Proposito_programa!$C$2:$E$59,3,FALSE))," ",VLOOKUP(L137,Proposito_programa!$C$2:$E$59,3,FALSE)) -> Propósito 5: Construir Bogotá - Región con gobierno abierto, transparente y ciudadanía consciente | O137: 133011605570000001698 | P137: 1 | Q137: 1121832284 | R137: MARIA CATALINA ALVAREZ RAMIREZ | S137: Persona Natural | W137: 62000000 | AA137: 62000000 | AB137: 52700000 | AC137: 44263 | AD137: 44271 | AE137: 44576 | AF137: 300 | AO137: X | AQ137: 0.85
A138: 1 | B138: 118 | C138: 2021 | D138: FDLRUU-CD-118-2021 | E138: https://community.secop.gov.co/Public/Tendering/OpportunityDetail/Index?noticeUID=CO1.NTC.1776152&isFromPublicArea=True&isModal=False | F138: Contratos de prestación de servicios profesionales y de apoyo a la gestión | G138: Contratación directa | H138: Prestación de servicios profesionales y de apoyo a la gestión, o para la ejecución de trabajos artísticos que sólo puedan encomendarse a determinadas personas naturales; | I138: APOYAR ADMINISTRATIVA Y ASISTENCIALMENTE AL ÁREA DE GESTION DE DESARROLLO LOCAL - CONTRATACIÓN DE LA ALCALDÍA LOCAL DE RAFAEL URIBE URIBE | J138: Inversión | K138: Un Nuevo Contrato Social y Ambiental para la Bogotá del Siglo XXI | L138: 57 | M138: =IF(ISERROR(VLOOKUP(L138,Proposito_programa!$C$2:$E$59,2,FALSE))," ",VLOOKUP(L138,Proposito_programa!$C$2:$E$59,2,FALSE)) -> Gestión pública local | N138: =IF(ISERROR(VLOOKUP(L138,Proposito_programa!$C$2:$E$59,3,FALSE))," ",VLOOKUP(L138,Proposito_programa!$C$2:$E$59,3,FALSE)) -> Propósito 5: Construir Bogotá - Región con gobierno abierto, transparente y ciudadanía consciente | O138: 133011605570000001697 | P138: 1 | Q138: 1031170465 | R138: MARIA ANGELICA VINCHIRA SANCHEZ | S138: Persona Natural | W138: 26000000 | AA138: 26000000 | AB138: 24093333 | AC138: 44246 | AD138: 44250 | AE138: 44552 | AF138: 300 | AO138: X | AQ138: 0.9266666538
A139: 1 | B139: 164 | C139: 2021 | D139: FDLRUU-CD-150-2021 | E139: https://community.secop.gov.co/Public/Tendering/OpportunityDetail/Index?noticeUID=CO1.NTC.1800149&isFromPublicArea=True&isModal=False | F139: Contratos de prestación de servicios profesionales y de apoyo a la gestión | G139: Contratación directa | H139: Prestación de servicios profesionales y de apoyo a la gestión, o para la ejecución de trabajos artísticos que sólo puedan encomendarse a determinadas personas naturales; | I139: EL CONTRATISTA SE OBLIGA CON EL FONDO DE DESARROLLO LOCAL DE RAFAEL URIBE URIBE A PRESTAR SUS SERVICIOS DE APOYO A LA GESTION LOCAL Y TERRITORIAL DE LOS TEMAS DE SEGURIDAD Y CONVIVENCIA CIUDADANA PARA LA ALCALDIA LOCAL DE RAFAEL URIBE URIBE | J139: Inversión | K139: Un Nuevo Contrato Social y Ambiental para la Bogotá del Siglo XXI | L139: 43 | M139: =IF(ISERROR(VLOOKUP(L139,Proposito_programa!$C$2:$E$59,2,FALSE))," ",VLOOKUP(L139,Proposito_programa!$C$2:$E$59,2,FALSE)) -> Cultura ciudadana para la confianza, la convivencia y la participación desde la vida cotidiana | N139: =IF(ISERROR(VLOOKUP(L139,Proposito_programa!$C$2:$E$59,3,FALSE))," ",VLOOKUP(L139,Proposito_programa!$C$2:$E$59,3,FALSE)) -> Propósito 3: Inspirar confianza y legitimidad para vivir sin miedo y ser epicentro de cultura ciudadana, paz y reconciliación | O139: 133011603430000001680 | P139: 1 | Q139: 1015477634 | R139: MARIA ALEJANDRA CARVAJAL AVELLANEDA | S139: Persona Natural | W139: 19800000 | AA139: 19800000 | AB139: 18626667 | AC139: 44271 | AD139: 44272 | AE139: 44546 | AF139: 270 | AO139: X | AQ139: 0.9407407576
A140: 1 | B140: 29 | C140: 2021 | D140: FLDRUU-CD-029-2021 | E140: https://community.secop.gov.co/Public/Tendering/OpportunityDetail/Index?noticeUID=CO1.NTC.1722938&isFromPublicArea=True&isModal=False | F140: Contratos de prestación de servicios profesionales y de apoyo a la gestión | G140: Contratación directa | H140: Prestación de servicios profesionales y de apoyo a la gestión, o para la ejecución de trabajos artísticos que sólo puedan encomendarse a determinadas personas naturales; | I140: PRESTAR SERVICIOS PROFESIONALES ESPECIALIZADOS AL DESPACHO DEL ALCALDE LOCAL EN LA FORMULACIÓN E IMPLEMENTACIÓN DE ESTRATEGIAS INTERINSTITUCIONALES EN ASPECTOS ECONOMICOS, SOCIALES Y CULTURALES, QUE IMPACTEN EN LA LOCALIDAD RAFAEL URIBE URIB | J140: Inversión | K140: Un Nuevo Contrato Social y Ambiental para la Bogotá del Siglo XXI | L140: 57 | M140: =IF(ISERROR(VLOOKUP(L140,Proposito_programa!$C$2:$E$59,2,FALSE))," ",VLOOKUP(L140,Proposito_programa!$C$2:$E$59,2,FALSE)) -> Gestión pública local | N140: =IF(ISERROR(VLOOKUP(L140,Proposito_programa!$C$2:$E$59,3,FALSE))," ",VLOOKUP(L140,Proposito_programa!$C$2:$E$59,3,FALSE)) -> Propósito 5: Construir Bogotá - Región con gobierno abierto, transparente y ciudadanía consciente | O140: 133011605570000001697 | P140: 1 | Q140: 30237285 | R140: MANUELITA ARIAS GIRALDO | S140: Persona Natural | W140: 75000000 | AA140: 75000000 | AB140: 74250000 | AC140: 44230 | AD140: 44231 | AE140: 44533 | AF140: 300 | AI140: 1143326992 | AJ140: JOSE DAVID RODRGUEZ MENDOZA | AK140: 31/07/2021, -31/08/2021 | AL140: 23250000 | AO140: X | AQ140: 0.99
A141: 1 | B141: 151 | C141: 2021 | D141: FDLRUU-CD-150-2021 | E141: https://community.secop.gov.co/Public/Tendering/OpportunityDetail/Index?noticeUID=CO1.NTC.1800149&isFromPublicArea=True&isModal=False | F141: Contratos de prestación de servicios profesionales y de apoyo a la gestión | G141: Contratación directa | H141: Prestación de servicios profesionales y de apoyo a la gestión, o para la ejecución de trabajos artísticos que sólo puedan encomendarse a determinadas personas naturales; | I141: EL CONTRATISTA SE OBLIGA CON EL FONDO DE DESARROLLO LOCAL DE RAFAEL URIBE URIBE A PRESTAR SUS SERVICIOS DE APOYO A LA GESTION LOCAL Y TERRITORIAL DE LOS TEMAS DE SEGURIDAD Y CONVIVENCIA CIUDADANA PARA LA ALCALDIA LOCAL DE RAFAEL URIBE URIBE | J141: Inversión | K141: Un Nuevo Contrato Social y Ambiental para la Bogotá del Siglo XXI | L141: 43 | M141: =IF(ISERROR(VLOOKUP(L141,Proposito_programa!$C$2:$E$59,2,FALSE))," ",VLOOKUP(L141,Proposito_programa!$C$2:$E$59,2,FALSE)) -> Cultura ciudadana para la confianza, la convivencia y la participación desde la vida cotidiana | N141: =IF(ISERROR(VLOOKUP(L141,Proposito_programa!$C$2:$E$59,3,FALSE))," ",VLOOKUP(L141,Proposito_programa!$C$2:$E$59,3,FALSE)) -> Propósito 3: Inspirar confianza y legitimidad para vivir sin miedo y ser epicentro de cultura ciudadana, paz y reconciliación | O141: 133011603430000001680 | P141: 1 | Q141: 1023882603 | R141: MANUEL DUVAN GONZALO VELASQUEZ GRACIA | S141: Persona Natural | W141: 19800000 | Y141: 1 | Z141: 3080000 | AA141: 22880000 | AB141: 19726667 | AC141: 44253 | AD141: 44257 | AE141: 44574 | AF141: 270 | AG141: 1 | AH141: 42 | AO141: X | AQ141: 0.8621795017
A142: 1 | B142: 88 | C142: 2021 | D142: FDLRUU-CD-088-2021 | E142: https://community.secop.gov.co/Public/Tendering/OpportunityDetail/Index?noticeUID=CO1.NTC.1755891&isFromPublicArea=True&isModal=False | F142: Contratos de prestación de servicios profesionales y de apoyo a la gestión | G142: Contratación directa | H142: Prestación de servicios profesionales y de apoyo a la gestión, o para la ejecución de trabajos artísticos que sólo puedan encomendarse a determinadas personas naturales; | I142: EL CONTRATISTA SE OBLIGA A PRESTAR SUS SERVICIOS PROFESIONALES EN EL ÁREA DE GESTIÓN DEL DESARROLLO LOCAL - PLANEACIÓN, REALIZANDO LAS ACTIVIDADES PROPIAS PARA LA FORMULACION, EJECUCIÓN Y SEGUIMIENTO DE LOS PROYECTOS DE INVERSIÓN DEL PLAN DE DESARROLLO LOCAL 2021 – 2024 RELACIONADOS CON LOS SECTORES HABITAT Y AMBIENTE | J142: Inversión | K142: Un Nuevo Contrato Social y Ambiental para la Bogotá del Siglo XXI | L142: 57 | M142: =IF(ISERROR(VLOOKUP(L142,Proposito_programa!$C$2:$E$59,2,FALSE))," ",VLOOKUP(L142,Proposito_programa!$C$2:$E$59,2,FALSE)) -> Gestión pública local | N142: =IF(ISERROR(VLOOKUP(L142,Proposito_programa!$C$2:$E$59,3,FALSE))," ",VLOOKUP(L142,Proposito_programa!$C$2:$E$59,3,FALSE)) -> Propósito 5: Construir Bogotá - Región con gobierno abierto, transparente y ciudadanía consciente | O142: 133011605570000001697 | P142: 1 | Q142: 1018475446 | R142: MAIRA ALEJANDRA MORENO LOZANO | S142: Persona Natural | W142: 52000000 | Y142: 1 | Z142: 5026667 | AA142: 57026667 | AB142: 49573333 | AC142: 44238 | AD142: 44242 | AE142: 44574 | AF142: 300 | AG142: 1 | AH142: 29 | AO142: X | AQ142: =IF(ISERROR(AB142/AA142),"-",(AB142/AA142)) -> 0.8693009009
A143: 1 | B143: 116 | C143: 2021 | D143: FDLRUU-CD-116-2021 | E143: https://community.secop.gov.co/Public/Tendering/OpportunityDetail/Index?noticeUID=CO1.NTC.1775977&isFromPublicArea=True&isModal=False | F143: Contratos de prestación de servicios profesionales y de apoyo a la gestión | G143: Contratación directa | H143: Prestación de servicios profesionales y de apoyo a la gestión, o para la ejecución de trabajos artísticos que sólo puedan encomendarse a determinadas personas naturales; | I143: EL CONTRATISTA SE OBLIGA A PRESTAR SUS SERVICIOS PROFESIONALES EN EL ÁREA DE GESTIÓN DEL DESARROLLO LOCAL - PLANEACIÓN, REALIZANDO LAS ACTIVIDADES PROPIAS PARA LA FORMULACION, EJECUCIÓN Y SEGUIMIENTO DE LOS PROYECTOS DE INVERSIÓN DEL PLAN DE DESARROLLO LOCAL 2021 - 2024 | J143: Inversión | K143: Un Nuevo Contrato Social y Ambiental para la Bogotá del Siglo XXI | L143: 57 | M143: =IF(ISERROR(VLOOKUP(L143,Proposito_programa!$C$2:$E$59,2,FALSE))," ",VLOOKUP(L143,Proposito_programa!$C$2:$E$59,2,FALSE)) -> Gestión pública local | N143: =IF(ISERROR(VLOOKUP(L143,Proposito_programa!$C$2:$E$59,3,FALSE))," ",VLOOKUP(L143,Proposito_programa!$C$2:$E$59,3,FALSE)) -> Propósito 5: Construir Bogotá - Región con gobierno abierto, transparente y ciudadanía consciente | O143: 133011605570000001697 | P143: 1 | Q143: 52415797 | R143: MAGDA ISABEL NIETO CASTRO | S143: Persona Natural | W143: 52000000 | AA143: 52000000 | AB143: 47840000 | AC143: 44245 | AD143: 44252 | AE143: 44554 | AF143: 300 | AI143: 1072072800 | AJ143: DIEGO HERNAN CALDERON URREGO | AK143: 44519 | AL143: 6240000 | AO143: X | AQ143: 0.92
A144: 1 | B144: 124 | C144: 2021 | D144: FDLRUU-CD-124-2021 | E144: https://community.secop.gov.co/Public/Tendering/OpportunityDetail/Index?noticeUID=CO1.NTC.1779949&isFromPublicArea=True&isModal=False | F144: Contratos de prestación de servicios profesionales y de apoyo a la gestión | G144: Contratación directa | H144: Prestación de servicios profesionales y de apoyo a la gestión, o para la ejecución de trabajos artísticos que sólo puedan encomendarse a determinadas personas naturales; | I144: PRESTAR LOS SERVICIOS PROFESIONALES PARA LA OPERACIÓN, SEGUIMIENTO Y CUMPLIMIENTO DE LOS PROCESOS Y PROCEDIMIENTOS DEL SERVICIO APOYO ECONÓMICO TIPO C, REQUERIDOS PARA EL OPORTUNO Y ADECUADO REGISTRO, CRUCE Y REPORTE DE LOS DATOS EN EL SISTEMA MISIONAL – SIRBE, QUE CONTRIBUYAN A LA GARANTÍA DE LOS DERECHOS DE LA POBLACIÓN MAYOR EN EL MARCO DE LA POLÍTICA PÚBLICA SOCIAL PARA EL ENVEJECIMIENTO Y LA VEJEZ EN EL DISTRITO CAPITAL A CARGO DE LA ALCALDÍA LOCAL | J144: Inversión | K144: Un Nuevo Contrato Social y Ambiental para la Bogotá del Siglo XXI | L144: 1 | M144: =IF(ISERROR(VLOOKUP(L144,Proposito_programa!$C$2:$E$59,2,FALSE))," ",VLOOKUP(L144,Proposito_programa!$C$2:$E$59,2,FALSE)) -> Subsidios y transferencias para la equidad | N144: =IF(ISERROR(VLOOKUP(L144,Proposito_programa!$C$2:$E$59,3,FALSE))," ",VLOOKUP(L144,Proposito_programa!$C$2:$E$59,3,FALSE)) -> Propósito 1: Hacer un nuevo contrato social para incrementar la inclusión social, productiva y política | O144: 133011601010000001636 | P144: 1 | Q144: 1018453055 | R144: LUZ MAGNOLIA TIRADO CUELLAR | S144: Persona Natural | W144: 41600000 | Y144: 1 | Z144: 14560000 | AA144: 56160000 | AB144: 48360000 | AC144: 44245 | AD144: 44249 | AE144: 44574 | AF144: 240 | AG144: 1 | AH144: 84 | AO144: X | AQ144: 0.8611111111
A145: 1 | B145: 74 | C145: 2021 | D145: FDLRUU-CD-074-2021 | E145: https://community.secop.gov.co/Public/Tendering/OpportunityDetail/Index?noticeUID=CO1.NTC.1756625&isFromPublicArea=True&isModal=False | F145: Contratos de prestación de servicios profesionales y de apoyo a la gestión | G145: Contratación directa | H145: Prestación de servicios profesionales y de apoyo a la gestión, o para la ejecución de trabajos artísticos que sólo puedan encomendarse a determinadas personas naturales; | I145: EL CONTRATISTA SE OBLIGA A PRESTAR SUS SERVICIOS PROFESIONALES EN EL ÁREA DE GESTIÓN DEL DESARROLLO LOCAL - PLANEACIÓN, REALIZANDO LAS ACTIVIDADES PROPIAS PARA LA FORMULACION, EJECUCIÓN Y SEGUIMIENTO DE LOS PROYECTOS DE INVERSIÓN DEL PLAN DE DESARROLLO LOCAL 2021 - 2024 | J145: Inversión | K145: Un Nuevo Contrato Social y Ambiental para la Bogotá del Siglo XXI | L145: 57 | M145: =IF(ISERROR(VLOOKUP(L145,Proposito_programa!$C$2:$E$59,2,FALSE))," ",VLOOKUP(L145,Proposito_programa!$C$2:$E$59,2,FALSE)) -> Gestión pública local | N145: =IF(ISERROR(VLOOKUP(L145,Proposito_programa!$C$2:$E$59,3,FALSE))," ",VLOOKUP(L145,Proposito_programa!$C$2:$E$59,3,FALSE)) -> Propósito 5: Construir Bogotá - Región con gobierno abierto, transparente y ciudadanía consciente | O145: 133011605570000001697 | P145: 1 | Q145: 52540489 | R145: LUZ ANGELA CORREA PARRADO | S145: Persona Natural | W145: 52000000 | AA145: 52000000 | AB145: 49573333 | AC145: 44238 | AD145: 44242 | AE145: 44544 | AF145: 300 | AO145: X | AQ145: 0.9533333269
A146: 1 | B146: 276 | C146: 2021 | D146: FDLRUU-CD-276-2021 | E146: https://community.secop.gov.co/Public/Tendering/OpportunityDetail/Index?noticeUID=CO1.NTC.2185517&isFromPublicArea=True&isModal=False | F146: Contratos de prestación de servicios profesionales y de apoyo a la gestión | G146: Contratación directa | H146: Prestación de servicios profesionales y de apoyo a la gestión, o para la ejecución de trabajos artísticos que sólo puedan encomendarse a determinadas personas naturales; | I146: PRESTAR SERVICIOS PROFESIONALES PARA REALIZAR ACUERDOS QUE PROMUEVAN LA PARTICIPACIÓN DE LA POBLACIÓN VULNERABLE, QUE GENEREN EMPRENDIMIENTOS FORMALIZADOS QUE COADYUVEN AL DESARROLLO ECONÓMICO Y PRODUCTIVO DE ESTA POBLACIÓN EN EL MARCO DEL PROYECTO DE INVERSIÓN 1681 | J146: Inversión | K146: Un Nuevo Contrato Social y Ambiental para la Bogotá del Siglo XXI | L146: 45 | M146: =IF(ISERROR(VLOOKUP(L146,Proposito_programa!$C$2:$E$59,2,FALSE))," ",VLOOKUP(L146,Proposito_programa!$C$2:$E$59,2,FALSE)) -> Espacio público más seguro y construido colectivamente | N146: =IF(ISERROR(VLOOKUP(L146,Proposito_programa!$C$2:$E$59,3,FALSE))," ",VLOOKUP(L146,Proposito_programa!$C$2:$E$59,3,FALSE)) -> Propósito 3: Inspirar confianza y legitimidad para vivir sin miedo y ser epicentro de cultura ciudadana, paz y reconciliación | O146: 133011603450000001681 | P146: 1 | Q146: 52169771 | R146: LUZ ADRIANA SALAMANCA PALACIOS | S146: Persona Natural | W146: 20000000 | AA146: 20000000 | AB146: 15166667 | AC146: 44431 | AD146: 44438 | AE146: 44559 | AF146: 120 | AI146: 1016075977 | AJ146: YEFERSON DANIEL PÁEZ MANCERA | AK146: 44494 | AL146: 10833333 | AO146: X | AQ146: 0.75833335
A147: 1 | B147: 92 | C147: 2021 | D147: FDLRUU-CD-092-2021 | E147: https://community.secop.gov.co/Public/Tendering/OpportunityDetail/Index?noticeUID=CO1.NTC.1760146&isFromPublicArea=True&isModal=False | F147: Contratos de prestación de servicios profesionales y de apoyo a la gestión | G147: Contratación directa | H147: Prestación de servicios profesionales y de apoyo a la gestión, o para la ejecución de trabajos artísticos que sólo puedan encomendarse a determinadas personas naturales; | I147: “PRESTAR LOS SERVICIOS PROFESIONALES PARA ACOMPAÑAR LOS PROCESOS DE FORMULACION, EVALUACIÓN Y SEGUIMIENTO DE LOS PROYECTOS DE INFRAESTRUCTURA, MALLA VIAL, SALONES COMUNALES, MITIGACION ESPACIO PÚBLICO Y PARQUES DE LA LOCALIDAD DE RAFAEL URIBE URIBE”. | J147: Inversión | K147: Un Nuevo Contrato Social y Ambiental para la Bogotá del Siglo XXI | L147: 57 | M147: =IF(ISERROR(VLOOKUP(L147,Proposito_programa!$C$2:$E$59,2,FALSE))," ",VLOOKUP(L147,Proposito_programa!$C$2:$E$59,2,FALSE)) -> Gestión pública local | N147: =IF(ISERROR(VLOOKUP(L147,Proposito_programa!$C$2:$E$59,3,FALSE))," ",VLOOKUP(L147,Proposito_programa!$C$2:$E$59,3,FALSE)) -> Propósito 5: Construir Bogotá - Región con gobierno abierto, transparente y ciudadanía consciente | O147: 133011605570000001697 | P147: 1 | Q147: 1020755560 | R147: LUISA FERNANDA CHAVES MANRIQUE | S147: Persona Natural | W147: 57000000 | Y147: 1 | Z147: 5510000 | AA147: =+W147+X147+Z147 -> 62510000 | AB147: 54340000 | AC147: 44239 | AD147: 44242 | AE147: 44574 | AF147: 300 | AG147: 1 | AH147: 29 | AO147: X | AQ147: 0.8693009119
A148: 1 | B148: 63 | C148: 2021 | D148: FDLRUU-CD-063-2021 | E148: https://community.secop.gov.co/Public/Tendering/OpportunityDetail/Index?noticeUID=CO1.NTC.1744914&isFromPublicArea=True&isModal=False | F148: Contratos de prestación de servicios profesionales y de apoyo a la gestión | G148: Contratación directa | H148: Prestación de servicios profesionales y de apoyo a la gestión, o para la ejecución de trabajos artísticos que sólo puedan encomendarse a determinadas personas naturales; | I148: EL CONTRATISTA SE OBLIGA A PRESTAR SUS SERVICIOS PROFESIONALES EN EL APOYO A LOS TRÁMITES Y PROCEDIMIENTOS ADELANTADOS EN EL ÁREA DE GESTIÓN DE DESARROLLO LOCAL - PRESUPUESTO- DEL FONDO DE DESARROLLO LOCAL DE RAFAEL URIBE URIBE | J148: Inversión | K148: Un Nuevo Contrato Social y Ambiental para la Bogotá del Siglo XXI | L148: 57 | M148: =IF(ISERROR(VLOOKUP(L148,Proposito_programa!$C$2:$E$59,2,FALSE))," ",VLOOKUP(L148,Proposito_programa!$C$2:$E$59,2,FALSE)) -> Gestión pública local | N148: =IF(ISERROR(VLOOKUP(L148,Proposito_programa!$C$2:$E$59,3,FALSE))," ",VLOOKUP(L148,Proposito_programa!$C$2:$E$59,3,FALSE)) -> Propósito 5: Construir Bogotá - Región con gobierno abierto, transparente y ciudadanía consciente | O148: 133011605570000001697 | P148: 1 | Q148: 79489811 | R148: LUIS JONNY CARRILLO BOMBIELA | S148: Persona Natural | W148: 52000000 | Y148: 1 | Z148: 5720000 | AA148: 57720000 | AB148: 50440000 | AC148: 44236 | AD148: 44237 | AE148: 44573 | AF148: 300 | AG148: 1 | AH148: 33 | AO148: X | AQ148: 0.8738738739
A149: 1 | B149: 149 | C149: 2021 | D149: FDLRUU-CD-149-2021 | E149: https://community.secop.gov.co/Public/Tendering/OpportunityDetail/Index?noticeUID=CO1.NTC.1801677&isFromPublicArea=True&isModal=False | F149: Contratos de prestación de servicios profesionales y de apoyo a la gestión | G149: Contratación directa | H149: Prestación de servicios profesionales y de apoyo a la gestión, o para la ejecución de trabajos artísticos que sólo puedan encomendarse a determinadas personas naturales; | I149: PRESTAR LOS SERVICIOS PROFESIONALES PARA ADELANTAR LAS ACCIONES TENDIENTES AL AGENCIAMIENTO E IMPLEMENTACIÓN DE LAS POLÍTICAS PÚBLICAS DEL ORDEN DISTRITAL EN LO LOCAL, SEGUIMIENTO AL PLAN DE DESARROLLO LOCAL, ACOMPAÑAR LAS INSTANCIAS DE PARTICIPACIÓN QUE LE SEAN ASIGNADAS POR EL SUPERVISOR Y APOYAR LAS DEMÁS ACTIVIDADES QUE SE GENEREN EN EL ÁREA DE GESTIÓN DEL DESARROLLO LOCAL | J149: Inversión | K149: Un Nuevo Contrato Social y Ambiental para la Bogotá del Siglo XXI | L149: 57 | M149: =IF(ISERROR(VLOOKUP(L149,Proposito_programa!$C$2:$E$59,2,FALSE))," ",VLOOKUP(L149,Proposito_programa!$C$2:$E$59,2,FALSE)) -> Gestión pública local | N149: =IF(ISERROR(VLOOKUP(L149,Proposito_programa!$C$2:$E$59,3,FALSE))," ",VLOOKUP(L149,Proposito_programa!$C$2:$E$59,3,FALSE)) -> Propósito 5: Construir Bogotá - Región con gobierno abierto, transparente y ciudadanía consciente | O149: 133011605570000001697 | P149: 1 | Q149: 79443062 | R149: LUIS FERNANDO BARRETO GONZALEZ | S149: Persona Natural | W149: 52000000 | AA149: 52000000 | AB149: 43853333 | AC149: 44265 | AD149: 44273 | AE149: 44578 | AF149: 300 | AO149: X | AQ149: 0.8433333269
A150: 1 | B150: 131 | C150: 2021 | D150: FDLRUU-CD-131-2021 | E150: https://community.secop.gov.co/Public/Tendering/OpportunityDetail/Index?noticeUID=CO1.NTC.1795227&isFromPublicArea=True&isModal=False | F150: Contratos de prestación de servicios profesionales y de apoyo a la gestión | G150: Contratación directa | H150: Prestación de servicios profesionales y de apoyo a la gestión, o para la ejecución de trabajos artísticos que sólo puedan encomendarse a determinadas personas naturales; | I150: PRESTAR LOS SERVICIOS COMO OPERADOR DE MAQUINARIA AMARILLA, AL SERVICIO DE LA ADMINISTRACION LOCAL DE RAFAEL URIBE URIBE EN LA REALIZACIÓN DE LA EJECUCION DEL PROYECTO NO. 1685 MOVILIDAD MULTIMODAL, INCLUYENTE Y SOSTENIBLE EN RAFAEL URIBE URIBE, ASÍ COMO APOYAR LAS DEMÁS ACTIVIDADES QUE SE GENEREN EN EL ÁREA DE GESTIÓN DEL DESARROLLO CON RELACION AL PROYECTO EN MENCION | J150: Inversión | K150: Un Nuevo Contrato Social y Ambiental para la Bogotá del Siglo XXI | L150: 57 | M150: =IF(ISERROR(VLOOKUP(L150,Proposito_programa!$C$2:$E$59,2,FALSE))," ",VLOOKUP(L150,Proposito_programa!$C$2:$E$59,2,FALSE)) -> Gestión pública local | N150: =IF(ISERROR(VLOOKUP(L150,Proposito_programa!$C$2:$E$59,3,FALSE))," ",VLOOKUP(L150,Proposito_programa!$C$2:$E$59,3,FALSE)) -> Propósito 5: Construir Bogotá - Región con gobierno abierto, transparente y ciudadanía consciente | O150: 133011605570000001697 | P150: 1 | Q150: 1022955000 | R150: LUIS EDUARO PEREZ PATARROYO | S150: Persona Natural | W150: 26000000 | AA150: 26000000 | AB150: 23920000 | AC150: 44251 | AD150: 44252 | AE150: 44554 | AF150: 300 | AO150: X | AQ150: 0.92
A151: 1 | B151: 173 | C151: 2021 | D151: FDLRUU-CD-150-2021 | E151: https://community.secop.gov.co/Public/Tendering/OpportunityDetail/Index?noticeUID=CO1.NTC.1800149&isFromPublicArea=True&isModal=False | F151: Contratos de prestación de servicios profesionales y de apoyo a la gestión | G151: Contratación directa | H151: Prestación de servicios profesionales y de apoyo a la gestión, o para la ejecución de trabajos artísticos que sólo puedan encomendarse a determinadas personas naturales; | I151: EL CONTRATISTA SE OBLIGA CON EL FONDO DE DESARROLLO LOCAL DE RAFAEL URIBE URIBE A PRESTAR SUS SERVICIOS DE APOYO A LA GESTION LOCAL Y TERRITORIAL DE LOS TEMAS DE SEGURIDAD Y CONVIVENCIA CIUDADANA PARA LA ALCALDIA LOCAL DE RAFAEL URIBE URIBE | J151: Inversión | K151: Un Nuevo Contrato Social y Ambiental para la Bogotá del Siglo XXI | L151: 43 | M151: =IF(ISERROR(VLOOKUP(L151,Proposito_programa!$C$2:$E$59,2,FALSE))," ",VLOOKUP(L151,Proposito_programa!$C$2:$E$59,2,FALSE)) -> Cultura ciudadana para la confianza, la convivencia y la participación desde la vida cotidiana | N151: =IF(ISERROR(VLOOKUP(L151,Proposito_programa!$C$2:$E$59,3,FALSE))," ",VLOOKUP(L151,Proposito_programa!$C$2:$E$59,3,FALSE)) -> Propósito 3: Inspirar confianza y legitimidad para vivir sin miedo y ser epicentro de cultura ciudadana, paz y reconciliación | O151: 133011603430000001680 | P151: 1 | Q151: 1031134259 | R151: LUIS EDUARDO FORERO GÓMEZ | S151: Persona Natural | W151: 19800000 | Y151: 1 | Z151: 3006667 | AA151: 22806667 | AB151: 19653333 | AC151: 44253 | AD151: 44258 | AE151: 44574 | AF151: 270 | AG151: 1 | AH151: 41 | AO151: X | AQ151: 0.8617363072
A152: 1 | B152: 46 | C152: 2021 | D152: FDLRUU-CD-046-2021 | E152: https://community.secop.gov.co/Public/Tendering/OpportunityDetail/Index?noticeUID=CO1.NTC.1736809&isFromPublicArea=True&isModal=False | F152: Contratos de prestación de servicios profesionales y de apoyo a la gestión | G152: Contratación directa | H152: Prestación de servicios profesionales y de apoyo a la gestión, o para la ejecución de trabajos artísticos que sólo puedan encomendarse a determinadas personas naturales; | I152: PRESTAR LOS SERVICIOS PROFESIONALES COMO ABOGADO PARA APOYAR LOS PROCESOS DE CONTRATACIÓN EN SUS DIFERENTES ETAPAS AL ÁREA DE GESTIÓN DEL DESARROLLO DE LA ALCALDÍA LOCAL DE RAFAEL URIBE URIBE | J152: Inversión | K152: Un Nuevo Contrato Social y Ambiental para la Bogotá del Siglo XXI | L152: 57 | M152: =IF(ISERROR(VLOOKUP(L152,Proposito_programa!$C$2:$E$59,2,FALSE))," ",VLOOKUP(L152,Proposito_programa!$C$2:$E$59,2,FALSE)) -> Gestión pública local | N152: =IF(ISERROR(VLOOKUP(L152,Proposito_programa!$C$2:$E$59,3,FALSE))," ",VLOOKUP(L152,Proposito_programa!$C$2:$E$59,3,FALSE)) -> Propósito 5: Construir Bogotá - Región con gobierno abierto, transparente y ciudadanía consciente | O152: 133011605570000001697 | P152: 1 | Q152: 80041654 | R152: LUIS ALEJANDRO MORENO RUEDA | S152: Persona Natural | W152: 52000000 | Y152: 1 | Z152: 6760000 | AA152: 58760000 | AB152: 51306667 | AC152: 44232 | AD152: 44232 | AE152: 44574 | AF152: 300 | AG152: 1 | AH152: 39 | AI152: 80188169 | AJ152: HERNANDO FERNANDEZ MUÑOZ | AK152: 44456 | AL152: 13520000 | AO152: X | AQ152: 0.8731563479
A153: 1 | B153: 180 | C153: 2021 | D153: FDLRUU-CD-180-2021 | E153: https://community.secop.gov.co/Public/Tendering/OpportunityDetail/Index?noticeUID=CO1.NTC.1818796&isFromPublicArea=True&isModal=False | F153: Contratos de prestación de servicios profesionales y de apoyo a la gestión | G153: Contratación directa | H153: Prestación de servicios profesionales y de apoyo a la gestión, o para la ejecución de trabajos artísticos que sólo puedan encomendarse a determinadas personas naturales; | I153: PRESTAR SUS SERVICIOS PROFESIONALES PARA APOYAR JURIDICAMENTE EN EL INGRESO DE INFORMACIÓN, USO Y APROPIACIÒN DE LOS SISTEMAS DE INFORMACIÓN VIGENTES DISPUESTOS PARA EL TRAMITE DE ACTUACIONES ADMINISTRATIVAS Y JURIDICAS A CARGO DE LA ALCALDIA LOCAL DE RAFAEL URIBE URIBE | J153: Inversión | K153: Un Nuevo Contrato Social y Ambiental para la Bogotá del Siglo XXI | L153: 57 | M153: =IF(ISERROR(VLOOKUP(L153,Proposito_programa!$C$2:$E$59,2,FALSE))," ",VLOOKUP(L153,Proposito_programa!$C$2:$E$59,2,FALSE)) -> Gestión pública local | N153: =IF(ISERROR(VLOOKUP(L153,Proposito_programa!$C$2:$E$59,3,FALSE))," ",VLOOKUP(L153,Proposito_programa!$C$2:$E$59,3,FALSE)) -> Propósito 5: Construir Bogotá - Región con gobierno abierto, transparente y ciudadanía consciente | O153: 133011605570000001698 | P153: 1 | Q153: 79390749 | R153: LUIS ALBERTO SICACHA RAMIREZ | S153: Persona Natural | W153: 52000000 | AA153: 52000000 | AB153: 44893333 | AC153: 44264 | AD153: 44267 | AE153: 44572 | AF153: 300 | AO153: X | AQ153: 0.8633333269
A154: 1 | B154: 207 | C154: 2021 | D154: FDLRUU-CD-207-2021 | E154: https://community.secop.gov.co/Public/Tendering/OpportunityDetail/Index?noticeUID=CO1.NTC.1879748&isFromPublicArea=True&isModal=False | F154: Contratos de prestación de servicios profesionales y de apoyo a la gestión | G154: Contratación directa | H154: Prestación de servicios profesionales y de apoyo a la gestión, o para la ejecución de trabajos artísticos que sólo puedan encomendarse a determinadas personas naturales; | I154: PRESTAR LOS SERVICIOS COMO OPERADOR DE MAQUINARIA AMARILLA, AL SERVICIO DE LA ADMINISTRACION LOCAL DE RAFAEL URIBE URIBE EN LA REALIZACIÓN DE LA EJECUCION DEL PROYECTO NO. 1685 MOVILIDAD MUL-TIMODAL, INCLUYENTE Y SOSTENIBLE EN RAFAEL URIBE URIBE, ASÍ COMO APOYAR LAS DEMÁS ACTIVIDADES QUE SE GENEREN EN EL ÁREA DE GES-TIÓN DEL DESARROLLO CON RELACION AL PROYECTO EN MENCION de acuerdo con lo contemplado en el(los) proyecto(s) 1697 | J154: Inversión | K154: Un Nuevo Contrato Social y Ambiental para la Bogotá del Siglo XXI | L154: 57 | M154: =IF(ISERROR(VLOOKUP(L154,Proposito_programa!$C$2:$E$59,2,FALSE))," ",VLOOKUP(L154,Proposito_programa!$C$2:$E$59,2,FALSE)) -> Gestión pública local | N154: =IF(ISERROR(VLOOKUP(L154,Proposito_programa!$C$2:$E$59,3,FALSE))," ",VLOOKUP(L154,Proposito_programa!$C$2:$E$59,3,FALSE)) -> Propósito 5: Construir Bogotá - Región con gobierno abierto, transparente y ciudadanía consciente | O154: 133011605570000001697 | P154: 1 | Q154: 19397700 | R154: LUIS ALBERTO ESPINOSA PRIETO | S154: Persona Natural | W154: 26000000 | AA154: 26000000 | AB154: 20193333 | AC154: 44291 | AD154: 44294 | AE154: 44599 | AF154: 300 | AN154: X | AQ154: 0.7766666538
A155: 1 | B155: 324 | C155: 2021 | D155: FDLRUU-MC-324-2021 | E155: https://community.secop.gov.co/Public/Tendering/OpportunityDetail/Index?noticeUID=CO1.NTC.2464124&isFromPublicArea=True&isModal=False | F155: Contratos de prestación de servicios | G155: Contratación mínima cuantia | H155: No aplica | I155: REALIZAR EL MANTENIMIENTO PREVENTIVO Y CORRECTIVO DE LOS EQUIPOS DE CÓMPUTO, UPS, ESCÁNERES, VIDEO BEAM, AIRE ACONDICIONADO, PLOTTER, RACK, CABLEADO ESTRUCTURADO Y DEMÁS EQUIPOS TECNOLOGICOS PROPIEDAD DE LA ALCALDÍA LOCAL DE RAFAEL URIBE URIBE, INCLUYENDO EL SUMINISTRO DE REPUESTOS Y MANO DE OBRA | J155: Funcionamiento | K155: Un Nuevo Contrato Social y Ambiental para la Bogotá del Siglo XXI | L155: No aplica | M155: =IF(ISERROR(VLOOKUP(L155,Proposito_programa!$C$2:$E$59,2,FALSE))," ",VLOOKUP(L155,Proposito_programa!$C$2:$E$59,2,FALSE)) ->  | N155: =IF(ISERROR(VLOOKUP(L155,Proposito_programa!$C$2:$E$59,3,FALSE))," ",VLOOKUP(L155,Proposito_programa!$C$2:$E$59,3,FALSE)) ->  | O155: 131020202030602-131020202030603 | P155: 8 | Q155: 900825387 | R155: LINK IT COMPONENTES PARA TECNOLOGÍA DE LA INFORMACIÓN, DIFUSIÓN O TELECOMUNICACIONES | S155: Persona Jurídica | W155: 25737698 | AA155: 25737698 | AB155: 0 | AC155: 44559 | AD155: CELEBRADO SIN INICIAR | AE155: CELEBRADO SIN INICIAR | AF155: 180 | AM155: X | AQ155: 0
A156: 1 | B156: 302 | C156: 2021 | D156: FDLRUU-CD-302-2021 | E156: https://community.secop.gov.co/Public/Tendering/OpportunityDetail/Index?noticeUID=CO1.NTC.2316517&isFromPublicArea=True&isModal=False | F156: Contratos de prestación de servicios profesionales y de apoyo a la gestión | G156: Contratación directa | H156: Prestación de servicios profesionales y de apoyo a la gestión, o para la ejecución de trabajos artísticos que sólo puedan encomendarse a determinadas personas naturales; | I156: PRESTAR SERVICIOS DE APOYO A LA GESTIÓN PARA EL SEGUIMIENTO DEL CUMPLIMIENTO DE LOS PROCEDIMIENTOS ADMINISTRATIVOS, OPERATIVOS Y TÉCNICOS DEL PROYECTO “RETO LOCAL” Y LOS ASOCIADOS A LA INCLUSIÓN SOCIAL Y SEGURIDAD ECONÓMICA EN LA LOCALIDAD DE RAFAEL URIBE URIBE | J156: Inversión | K156: Un Nuevo Contrato Social y Ambiental para la Bogotá del Siglo XXI | L156: 1 | M156: =IF(ISERROR(VLOOKUP(L156,Proposito_programa!$C$2:$E$59,2,FALSE))," ",VLOOKUP(L156,Proposito_programa!$C$2:$E$59,2,FALSE)) -> Subsidios y transferencias para la equidad | N156: =IF(ISERROR(VLOOKUP(L156,Proposito_programa!$C$2:$E$59,3,FALSE))," ",VLOOKUP(L156,Proposito_programa!$C$2:$E$59,3,FALSE)) -> Propósito 1: Hacer un nuevo contrato social para incrementar la inclusión social, productiva y política | O156: 133011601010000002213 | P156: 1 | Q156: 1026296469 | R156: LINA MARIA MUÑOZ LUENGAS | S156: Persona Natural | W156: 26438110 | AA156: 26438110 | AB156: 0 | AC156: 44483 | AD156: 44495 | AE156: 44521 | AF156: 300 | AO156: X | AQ156: 0
A157: 1 | B157: 117 | C157: 2021 | D157: FDLRUU-CD-117-2021 | E157: https://community.secop.gov.co/Public/Tendering/ContractNoticePhases/View?PPI=CO1.PPI.12112077&isFromPublicArea=True&isModal=False | F157: Contratos de prestación de servicios profesionales y de apoyo a la gestión | G157: Contratación directa | H157: Prestación de servicios profesionales y de apoyo a la gestión, o para la ejecución de trabajos artísticos que sólo puedan encomendarse a determinadas personas naturales; | I157: PRESTAR LOS SERVICIOS PROFESIONALES EN EL ALMACÉN E INVENTARIOS, DESARROLLANDO LAS DIFERENTES ACTIVIDADES A CARGO DE ESTA DEPENDENCIA DE CONFORMIDAD CON LA NATURALEZA DEL SERVICIO Y LOS ESTUDIOS PREVIOS | J157: Inversión | K157: Un Nuevo Contrato Social y Ambiental para la Bogotá del Siglo XXI | L157: 57 | M157: =IF(ISERROR(VLOOKUP(L157,Proposito_programa!$C$2:$E$59,2,FALSE))," ",VLOOKUP(L157,Proposito_programa!$C$2:$E$59,2,FALSE)) -> Gestión pública local | N157: =IF(ISERROR(VLOOKUP(L157,Proposito_programa!$C$2:$E$59,3,FALSE))," ",VLOOKUP(L157,Proposito_programa!$C$2:$E$59,3,FALSE)) -> Propósito 5: Construir Bogotá - Región con gobierno abierto, transparente y ciudadanía consciente | O157: 133011605570000001697 | P157: 1 | Q157: 1072921068 | R157: LINA MARÍA MORENO RODRÍGUEZ | S157: Persona Natural | W157: 43000000 | AA157: 43000000 | AB157: 36263333 | AC157: 44249 | AD157: 44273 | AE157: 44578 | AF157: 300 | AO157: X | AQ157: 0.8433333256
A158: 1 | B158: 275 | C158: 2021 | D158: FDLRUU-CD-275-2021 | E158: https://community.secop.gov.co/Public/Tendering/OpportunityDetail/Index?noticeUID=CO1.NTC.2185657&isFromPublicArea=True&isModal=False | F158: Contratos de prestación de servicios profesionales y de apoyo a la gestión | G158: Contratación directa | H158: Prestación de servicios profesionales y de apoyo a la gestión, o para la ejecución de trabajos artísticos que sólo puedan encomendarse a determinadas personas naturales; | I158: PRESTAR SERVICIOS PROFESIONALES PARA REALIZAR ACUERDOS ENTRE LA ALCALDIA LOCAL DE RAFAEL URIBE URIBE Y SUS HABITANTES PARA VINCULARLOS A LOS PROGRAMAS DEL IDRD "ESCUELA DE LA BICICLETA" Y "AL TRABAJO EN BICI" QUE MOTIVEN EL USO ADECUADO DE LOS MEDIOS DE TTRANSPORTE NO MOTORIZADOS, PORMEDIO DE LA PROMOCION DE LA NORMATIVIDAD PARA SU APROPIACION Y APLICACIÓN EN EL MARCO DEL PROYECTO DE INVERSION 1681 | J158: Inversión | K158: Un Nuevo Contrato Social y Ambiental para la Bogotá del Siglo XXI | L158: 45 | M158: =IF(ISERROR(VLOOKUP(L158,Proposito_programa!$C$2:$E$59,2,FALSE))," ",VLOOKUP(L158,Proposito_programa!$C$2:$E$59,2,FALSE)) -> Espacio público más seguro y construido colectivamente | N158: =IF(ISERROR(VLOOKUP(L158,Proposito_programa!$C$2:$E$59,3,FALSE))," ",VLOOKUP(L158,Proposito_programa!$C$2:$E$59,3,FALSE)) -> Propósito 3: Inspirar confianza y legitimidad para vivir sin miedo y ser epicentro de cultura ciudadana, paz y reconciliación | O158: 133011603450000001681 | P158: 1 | Q158: 52501843 | R158: LIDIA JESUSA LOPEZ DULCEY | S158: Persona Natural | W158: 20000000 | AA158: 20000000 | AB158: 15833333 | AC158: 44431 | AD158: 44434 | AE158: 44555 | AF158: 120 | AO158: X | AQ158: 0.79166665
A159: 1 | B159: 41 | C159: 2021 | D159: FDLRUU-CD-041-2021 | E159: https://community.secop.gov.co/Public/Tendering/OpportunityDetail/Index?noticeUID=CO1.NTC.1729969&isFromPublicArea=True&isModal=False | F159: Contratos de prestación de servicios profesionales y de apoyo a la gestión | G159: Contratación directa | H159: Prestación de servicios profesionales y de apoyo a la gestión, o para la ejecución de trabajos artísticos que sólo puedan encomendarse a determinadas personas naturales; | I159: APOYAR JURÍDICAMENTE LA EJECUCIÓN DE LAS ACCIONES REQUERIDAS PARA LA DEPURACIÓN DE LAS ACTUACIONES ADMINISTRATIVAS QUE CURSAN EN LA ALCALDÍA LOCAL | J159: Inversión | K159: Un Nuevo Contrato Social y Ambiental para la Bogotá del Siglo XXI | L159: 57 | M159: =IF(ISERROR(VLOOKUP(L159,Proposito_programa!$C$2:$E$59,2,FALSE))," ",VLOOKUP(L159,Proposito_programa!$C$2:$E$59,2,FALSE)) -> Gestión pública local | N159: =IF(ISERROR(VLOOKUP(L159,Proposito_programa!$C$2:$E$59,3,FALSE))," ",VLOOKUP(L159,Proposito_programa!$C$2:$E$59,3,FALSE)) -> Propósito 5: Construir Bogotá - Región con gobierno abierto, transparente y ciudadanía consciente | O159: 133011605570000001698 | P159: 1 | Q159: 80442207 | R159: LEONARDO GUERRA RAMIREZ | S159: Persona Natural | W159: 31200000 | Y159: 1 | Z159: 15600000 | AA159: 46800000 | AB159: 46800000 | AC159: 44232 | AD159: 44236 | AE159: 44508 | AF159: 180 | AG159: 1 | AH159: 90 | AO159: X | AQ159: 1
A160: 1 | B160: 308 | C160: 2021 | D160: FDLRUU-CD-308-2021 | E160: https://community.secop.gov.co/Public/Tendering/OpportunityDetail/Index?noticeUID=CO1.NTC.2400171&isFromPublicArea=True&isModal=False | F160: Contratos de prestación de servicios profesionales y de apoyo a la gestión | G160: Contratación directa | H160: Prestación de servicios profesionales y de apoyo a la gestión, o para la ejecución de trabajos artísticos que sólo puedan encomendarse a determinadas personas naturales; | I160: APOYAR JURIDICAMENTE LA EJECUCIÓN DE LAS ACTUACIONES REQUERIDAS PARA LA DEPURACIÓN DE LAS ACTUACIONES ADMINISTRATIVAS QUE CURSAN EN LA ALCALDIA LOCAL | J160: Inversión | K160: Un Nuevo Contrato Social y Ambiental para la Bogotá del Siglo XXI | L160: 57 | M160: =IF(ISERROR(VLOOKUP(L160,Proposito_programa!$C$2:$E$59,2,FALSE))," ",VLOOKUP(L160,Proposito_programa!$C$2:$E$59,2,FALSE)) -> Gestión pública local | N160: =IF(ISERROR(VLOOKUP(L160,Proposito_programa!$C$2:$E$59,3,FALSE))," ",VLOOKUP(L160,Proposito_programa!$C$2:$E$59,3,FALSE)) -> Propósito 5: Construir Bogotá - Región con gobierno abierto, transparente y ciudadanía consciente | O160: 133011605570000001698 | P160: 1 | Q160: 80442207 | R160: LEONARDO GUERRA RAMIREZ | S160: Persona Natural | W160: 7800000 | AA160: 7800000 | AB160: 2253333 | AC160: 44517 | AD160: 44518 | AE160: 44563 | AF160: 45 | AO160: X | AQ160: 0.2888888462
A161: 1 | B161: 145 | C161: 2021 | D161: FDLRUU-CD-145-2021 | E161: https://community.secop.gov.co/Public/Tendering/OpportunityDetail/Index?noticeUID=CO1.NTC.1795482&isFromPublicArea=True&isModal=False | F161: Contratos de prestación de servicios profesionales y de apoyo a la gestión | G161: Contratación directa | H161: Prestación de servicios profesionales y de apoyo a la gestión, o para la ejecución de trabajos artísticos que sólo puedan encomendarse a determinadas personas naturales; | I161: PRESTAR LOS SERVICIOS PROFESIONALES PARA LA OPERACIÓN, SEGUIMIENTO Y CUMPLIMIENTO DE LOS PROCESOS Y PROCEDIMIENTOS DEL SERVICIO APOYO ECONÓMICO TIPO C, REQUERIDOS PARA EL OPORTUNO Y ADECUADO REGISTRO, CRUCE Y REPORTE DE LOS DATOS EN EL SISTEMA MISIONAL – SIRBE, QUE CONTRIBUYAN A LA GARANTÍA DE LOS DERECHOS DE LA POBLACIÓN MAYOR EN EL MARCO DE LA POLÍTICA PÚBLICA SOCIAL PARA EL ENVEJECIMIENTO Y LA VEJEZ EN EL DISTRITO CAPITAL A CARGO DE LA ALCALDÍA... | J161: Inversión | K161: Un Nuevo Contrato Social y Ambiental para la Bogotá del Siglo XXI | L161: 1 | M161: =IF(ISERROR(VLOOKUP(L161,Proposito_programa!$C$2:$E$59,2,FALSE))," ",VLOOKUP(L161,Proposito_programa!$C$2:$E$59,2,FALSE)) -> Subsidios y transferencias para la equidad | N161: =IF(ISERROR(VLOOKUP(L161,Proposito_programa!$C$2:$E$59,3,FALSE))," ",VLOOKUP(L161,Proposito_programa!$C$2:$E$59,3,FALSE)) -> Propósito 1: Hacer un nuevo contrato social para incrementar la inclusión social, productiva y política | O161: 133011601010000001636 | P161: 1 | Q161: 52114709 | R161: LEIDY AGATHA ROSSIASCO VELASQUEZ | S161: Persona Natural | W161: 41600000 | Y161: 1 | Z161: 11613333 | AA161: 53213333 | AB161: 47666667 | AC161: 44252 | AD161: 44253 | AE161: 44561 | AF161: 240 | AG161: 1 | AH161: 67 | AO161: X | AQ161: 0.8957654842
A162: 1 | B162: 64 | C162: 2021 | D162: FDLRUU-CD-064-2021 | E162: https://community.secop.gov.co/Public/Tendering/OpportunityDetail/Index?noticeUID=CO1.NTC.1746505&isFromPublicArea=True&isModal=False | F162: Contratos de prestación de servicios profesionales y de apoyo a la gestión | G162: Contratación directa | H162: Prestación de servicios profesionales y de apoyo a la gestión, o para la ejecución de trabajos artísticos que sólo puedan encomendarse a determinadas personas naturales; | I162: PRESTAR SUS SERVICIOS DE APOYO ADMINISTRATIVO ASISTENCIAL AL ÁREA DE GESTIÓN PARA EL DESARROLLO LOCAL DE LA ALCALDÍA LOCAL DE RAFAEL URIBE URIBE | J162: Inversión | K162: Un Nuevo Contrato Social y Ambiental para la Bogotá del Siglo XXI | L162: 57 | M162: =IF(ISERROR(VLOOKUP(L162,Proposito_programa!$C$2:$E$59,2,FALSE))," ",VLOOKUP(L162,Proposito_programa!$C$2:$E$59,2,FALSE)) -> Gestión pública local | N162: =IF(ISERROR(VLOOKUP(L162,Proposito_programa!$C$2:$E$59,3,FALSE))," ",VLOOKUP(L162,Proposito_programa!$C$2:$E$59,3,FALSE)) -> Propósito 5: Construir Bogotá - Región con gobierno abierto, transparente y ciudadanía consciente | O162: 133011605570000001697 | P162: 1 | Q162: 1016109867 | R162: LAURA VANESSA PAEZ LOPEZ | S162: Persona Natural | W162: 26000000 | Y162: 1 | Z162: 2860000 | AA162: 28860000 | AB162: 25133333 | AC162: 44236 | AD162: 44238 | AE162: 44574 | AF162: 300 | AG162: 1 | AH162: 33 | AO162: X | AQ162: 0.8708708593
A163: 1 | B163: 34 | C163: 2021 | D163: FDLRUU-CD-034-2021 | E163: https://community.secop.gov.co/Public/Tendering/OpportunityDetail/Index?noticeUID=CO1.NTC.1733686&isFromPublicArea=True&isModal=False | F163: Contratos de prestación de servicios profesionales y de apoyo a la gestión | G163: Contratación directa | H163: Prestación de servicios profesionales y de apoyo a la gestión, o para la ejecución de trabajos artísticos que sólo puedan encomendarse a determinadas personas naturales; | I163: APOYAR JURÍDICAMENTE LA EJECUCIÓN DE LAS ACCIONES REQUERIDAS PARA LA DEPURACIÓN DE LAS ACTUACIONES ADMINISTRATIVAS QUE CURSAN EN LA ALCALDÍA LOCAL | J163: Inversión | K163: Un Nuevo Contrato Social y Ambiental para la Bogotá del Siglo XXI | L163: 57 | M163: =IF(ISERROR(VLOOKUP(L163,Proposito_programa!$C$2:$E$59,2,FALSE))," ",VLOOKUP(L163,Proposito_programa!$C$2:$E$59,2,FALSE)) -> Gestión pública local | N163: =IF(ISERROR(VLOOKUP(L163,Proposito_programa!$C$2:$E$59,3,FALSE))," ",VLOOKUP(L163,Proposito_programa!$C$2:$E$59,3,FALSE)) -> Propósito 5: Construir Bogotá - Región con gobierno abierto, transparente y ciudadanía consciente | O163: 133011605570000001698 | P163: 1 | Q163: 1013579410 | R163: LAURA TERESA ESTEFANY PINEDA AVILA | S163: Persona Natural | W163: 31200000 | AA163: 31200000 | AB163: 31200000 | AC163: 44231 | AD163: 44232 | AE163: 44412 | AF163: 180 | AO163: X | AQ163: 1
A164: 1 | B164: 121 | C164: 2021 | D164: FDLRUU-CD-121-2021 | E164: https://community.secop.gov.co/Public/Tendering/OpportunityDetail/Index?noticeUID=CO1.NTC.1778699&isFromPublicArea=True&isModal=False | F164: Contratos de prestación de servicios profesionales y de apoyo a la gestión | G164: Contratación directa | H164: Prestación de servicios profesionales y de apoyo a la gestión, o para la ejecución de trabajos artísticos que sólo puedan encomendarse a determinadas personas naturales; | I164: APOYAR LA FORMULACIÓN, EJECUCIÓN, SEGUIMIENTO Y MEJORA CONTINUA DE LAS HERRAMIENTAS QUE CONFORMAN LA GESTIÓN AMBIENTAL INSTITUCIONAL DE LA ALCALDÍA LOCAL | J164: Inversión | K164: Un Nuevo Contrato Social y Ambiental para la Bogotá del Siglo XXI | L164: 57 | M164: =IF(ISERROR(VLOOKUP(L164,Proposito_programa!$C$2:$E$59,2,FALSE))," ",VLOOKUP(L164,Proposito_programa!$C$2:$E$59,2,FALSE)) -> Gestión pública local | N164: =IF(ISERROR(VLOOKUP(L164,Proposito_programa!$C$2:$E$59,3,FALSE))," ",VLOOKUP(L164,Proposito_programa!$C$2:$E$59,3,FALSE)) -> Propósito 5: Construir Bogotá - Región con gobierno abierto, transparente y ciudadanía consciente | O164: 133011605570000001697 | P164: 1 | Q164: 1020797579 | R164: LAURA NATHALIA VALENCIA ORTIZ | S164: Persona Natural | W164: 43000000 | Y164: 1 | Z164: 3583333 | AA164: 46583333 | AB164: 40420000 | AC164: 44245 | AD164: 44246 | AE164: 44574 | AF164: 300 | AG164: 1 | AH164: 25 | AO164: X | AQ164: 0.8676923139
A165: 1 | B165: 73 | C165: 2021 | D165: FDLRUU-CD-073-2021 | E165: https://community.secop.gov.co/Public/Tendering/OpportunityDetail/Index?noticeUID=CO1.NTC.1756191&isFromPublicArea=True&isModal=False | F165: Contratos de prestación de servicios profesionales y de apoyo a la gestión | G165: Contratación directa | H165: Prestación de servicios profesionales y de apoyo a la gestión, o para la ejecución de trabajos artísticos que sólo puedan encomendarse a determinadas personas naturales; | I165: “PRESTAR LOS SERVICIOS PROFESIONALES A LA ALCALDÍA LOCAL DE RAFAEL URIBE URIBE, PARA LA EJECUCIÓN Y DIVULGACION DE LAS ACTIVIDADES COMUNITARIAS Y DE APOYO A LOS PROCESOS DE PARTICIPACIÓN EN EL MARCO DEL SISTEMA LOCAL Y DISTRITAL DE PARTICIPACIÓN, LAS RELACIONES INTERINSTITUCIONALES Y LA EJECUCIÓN DE LOS PROYECTOS QUE HACEN PARTE DEL PLAN DE DESARROLLO” | J165: Inversión | K165: Un Nuevo Contrato Social y Ambiental para la Bogotá del Siglo XXI | L165: 57 | M165: =IF(ISERROR(VLOOKUP(L165,Proposito_programa!$C$2:$E$59,2,FALSE))," ",VLOOKUP(L165,Proposito_programa!$C$2:$E$59,2,FALSE)) -> Gestión pública local | N165: =IF(ISERROR(VLOOKUP(L165,Proposito_programa!$C$2:$E$59,3,FALSE))," ",VLOOKUP(L165,Proposito_programa!$C$2:$E$59,3,FALSE)) -> Propósito 5: Construir Bogotá - Región con gobierno abierto, transparente y ciudadanía consciente | O165: 133011605570000001697 | P165: 1 | Q165: 1014225405 | R165: LAURA DANIELA GUERRERO | S165: Persona Natural | W165: 31200000 | Y165: 1 | Z165: 15600000 | AA165: 46800000 | AB165: 46800000 | AC165: 44238 | AD165: 44242 | AE165: 44514 | AF165: 180 | AG165: 1 | AH165: 90 | AO165: X | AQ165: 1
A166: 1 | B166: 188 | C166: 2021 | D166: FDLRUU-CD-188-2021 | E166: https://community.secop.gov.co/Public/Tendering/OpportunityDetail/Index?noticeUID=CO1.NTC.1827735&isFromPublicArea=True&isModal=False | F166: Contratos de prestación de servicios profesionales y de apoyo a la gestión | G166: Contratación directa | H166: Prestación de servicios profesionales y de apoyo a la gestión, o para la ejecución de trabajos artísticos que sólo puedan encomendarse a determinadas personas naturales; | I166: APOYAR ADMINISTRATIVA Y ASISTENCIALMENTE A LAS INSPECCIONES DE POLICÍA DE LA LOCALIDAD DE RAFAEL URIBE URIBE | J166: Inversión | K166: Un Nuevo Contrato Social y Ambiental para la Bogotá del Siglo XXI | L166: 57 | M166: =IF(ISERROR(VLOOKUP(L166,Proposito_programa!$C$2:$E$59,2,FALSE))," ",VLOOKUP(L166,Proposito_programa!$C$2:$E$59,2,FALSE)) -> Gestión pública local | N166: =IF(ISERROR(VLOOKUP(L166,Proposito_programa!$C$2:$E$59,3,FALSE))," ",VLOOKUP(L166,Proposito_programa!$C$2:$E$59,3,FALSE)) -> Propósito 5: Construir Bogotá - Región con gobierno abierto, transparente y ciudadanía consciente | O166: 133011605570000001698 | P166: 1 | Q166: 1030699005 | R166: LAURA ALEJANDRA MUÑOZ MELO | S166: Persona Natural | W166: 10500000 | Y166: 1 | Z166: 5250000 | AA166: 15750000 | AB166: 15108333 | AC166: 44264 | AD166: 44267 | AE166: 44541 | AF166: 180 | AG166: 1 | AH166: 90 | AO166: X | AQ166: 0.9592592381
A167: 1 | B167: 309 | C167: 2021 | D167: FDLRUU-MC-303-2021 | E167: https://community.secop.gov.co/Public/Tendering/OpportunityDetail/Index?noticeUID=CO1.NTC.2353674&isFromPublicArea=True&isModal=False | F167: Contratos de prestación de servicios | G167: Contratación mínima cuantia | H167: No aplica | I167: CONTRATAR EL PROCESO DE MEDICIÓN POSTERIOR DE BIENES MUEBLES REGISTRADOS EN LA CUENTA PROPIEDAD PLANTA Y EQUIPO DE LOS ESTADOS FINANCIEROS DE LA ENTIDAD Y LOS BIENES INMUEBLES DE PROPIEDAD Y/O A CARGO DEL FONDO DE DESARROLLO LOCAL DE RAFAEL URIBE URIBE DETERMINANDO EL VALOR ACTUAL Y AJUSTANDO LA VIDA ÚTIL RESTANTE, EL VALOR RESIDUAL, EL MÉTODO DE DEPRECIACIÓN, ASÍ COMO EL RECONOCIMIENTO Y MEDICIÓN DEL DETERIORO DEL VALOR. | J167: Inversión | K167: Un Nuevo Contrato Social y Ambiental para la Bogotá del Siglo XXI | L167: 57 | M167: =IF(ISERROR(VLOOKUP(L167,Proposito_programa!$C$2:$E$59,2,FALSE))," ",VLOOKUP(L167,Proposito_programa!$C$2:$E$59,2,FALSE)) -> Gestión pública local | N167: =IF(ISERROR(VLOOKUP(L167,Proposito_programa!$C$2:$E$59,3,FALSE))," ",VLOOKUP(L167,Proposito_programa!$C$2:$E$59,3,FALSE)) -> Propósito 5: Construir Bogotá - Región con gobierno abierto, transparente y ciudadanía consciente | O167: 133011605570000001697 | P167: 4 | Q167: 900354279 | R167: L&Q AUDITORES EXTERNOS S.A.S | S167: Persona Jurídica | W167: 16657382 | AA167: 16657382 | AB167: 0 | AC167: 44524 | AD167: 44530 | AE167: 44590 | AF167: 60 | AN167: X | AQ167: 0
A168: 1 | B168: 167 | C168: 2021 | D168: FDLRUU-CD-150-2021 | E168: https://community.secop.gov.co/Public/Tendering/OpportunityDetail/Index?noticeUID=CO1.NTC.1800149&isFromPublicArea=True&isModal=False | F168: Contratos de prestación de servicios profesionales y de apoyo a la gestión | G168: Contratación directa | H168: Prestación de servicios profesionales y de apoyo a la gestión, o para la ejecución de trabajos artísticos que sólo puedan encomendarse a determinadas personas naturales; | I168: EL CONTRATISTA SE OBLIGA CON EL FONDO DE DESARROLLO LOCAL DE RAFAEL URIBE URIBE A PRESTAR SUS SERVICIOS DE APOYO A LA GESTION LOCAL Y TERRITORIAL DE LOS TEMAS DE SEGURIDAD Y CONVIVENCIA CIUDADANA PARA LA ALCALDIA LOCAL DE RAFAEL URIBE URIBE | J168: Inversión | K168: Un Nuevo Contrato Social y Ambiental para la Bogotá del Siglo XXI | L168: 43 | M168: =IF(ISERROR(VLOOKUP(L168,Proposito_programa!$C$2:$E$59,2,FALSE))," ",VLOOKUP(L168,Proposito_programa!$C$2:$E$59,2,FALSE)) -> Cultura ciudadana para la confianza, la convivencia y la participación desde la vida cotidiana | N168: =IF(ISERROR(VLOOKUP(L168,Proposito_programa!$C$2:$E$59,3,FALSE))," ",VLOOKUP(L168,Proposito_programa!$C$2:$E$59,3,FALSE)) -> Propósito 3: Inspirar confianza y legitimidad para vivir sin miedo y ser epicentro de cultura ciudadana, paz y reconciliación | O168: 133011603430000001680 | P168: 1 | Q168: 1031150866 | R168: KEVIN PAEZ UBAQUE | S168: Persona Natural | W168: 19800000 | Y168: 1 | Z168: 3080000 | AA168: 22880000 | AB168: 19726667 | AC168: 44253 | AD168: 44257 | AE168: 44574 | AF168: 270 | AG168: 1 | AH168: 42 | AI168: 1023969334 | AJ168: ANGELA PATRICIA CLAVIJO LONDOÑO | AK168: 44459 | AL168: 5280000 | AO168: X | AQ168: 0.8621795017
A169: 1 | B169: 256 | C169: 2021 | D169: FLDRUU-CD-256-2021 | E169: https://community.secop.gov.co/Public/Tendering/OpportunityDetail/Index?noticeUID=CO1.NTC.2165335&isFromPublicArea=True&isModal=False | F169: Contratos de prestación de servicios profesionales y de apoyo a la gestión | G169: Contratación directa | H169: Prestación de servicios profesionales y de apoyo a la gestión, o para la ejecución de trabajos artísticos que sólo puedan encomendarse a determinadas personas naturales; | I169: PRESTAR SUS SERVICIOS COMO PROFESIONAL EN EL APOYO A LA COORDINACIÓN DE VIGÍAS DE RIESGO Y LA ASISTENCIALES PARA LA GESTIÓN DE EMERGENCIAS Y RIESGO, DE LA LOCALIDAD DE RAFAEL URIBE URIBE | J169: Inversión | K169: Un Nuevo Contrato Social y Ambiental para la Bogotá del Siglo XXI | L169: 30 | M169: =IF(ISERROR(VLOOKUP(L169,Proposito_programa!$C$2:$E$59,2,FALSE))," ",VLOOKUP(L169,Proposito_programa!$C$2:$E$59,2,FALSE)) -> Eficiencia en la atención de emergencias | N169: =IF(ISERROR(VLOOKUP(L169,Proposito_programa!$C$2:$E$59,3,FALSE))," ",VLOOKUP(L169,Proposito_programa!$C$2:$E$59,3,FALSE)) -> Propósito 2 : Cambiar Nuestros Hábitos de Vida para Reverdecer a Bogotá y Adaptarnos y Mitigar la Crisis Climática | O169: 133011602300000001665 | P169: 1 | Q169: 1033747880 | R169: KEVIN ORLANDO BALLESTEROS ROJAS | S169: Persona Natural | W169: 19800000 | AA169: 19800000 | AB169: 15253333 | AC169: 44419 | AD169: 44425 | AE169: 44562 | AF169: 135 | AI169: 79695295 | AJ169: YOVAN ALFREDO FIGUEROA | AK169: 44490 | AL169: 10413333 | AO169: X | AQ169: 0.7703703535
A170: 1 | B170: 127 | C170: 2021 | D170: FDLRUU-CD-127-2021 | E170: https://community.secop.gov.co/Public/Tendering/OpportunityDetail/Index?noticeUID=CO1.NTC.1783125&isFromPublicArea=True&isModal=False | F170: Contratos de prestación de servicios profesionales y de apoyo a la gestión | G170: Contratación directa | H170: Prestación de servicios profesionales y de apoyo a la gestión, o para la ejecución de trabajos artísticos que sólo puedan encomendarse a determinadas personas naturales; | I170: APOYAR ADMINISTRATIVA Y ASISTENCIALMENTE AL ÁREA DE GESTION DE DESARROLLO LOCAL - CONTRATACIÓN DE LA ALCALDÍA LOCAL DE RAFAEL URIBE URIBE | J170: Inversión | K170: Un Nuevo Contrato Social y Ambiental para la Bogotá del Siglo XXI | L170: 57 | M170: =IF(ISERROR(VLOOKUP(L170,Proposito_programa!$C$2:$E$59,2,FALSE))," ",VLOOKUP(L170,Proposito_programa!$C$2:$E$59,2,FALSE)) -> Gestión pública local | N170: =IF(ISERROR(VLOOKUP(L170,Proposito_programa!$C$2:$E$59,3,FALSE))," ",VLOOKUP(L170,Proposito_programa!$C$2:$E$59,3,FALSE)) -> Propósito 5: Construir Bogotá - Región con gobierno abierto, transparente y ciudadanía consciente | O170: 133011605570000001697 | P170: 1 | Q170: 1094896721 | R170: KARINE ROMAN PARDO | S170: Persona Natural | W170: 26000000 | AA170: 26000000 | AB170: 21840000 | AC170: 44264 | AD170: 44274 | AE170: 44579 | AF170: 300 | AO170: X | AQ170: 0.84
A171: 1 | B171: 159 | C171: 2021 | D171: FDLRUU-CD-150-2021 | E171: https://community.secop.gov.co/Public/Tendering/OpportunityDetail/Index?noticeUID=CO1.NTC.1800149&isFromPublicArea=True&isModal=False | F171: Contratos de prestación de servicios profesionales y de apoyo a la gestión | G171: Contratación directa | H171: Prestación de servicios profesionales y de apoyo a la gestión, o para la ejecución de trabajos artísticos que sólo puedan encomendarse a determinadas personas naturales; | I171: EL CONTRATISTA SE OBLIGA CON EL FONDO DE DESARROLLO LOCAL DE RAFAEL URIBE URIBE A PRESTAR SUS SERVICIOS DE APOYO A LA GESTION LOCAL Y TERRITORIAL DE LOS TEMAS DE SEGURIDAD Y CONVIVENCIA CIUDADANA PARA LA ALCALDIA LOCAL DE RAFAEL URIBE URIBE | J171: Inversión | K171: Un Nuevo Contrato Social y Ambiental para la Bogotá del Siglo XXI | L171: 43 | M171: =IF(ISERROR(VLOOKUP(L171,Proposito_programa!$C$2:$E$59,2,FALSE))," ",VLOOKUP(L171,Proposito_programa!$C$2:$E$59,2,FALSE)) -> Cultura ciudadana para la confianza, la convivencia y la participación desde la vida cotidiana | N171: =IF(ISERROR(VLOOKUP(L171,Proposito_programa!$C$2:$E$59,3,FALSE))," ",VLOOKUP(L171,Proposito_programa!$C$2:$E$59,3,FALSE)) -> Propósito 3: Inspirar confianza y legitimidad para vivir sin miedo y ser epicentro de cultura ciudadana, paz y reconciliación | O171: 133011603430000001680 | P171: 1 | Q171: 1023892888 | R171: KAREN MAYERLY MORENO MARIN | S171: Persona Natural | W171: 19800000 | Y171: 1 | Z171: 3153333 | AA171: 22953333 | AB171: 19800000 | AC171: 44253 | AD171: 44256 | AE171: 44574 | AF171: 270 | AG171: 1 | AH171: 43 | AO171: X | AQ171: 0.8626198208
A172: 1 | B172: 277 | C172: 2021 | D172: FDLRUU-CD-277-2021 | E172: https://community.secop.gov.co/Public/Tendering/OpportunityDetail/Index?noticeUID=CO1.NTC.2200901&isFromPublicArea=True&isModal=False | F172: Contratos de prestación de servicios profesionales y de apoyo a la gestión | G172: Contratación directa | H172: Prestación de servicios profesionales y de apoyo a la gestión, o para la ejecución de trabajos artísticos que sólo puedan encomendarse a determinadas personas naturales; | I172: PRESTAR LOS SERVICIOS PROFESIONALES PARA LA OPERACIÓN, SEGUIMIENTO Y CUMPLIMIENTO DE LOS PROCEDIMIENTOS ADMINISTRATIVOS, OPERATIVOS Y TÉCNICOS DEL PROYECTO “RETO LOCAL” Y LOS ASOCIADOS A LA INCLUSIÓN SOCIAL Y SEGURIDAD ECONÓMICA EN LA LOCALIDAD DE RAFAEL URIBE URIBE | J172: Inversión | K172: Un Nuevo Contrato Social y Ambiental para la Bogotá del Siglo XXI | L172: 1 | M172: =IF(ISERROR(VLOOKUP(L172,Proposito_programa!$C$2:$E$59,2,FALSE))," ",VLOOKUP(L172,Proposito_programa!$C$2:$E$59,2,FALSE)) -> Subsidios y transferencias para la equidad | N172: =IF(ISERROR(VLOOKUP(L172,Proposito_programa!$C$2:$E$59,3,FALSE))," ",VLOOKUP(L172,Proposito_programa!$C$2:$E$59,3,FALSE)) -> Propósito 1: Hacer un nuevo contrato social para incrementar la inclusión social, productiva y política | O172: 133011601010000002213 | P172: 1 | Q172: 52848590 | R172: JULY ANGELICA MELO QUINTERO | S172: Persona Natural | W172: 45000000 | AA172: 45000000 | AB172: 13350000 | AC172: 44435 | AD172: 44441 | AE172: 44743 | AF172: 300 | AN172: X | AQ172: 0.2966666667
A173: 1 | B173: 196 | C173: 2021 | D173: FDLRUU-CD-196-2021 | E173: https://community.secop.gov.co/Public/Tendering/OpportunityDetail/Index?noticeUID=CO1.NTC.1855162&isFromPublicArea=True&isModal=False | F173: Contratos de prestación de servicios profesionales y de apoyo a la gestión | G173: Contratación directa | H173: Prestación de servicios profesionales y de apoyo a la gestión, o para la ejecución de trabajos artísticos que sólo puedan encomendarse a determinadas personas naturales; | I173: COORDINAR LA ARTICULACIÓN, ASISTENCIA Y ACOMPAÑAMIENTO DE LOS PROCESOS DE PLANEACIÓN LOCAL, PARA LA PROMOCIÓN DE LA PARTICIPACIÓN DE LAS MUJERES Y DE LA EQUIDAD DE GÉNERO, PARA MATERIALIZAR EN LA LOCALIDAD LAS ESTRATEGIAS DE TERRITORIALIZACIÓN Y TRANSVERSALIZACIÓN DE LA POLÍTICA PUBLICA DE MUJERES Y EQUIDAD DE GÉNERO, PPMYEG | J173: Inversión | K173: Un Nuevo Contrato Social y Ambiental para la Bogotá del Siglo XXI | L173: 57 | M173: =IF(ISERROR(VLOOKUP(L173,Proposito_programa!$C$2:$E$59,2,FALSE))," ",VLOOKUP(L173,Proposito_programa!$C$2:$E$59,2,FALSE)) -> Gestión pública local | N173: =IF(ISERROR(VLOOKUP(L173,Proposito_programa!$C$2:$E$59,3,FALSE))," ",VLOOKUP(L173,Proposito_programa!$C$2:$E$59,3,FALSE)) -> Propósito 5: Construir Bogotá - Región con gobierno abierto, transparente y ciudadanía consciente | O173: 133011605570000001697 | P173: 1 | Q173: 1012347519 | R173: JULIETH JESENIA JIMENEZ NAVARRO | S173: Persona Natural | W173: 43000000 | AA173: 43000000 | AB173: 17486667 | AC173: 44279 | AD173: 44284 | AE173: 44589 | AF173: 300 | AO173: X | AQ173: 0.4066666744
A174: 1 | B174: 282 | C174: 2021 | D174: FLDRUU-CD-282-2021 | E174: https://community.secop.gov.co/Public/Tendering/OpportunityDetail/Index?noticeUID=CO1.NTC.2221849&isFromPublicArea=True&isModal=False | F174: Contratos de prestación de servicios profesionales y de apoyo a la gestión | G174: Contratación directa | H174: Prestación de servicios profesionales y de apoyo a la gestión, o para la ejecución de trabajos artísticos que sólo puedan encomendarse a determinadas personas naturales; | I174: PRESTAR SERVICIOS PROFESIONALES PARA REALIZACIÓN DE ACUERDOS QUE PROMUEVAN LA CONVIVENCIA ARMÓNICA ENTRE LA CIUDADANÍA Y LOS VENDEDORES INFORMALES Y ESTACIONARIOS, ORIENTADOS A LA SOLUCIÓN DE LOS CONFLICTOS DERIVADOS DEL USO DEL ESPACIO PÚBLICO CONTEMPLADOS EN EL PROYECTO DE INVERSIÓN 1681 CULTURA CIUDADANA Y USO OPTIMO DEL ESPACIO PUBLICO EN RAFAEL URIBE URIBE | J174: Inversión | K174: Un Nuevo Contrato Social y Ambiental para la Bogotá del Siglo XXI | L174: 45 | M174: =IF(ISERROR(VLOOKUP(L174,Proposito_programa!$C$2:$E$59,2,FALSE))," ",VLOOKUP(L174,Proposito_programa!$C$2:$E$59,2,FALSE)) -> Espacio público más seguro y construido colectivamente | N174: =IF(ISERROR(VLOOKUP(L174,Proposito_programa!$C$2:$E$59,3,FALSE))," ",VLOOKUP(L174,Proposito_programa!$C$2:$E$59,3,FALSE)) -> Propósito 3: Inspirar confianza y legitimidad para vivir sin miedo y ser epicentro de cultura ciudadana, paz y reconciliación | O174: 133011603450000001681 | P174: 1 | Q174: 1140826131 | R174: JULIETH DEL CARMEN PERNA BERDUGO | S174: Persona Natural | W174: 20000000 | AA174: 20000000 | AB174: 13000000 | AC174: 44447 | AD174: 44452 | AE174: 44573 | AF174: 120 | AO174: X | AQ174: 0.65
A175: 1 | B175: 195 | C175: 2021 | D175: FDLRUU-CD-195-2021 | E175: https://community.secop.gov.co/Public/Tendering/OpportunityDetail/Index?noticeUID=CO1.NTC.1840636&isFromPublicArea=True&isModal=False | F175: Contratos de prestación de servicios profesionales y de apoyo a la gestión | G175: Contratación directa | H175: Prestación de servicios profesionales y de apoyo a la gestión, o para la ejecución de trabajos artísticos que sólo puedan encomendarse a determinadas personas naturales; | I175: APOYAR AL EQUIPO DE PRENSA Y COMUNICACIONES DE LA ALCALDÍA LOCAL EN LA CREACIÓN, REALIZACIÓN, PRODUCCIÓN Y EDICIÓN DE VÍDEOS, ASÍ COMO EL REGISTRO, EDICIÓN Y LA PRESENTACIÓN DE FOTOGRAFÍAS DE LOS ACONTECIMIENTOS, HECHOS Y EVENTOS EXTERNOS E INTERNOS DE LA ALCALDÍA LOCAL, PARA SER UTILIZADOS COMO INSUMOS DE COMUNICACIÓN EN LOS MEDIOS, ESPECIALMENTE ESCRITOS, DIGITALES Y AUDIOVISUALES | J175: Inversión | K175: Un Nuevo Contrato Social y Ambiental para la Bogotá del Siglo XXI | L175: 57 | M175: =IF(ISERROR(VLOOKUP(L175,Proposito_programa!$C$2:$E$59,2,FALSE))," ",VLOOKUP(L175,Proposito_programa!$C$2:$E$59,2,FALSE)) -> Gestión pública local | N175: =IF(ISERROR(VLOOKUP(L175,Proposito_programa!$C$2:$E$59,3,FALSE))," ",VLOOKUP(L175,Proposito_programa!$C$2:$E$59,3,FALSE)) -> Propósito 5: Construir Bogotá - Región con gobierno abierto, transparente y ciudadanía consciente | O175: 133011605570000001697 | P175: 1 | Q175: 79751910 | R175: JULIÁN ANDRÉS BOHÓRQUEZ TELLEZ | S175: Persona Natural | W175: 52000000 | AA175: 52000000 | AB175: 42813332 | AC175: 44271 | AD175: 44279 | AE175: 44552 | AF175: 300 | AI175: 1032390744 | AJ175: MÓNICA ANDREA BASTO GUZMÁN | AK175: 44462 | AL175: 20973334 | AO175: X | AQ175: 0.8233333077
A176: 1 | B176: 38 | C176: 2021 | D176: FDLRUU-CD-038-2021 | E176: https://community.secop.gov.co/Public/Tendering/OpportunityDetail/Index?noticeUID=CO1.NTC.1733495&isFromPublicArea=True&isModal=False | F176: Contratos de prestación de servicios profesionales y de apoyo a la gestión | G176: Contratación directa | H176: Prestación de servicios profesionales y de apoyo a la gestión, o para la ejecución de trabajos artísticos que sólo puedan encomendarse a determinadas personas naturales; | I176: APOYAR JURÍDICAMENTE LA EJECUCIÓN DE LAS ACCIONES REQUERIDAS PARA EL TRÁMITE E IMPULSO PROCESAL DE LAS ACTUACIONES CONTRAVENCIONALES Y/O QUERELLAS QUE CURSEN EN LAS INSPECCIONES DE POLICÍA DE LA LOCALIDAD DE RAFAEL URIBE URIBE | J176: Inversión | K176: Un Nuevo Contrato Social y Ambiental para la Bogotá del Siglo XXI | L176: 57 | M176: =IF(ISERROR(VLOOKUP(L176,Proposito_programa!$C$2:$E$59,2,FALSE))," ",VLOOKUP(L176,Proposito_programa!$C$2:$E$59,2,FALSE)) -> Gestión pública local | N176: =IF(ISERROR(VLOOKUP(L176,Proposito_programa!$C$2:$E$59,3,FALSE))," ",VLOOKUP(L176,Proposito_programa!$C$2:$E$59,3,FALSE)) -> Propósito 5: Construir Bogotá - Región con gobierno abierto, transparente y ciudadanía consciente | O176: 133011605570000001698 | P176: 1 | Q176: 1019086865 | R176: JUAN SEBASTIAN MARTINEZ ROJAS | S176: Persona Natural | W176: 31200000 | Y176: 1 | Z176: 15600000 | AA176: 46800000 | AB176: 46800000 | AC176: 44232 | AD176: 44236 | AE176: 44508 | AF176: 180 | AG176: 1 | AH176: 90 | AO176: X | AQ176: 1
A177: 1 | B177: 122 | C177: 2021 | D177: FDLRUU-CD-122-2021 | E177: https://community.secop.gov.co/Public/Tendering/OpportunityDetail/Index?noticeUID=CO1.NTC.1779422&isFromPublicArea=True&isModal=False | F177: Contratos de prestación de servicios profesionales y de apoyo a la gestión | G177: Contratación directa | H177: Prestación de servicios profesionales y de apoyo a la gestión, o para la ejecución de trabajos artísticos que sólo puedan encomendarse a determinadas personas naturales; | I177: APOYA EL CUBRIMIENTO DE LAS ACTIVIDADES, CRONOGRAMAS Y AGENDA DE LA ALCALDÍA LOCAL A NIVEL INTERNO Y EXTERNO, ASÍ COMO LA GENERACIÓN DE CONTENIDOS PERIODÍSTICOS | J177: Inversión | K177: Un Nuevo Contrato Social y Ambiental para la Bogotá del Siglo XXI | L177: 57 | M177: =IF(ISERROR(VLOOKUP(L177,Proposito_programa!$C$2:$E$59,2,FALSE))," ",VLOOKUP(L177,Proposito_programa!$C$2:$E$59,2,FALSE)) -> Gestión pública local | N177: =IF(ISERROR(VLOOKUP(L177,Proposito_programa!$C$2:$E$59,3,FALSE))," ",VLOOKUP(L177,Proposito_programa!$C$2:$E$59,3,FALSE)) -> Propósito 5: Construir Bogotá - Región con gobierno abierto, transparente y ciudadanía consciente | O177: 133011605570000001697 | P177: 1 | Q177: 1032457982 | R177: JUAN MANUEL CARDENAS GARZON | S177: Persona Natural | W177: 43000000 | AA177: 43000000 | AB177: 39846667 | AC177: 44246 | AD177: 44250 | AE177: 44552 | AF177: 300 | AO177: X | AQ177: 0.9266666744
A178: 1 | B178: 240 | C178: 2021 | D178: FDLRUU-CD-240-2021 | E178: https://community.secop.gov.co/Public/Tendering/OpportunityDetail/Index?noticeUID=CO1.NTC.2094094&isFromPublicArea=True&isModal=False | F178: Contratos de prestación de servicios profesionales y de apoyo a la gestión | G178: Contratación directa | H178: Prestación de servicios profesionales y de apoyo a la gestión, o para la ejecución de trabajos artísticos que sólo puedan encomendarse a determinadas personas naturales; | I178: PRESTAR SERVICIOS PROFESIONALES AL DESPACHO EN LA FORMULACIÓN, IMPLEMENTACIÓN Y SEGUIMIENTO DE PLANES, PROYECTOS Y ESTRATEGIAS ECONOMICAS, SOCIALES, AMBIENTALES Y CULTURALES, EN LA LOCALIDAD RAFAEL URIBE URIBE | J178: Inversión | K178: Un Nuevo Contrato Social y Ambiental para la Bogotá del Siglo XXI | L178: 57 | M178: =IF(ISERROR(VLOOKUP(L178,Proposito_programa!$C$2:$E$59,2,FALSE))," ",VLOOKUP(L178,Proposito_programa!$C$2:$E$59,2,FALSE)) -> Gestión pública local | N178: =IF(ISERROR(VLOOKUP(L178,Proposito_programa!$C$2:$E$59,3,FALSE))," ",VLOOKUP(L178,Proposito_programa!$C$2:$E$59,3,FALSE)) -> Propósito 5: Construir Bogotá - Región con gobierno abierto, transparente y ciudadanía consciente | O178: 133011605570000001697 | P178: 1 | Q178: 79798180 | R178: JUAN FERNANDO CONTRERAS ORTIZ | S178: Persona Natural | W178: 24000000 | AA178: 24000000 | AB178: 21200000 | AC178: 44390 | AD178: 44392 | AE178: 44514 | AF178: 120 | AO178: X | AQ178: 0.8833333333
A179: 1 | B179: 147 | C179: 2021 | D179: FDLRUU-CD-147-2021 | E179: https://community.secop.gov.co/Public/Tendering/OpportunityDetail/Index?noticeUID=CO1.NTC.1795898&isFromPublicArea=True&isModal=False | F179: Contratos de prestación de servicios profesionales y de apoyo a la gestión | G179: Contratación directa | H179: Prestación de servicios profesionales y de apoyo a la gestión, o para la ejecución de trabajos artísticos que sólo puedan encomendarse a determinadas personas naturales; | I179: APOYAR TÉCNICAMENTE LAS DISTINTAS ETAPAS DE LOS PROCESOS DE COMPETENCIA DE LAS INSPECCIONES DE POLICÍA DE LA LOCALIDAD, SEGÚN REPARTO | J179: Inversión | K179: Un Nuevo Contrato Social y Ambiental para la Bogotá del Siglo XXI | L179: 57 | M179: =IF(ISERROR(VLOOKUP(L179,Proposito_programa!$C$2:$E$59,2,FALSE))," ",VLOOKUP(L179,Proposito_programa!$C$2:$E$59,2,FALSE)) -> Gestión pública local | N179: =IF(ISERROR(VLOOKUP(L179,Proposito_programa!$C$2:$E$59,3,FALSE))," ",VLOOKUP(L179,Proposito_programa!$C$2:$E$59,3,FALSE)) -> Propósito 5: Construir Bogotá - Región con gobierno abierto, transparente y ciudadanía consciente | O179: 133011605570000001698 | P179: 1 | Q179: 79347561 | R179: JUAN CARLOS USSA LIZARAZO | S179: Persona Natural | W179: 31200000 | Y179: 1 | Z179: 15600000 | AA179: 46800000 | AB179: 41600000 | AC179: 44252 | AD179: 44256 | AE179: 44530 | AF179: 180 | AG179: 1 | AH179: 90 | AO179: X | AQ179: 0.8888888889
A180: 1 | B180: 129 | C180: 2021 | D180: FDLRUU-CD-129-2021 | E180: https://community.secop.gov.co/Public/Tendering/OpportunityDetail/Index?noticeUID=CO1.NTC.1782687&isFromPublicArea=True&isModal=False | F180: Contratos de prestación de servicios profesionales y de apoyo a la gestión | G180: Contratación directa | H180: Prestación de servicios profesionales y de apoyo a la gestión, o para la ejecución de trabajos artísticos que sólo puedan encomendarse a determinadas personas naturales; | I180: PRESTAR LOS SERVICIOS COMO OPERADOR DE MAQUINARIA AMARILLA, AL SERVICIO DE LA ADMINISTRACION LOCAL DE RAFAEL URIBE URIBE EN LA REALIZACIÓN DE LA EJECUCION DEL PROYECTO NO. 1685 MOVILIDAD MULTIMODAL, INCLUYENTE Y SOSTENIBLE EN RAFAEL URIBE URIBE, ASÍ COMO APOYAR LAS DEMÁS ACTIVIDADES QUE SE GENEREN EN EL ÁREA DE GESTIÓN DEL DESARROLLO CON RELACION AL PROYECTO EN MENCION | J180: Inversión | K180: Un Nuevo Contrato Social y Ambiental para la Bogotá del Siglo XXI | L180: 57 | M180: =IF(ISERROR(VLOOKUP(L180,Proposito_programa!$C$2:$E$59,2,FALSE))," ",VLOOKUP(L180,Proposito_programa!$C$2:$E$59,2,FALSE)) -> Gestión pública local | N180: =IF(ISERROR(VLOOKUP(L180,Proposito_programa!$C$2:$E$59,3,FALSE))," ",VLOOKUP(L180,Proposito_programa!$C$2:$E$59,3,FALSE)) -> Propósito 5: Construir Bogotá - Región con gobierno abierto, transparente y ciudadanía consciente | O180: 133011605570000001697 | P180: 1 | Q180: 80139417 | R180: JUAN CARLOS OLEGUA HURTADO | S180: Persona Natural | W180: 26000000 | Y180: 1 | Z180: 2166667 | AA180: 28166667 | AB180: 24440000 | AC180: 44246 | AD180: 44246 | AE180: 44574 | AF180: 300 | AG180: 1 | AH180: 25 | AO180: X | AQ180: 0.8676922974
A181: 1 | B181: 77 | C181: 2021 | D181: FDLRUU-CD-077-2021 | E181: https://community.secop.gov.co/Public/Tendering/OpportunityDetail/Index?noticeUID=CO1.NTC.1755898&isFromPublicArea=True&isModal=False | F181: Contratos de prestación de servicios profesionales y de apoyo a la gestión | G181: Contratación directa | H181: Prestación de servicios profesionales y de apoyo a la gestión, o para la ejecución de trabajos artísticos que sólo puedan encomendarse a determinadas personas naturales; | I181: APOYAR LA GESTIÓN DOCUMENTAL DE LA ALCALDÍA LOCAL DE RAFAEL URIBE URIBE EN LA IMPLEMENTACIÓN DE LOS PROCESOS DE CLASIFICACIÓN, ORDENACIÓN, SELECCIÓN NATURAL, FOLIACIÓN, IDENTIFICACIÓN, LEVANTAMIENTO DE INVENTARIOS, ALMACENAMIENTO Y APLICACIÓN DE PROTOCOLOS DE ELIMINACIÓN Y TRANSFERENCIAS DOCUMENTALES | J181: Inversión | K181: Un Nuevo Contrato Social y Ambiental para la Bogotá del Siglo XXI | L181: 57 | M181: =IF(ISERROR(VLOOKUP(L181,Proposito_programa!$C$2:$E$59,2,FALSE))," ",VLOOKUP(L181,Proposito_programa!$C$2:$E$59,2,FALSE)) -> Gestión pública local | N181: =IF(ISERROR(VLOOKUP(L181,Proposito_programa!$C$2:$E$59,3,FALSE))," ",VLOOKUP(L181,Proposito_programa!$C$2:$E$59,3,FALSE)) -> Propósito 5: Construir Bogotá - Región con gobierno abierto, transparente y ciudadanía consciente | O181: 133011605570000001697 | P181: 1 | Q181: 17654733 | R181: JUAN CARLOS JIMENEZ MENESES | S181: Persona Natural | W181: 26000000 | Y181: 1 | Z181: 1646667 | AA181: 27646667 | AB181: 25046667 | AC181: 44238 | AD181: 44239 | AE181: 44561 | AF181: 300 | AG181: 1 | AH181: 19 | AO181: X | AQ181: 0.905956114
A182: 1 | B182: 268 | C182: 2021 | D182: FDLRUU-CD-268-2021 | E182: https://community.secop.gov.co/Public/Tendering/OpportunityDetail/Index?noticeUID=CO1.NTC.2178643&isFromPublicArea=True&isModal=False | F182: Contratos de prestación de servicios profesionales y de apoyo a la gestión | G182: Contratación directa | H182: Prestación de servicios profesionales y de apoyo a la gestión, o para la ejecución de trabajos artísticos que sólo puedan encomendarse a determinadas personas naturales; | I182: PRESTAR SUS SERVICIOS ASISTENCIALES PARA LA GESTIÓN DEL RIESGO, EN EL MARCO DE LOS VIGÍAS DEL RIESGO DE LA LOCALIDAD DE RAFAEL URIBE URIBE | J182: Inversión | K182: Un Nuevo Contrato Social y Ambiental para la Bogotá del Siglo XXI | L182: 30 | M182: =IF(ISERROR(VLOOKUP(L182,Proposito_programa!$C$2:$E$59,2,FALSE))," ",VLOOKUP(L182,Proposito_programa!$C$2:$E$59,2,FALSE)) -> Eficiencia en la atención de emergencias | N182: =IF(ISERROR(VLOOKUP(L182,Proposito_programa!$C$2:$E$59,3,FALSE))," ",VLOOKUP(L182,Proposito_programa!$C$2:$E$59,3,FALSE)) -> Propósito 2 : Cambiar Nuestros Hábitos de Vida para Reverdecer a Bogotá y Adaptarnos y Mitigar la Crisis Climática | O182: 133011602300000001665 | P182: 1 | Q182: 79515849 | R182: JUAN CARLOS ALVAREZ SANABRIA | S182: Persona Natural | W182: 8100000 | AA182: 8100000 | AB182: 6060000 | AC182: 44425 | AD182: 44428 | AE182: 44565 | AF182: 135 | AO182: X | AQ182: 0.7481481481
A183: 1 | B183: 208 | C183: 2021 | D183: FDLRUU-CD-208-2021 | E183: https://community.secop.gov.co/Public/Tendering/OpportunityDetail/Index?noticeUID=CO1.NTC.1882619&isFromPublicArea=True&isModal=False | F183: Contratos de prestación de servicios profesionales y de apoyo a la gestión | G183: Contratación directa | H183: Prestación de servicios profesionales y de apoyo a la gestión, o para la ejecución de trabajos artísticos que sólo puedan encomendarse a determinadas personas naturales; | I183: EL CONTRATISTA SE OBLIGA A PRESTAR SUS SERVICIOS PROFESIONALES EN EL ÁREA DE GESTIÓN DEL DESARROLLO LOCAL - PLANEACIÓN, REALIZANDO LAS ACTIVIDADES PROPIAS PARA LA FORMULACION, EJECUCIÓN Y SEGUIMIENTO DE LOS PROYECTOS DE INVERSIÓN DEL PLAN DE DESARROLLO LOCAL 2021 - 2024 | J183: Inversión | K183: Un Nuevo Contrato Social y Ambiental para la Bogotá del Siglo XXI | L183: 57 | M183: =IF(ISERROR(VLOOKUP(L183,Proposito_programa!$C$2:$E$59,2,FALSE))," ",VLOOKUP(L183,Proposito_programa!$C$2:$E$59,2,FALSE)) -> Gestión pública local | N183: =IF(ISERROR(VLOOKUP(L183,Proposito_programa!$C$2:$E$59,3,FALSE))," ",VLOOKUP(L183,Proposito_programa!$C$2:$E$59,3,FALSE)) -> Propósito 5: Construir Bogotá - Región con gobierno abierto, transparente y ciudadanía consciente | O183: 133011605570000001697 | P183: 1 | Q183: 1136887745 | R183: JUAN CAMILO RODRIGUEZ VASQUEZ | S183: Persona Natural | W183: 52000000 | AA183: 52000000 | AB183: 40906667 | AC183: 44286 | AD183: 44291 | AE183: 44596 | AF183: 300 | AN183: X | AQ183: 0.7866666731
A184: 1 | B184: 215 | C184: 2021 | D184: FDLRUU-CD-215-2021 | E184: https://community.secop.gov.co/Public/Tendering/OpportunityDetail/Index?noticeUID=CO1.NTC.1895358&isFromPublicArea=True&isModal=False | F184: Contratos de prestación de servicios profesionales y de apoyo a la gestión | G184: Contratación directa | H184: Prestación de servicios profesionales y de apoyo a la gestión, o para la ejecución de trabajos artísticos que sólo puedan encomendarse a determinadas personas naturales; | I184: EL CONTRATISTA SE OBLIGA A PRESTAR SERVICIOS PROFESIONALES EN EL ÁREA DE GESTIÓN POLICIVA JURIDICA DE LA ALCALDÍA LOCAL DE RAFAEL URIBE URIBE, PARA VIGILANCIA Y CONTROL DE LAS ZONAS DE PROTECCION AMBIENTAL, REASENTAMIENTOS, RESERVAS AMBIENTALES, HUMEDALES Y ECOSISTEMAS Y CONTROL | J184: Inversión | K184: Un Nuevo Contrato Social y Ambiental para la Bogotá del Siglo XXI | L184: 57 | M184: =IF(ISERROR(VLOOKUP(L184,Proposito_programa!$C$2:$E$59,2,FALSE))," ",VLOOKUP(L184,Proposito_programa!$C$2:$E$59,2,FALSE)) -> Gestión pública local | N184: =IF(ISERROR(VLOOKUP(L184,Proposito_programa!$C$2:$E$59,3,FALSE))," ",VLOOKUP(L184,Proposito_programa!$C$2:$E$59,3,FALSE)) -> Propósito 5: Construir Bogotá - Región con gobierno abierto, transparente y ciudadanía consciente | O184: 133011605570000001698 | P184: 1 | Q184: 1030657007 | R184: JUAN CAMILO MOLANO APONTE | S184: Persona Natural | W184: 52000000 | AA184: 52000000 | AB184: 38480000 | AC184: 44293 | AD184: 44305 | AE184: 44610 | AF184: 300 | AN184: X | AQ184: 0.74
A185: 1 | B185: 50 | C185: 2021 | D185: FDLRUU-CD-050-2021 | E185: https://community.secop.gov.co/Public/Tendering/OpportunityDetail/Index?noticeUID=CO1.NTC.1737611&isFromPublicArea=True&isModal=False | F185: Contratos de prestación de servicios profesionales y de apoyo a la gestión | G185: Contratación directa | H185: Prestación de servicios profesionales y de apoyo a la gestión, o para la ejecución de trabajos artísticos que sólo puedan encomendarse a determinadas personas naturales; | I185: APOYAR JURÍDICAMENTE LA EJECUCIÓN DE LAS ACCIONES REQUERIDAS PARA EL TRÁMITE E IMPULSO PROCESAL DE LAS ACTUACIONES CONTRAVENCIONALES Y/O QUERELLAS QUE CURSEN EN LAS INSPECCIONES DE POLICÍA DE LA LOCALIDAD DE RAFAEL URIBE URIBE”. | J185: Inversión | K185: Un Nuevo Contrato Social y Ambiental para la Bogotá del Siglo XXI | L185: 57 | M185: =IF(ISERROR(VLOOKUP(L185,Proposito_programa!$C$2:$E$59,2,FALSE))," ",VLOOKUP(L185,Proposito_programa!$C$2:$E$59,2,FALSE)) -> Gestión pública local | N185: =IF(ISERROR(VLOOKUP(L185,Proposito_programa!$C$2:$E$59,3,FALSE))," ",VLOOKUP(L185,Proposito_programa!$C$2:$E$59,3,FALSE)) -> Propósito 5: Construir Bogotá - Región con gobierno abierto, transparente y ciudadanía consciente | O185: 133011605570000001698 | P185: 1 | Q185: 79450983 | R185: JUAN ANTONIO CARDENAS ACEVEDO | S185: Persona Natural | W185: 31200000 | Y185: 1 | Z185: 15600000 | AA185: 46800000 | AB185: 46800000 | AC185: 44235 | AD185: 44237 | AE185: 44509 | AF185: 180 | AG185: 1 | AH185: 90 | AO185: X | AQ185: 1
A186: 1 | B186: 250 | C186: 2021 | D186: FDLRUU-CD-250-2021 | E186: https://community.secop.gov.co/Public/Tendering/OpportunityDetail/Index?noticeUID=CO1.NTC.2119239&isFromPublicArea=True&isModal=False | F186: Contratos de prestación de servicios profesionales y de apoyo a la gestión | G186: Contratación directa | H186: Prestación de servicios profesionales y de apoyo a la gestión, o para la ejecución de trabajos artísticos que sólo puedan encomendarse a determinadas personas naturales; | I186: PRESTAR LOS SERVICIOS PROFESIONALES PARA APOYAR AL DESPACHO DE LA ALCALDÍA LOCAL DE RAFAEL URIBE URIBE EN EL DISEÑO Y ESTRATEGIAS, COORDINACIÓN Y EMISIÓN DE LINEAMIENTOS QUE COADYUVEN AL FORTALECIMIENTO INSTITUCIONAL ENTORNO A LAS ACTIVIDADES QUE REALIZA LA ALCALDÍA LOCAL EN SUS DIFERENTES DEPENDENCIAS | J186: Inversión | K186: Un Nuevo Contrato Social y Ambiental para la Bogotá del Siglo XXI | L186: 57 | M186: =IF(ISERROR(VLOOKUP(L186,Proposito_programa!$C$2:$E$59,2,FALSE))," ",VLOOKUP(L186,Proposito_programa!$C$2:$E$59,2,FALSE)) -> Gestión pública local | N186: =IF(ISERROR(VLOOKUP(L186,Proposito_programa!$C$2:$E$59,3,FALSE))," ",VLOOKUP(L186,Proposito_programa!$C$2:$E$59,3,FALSE)) -> Propósito 5: Construir Bogotá - Región con gobierno abierto, transparente y ciudadanía consciente | O186: 133011605570000001697 | P186: 1 | Q186: 1100951329 | R186: JUAN ANDRES LOPEZ RIOS | S186: Persona Natural | W186: 24000000 | AA186: 24000000 | AB186: 17800000 | AC186: 44400 | AD186: 44410 | AE186: 44500 | AF186: 120 | AP186: X | AQ186: 0.7416666667
A187: 1 | B187: 4 | C187: 2021 | D187: FDLRUU-CD-004-2021 | E187: https://community.secop.gov.co/Public/Tendering/OpportunityDetail/Index?noticeUID=CO1.NTC.1690514&isFromPublicArea=True&isModal=False | F187: Contratos de prestación de servicios profesionales y de apoyo a la gestión | G187: Contratación directa | H187: Prestación de servicios profesionales y de apoyo a la gestión, o para la ejecución de trabajos artísticos que sólo puedan encomendarse a determinadas personas naturales; | I187: PRESTAR LOS SERVICIOS PROFESIONALES PARA DEPURAR LAS OBLIGACIONES POR PAGAR A CARGO DEL FONDO DE DESARROLLO DE RAFAEL URIBE URIBE | J187: Inversión | K187: Un Nuevo Contrato Social y Ambiental para la Bogotá del Siglo XXI | L187: 57 | M187: =IF(ISERROR(VLOOKUP(L187,Proposito_programa!$C$2:$E$59,2,FALSE))," ",VLOOKUP(L187,Proposito_programa!$C$2:$E$59,2,FALSE)) -> Gestión pública local | N187: =IF(ISERROR(VLOOKUP(L187,Proposito_programa!$C$2:$E$59,3,FALSE))," ",VLOOKUP(L187,Proposito_programa!$C$2:$E$59,3,FALSE)) -> Propósito 5: Construir Bogotá - Región con gobierno abierto, transparente y ciudadanía consciente | O187: 133011605570000001697 | P187: 1 | Q187: 87941057 | R187: JOSE LUIS GOMEZ GONZALEZ | S187: Persona Natural | W187: 52000000 | Y187: 1 | Z187: 7800000 | AA187: 59800000 | AB187: 52346667 | AC187: 44221 | AD187: 44225 | AE187: 44574 | AF187: 300 | AG187: 1 | AH187: 45 | AO187: X | AQ187: 0.8753623244
A188: 1 | B188: 32 | C188: 2021 | D188: FDLRUU-CD-032-2021 | E188: https://community.secop.gov.co/Public/Tendering/OpportunityDetail/Index?noticeUID=CO1.NTC.1726165&isFromPublicArea=True&isModal=False | F188: Contratos de prestación de servicios profesionales y de apoyo a la gestión | G188: Contratación directa | H188: Prestación de servicios profesionales y de apoyo a la gestión, o para la ejecución de trabajos artísticos que sólo puedan encomendarse a determinadas personas naturales; | I188: APOYAR EL (LA) ALCALDE (SA)LOCAL EN LA GESTIÓN DE LOS ASUNTOS RELACIONADOS CON SEGURIDAD CIUDADANA, CONVIVENCIA Y PREVENCIÓN DE CONFLICTIVIDADES, VIOLENCIAS Y DELITOS EN LA LOCALIDAD, DE CONFORMIDAD CON EL MARCO NORMATIVO APLICABLE EN LA MATERIA | J188: Inversión | K188: Un Nuevo Contrato Social y Ambiental para la Bogotá del Siglo XXI | L188: 57 | M188: =IF(ISERROR(VLOOKUP(L188,Proposito_programa!$C$2:$E$59,2,FALSE))," ",VLOOKUP(L188,Proposito_programa!$C$2:$E$59,2,FALSE)) -> Gestión pública local | N188: =IF(ISERROR(VLOOKUP(L188,Proposito_programa!$C$2:$E$59,3,FALSE))," ",VLOOKUP(L188,Proposito_programa!$C$2:$E$59,3,FALSE)) -> Propósito 5: Construir Bogotá - Región con gobierno abierto, transparente y ciudadanía consciente | O188: 133011605570000001698 | P188: 1 | Q188: 94391606 | R188: JOSE JOAQUIN OCAMPO TEJADA | S188: Persona Natural | W188: 67000000 | Y188: 1 | Z188: 6253333 | AA188: 73253333 | AB188: 66553333 | AC188: 44229 | AD188: 44230 | AE188: 44560 | AF188: 300 | AG188: 1 | AH188: 28 | AI188: 1014218875 | AJ188: JULIANA BALLESTEROS CASILIMAS | AK188: 44392 | AL188: 30596667 | AO188: X | AQ188: 0.9085365849
A189: 1 | B189: 231 | C189: 2021 | D189: FDLRUU-CD-231-2021 | E189: https://community.secop.gov.co/Public/Tendering/OpportunityDetail/Index?noticeUID=CO1.NTC.2035217&isFromPublicArea=True&isModal=False | F189: Contratos de prestación de servicios profesionales y de apoyo a la gestión | G189: Contratación directa | H189: Prestación de servicios profesionales y de apoyo a la gestión, o para la ejecución de trabajos artísticos que sólo puedan encomendarse a determinadas personas naturales; | I189: PRESTAR LOS SERVICIOS DE APOYO A LA GESTIÓN PARA LA CONDUCCIÓN DE LOS VEHÍCULOS LIVIANOS QUE LE SEAN ASIGNADOS Y QUE SE ENCUENTREN AL SERVICIO DE LA ALCALDÍA LOCAL DE RAFAEL URIBE URIBE | J189: Inversión | K189: Un Nuevo Contrato Social y Ambiental para la Bogotá del Siglo XXI | L189: 57 | M189: =IF(ISERROR(VLOOKUP(L189,Proposito_programa!$C$2:$E$59,2,FALSE))," ",VLOOKUP(L189,Proposito_programa!$C$2:$E$59,2,FALSE)) -> Gestión pública local | N189: =IF(ISERROR(VLOOKUP(L189,Proposito_programa!$C$2:$E$59,3,FALSE))," ",VLOOKUP(L189,Proposito_programa!$C$2:$E$59,3,FALSE)) -> Propósito 5: Construir Bogotá - Región con gobierno abierto, transparente y ciudadanía consciente | O189: 133011605570000001697 | P189: 1 | Q189: 334775 | R189: JOSE ALFONSO GARZON CABEZAS | S189: Persona Natural | W189: 15600000 | AA189: 15600000 | AB189: 13520000 | AC189: 44363 | AD189: 44372 | AE189: 44554 | AF189: 180 | AO189: X | AQ189: 0.8666666667
A190: 1 | B190: 10 | C190: 2021 | D190: FDLRUU-CD-010-2021 | E190: https://community.secop.gov.co/Public/Tendering/OpportunityDetail/Index?noticeUID=CO1.NTC.1684992&isFromPublicArea=True&isModal=False | F190: Contratos de prestación de servicios profesionales y de apoyo a la gestión | G190: Contratación directa | H190: Prestación de servicios profesionales y de apoyo a la gestión, o para la ejecución de trabajos artísticos que sólo puedan encomendarse a determinadas personas naturales; | I190: APOYAR TÉCNICAMENTE LAS DISTINTAS ETAPAS DE LOS PROCESOS DE COMPETENCIA DE LAS INSPECCIONES DE POLICÍA DE LA LOCALIDAD, SEGÚN REPARTO. | J190: Inversión | K190: Un Nuevo Contrato Social y Ambiental para la Bogotá del Siglo XXI | L190: 57 | M190: =IF(ISERROR(VLOOKUP(L190,Proposito_programa!$C$2:$E$59,2,FALSE))," ",VLOOKUP(L190,Proposito_programa!$C$2:$E$59,2,FALSE)) -> Gestión pública local | N190: =IF(ISERROR(VLOOKUP(L190,Proposito_programa!$C$2:$E$59,3,FALSE))," ",VLOOKUP(L190,Proposito_programa!$C$2:$E$59,3,FALSE)) -> Propósito 5: Construir Bogotá - Región con gobierno abierto, transparente y ciudadanía consciente | O190: 133011605570000001698 | P190: 1 | Q190: 19338480 | R190: JORGE HERNANDO RODRIGUEZ SANTANA | S190: Persona Natural | W190: 31200000 | Y190: 1 | Z190: 15600000 | AA190: 46800000 | AB190: 46800000 | AC190: 44221 | AD190: 44225 | AE190: 44497 | AF190: 180 | AG190: 1 | AH190: 90 | AO190: X | AQ190: 1
A191: 1 | B191: 22 | C191: 2021 | D191: FDLRUU-CD-022-2021 | E191: https://community.secop.gov.co/Public/Tendering/OpportunityDetail/Index?noticeUID=CO1.NTC.1722173&isFromPublicArea=True&isModal=False | F191: Contratos de prestación de servicios profesionales y de apoyo a la gestión | G191: Contratación directa | H191: Prestación de servicios profesionales y de apoyo a la gestión, o para la ejecución de trabajos artísticos que sólo puedan encomendarse a determinadas personas naturales; | I191: “PRESTAR LOS SERVICIOS PROFESIONALES COMO INGENIERO O ARQUITECTO PARA DEPURAR LAS OBLIGACIONES POR PAGAR A CARGO DEL FONDO DE DESARROLLO LOCAL DE RAFEL URIBE URIBE” | J191: Inversión | K191: Un Nuevo Contrato Social y Ambiental para la Bogotá del Siglo XXI | L191: 57 | M191: =IF(ISERROR(VLOOKUP(L191,Proposito_programa!$C$2:$E$59,2,FALSE))," ",VLOOKUP(L191,Proposito_programa!$C$2:$E$59,2,FALSE)) -> Gestión pública local | N191: =IF(ISERROR(VLOOKUP(L191,Proposito_programa!$C$2:$E$59,3,FALSE))," ",VLOOKUP(L191,Proposito_programa!$C$2:$E$59,3,FALSE)) -> Propósito 5: Construir Bogotá - Región con gobierno abierto, transparente y ciudadanía consciente | O191: 133011605570000001697 | P191: 1 | Q191: 79956583 | R191: JORGE ANDRES HERNAN TORRES | S191: Persona Natural | W191: 52000000 | Y191: 1 | Z191: 4853333 | AA191: 56853333 | AB191: 51653333 | AC191: 44229 | AD191: 44230 | AE191: 44560 | AF191: 300 | AG191: 1 | AH191: 28 | AI191: 80372860 | AJ191: EDISON ANGULO ARIAS | AK191: 44256 | AL191: 47146667 | AO191: X | AQ191: 0.9085365848
A192: 1 | B192: 104 | C192: 2021 | D192: FDLRUU-CD-104-2021 | E192: https://community.secop.gov.co/Public/Tendering/OpportunityDetail/Index?noticeUID=CO1.NTC.1767908&isFromPublicArea=True&isModal=False | F192: Contratos de prestación de servicios profesionales y de apoyo a la gestión | G192: Contratación directa | H192: Prestación de servicios profesionales y de apoyo a la gestión, o para la ejecución de trabajos artísticos que sólo puedan encomendarse a determinadas personas naturales; | I192: APOYAR LA GESTIÓN DOCUMENTAL DE LA ALCALDÍA LOCAL AL EQUIPO JURÍDICO DE DEPURACIÓN EN LAS LABORES OPERATIVAS QUE GENERA EL PROCESO DE IMPULSO DE LAS ACTUACIONES ADMINISTRATIVAS EXISTENTES EN LA ALCALDÍA LOCAL DE RAFAEL URIBE URIBE | J192: Inversión | K192: Un Nuevo Contrato Social y Ambiental para la Bogotá del Siglo XXI | L192: 57 | M192: =IF(ISERROR(VLOOKUP(L192,Proposito_programa!$C$2:$E$59,2,FALSE))," ",VLOOKUP(L192,Proposito_programa!$C$2:$E$59,2,FALSE)) -> Gestión pública local | N192: =IF(ISERROR(VLOOKUP(L192,Proposito_programa!$C$2:$E$59,3,FALSE))," ",VLOOKUP(L192,Proposito_programa!$C$2:$E$59,3,FALSE)) -> Propósito 5: Construir Bogotá - Región con gobierno abierto, transparente y ciudadanía consciente | O192: 133011605570000001698 | P192: 1 | Q192: 19454960 | R192: JORGE ALBERTO ROMERO CARDENAS | S192: Persona Natural | W192: 17500000 | Y192: 1 | Z192: 816667 | AA192: 18316667 | AB192: 16566667 | AC192: 44243 | AD192: 44244 | AE192: 44561 | AF192: 300 | AG192: 1 | AH192: 14 | AO192: X | AQ192: 0.9044586005
A193: 1 | B193: 33 | C193: 2021 | D193: FDLRUU-CD.-033-2021 | E193: https://community.secop.gov.co/Public/Tendering/OpportunityDetail/Index?noticeUID=CO1.NTC.1728289&isFromPublicArea=True&isModal=False | F193: Contratos de prestación de servicios profesionales y de apoyo a la gestión | G193: Contratación directa | H193: Prestación de servicios profesionales y de apoyo a la gestión, o para la ejecución de trabajos artísticos que sólo puedan encomendarse a determinadas personas naturales; | I193: APOYAR TÉCNICAMENTE LAS DISTINTAS ETAPAS DE LOS PROCESOS DE COMPETENCIA DE LA ALCALDÍA LOCAL PARA LA DEPURACIÓN DE LAS ACTUACIONES ADMINISTRATIVAS” | J193: Inversión | K193: Un Nuevo Contrato Social y Ambiental para la Bogotá del Siglo XXI | L193: 57 | M193: =IF(ISERROR(VLOOKUP(L193,Proposito_programa!$C$2:$E$59,2,FALSE))," ",VLOOKUP(L193,Proposito_programa!$C$2:$E$59,2,FALSE)) -> Gestión pública local | N193: =IF(ISERROR(VLOOKUP(L193,Proposito_programa!$C$2:$E$59,3,FALSE))," ",VLOOKUP(L193,Proposito_programa!$C$2:$E$59,3,FALSE)) -> Propósito 5: Construir Bogotá - Región con gobierno abierto, transparente y ciudadanía consciente | O193: 133011605570000001698 | P193: 1 | Q193: 79807118 | R193: JONATHAN MORENO | S193: Persona Natural | W193: 31200000 | Y193: 1 | Z193: 15600000 | AA193: 46800000 | AB193: 46106667 | AC193: 44230 | AD193: 44232 | AE193: 44504 | AF193: 180 | AG193: 1 | AH193: 90 | AO193: X | AQ193: 0.9851851923
A194: 1 | B194: 47 | C194: 2021 | D194: FDLRUU-CD-047-2021 | E194: https://community.secop.gov.co/Public/Tendering/OpportunityDetail/Index?noticeUID=CO1.NTC.1737328&isFromPublicArea=True&isModal=False | F194: Contratos de prestación de servicios profesionales y de apoyo a la gestión | G194: Contratación directa | H194: Prestación de servicios profesionales y de apoyo a la gestión, o para la ejecución de trabajos artísticos que sólo puedan encomendarse a determinadas personas naturales; | I194: PRESTAR LOS SERVICIOS PROFESIONALES COMO ABOGADO PARA APOYAR LOS PROCESOS DE CONTRATACIÓN EN SUS DIFERENTES ETAPAS AL ÁREA DE GESTIÓN DEL DESARROLLO DE LA ALCALDÍA LOCAL DE RAFAEL URIBE URIBE | J194: Inversión | K194: Un Nuevo Contrato Social y Ambiental para la Bogotá del Siglo XXI | L194: 57 | M194: =IF(ISERROR(VLOOKUP(L194,Proposito_programa!$C$2:$E$59,2,FALSE))," ",VLOOKUP(L194,Proposito_programa!$C$2:$E$59,2,FALSE)) -> Gestión pública local | N194: =IF(ISERROR(VLOOKUP(L194,Proposito_programa!$C$2:$E$59,3,FALSE))," ",VLOOKUP(L194,Proposito_programa!$C$2:$E$59,3,FALSE)) -> Propósito 5: Construir Bogotá - Región con gobierno abierto, transparente y ciudadanía consciente | O194: 133011605570000001697 | P194: 1 | Q194: 80811353 | R194: JOHN HENRY BOHORQUEZ | S194: Persona Natural | W194: 52000000 | Y194: 1 | Z194: 6760000 | AA194: 58760000 | AB194: 51306667 | AC194: 44232 | AD194: 44232 | AE194: 44574 | AF194: 300 | AG194: 1 | AH194: 39 | AO194: X | AQ194: 0.8731563479
A195: 1 | B195: 321 | C195: 2021 | D195: FDLRUU-MC-321-2021 | E195: https://community.secop.gov.co/Public/Tendering/OpportunityDetail/Index?noticeUID=CO1.NTC.2454569&isFromPublicArea=True&isModal=False | F195: Suministro | G195: Contratación mínima cuantia | H195: No aplica | I195: ADQUIRIR LA ESTRUCTURA Y REALIZAR LA INSTALACIÓN DE UN CICLOPARQUEADERO PARA EL AVANCE EN LA IMPLEMENTACIÓN DEL PLAN INTEGRAL DE MOVILIDAD SOSTENIBLE -PIMS Y EL PLAN INSTITUCIONAL DE GESTIÓN AMBIENTAL PIGA EN LA ALCALDÍA LOCAL DE RAFAEL URIBE URIBE | J195: Funcionamiento | K195: Un Nuevo Contrato Social y Ambiental para la Bogotá del Siglo XXI | L195: No aplica | M195: =IF(ISERROR(VLOOKUP(L195,Proposito_programa!$C$2:$E$59,2,FALSE))," ",VLOOKUP(L195,Proposito_programa!$C$2:$E$59,2,FALSE)) ->  | N195: =IF(ISERROR(VLOOKUP(L195,Proposito_programa!$C$2:$E$59,3,FALSE))," ",VLOOKUP(L195,Proposito_programa!$C$2:$E$59,3,FALSE)) ->  | O195: 1310201010109-1310202010302 | P195: 3 | Q195: 79391917 | R195: JOHN ALEJANDRO FRANCO OTERO | S195: Persona Natural | W195: 10400600 | AA195: 10400600 | AB195: 0 | AC195: 44557 | AD195: CELEBRADO SIN INICIAR | AE195: CELEBRADO SIN INICIAR | AF195: 90 | AM195: X | AQ195: 0
